Workbook

Sheet Users Guide (hidden)
C10: MSU 2018 Farm Bill Analyzer USERS GUIDE
C12: USER’S GUIDE
C13: Version 2.0 October 27, 2019
C14: Roger Betz, Senior Farm Management
C15: Michigan State University Extension
C17: The MSU 2018 FARM BILL ANALYZER provides an analysis of two important decisions that are included in the Agricultural Act of 2018 (the 2018 Farm Bill). First, land owners will be permitted to update the Price Loss Coverage (PLC) program yields on their farms. Second, owners and/or tenants can elect either the Agricultural Risk Coverage (ARC-CO or ARC-IC) or Price Loss Coverage (PLC) programs for each covered commodity on each of their farms.
C18: This FARM BILL ANALYZER provides farm management information on the PLC yield update and ARC Co versus PLC decisions based on assumptions about farm yields, county yields, and national market prices. Given the inputted variables listed below, the MSU 2018 FARM BILL ANALYZER will calculate the consequences for the farm manager’s alternative decisions regarding PLC yield updates and the election of ARC-CO, or PLC programs. The ARC Individual program is not analyzed by the tool but is available in the 2018 Farm Bill.
C21: Disclaimer: This MSU 2018 FARM BILL ANALYZER is designed with the most recent information available about the provisions of the 2018 Farm Bill.
C23: I. To operate the MSU 2018 FARM BILL ANALYZER, the user will need the following information:
C24: A. The Farm Service Agency (FSA) base acres and PLC program yields by FSA farm number.
C25: B. Historical yields by FSA farm number from 2013 - 2017.
C26: C. If the farm has irrigated yields, the irrigated and non-irrigated yields by acres by year need to be separated.
C27: D. Assumed county average yields (irrigated and non-irrigated) for the county in which the farm is located for 2019 and 2020.
C28: E. Assumed national market year average prices (MYA) for 2019 and 2020.
C30: II. Operation of the tool:
C31: A. The green colored cells are where data and information can be entered. All non-green cells are protected from changes.
C32: B. Where the program says to < SELECT, highlight the green colored cells to the left by clicking on it and a "scroll button" will appear to make your selection. Click on the "scroll button" to activate the choices.
C33: C. The tool has several grey colored buttons to perform various macros contained with in the spreadsheet.
C34: D. Various formulas may appear in green cells that can be changed. It is ok and encouraged to use your own values in these cells. The various macro buttons will restore these formulas and default values.
C36: III. Steps for Data Entry:
C37: Step 1. Select from pull down menu the Farm's County. Then enter a farm name of your choice and the FSA Farm Number.
C38: Step 2. Enter the farm’s PLC program yield for all covered commodities on the farm. FSA form CCC-861
C39: Note: In the 2018 Farm Bill, “covered commodities” with base acres in Michigan include barley, oats, and some others. If you have a significant base in these crops, please contact Roger Betz or use one of the other national analyzer programs.
C40: Step 3 . Enter your actual yields for the FSA farm number. This needs to be the weighted yield (dry and irrigated combined).
C41: Note: The "Irrigation" Sheet is used to calculate the percentage of irrigated acres and yields by year and can be imported to the "2019-20 Farm Bill Calculator" worksheet by using the "Use Irrigation Worksheet Percentages" button.
C42: Step 4 . Enter the known (2019) or expected yields for the County. This needs to be the weighted yield (dry and irrigated combined).
C43: Note: It is important to enter the 2019 actual county yield when known. Sign-up final date is March 15th, 2020 for the 2019 crop year and yield information should be fairy well known at this time. The default is simply the ARC-CO Benchmark yield and the actual will be different and will effect the decision.
C44: Step 5 . Select or Enter Projected Market Year National Average Prices. (MYA)
C45: Note: The 2019 projected MYA price will be 75% known by March 15, 2020 and there will be indications of what the 2020 prices may be. Use your own various prices and different sources (pull down menu) to see the impact on the decision of PLC versus ARC-Co. Use combinations of prices and yields to test at what points the decision between ARC-Co and PLC may change.
C46: A. Various projected prices from alternative sources can be chosen by using the “drop-down” menu.
C47: B. The user can also increase or decrease these base price projections by entering the desired percent change.
C48: C. The default values can be restored by using the “Restore Default Price Projections” button.
C50: IV. FSA Decisions:
C51: FSA Decision 1:
C52: Update PLC Yields? Choose the resulting highest yield. Unlike the 2014 Farm Bill there are no possible offsets where you would not want to choose the highest yield.
C53: FSA Decision 2:
C54: Based on the inputted values the tool calculates the results. Look for the highest payments for the 2019 and 2020 years combined for each crop; corn, soys and wheat. It is important to test various scenarios to see the impacts of various yields and prices. Low prices and average or high yields usually favors PLC. Low yields and low prices may favor ARC-CO or PLC depending on the crop, the county and levels of low prices and low yields.
C56: V. Interpretation of Results: The results calculated by the MSU 2018 FARM BILL ANALYZER -- Results include:
C57: A. PLC Yield update: What is the consequence of electing to update the farm’s FSA PLC program yield? The MSU 2018 FARM BILL ANALYZER compares the farm’s updated yield under the 2018 Farm Bill to the farm’s existing PLC yield. The user should select the highest payment PLC yield by crop. The “Checked YES box” for each crop is where the user can choose whether to update PLC yields or not. This choice can be made on a covered commodity-by-covered commodity basis.
C58: B. ARC-CO versus PLC: What is the consequence of electing to enroll the farm in ARC-CO or PLC? The MSU 2018 FARM BILL ANALYZER compares the farm’s expected total program payment (2019 and 2020) for each covered commodity under each of these two program choices.
C59: C. Color coding is used to help quickly see which program has the highs payment given the inputted information. Green is highest and red is lowest program payment choice.
C61: VI. Conclusion:
C62: Given the many factors that could affect the two major decisions contained in the 2018 Farm Bill, users are encouraged to consider:
C63: A. Running a wide range of scenarios for prices and yields for the 2020 year. Use the best information available for the 2019 year as sign up deadline is March 15th of 2020 for the 2019 crop year decision. You must choose the same program for the 2019 and the 2020 years. The 2021, 2022, and 2023 years will each be separate decisions. Testing various prices and yields is highly recommended and the calculator is designed to accommodate this testing of the USDA program.
C64: B. The farm managers risk preference will effect the final decision made; not simply the result from the most likely prices and yields. What happens when prices and/or yields……………..and how much benefit from the USDA risk management program?
C67: MSU 2018 Farm Bill ARC-PLC Decision Making Tool © 2015 Michigan State University Board of Trustees. 4-H and other Cooperative Extension System groups and other nonprofit educational groups may print hard copies of this material for noncommercial, educational use, provided that attribution is given to Michigan State University Extension. All other rights reserved. For information, contact MSU Extension, 108 Agriculture Hall, 446 West Circle Drive, East Lansing, MI 48824.
C68: MSU is an affirmative-action, equal-opportunity employer, committed to achieving excellence through a diverse workforce and inclusive culture that encourages all people to reach their full potential. Michigan State University Extension programs and materials are open to all without regard to race, color, national origin, gender, gender identity, religion, age, height, weight, disability, political beliefs, sexual orientation, marital status, family status or veteran status. Issued in furtherance of MSU Extension work, acts of May 8 and June 30, 1914, in cooperation with the U.S. Department of Agriculture, Director, MSU Extension, East Lansing, MI 48824. This information is for educational purposes only. Reference to commercial products or trade names does not imply endorsement by MSU Extension or bias against those not mentioned.
C70: VII. Version Updates

Sheet 2019-20 Farm Bill Calculator
D1: 2019 - 2020 FARM BILL ANALYZER
D2: Roger Betz, Farm Business Management Agent | G2: Version 6.5
A3: Step 1. Select Farm's County | E3: With NASS 2019 ESTIMATED YIELDS
B4: County Farm located: | C4: EATON | D4: < Select County | F4: Farm Name: | G4: Smith Farm
F5: Farm Number: | G5: 1234
A6: Step 2. Enter Farms Base Acres (FSA CCC-861) for each farm separately | S6: Irrigation Data
B8: Commodity | C8: Corn | D8: Soybeans | E8: Wheat | F8: Total Base Acres
B9: Base Acres | F9: =SUM(C9:E9) -> 0
B10: 2018 PLC Yield
A11: 13-17 Historical Irrigated Percentage | C11: 0 | D11: 0 | E11: 0 | Y11: FSA 2018 BASE Acres (FSA CCC-861) | Z11: =C9 -> 0 | AA11: Acres | AB11: =D9 -> 0 | AC11: Acres | AD11: =E9 -> 0 | AE11: Acres
Y12: 2018 CC Yield (FSA CCC-861) | Z12: =C10 -> 0 | AA12: Bu/ac | AB12: =D10 -> 0 | AC12: Bu/ac | AD12: =E10 -> 0 | AE12: Bu/ac
AD13: Total FSA Base Acres | AE13: =Z11+AB11+AD11 -> 0
E15: CORN | G15: SOYBEANS | I15: WHEAT
D16: National Loan Rate | E16: 2.2 | G16: 6.2 | I16: 3.38
D17: Reference Price | E17: 3.7 | G17: 8.4 | I17: 5.5 | O17: Please check the FIRM website for possible updates:
O18: http://firm.msue.msu.edu/
A19: Step 3. Enter Your Actual Yields for Farm # | D19: =G5 -> 1234 | O19: This is | P19: =J1 -> 0
A20: Weighted Yield (dry and irrigated combined) | E20: Historical and Projected Farm Yields and Acreages | T20: WARNING!! Use "BLANK" for no yield.
E21: Corn | G21: Soybean | I21: Wheat | S21: Default FARM Yields = Actual County Yields | Y21: Irrigation Yields
E22: Farm Yield | F22: Acres | G22: Farm Yield | H22: Acres | I22: Farm Yield | J22: Acres | K22: Total Commodity Acres | S22: corn | U22: soys | W22: wheat | Y22: corn | AA22: soys | AC22: wheat
D23: 2013 | F23: =IF(E23>0.00001,1,0) -> 0 | H23: =IF(G23>0.00001,1,0) -> 1 | J23: =IF(I23>0.00001,1,0) -> 0 | K23: =F23+H23+J23 -> 1 | R23: 2013 | S23: =('Background Calculations'!$R$63)+('Background Calculations'!$R$66*'2019-20 Farm Bill Calculator'!$C$11)+('Background Calculations'!$R$68*(1-'2019-20 Farm Bill Calculator'!$C$11)) -> 170 | U23: =('Background Calculations'!$R$64)+('Background Calculations'!$R$67*'2019-20 Farm Bill Calculator'!$D$11)+('Background Calculations'!$R$69*(1-'2019-20 Farm Bill Calculator'!$D$11)) -> 48 | W23: =('Background Calculations'!$R$65) -> 72 | Y23: =IRRIGATION!$K$5 ->  | AA23: =IRRIGATION!$K$18 ->  | AC23: =IRRIGATION!$K$30 -> 
D24: 2014 | F24: 0 | H24: 0 | J24: 0 | K24: =F24+H24+J24 -> 0 | R24: 2014 | S24: =('Background Calculations'!$S$63)+('Background Calculations'!$S$66*'2019-20 Farm Bill Calculator'!$C$11)+('Background Calculations'!$S$68*(1-'2019-20 Farm Bill Calculator'!$C$11)) -> 176 | U24: =('Background Calculations'!$S$64)+('Background Calculations'!$S$67*'2019-20 Farm Bill Calculator'!$D$11)+('Background Calculations'!$S$69*(1-'2019-20 Farm Bill Calculator'!$D$11)) -> 45 | W24: =('Background Calculations'!$S$65) -> 77 | Y24: =IRRIGATION!$K$6 ->  | AA24: =IRRIGATION!$K$19 ->  | AC24: =IRRIGATION!$K$31 -> 
A25: Caution! Changes Base Acres to Sum of Mutilple Farms | D25: 2015 | F25: 0 | H25: 0 | J25: 0 | K25: 0 | R25: 2015 | S25: =('Background Calculations'!$T$63)+('Background Calculations'!$T$66*'2019-20 Farm Bill Calculator'!$C$11)+('Background Calculations'!$T$68*(1-'2019-20 Farm Bill Calculator'!$C$11)) -> 163 | U25: =('Background Calculations'!$T$64)+('Background Calculations'!$T$67*'2019-20 Farm Bill Calculator'!$D$11)+('Background Calculations'!$T$69*(1-'2019-20 Farm Bill Calculator'!$D$11)) -> 49 | W25: =('Background Calculations'!$T$65) -> 68 | Y25: =IRRIGATION!$K$7 ->  | AA25: =IRRIGATION!$K$20 ->  | AC25: =IRRIGATION!$K$32 -> 
D26: 2016 | F26: 0 | H26: 0 | J26: 0 | K26: 0 | P26: Default Values | R26: 2016 | S26: =('Background Calculations'!$U$63)+('Background Calculations'!$U$66*'2019-20 Farm Bill Calculator'!$C$11)+('Background Calculations'!$U$68*(1-'2019-20 Farm Bill Calculator'!$C$11)) -> 145 | U26: =('Background Calculations'!$U$64)+('Background Calculations'!$U$67*'2019-20 Farm Bill Calculator'!$D$11)+('Background Calculations'!$U$69*(1-'2019-20 Farm Bill Calculator'!$D$11)) -> 49 | W26: =('Background Calculations'!$U$65) -> 86 | Y26: =IRRIGATION!$K$8 ->  | AA26: =IRRIGATION!$K$21 ->  | AC26: =IRRIGATION!$K$33 -> 
D27: 2017 | F27: 0 | H27: 0 | J27: 0 | K27: 0 | P27: 0 | R27: 2017 | S27: =('Background Calculations'!$V$63)+('Background Calculations'!$V$66*'2019-20 Farm Bill Calculator'!$C$11)+('Background Calculations'!$V$68*(1-'2019-20 Farm Bill Calculator'!$C$11)) -> 167 | U27: =('Background Calculations'!$V$64)+('Background Calculations'!$V$67*'2019-20 Farm Bill Calculator'!$D$11)+('Background Calculations'!$V$69*(1-'2019-20 Farm Bill Calculator'!$D$11)) -> 41 | W27: =('Background Calculations'!$V$65) -> 60 | Y27: =IRRIGATION!$K$9 ->  | AA27: =IRRIGATION!$K$22 ->  | AC27: =IRRIGATION!$K$34 -> 
D28: 2018 | F28: 0 | H28: 0 | J28: 0 | K28: 0 | R28: 2018 | S28: =('Background Calculations'!$W$63)+('Background Calculations'!$W$66*'2019-20 Farm Bill Calculator'!$C$11)+('Background Calculations'!$W$68*(1-'2019-20 Farm Bill Calculator'!$C$11)) -> 148 | U28: =('Background Calculations'!$W$64)+('Background Calculations'!$W$67*'2019-20 Farm Bill Calculator'!$D$11)+('Background Calculations'!$W$69*(1-'2019-20 Farm Bill Calculator'!$D$11)) -> 48.696 | W28: =('Background Calculations'!$W$65) -> 67
D29: 2019 | K29: 0 | R29: 2019 | S29: =('Background Calculations'!$X$63)+('Background Calculations'!$X$66*'2019-20 Farm Bill Calculator'!$C$11)+('Background Calculations'!$X$68*(1-'2019-20 Farm Bill Calculator'!$C$11)) -> 167.46 | U29: =('Background Calculations'!$X$64)+('Background Calculations'!$X$67*'2019-20 Farm Bill Calculator'!$D$11)+('Background Calculations'!$X$69*(1-'2019-20 Farm Bill Calculator'!$D$11)) -> 48.4592 | W29: =('Background Calculations'!$X$65) -> 75.704
D30: 2020 | K30: 0 | R30: 2020 | S30: =('Background Calculations'!$Y$63)+('Background Calculations'!$Y$66*'2019-20 Farm Bill Calculator'!$C$11)+('Background Calculations'!$Y$68*(1-'2019-20 Farm Bill Calculator'!$C$11)) -> 165.428 | U30: =('Background Calculations'!$Y$64)+('Background Calculations'!$Y$67*'2019-20 Farm Bill Calculator'!$D$11)+('Background Calculations'!$Y$69*(1-'2019-20 Farm Bill Calculator'!$D$11)) -> 48.90104 | W30: =('Background Calculations'!$Y$65) -> 75.1908
D31: Updated PLC Yield Potential | E31: =IFERROR(AVERAGE(E23:E27)*0.81,0) -> 0 | G31: =IFERROR(AVERAGE(G23:G27)*0.81,0) -> 0 | I31: =IFERROR(AVERAGE(I23:I27)*0.8591,0) -> 0 | P31: =P27 -> 0
A32: Step 4. Enter Known or Expected County Yields | E32: =IF(F30+H30+J30=0,K32,"") -> ERROR Must have Acres in 2019 and 2020 | H32: =IF(F29+H29+J29=0,K32,"") -> ERROR Must have Acres in 2019 and 2020 | K32: ERROR Must have Acres in 2019 and 2020 | P32: =P31 -> 0
D33: =C4 -> EATON | E33: County Weighted Yield (Irrigated and Dry) | K33: Actual County Yields Not Trended with Adjustment | S33: Default = Olympic Weighted Average Trend Yields (Benchmark) | Y33: County Yield Increase
D34: % Irrigated | E34: =C11 -> 0 | G34: =D11 -> 0 | I34: =E11 -> 0 | K34: County | L34: corn | M34: soys | N34: wht | R34: County | S34: Corn | U34: Soybeans | W34: Wheat | Y34: Corn % | Z34: =F35 -> 0 | AA34: Soys % | AB34: =H35 -> 0 | AC34: Wheat % | AD34: =J35 -> 0
A35: High Yield = The highest Actual County Yield in last 5 years | D35: 2019 | E35: =VLOOKUP($D$33,'2019 Ylds'!$C$2:$G$186,2,0) -> 140.3 | F35: 0 | G35: =VLOOKUP($D$33,'2019 Ylds'!$C$2:$G$186,3,0) -> 34.4 | H35: 0 | I35: =VLOOKUP($D$33,'2019 Ylds'!$C$2:$G$186,4,0) -> 59.6 | J35: 0 | K35: High Yld | L35: =MAX('Background Calculations'!$O$37:$S$37)*(1+$F$36) -> 176 | M35: =MAX('Background Calculations'!$O$38:$S$38)*(1+$H$36) -> 49 | N35: =MAX('Background Calculations'!$O$39:$S$39)*(1+$J$36) -> 86 | O35: Market Year Prices | R35: 2019 | S35: ='Background Calculations'!$T$32 -> 175.6166667 | T35: 0 | U35: ='Background Calculations'!$T$33 -> 49.13 | V35: =T35 -> 0 | W35: ='Background Calculations'!$T$34 -> 77.32333333 | X35: =V35 -> 0 | Z35: =F36 -> 0 | AB35: =H36 -> 0 | AD35: =J36 -> 0
D36: 2020 | E36: ='Background Calculations'!$U$32*(1+$Z$35) -> 166.24 | F36: 0 | G36: ='Background Calculations'!$U$33*(1+$AB$35) -> 47.992 | H36: =F36 -> 0 | I36: ='Background Calculations'!$U$34*(1+$AD$35) -> 75.52666667 | J36: =H36 -> 0 | K36: Low Yld | L36: =MIN('Background Calculations'!$O$37:$S$37)*(1+$F$36) -> 145 | M36: =MIN('Background Calculations'!$O$38:$S$38)*(1+$H$36) -> 41 | N36: =MIN('Background Calculations'!$O$39:$S$39)*(1+$J$36) -> 60 | O36: Corn | P36: Soybeans | Q36: Wheat | R36: 2020 | S36: ='Background Calculations'!$U$32 -> 166.24 | T36: 0 | U36: ='Background Calculations'!$U$33 -> 47.992 | V36: =T36 -> 0 | W36: ='Background Calculations'!$U$34 -> 75.52666667 | X36: =V36 -> 0
A37: Low Yield = The lowest Actual County Yield in last 5 Years | N37: 2013 | O37: =VLOOKUP($E$45,'MYA Prices'!$B$4:$AL$11,2,FALSE) -> 4.46 | P37: =VLOOKUP($E$45,'MYA Prices'!$B$4:$AL$11,14,FALSE) -> 13 | Q37: =VLOOKUP($E$45,'MYA Prices'!$B$4:$AL$11,26,FALSE) -> 6.87
D38: Percent of '19 Benchmark Yield | E38: =E35/S35 -> 0.7988991174 | G38: =G35/U35 -> 0.7001831875 | I38: =I35/W35 -> 0.7707893262 | N38: 2014 | O38: =VLOOKUP($E$45,'MYA Prices'!$B$4:$AL$11,3,FALSE) -> 3.7 | P38: =VLOOKUP($E$45,'MYA Prices'!$B$4:$AL$11,15,FALSE) -> 10.1 | Q38: =VLOOKUP($E$45,'MYA Prices'!$B$4:$AL$11,27,FALSE) -> 5.99 | R38: 2019 86% | S38: =$S$35*0.86*(1+$F$35) -> 151.0303333 | T38: 0 | U38: =$U$35*0.86*(1+$H$35) -> 42.2518 | V38: =T38 -> 0 | W38: =$W$35*0.86*(1+$J$35) -> 66.49806667 | X38: =V38 -> 0
D39: Percent of '20 Benchmark Yield | E39: =E36/S36 -> 1 | G39: =G36/U36 -> 1 | I39: =I36/W36 -> 1 | N39: 2015 | O39: =VLOOKUP($E$45,'MYA Prices'!$B$4:$AL$11,4,FALSE) -> 3.61 | P39: =VLOOKUP($E$45,'MYA Prices'!$B$4:$AL$11,16,FALSE) -> 8.95 | Q39: =VLOOKUP($E$45,'MYA Prices'!$B$4:$AL$11,28,FALSE) -> 4.89 | R39: 2020 86% | S39: =$S$36*0.86*(1+$F$36) -> 142.9664 | T39: 0 | U39: =$U$36*0.86*(1+$H$36) -> 41.27312 | V39: =T39 -> 0 | W39: =$W$36*0.86*(1+$J$36) -> 64.95293333 | X39: =V39 -> 0
N40: 2016 | O40: =VLOOKUP($E$45,'MYA Prices'!$B$4:$AL$11,5,FALSE) -> 3.36 | P40: =VLOOKUP($E$45,'MYA Prices'!$B$4:$AL$11,17,FALSE) -> 9.47 | Q40: =VLOOKUP($E$45,'MYA Prices'!$B$4:$AL$11,29,FALSE) -> 3.89 | S40: Trend yield with Annual Increase
N41: 2017 | O41: =VLOOKUP($E$45,'MYA Prices'!$B$4:$AL$11,6,FALSE) -> 3.36 | P41: =VLOOKUP($E$45,'MYA Prices'!$B$4:$AL$11,18,FALSE) -> 9.33 | Q41: =VLOOKUP($E$45,'MYA Prices'!$B$4:$AL$11,30,FALSE) -> 4.72 | R41: 2019 | S41: ='Background Calculations'!$T$32*(1+$Z$34) -> 175.6166667 | T41: 0 | U41: ='Background Calculations'!$T$33*(1+$AB$34) -> 49.13 | V41: =T41 -> 0 | W41: ='Background Calculations'!$T$34*(1+$AD$34) -> 77.32333333 | X41: =V41 -> 0
N42: 2018 | O42: =VLOOKUP($E$45,'MYA Prices'!$B$4:$AL$11,7,FALSE) -> 3.61 | P42: =VLOOKUP($E$45,'MYA Prices'!$B$4:$AL$11,19,FALSE) -> 8.48 | Q42: =VLOOKUP($E$45,'MYA Prices'!$B$4:$AL$11,31,FALSE) -> 5.16 | R42: 2020 | S42: ='Background Calculations'!$U$32*(1+$Z$35) -> 166.24 | T42: 0 | U42: ='Background Calculations'!$U$33*(1+$AB$35) -> 47.992 | V42: =T42 -> 0 | W42: ='Background Calculations'!$U$34*(1+$AD$35) -> 75.52666667 | X42: =V42 -> 0
N43: 2019 | O43: =VLOOKUP($E$45,'MYA Prices'!$B$4:$AL$11,8,FALSE) -> 3.866666667 | P43: =VLOOKUP($E$45,'MYA Prices'!$B$4:$AL$11,20,FALSE) -> 8.84 | Q43: =VLOOKUP($E$45,'MYA Prices'!$B$4:$AL$11,32,FALSE) -> 4.570416667
A44: Step 5 . Select or Enter Projected Prices | N44: 2020 | O44: =VLOOKUP($E$45,'MYA Prices'!$B$4:$AL$11,9,FALSE) -> 3.571666667 | P44: =VLOOKUP($E$45,'MYA Prices'!$B$4:$AL$11,21,FALSE) -> 8.706666667 | Q44: =VLOOKUP($E$45,'MYA Prices'!$B$4:$AL$11,33,FALSE) -> 4.837083333 | R44: NASS 2019 Yields | S44: =VLOOKUP($D$33,'2019 Ylds'!$C$2:$G$186,2,0) -> 140.3 | T44: 0 | U44: =VLOOKUP($D$33,'2019 Ylds'!$C$2:$G$186,3,0) -> 34.4 | V44: 0 | W44: =VLOOKUP($D$33,'2019 Ylds'!$C$2:$G$186,4,0) -> 59.6 | X44: 0
D45: Base Assumptions for MYA Prices to Use: | E45: Composite | G45: < Select Base Prices Source | N45: 2021 | O45: =VLOOKUP($E$45,'MYA Prices'!$B$4:$AL$11,10,FALSE) -> 3.602 | P45: =VLOOKUP($E$45,'MYA Prices'!$B$4:$AL$11,22,FALSE) -> 8.6505 | Q45: =VLOOKUP($E$45,'MYA Prices'!$B$4:$AL$11,34,FALSE) -> 4.919
D46: Price Change from Base assumptions: | N46: 2022 | O46: =VLOOKUP($E$45,'MYA Prices'!$B$4:$AL$11,11,FALSE) -> 3.5875 | P46: =VLOOKUP($E$45,'MYA Prices'!$B$4:$AL$11,23,FALSE) -> 8.721875 | Q46: =VLOOKUP($E$45,'MYA Prices'!$B$4:$AL$11,35,FALSE) -> 5.016
D47: Crop Year | E47: CORN | G47: SOYBEANS | I47: WHEAT | N47: 2023 | O47: =VLOOKUP($E$45,'MYA Prices'!$B$4:$AL$11,12,FALSE) -> 3.635 | P47: =VLOOKUP($E$45,'MYA Prices'!$B$4:$AL$11,24,FALSE) -> 8.823125 | Q47: =VLOOKUP($E$45,'MYA Prices'!$B$4:$AL$11,36,FALSE) -> 5.0575 | S47: CORN | U47: SOYBEANS | W47: WHEAT
D48: 2019 | E48: =$O$43*(1+$F$48) -> 3.866666667 | F48: 0 | G48: =$P$43*(1+$H$48) -> 8.84 | H48: =F48 -> 0 | I48: =$Q$43*(1+$J$48) -> 4.570416667 | J48: =H48 -> 0 | N48: 2024 | O48: =VLOOKUP($E$45,'MYA Prices'!$B$4:$AL$11,13,FALSE) -> 3.6675 | P48: =VLOOKUP($E$45,'MYA Prices'!$B$4:$AL$11,25,FALSE) -> 8.8625 | Q48: =VLOOKUP($E$45,'MYA Prices'!$B$4:$AL$11,37,FALSE) -> 5.1125 | S48: =$O$43*(1+$F$48) -> 3.866666667 | T48: 0 | U48: =$P$43*(1+$H$48) -> 8.84 | V48: =T48 -> 0 | W48: =$Q$43*(1+$J$48) -> 4.570416667 | X48: =V48 -> 0
D49: 2020 | E49: =$O$44*(1+$F$49) -> 3.571666667 | F49: 0 | G49: =$P$44*(1+$H$49) -> 8.706666667 | H49: =F49 -> 0 | I49: =$Q$44*(1+$J$49) -> 4.837083333 | J49: =H49 -> 0 | S49: =$O$44*(1+$F$49) -> 3.571666667 | T49: 0 | U49: =$P$44*(1+$H$49) -> 8.706666667 | V49: =T49 -> 0 | W49: =$Q$44*(1+$J$49) -> 4.837083333 | X49: =V49 -> 0
E50: 3.1 | F50: Market Year Prices
B53: FSA Decision 1 : | C53: Update PLC Yields? | E53: CORN ? | G53: SOYS ? | I53: WHEAT ?
D54: Choose Highest Yield for Each Crop--> | E54: =IF($S54,'Background Calculations'!D2,Z12) -> 0 | F54: =IF(S54=FALSE,"NO","YES") -> NO | G54: =IF($T54,'Background Calculations'!F2,AB12) -> 0 | H54: =IF(T54=FALSE,"NO","YES") -> NO | I54: =IF($U54,'Background Calculations'!H2,AD12) -> 0 | J54: =IF(U54=FALSE,"NO","YES") -> NO | S54: FALSE | T54: FALSE | U54: FALSE
S55: FALSE
B56: FSA Decision 2 : | C56: 2019 and 2020 Combined Program Choice?
B57: Choose Resulting Highest 2yr Total Program Payments:
A58: Decision Point > | B58: 2yr Total Program Payments | E58: CORN 2 yrs | G58: SOYBEANS 2 yrs | I58: WHEAT 2 yrs
C59: PLC | E59: =SUM('Background Calculations'!D5:D9)*C9*0.85 -> 0 | G59: =SUM('Background Calculations'!F5:F9)*D9*0.85 -> 0 | I59: =SUM('Background Calculations'!H5:H9)*E9*0.85 -> 0
C60: ARC-CO | E60: =SUM('Background Calculations'!D12:D16)*C9*0.85 -> 0 | G60: =SUM('Background Calculations'!F12:F16)*D9*0.85 -> 0 | I60: =SUM('Background Calculations'!H12:H16)*E9*0.85 -> 0 | N60: ARC-IC from Multiple ARC-IC Farms | O60: ARC IC from Back ground calculations
B61: ='Background Calculations'!$J$96+'Background Calculations'!$J$97 ->  | C61: ARC-IC | E61: NA | G61: NA | I61: NA | O61: ='Background Calculations'!$J$96+'Background Calculations'!$J$97 -> 
B62: =SUM(E62+G62+I62) -> 0 | C62: Best PLC or ARC-CO | E62: =MAX(E59:E60) -> 0 | G62: =MAX(G59:G60) -> 0 | I62: =MAX(I59:I60) -> 0
A63: Decision Point > | B63: =MAX(B59:B62)-MIN(B59:B62) ->  | C63: Difference Max vs Min
B65: =IFERROR((MAX(B59:B62)/F9),0) -> 0 | C65: Total Payments per Base Acre (2 years combined)
B66: =B65/2 -> 0 | C66: Average Payment per Base Acre per Year
N68: WHAT IF 2019 ? | Q68: Corn | S68: Soys | U68: Wheat
N69: Break Even Price - PLC versus ARC-Co
N70: Break Even Yield - PLC versus ARC-Co
N72: WHAT IF 2020 ?
N73: Break Even Price - PLC versus ARC-Co
N74: Break Even Yield - PLC versus ARC-Co

Sheet IRRIGATION
E1: ='2019-20 Farm Bill Calculator'!C4 -> EATON | G1: County | I1: FSA Farm Number: | K1: ='2019-20 Farm Bill Calculator'!G5 -> 1234
E2: Corn - Acres and Yields for this Farm # | L2: =K1 -> 1234
D3: Year | E3: Irrigated Acres | F3: Irrigated Yield | G3: DryLand Acres | H3: Dryland Yield | I3: Total Acres | J3: Total Production | K3: Weighted Yield | L3: Percent Irrigated
D5: 2013 | I5: =E5+G5 -> 0 | J5: =E5*F5+G5*H5 -> 0 | K5: =IFERROR($J$5/$I$5,"") ->  | L5: =IFERROR(E5/($E$5+$G$5),"") -> 
D6: 2014 | I6: =E6+G6 -> 0 | J6: =E6*F6+G6*H6 -> 0 | K6: =IFERROR($J$6/$I$6,"") ->  | L6: =IFERROR(E6/($E$6+$G$6),"") -> 
D7: 2015 | I7: =E7+G7 -> 0 | J7: =E7*F7+G7*H7 -> 0 | K7: =IFERROR($J$7/$I$7,"") ->  | L7: =IFERROR(E7/($E$7+$G$7),"") -> 
D8: 2016 | I8: =E8+G8 -> 0 | J8: =E8*F8+G8*H8 -> 0 | K8: =IFERROR($J$8/$I$8,"") ->  | L8: =IFERROR(E8/($E$8+$G$8),"") -> 
D9: 2017 | I9: =E9+G9 -> 0 | J9: =E9*F9+G9*H9 -> 0 | K9: =IFERROR($J$9/$I$9,"") ->  | L9: =IFERROR(E9/($E$9+$G$9),"") -> 
J10: =E2 -> Corn - Acres and Yields for this Farm # | K10: =IFERROR(AVERAGE(K5:K9),0) -> 0 | L10: =IFERROR(AVERAGE(L5:L9),0) -> 0
E15: Soybeans - Acres and Yield for this Farm # | L15: =K1 -> 1234
D16: Year | E16: Irrigated Acres | F16: Irrigated Yield | G16: DryLand Acres | H16: Dryland Yield | I16: Total Acres | J16: Total Production | K16: Weighted Yield | L16: Percent Irrigated
D18: 2013 | I18: =E18+G18 -> 0 | J18: =E18*F18+G18*H18 -> 0 | K18: =IFERROR($J$18/$I$18,"") ->  | L18: =IFERROR(E18/($E$18+$G$18),"") -> 
D19: 2014 | I19: =E19+G19 -> 0 | J19: =E19*F19+G19*H19 -> 0 | K19: =IFERROR($J$19/$I$19,"") ->  | L19: =IFERROR(E19/($E$19+$G$19),"") -> 
D20: 2015 | I20: =E20+G20 -> 0 | J20: =E20*F20+G20*H20 -> 0 | K20: =IFERROR($J$20/$I$20,"") ->  | L20: =IFERROR(E20/($E$20+$G$20),"") -> 
D21: 2016 | I21: =E21+G21 -> 0 | J21: =E21*F21+G21*H21 -> 0 | K21: =IFERROR($J$21/$I$21,"") ->  | L21: =IFERROR(E21/($E$21+$G$21),"") -> 
D22: 2017 | I22: =E22+G22 -> 0 | J22: =E22*F22+G22*H22 -> 0 | K22: =IFERROR($J$22/$I$22,"") ->  | L22: =IFERROR(E22/($E$22+$G$22),"") -> 
I23: =IRRIGATION!K30 ->  | J23: =E15 -> Soybeans - Acres and Yield for this Farm # | K23: =IFERROR(AVERAGE(K18:K22),0) -> 0 | L23: =IFERROR(AVERAGE(L18:L22),0) -> 0
E27: Wheat - Acres and Yield for this Farm # | L27: =K1 -> 1234
E28: Irrigated Acres | F28: Irrigated Yield | G28: DryLand Acres | H28: Dryland Yield | I28: Total Acres | J28: Total Production | K28: Weighted Yield | L28: Percent Irrigated
D30: 2013 | I30: =E30+G30 -> 0 | J30: =E30*F30+G30*H30 -> 0 | K30: =IFERROR($J$30/$I$30,"") ->  | L30: =IFERROR(E30/(E30+G30),"") -> 
D31: 2014 | I31: =E31+G31 -> 0 | J31: =E31*F31+G31*H31 -> 0 | K31: =IFERROR($J$31/$I$31,"") ->  | L31: =IFERROR(E31/(E31+G31),"") -> 
D32: 2015 | I32: =E32+G32 -> 0 | J32: =E32*F32+G32*H32 -> 0 | K32: =IFERROR($J$32/$I$32,"") ->  | L32: =IFERROR(E32/(E32+G32),"") -> 
D33: 2016 | I33: =E33+G33 -> 0 | J33: =E33*F33+G33*H33 -> 0 | K33: =IFERROR($J$33/$I$33,"") ->  | L33: =IFERROR(E33/(E33+G33),"") -> 
D34: 2017 | I34: =E34+G34 -> 0 | J34: =E34*F34+G34*H34 -> 0 | K34: =IFERROR($J$34/$I$34,"") ->  | L34: =IFERROR(E34/(E34+G34),"") -> 
J35: =E27 -> Wheat - Acres and Yield for this Farm # | K35: =IFERROR(AVERAGE(K30:K34),0) -> 0 | L35: =IFERROR(AVERAGE(L30:L34),0) -> 0

Sheet 1 Farm 2019 Prevent Plant
B2: Enter the FSA considered planted acres as Prevent Planted acres with a zero yield. In order to qualify for ARC-IC as 100% Prevent Plant, 100 % of the farm's covered commodities must be FSA approved for Prevented Planting.
B3: Farm Name: | C3: ='2019-20 Farm Bill Calculator'!G4 -> Smith Farm
B4: Farm Number: | C4: ='2019-20 Farm Bill Calculator'!G5 -> 1234 | D4: 2019 Prevent Planted, 1 FSA Farm Number
D5: Corn 2019 | F5: Soys 2019 | H5: Wheat 2019
C6: 2019 Prevent Planted Acres
D7: Note: If you have planted acres, that yield will be used.
C8: 2019 Actually Planted Acres
C9: Planted Acres Yield bu/ac
C10: Total Crop Production | H10: =H8*H9 -> 0
C11: Total Acres | D11: =D8+D6 -> 0 | F11: =F8+F6 -> 0 | H11: =H8+H6 -> 0
C12: Yield USED for ARC-IC bu/ac | D12: =IFERROR(D10/D8,0) -> 0 | F12: =IFERROR(F10/F8,0) -> 0 | H12: =IFERROR(H10/H8,0) -> 0
K15: =$D$12 -> 0 | L15: =$D$11 -> 0 | M15: =$F$12 -> 0 | N15: =$F$11 -> 0 | O15: =$H$12 -> 0 | P15: =$H$11 -> 0
T43: 2020 | U43: =IF(U34*V34>1,U34*V34,"") ->  | W43: =IF(W34*X34>1,W34*X34,"") ->  | Y43: =IF(Y34*Z34>1,Y34*Z34,"") ->  | AC43: =IF(AC34*AD34>1,AC34*AD34,"") ->  | AE43: =IF(AE34*AF34>1,AE34*AF34,"") ->  | AG43: =IF(AG34*AH34>1,AG34*AH34,"") ->  | AK43: =IF(AK34*AL34>1,AK34*AL34,"") ->  | AM43: =IF(AM34*AN34>1,AM34*AN34,"") ->  | AO43: =IF(AO34*AP34>1,AO34*AP34,"") ->  | AS43: =IF(AS34*AT34>1,AS34*AT34,"") ->  | AU43: =IF(AU34*AV34>1,AU34*AV34,"") ->  | AW43: =IF(AW34*AX34>1,AW34*AX34,"") ->  | BA43: =IF(BA34*BB34>1,BA34*BB34,"") ->  | BC43: =IF(BC34*BD34>1,BC34*BD34,"") ->  | BE43: =IF(BE34*BF34>1,BE34*BF34,"") -> 

Sheet Multiple ARC-IC Farms
A1: This worksheet is designed to help analyse using ARC-IC, where ARC-IC enrolled farms are combined into one unit, for calculation of benefits.
A2: For the 2019 year, Include FSA (Farm Service Agency) farms that are 100% Prevent Plant by entering the FSA considered planted acres with a zero yield. ALWAYS enter FSA actual planted acres UNLESS considered 100% FSA Prevent Plant and then use the reported FSA Prevent Planted acres as planted. In order to qualify, 100 % of the farm's covered commodities must be FSA approved for Prevented Planting.
A3: ='2019-20 Farm Bill Calculator'!C4 -> EATON | B3: Farm 1 | C3: FSA FARM NUMBER: | J3: Farm 2 | K3: FSA FARM NUMBER: | R3: Farm 3 | S3: FSA FARM NUMBER: | Z3: Farm 4 | AA3: FSA FARM NUMBER: | AH3: Farm 5 | AI3: FSA FARM NUMBER: | AP3: Farm 6 | AQ3: FSA FARM NUMBER: | AX3: Farm 7 | AY3: FSA FARM NUMBER: | BF3: Farm 8 | BG3: FSA FARM NUMBER: | BN3: Farm 9 | BO3: FSA FARM NUMBER: | BV3: Farm 10 | BW3: FSA FARM NUMBER: | CD3: Farm 11 | CE3: FSA FARM NUMBER: | CL3: Farm 12 | CM3: FSA FARM NUMBER: | CT3: Farm 13 | CU3: FSA FARM NUMBER: | DB3: Farm 14 | DC3: FSA FARM NUMBER: | DJ3: Farm 15 | DK3: FSA FARM NUMBER: | DR3: Farm 16 | DS3: FSA FARM NUMBER: | DZ3: Farm 17 | EA3: FSA FARM NUMBER: | EH3: Farm 18 | EI3: FSA FARM NUMBER: | EP3: Farm 19 | EQ3: FSA FARM NUMBER: | EX3: Farm 20 | EY3: FSA FARM NUMBER: | FF3: Farm 21 | FG3: FSA FARM NUMBER: | FN3: Farm 22 | FO3: FSA FARM NUMBER: | FV3: Farm 23 | FW3: FSA FARM NUMBER: | GD3: Farm 24 | GE3: FSA FARM NUMBER: | GL3: Farm 25 | GM3: FSA FARM NUMBER: | GT3: Farm 26 | GU3: FSA FARM NUMBER: | HB3: Farm 27 | HC3: FSA FARM NUMBER: | HJ3: Farm 28 | HK3: FSA FARM NUMBER: | HR3: Farm 29 | HS3: FSA FARM NUMBER: | HZ3: Farm 30 | IA3: FSA FARM NUMBER: | IH3: Farm 31 | II3: FSA FARM NUMBER: | IP3: Farm 32 | IQ3: FSA FARM NUMBER: | IX3: Farm 33 | IY3: FSA FARM NUMBER: | JF3: Farm 34 | JG3: FSA FARM NUMBER: | JN3: Farm 35 | JO3: FSA FARM NUMBER: | JV3: Farm 36 | JW3: FSA FARM NUMBER: | KD3: Farm 37 | KE3: FSA FARM NUMBER: | KL3: Farm 38 | KM3: FSA FARM NUMBER: | KT3: Farm 39 | KU3: FSA FARM NUMBER: | LB3: Farm 40 | LC3: FSA FARM NUMBER: | LJ3: Farm 41 | LK3: FSA FARM NUMBER: | LR3: Farm 42 | LS3: FSA FARM NUMBER: | LZ3: Farm 43 | MA3: FSA FARM NUMBER: | MH3: Farm 44 | MI3: FSA FARM NUMBER: | MP3: Farm 45 | MQ3: FSA FARM NUMBER: | MX3: Farm 46 | MY3: FSA FARM NUMBER: | NF3: Farm 47 | NG3: FSA FARM NUMBER: | NN3: Farm 48 | NO3: FSA FARM NUMBER: | NV3: Farm 49 | NW3: FSA FARM NUMBER: | OD3: Farm 50 | OE3: FSA FARM NUMBER: | OL3: Farm 51 | OM3: FSA FARM NUMBER:
B4: Commodity | C4: Corn | E4: Soybeans | G4: Wheat | H4: Total Base Acres | J4: Commodity | K4: Corn | M4: Soybeans | O4: Wheat | P4: Total Base Acres | R4: Commodity | S4: Corn | U4: Soybeans | W4: Wheat | X4: Total Base Acres | Z4: Commodity | AA4: Corn | AC4: Soybeans | AE4: Wheat | AF4: Total Base Acres | AH4: Commodity | AI4: Corn | AK4: Soybeans | AM4: Wheat | AN4: Total Base Acres | AP4: Commodity | AQ4: Corn | AS4: Soybeans | AU4: Wheat | AV4: Total Base Acres | AX4: Commodity | AY4: Corn | BA4: Soybeans | BC4: Wheat | BD4: Total Base Acres | BF4: Commodity | BG4: Corn | BI4: Soybeans | BK4: Wheat | BL4: Total Base Acres | BN4: Commodity | BO4: Corn | BQ4: Soybeans | BS4: Wheat | BT4: Total Base Acres | BV4: Commodity | BW4: Corn | BY4: Soybeans | CA4: Wheat | CB4: Total Base Acres | CD4: Commodity | CE4: Corn | CG4: Soybeans | CI4: Wheat | CJ4: Total Base Acres | CL4: Commodity | CM4: Corn | CO4: Soybeans | CQ4: Wheat | CR4: Total Base Acres | CT4: Commodity | CU4: Corn | CW4: Soybeans | CY4: Wheat | CZ4: Total Base Acres | DB4: Commodity | DC4: Corn | DE4: Soybeans | DG4: Wheat | DH4: Total Base Acres | DJ4: Commodity | DK4: Corn | DM4: Soybeans | DO4: Wheat | DP4: Total Base Acres | DR4: Commodity | DS4: Corn | DU4: Soybeans | DW4: Wheat | DX4: Total Base Acres | DZ4: Commodity | EA4: Corn | EC4: Soybeans | EE4: Wheat | EF4: Total Base Acres | EH4: Commodity | EI4: Corn | EK4: Soybeans | EM4: Wheat | EN4: Total Base Acres | EP4: Commodity | EQ4: Corn | ES4: Soybeans | EU4: Wheat | EV4: Total Base Acres | EX4: Commodity | EY4: Corn | FA4: Soybeans | FC4: Wheat | FD4: Total Base Acres | FF4: Commodity | FG4: Corn | FI4: Soybeans | FK4: Wheat | FL4: Total Base Acres | FN4: Commodity | FO4: Corn | FQ4: Soybeans | FS4: Wheat | FT4: Total Base Acres | FV4: Commodity | FW4: Corn | FY4: Soybeans | GA4: Wheat | GB4: Total Base Acres | GD4: Commodity | GE4: Corn | GG4: Soybeans | GI4: Wheat | GJ4: Total Base Acres | GL4: Commodity | GM4: Corn | GO4: Soybeans | GQ4: Wheat | GR4: Total Base Acres | GT4: Commodity | GU4: Corn | GW4: Soybeans | GY4: Wheat | GZ4: Total Base Acres | HB4: Commodity | HC4: Corn | HE4: Soybeans | HG4: Wheat | HH4: Total Base Acres | HJ4: Commodity | HK4: Corn | HM4: Soybeans | HO4: Wheat | HP4: Total Base Acres | HR4: Commodity | HS4: Corn | HU4: Soybeans | HW4: Wheat | HX4: Total Base Acres | HZ4: Commodity | IA4: Corn | IC4: Soybeans | IE4: Wheat | IF4: Total Base Acres | IH4: Commodity | II4: Corn | IK4: Soybeans | IM4: Wheat | IN4: Total Base Acres | IP4: Commodity | IQ4: Corn | IS4: Soybeans | IU4: Wheat | IV4: Total Base Acres | IX4: Commodity | IY4: Corn | JA4: Soybeans | JC4: Wheat | JD4: Total Base Acres | JF4: Commodity | JG4: Corn | JI4: Soybeans | JK4: Wheat | JL4: Total Base Acres | JN4: Commodity | JO4: Corn | JQ4: Soybeans | JS4: Wheat | JT4: Total Base Acres | JV4: Commodity | JW4: Corn | JY4: Soybeans | KA4: Wheat | KB4: Total Base Acres | KD4: Commodity | KE4: Corn | KG4: Soybeans | KI4: Wheat | KJ4: Total Base Acres | KL4: Commodity | KM4: Corn | KO4: Soybeans | KQ4: Wheat | KR4: Total Base Acres | KT4: Commodity | KU4: Corn | KW4: Soybeans | KY4: Wheat | KZ4: Total Base Acres | LB4: Commodity | LC4: Corn | LE4: Soybeans | LG4: Wheat | LH4: Total Base Acres | LJ4: Commodity | LK4: Corn | LM4: Soybeans | LO4: Wheat | LP4: Total Base Acres | LR4: Commodity | LS4: Corn | LU4: Soybeans | LW4: Wheat | LX4: Total Base Acres | LZ4: Commodity | MA4: Corn | MC4: Soybeans | ME4: Wheat | MF4: Total Base Acres | MH4: Commodity | MI4: Corn | MK4: Soybeans | MM4: Wheat | MN4: Total Base Acres | MP4: Commodity | MQ4: Corn | MS4: Soybeans | MU4: Wheat | MV4: Total Base Acres | MX4: Commodity | MY4: Corn | NA4: Soybeans | NC4: Wheat | ND4: Total Base Acres | NF4: Commodity | NG4: Corn | NI4: Soybeans | NK4: Wheat | NL4: Total Base Acres | NN4: Commodity | NO4: Corn | NQ4: Soybeans | NS4: Wheat | NT4: Total Base Acres | NV4: Commodity | NW4: Corn | NY4: Soybeans | OA4: Wheat | OB4: Total Base Acres | OD4: Commodity | OE4: Corn | OG4: Soybeans | OI4: Wheat | OJ4: Total Base Acres | OL4: Commodity | OM4: Corn | OO4: Soybeans | OQ4: Wheat | OR4: Total Base Acres
B5: Base Acres | H5: =SUM(C5:G5) -> 0 | J5: Base Acres | P5: =SUM(K5:O5) -> 0 | R5: Base Acres | X5: =SUM(S5:W5) -> 0 | Z5: Base Acres | AF5: =SUM(AA5:AE5) -> 0 | AH5: Base Acres | AN5: =SUM(AI5:AM5) -> 0 | AP5: Base Acres | AV5: =SUM(AQ5:AU5) -> 0 | AX5: Base Acres | BD5: =SUM(AY5:BC5) -> 0 | BF5: Base Acres | BL5: =SUM(BG5:BK5) -> 0 | BN5: Base Acres | BT5: =SUM(BO5:BS5) -> 0 | BV5: Base Acres | CB5: =SUM(BW5:CA5) -> 0 | CD5: Base Acres | CJ5: =SUM(CE5:CI5) -> 0 | CL5: Base Acres | CR5: =SUM(CM5:CQ5) -> 0 | CT5: Base Acres | CZ5: =SUM(CU5:CY5) -> 0 | DB5: Base Acres | DH5: =SUM(DC5:DG5) -> 0 | DJ5: Base Acres | DP5: =SUM(DK5:DO5) -> 0 | DR5: Base Acres | DX5: =SUM(DS5:DW5) -> 0 | DZ5: Base Acres | EF5: =SUM(EA5:EE5) -> 0 | EH5: Base Acres | EN5: =SUM(EI5:EM5) -> 0 | EP5: Base Acres | EV5: =SUM(EQ5:EU5) -> 0 | EX5: Base Acres | FD5: =SUM(EY5:FC5) -> 0 | FF5: Base Acres | FL5: =SUM(FG5:FK5) -> 0 | FN5: Base Acres | FT5: =SUM(FO5:FS5) -> 0 | FV5: Base Acres | GB5: =SUM(FW5:GA5) -> 0 | GD5: Base Acres | GJ5: =SUM(GE5:GI5) -> 0 | GL5: Base Acres | GR5: =SUM(GM5:GQ5) -> 0 | GT5: Base Acres | GZ5: =SUM(GU5:GY5) -> 0 | HB5: Base Acres | HH5: =SUM(HC5:HG5) -> 0 | HJ5: Base Acres | HP5: =SUM(HK5:HO5) -> 0 | HR5: Base Acres | HX5: =SUM(HS5:HW5) -> 0 | HZ5: Base Acres | IF5: =SUM(IA5:IE5) -> 0 | IH5: Base Acres | IN5: =SUM(II5:IM5) -> 0 | IP5: Base Acres | IV5: =SUM(IQ5:IU5) -> 0 | IX5: Base Acres | JD5: =SUM(IY5:JC5) -> 0 | JF5: Base Acres | JL5: =SUM(JG5:JK5) -> 0 | JN5: Base Acres | JT5: =SUM(JO5:JS5) -> 0 | JV5: Base Acres | KB5: =SUM(JW5:KA5) -> 0 | KD5: Base Acres | KJ5: =SUM(KE5:KI5) -> 0 | KL5: Base Acres | KR5: =SUM(KM5:KQ5) -> 0 | KT5: Base Acres | KZ5: =SUM(KU5:KY5) -> 0 | LB5: Base Acres | LH5: =SUM(LC5:LG5) -> 0 | LJ5: Base Acres | LP5: =SUM(LK5:LO5) -> 0 | LR5: Base Acres | LX5: =SUM(LS5:LW5) -> 0 | LZ5: Base Acres | MF5: =SUM(MA5:ME5) -> 0 | MH5: Base Acres | MN5: =SUM(MI5:MM5) -> 0 | MP5: Base Acres | MV5: =SUM(MQ5:MU5) -> 0 | MX5: Base Acres | ND5: =SUM(MY5:NC5) -> 0 | NF5: Base Acres | NL5: =SUM(NG5:NK5) -> 0 | NN5: Base Acres | NT5: =SUM(NO5:NS5) -> 0 | NV5: Base Acres | OB5: =SUM(NW5:OA5) -> 0 | OD5: Base Acres | OJ5: =SUM(OE5:OI5) -> 0 | OL5: Base Acres | OR5: =SUM(OM5:OQ5) -> 0
B6: 2018 PLC Yield | J6: 2018 PLC Yield | R6: 2018 PLC Yield | Z6: 2018 PLC Yield | AH6: 2018 PLC Yield | AP6: 2018 PLC Yield | AX6: 2018 PLC Yield | BF6: 2018 PLC Yield | BN6: 2018 PLC Yield | BV6: 2018 PLC Yield | CD6: 2018 PLC Yield | CL6: 2018 PLC Yield | CT6: 2018 PLC Yield | DB6: 2018 PLC Yield | DJ6: 2018 PLC Yield | DR6: 2018 PLC Yield | DZ6: 2018 PLC Yield | EH6: 2018 PLC Yield | EP6: 2018 PLC Yield | EX6: 2018 PLC Yield | FF6: 2018 PLC Yield | FN6: 2018 PLC Yield | FV6: 2018 PLC Yield | GD6: 2018 PLC Yield | GL6: 2018 PLC Yield | GT6: 2018 PLC Yield | HB6: 2018 PLC Yield | HJ6: 2018 PLC Yield | HR6: 2018 PLC Yield | HZ6: 2018 PLC Yield | IH6: 2018 PLC Yield | IP6: 2018 PLC Yield | IX6: 2018 PLC Yield | JF6: 2018 PLC Yield | JN6: 2018 PLC Yield | JV6: 2018 PLC Yield | KD6: 2018 PLC Yield | KL6: 2018 PLC Yield | KT6: 2018 PLC Yield | LB6: 2018 PLC Yield | LJ6: 2018 PLC Yield | LR6: 2018 PLC Yield | LZ6: 2018 PLC Yield | MH6: 2018 PLC Yield | MP6: 2018 PLC Yield | MX6: 2018 PLC Yield | NF6: 2018 PLC Yield | NN6: 2018 PLC Yield | NV6: 2018 PLC Yield | OD6: 2018 PLC Yield | OL6: 2018 PLC Yield
B7: 13-17 Historical Irrigated Percentage | C7: 0 | E7: 0 | G7: 0 | J7: 13-17 Historical Irrigated Percentage | K7: 0 | M7: 0 | O7: 0 | R7: 13-17 Historical Irrigated Percentage | S7: 0 | U7: 0 | W7: 0 | Z7: 13-17 Historical Irrigated Percentage | AA7: 0 | AC7: 0 | AE7: 0 | AH7: 13-17 Historical Irrigated Percentage | AI7: 0 | AK7: 0 | AM7: 0 | AP7: 13-17 Historical Irrigated Percentage | AQ7: 0 | AS7: 0 | AU7: 0 | AX7: 13-17 Historical Irrigated Percentage | AY7: 0 | BA7: 0 | BC7: 0 | BF7: 13-17 Historical Irrigated Percentage | BG7: 0 | BI7: 0 | BK7: 0 | BN7: 13-17 Historical Irrigated Percentage | BO7: 0 | BQ7: 0 | BS7: 0 | BV7: 13-17 Historical Irrigated Percentage | BW7: 0 | BY7: 0 | CA7: 0 | CD7: 13-17 Historical Irrigated Percentage | CE7: 0 | CG7: 0 | CI7: 0 | CL7: 13-17 Historical Irrigated Percentage | CM7: 0 | CO7: 0 | CQ7: 0 | CT7: 13-17 Historical Irrigated Percentage | CU7: 0 | CW7: 0 | CY7: 0 | DB7: 13-17 Historical Irrigated Percentage | DC7: 0 | DE7: 0 | DG7: 0 | DJ7: 13-17 Historical Irrigated Percentage | DK7: 0 | DM7: 0 | DO7: 0 | DR7: 13-17 Historical Irrigated Percentage | DS7: 0 | DU7: 0 | DW7: 0 | DZ7: 13-17 Historical Irrigated Percentage | EA7: 0 | EC7: 0 | EE7: 0 | EH7: 13-17 Historical Irrigated Percentage | EI7: 0 | EK7: 0 | EM7: 0 | EP7: 13-17 Historical Irrigated Percentage | EQ7: 0 | ES7: 0 | EU7: 0 | EX7: 13-17 Historical Irrigated Percentage | EY7: 0 | FA7: 0 | FC7: 0 | FF7: 13-17 Historical Irrigated Percentage | FG7: 0 | FI7: 0 | FK7: 0 | FN7: 13-17 Historical Irrigated Percentage | FO7: 0 | FQ7: 0 | FS7: 0 | FV7: 13-17 Historical Irrigated Percentage | FW7: 0 | FY7: 0 | GA7: 0 | GD7: 13-17 Historical Irrigated Percentage | GE7: 0 | GG7: 0 | GI7: 0 | GL7: 13-17 Historical Irrigated Percentage | GM7: 0 | GO7: 0 | GQ7: 0 | GT7: 13-17 Historical Irrigated Percentage | GU7: 0 | GW7: 0 | GY7: 0 | HB7: 13-17 Historical Irrigated Percentage | HC7: 0 | HE7: 0 | HG7: 0 | HJ7: 13-17 Historical Irrigated Percentage | HK7: 0 | HM7: 0 | HO7: 0 | HR7: 13-17 Historical Irrigated Percentage | HS7: 0 | HU7: 0 | HW7: 0 | HZ7: 13-17 Historical Irrigated Percentage | IA7: 0 | IC7: 0 | IE7: 0 | IH7: 13-17 Historical Irrigated Percentage | II7: 0 | IK7: 0 | IM7: 0 | IP7: 13-17 Historical Irrigated Percentage | IQ7: 0 | IS7: 0 | IU7: 0 | IX7: 13-17 Historical Irrigated Percentage | IY7: 0 | JA7: 0 | JC7: 0 | JF7: 13-17 Historical Irrigated Percentage | JG7: 0 | JI7: 0 | JK7: 0 | JN7: 13-17 Historical Irrigated Percentage | JO7: 0 | JQ7: 0 | JS7: 0 | JV7: 13-17 Historical Irrigated Percentage | JW7: 0 | JY7: 0 | KA7: 0 | KD7: 13-17 Historical Irrigated Percentage | KE7: 0 | KG7: 0 | KI7: 0 | KL7: 13-17 Historical Irrigated Percentage | KM7: 0 | KO7: 0 | KQ7: 0 | KT7: 13-17 Historical Irrigated Percentage | KU7: 0 | KW7: 0 | KY7: 0 | LB7: 13-17 Historical Irrigated Percentage | LC7: 0 | LE7: 0 | LG7: 0 | LJ7: 13-17 Historical Irrigated Percentage | LK7: 0 | LM7: 0 | LO7: 0 | LR7: 13-17 Historical Irrigated Percentage | LS7: 0 | LU7: 0 | LW7: 0 | LZ7: 13-17 Historical Irrigated Percentage | MA7: 0 | MC7: 0 | ME7: 0 | MH7: 13-17 Historical Irrigated Percentage | MI7: 0 | MK7: 0 | MM7: 0 | MP7: 13-17 Historical Irrigated Percentage | MQ7: 0 | MS7: 0 | MU7: 0 | MX7: 13-17 Historical Irrigated Percentage | MY7: 0 | NA7: 0 | NC7: 0 | NF7: 13-17 Historical Irrigated Percentage | NG7: 0 | NI7: 0 | NK7: 0 | NN7: 13-17 Historical Irrigated Percentage | NO7: 0 | NQ7: 0 | NS7: 0 | NV7: 13-17 Historical Irrigated Percentage | NW7: 0 | NY7: 0 | OA7: 0 | OD7: 13-17 Historical Irrigated Percentage | OE7: 0 | OG7: 0 | OI7: 0 | OL7: 13-17 Historical Irrigated Percentage | OM7: 0 | OO7: 0 | OQ7: 0
B10: =B3 -> Farm 1 | J10: Farm 2 | R10: Farm 3 | Z10: Farm 4 | AH10: Farm 5 | AP10: Farm 6 | AX10: Farm 7 | BF10: =BF3 -> Farm 8 | BN10: =BN3 -> Farm 9 | BV10: =BV3 -> Farm 10 | CD10: =CD3 -> Farm 11 | CL10: =CL3 -> Farm 12 | CT10: =CT3 -> Farm 13 | DB10: =DB3 -> Farm 14 | DJ10: =DJ3 -> Farm 15 | DR10: =DR3 -> Farm 16 | DZ10: =DZ3 -> Farm 17 | EH10: =EH3 -> Farm 18 | EP10: =EP3 -> Farm 19 | EX10: =EX3 -> Farm 20 | FF10: =FF3 -> Farm 21 | FN10: =FN3 -> Farm 22 | FV10: =FV3 -> Farm 23 | GD10: =GD3 -> Farm 24 | GL10: =GL3 -> Farm 25 | GT10: =GT3 -> Farm 26 | HB10: =HB3 -> Farm 27 | HJ10: =HJ3 -> Farm 28 | HR10: =HR3 -> Farm 29 | HZ10: =HZ3 -> Farm 30 | IH10: =IH3 -> Farm 31 | IP10: =IP3 -> Farm 32 | IX10: =IX3 -> Farm 33 | JF10: =JF3 -> Farm 34 | JN10: =JN3 -> Farm 35 | JV10: =JV3 -> Farm 36 | KD10: =KD3 -> Farm 37 | KL10: =KL3 -> Farm 38 | KT10: =KT3 -> Farm 39 | LB10: =LB3 -> Farm 40 | LJ10: =LJ3 -> Farm 41 | LR10: =LR3 -> Farm 42 | LZ10: =LZ3 -> Farm 43 | MH10: =MH3 -> Farm 44 | MP10: =MP3 -> Farm 45 | MX10: =MX3 -> Farm 46 | NF10: =NF3 -> Farm 47 | NN10: =NN3 -> Farm 48 | NV10: =NV3 -> Farm 49 | OD10: =OD3 -> Farm 50 | OL10: =OL3 -> Farm 51
B11: Historical and Projected Farm Yields and Acreages | J11: Historical and Projected Farm Yields and Acreages | R11: Historical and Projected Farm Yields and Acreages | Z11: Historical and Projected Farm Yields and Acreages | AH11: Historical and Projected Farm Yields and Acreages | AP11: Historical and Projected Farm Yields and Acreages | AX11: Historical and Projected Farm Yields and Acreages | BF11: Historical and Projected Farm Yields and Acreages | BN11: Historical and Projected Farm Yields and Acreages | BV11: Historical and Projected Farm Yields and Acreages | CD11: Historical and Projected Farm Yields and Acreages | CL11: Historical and Projected Farm Yields and Acreages | CT11: Historical and Projected Farm Yields and Acreages | DB11: Historical and Projected Farm Yields and Acreages | DJ11: Historical and Projected Farm Yields and Acreages | DR11: Historical and Projected Farm Yields and Acreages | DZ11: Historical and Projected Farm Yields and Acreages | EH11: Historical and Projected Farm Yields and Acreages | EP11: Historical and Projected Farm Yields and Acreages | EX11: Historical and Projected Farm Yields and Acreages | FF11: Historical and Projected Farm Yields and Acreages | FN11: Historical and Projected Farm Yields and Acreages | FV11: Historical and Projected Farm Yields and Acreages | GD11: Historical and Projected Farm Yields and Acreages | GL11: Historical and Projected Farm Yields and Acreages | GT11: Historical and Projected Farm Yields and Acreages | HB11: Historical and Projected Farm Yields and Acreages | HJ11: Historical and Projected Farm Yields and Acreages | HR11: Historical and Projected Farm Yields and Acreages | HZ11: Historical and Projected Farm Yields and Acreages | IH11: Historical and Projected Farm Yields and Acreages | IP11: Historical and Projected Farm Yields and Acreages | IX11: Historical and Projected Farm Yields and Acreages | JF11: Historical and Projected Farm Yields and Acreages | JN11: Historical and Projected Farm Yields and Acreages | JV11: Historical and Projected Farm Yields and Acreages | KD11: Historical and Projected Farm Yields and Acreages | KL11: Historical and Projected Farm Yields and Acreages | KT11: Historical and Projected Farm Yields and Acreages | LB11: Historical and Projected Farm Yields and Acreages | LJ11: Historical and Projected Farm Yields and Acreages | LR11: Historical and Projected Farm Yields and Acreages | LZ11: Historical and Projected Farm Yields and Acreages | MH11: Historical and Projected Farm Yields and Acreages | MP11: Historical and Projected Farm Yields and Acreages | MX11: Historical and Projected Farm Yields and Acreages | NF11: Historical and Projected Farm Yields and Acreages | NN11: Historical and Projected Farm Yields and Acreages | NV11: Historical and Projected Farm Yields and Acreages | OD11: Historical and Projected Farm Yields and Acreages | OL11: Historical and Projected Farm Yields and Acreages
C12: Corn | D12: Planted | E12: Soybean | F12: Planted | G12: Wheat | H12: Planted | K12: Corn | L12: Planted | M12: Soybean | N12: Planted | O12: Wheat | P12: Planted | S12: Corn | T12: Planted | U12: Soybean | V12: Planted | W12: Wheat | X12: Planted | AA12: Corn | AB12: Planted | AC12: Soybean | AD12: Planted | AE12: Wheat | AF12: Planted | AI12: Corn | AJ12: Planted | AK12: Soybean | AL12: Planted | AM12: Wheat | AN12: Planted | AQ12: Corn | AR12: Planted | AS12: Soybean | AT12: Planted | AU12: Wheat | AV12: Planted | AY12: Corn | AZ12: Planted | BA12: Soybean | BB12: Planted | BC12: Wheat | BD12: Planted | BG12: Corn | BH12: Planted | BI12: Soybean | BJ12: Planted | BK12: Wheat | BL12: Planted | BO12: Corn | BP12: Planted | BQ12: Soybean | BR12: Planted | BS12: Wheat | BT12: Planted | BW12: Corn | BX12: Planted | BY12: Soybean | BZ12: Planted | CA12: Wheat | CB12: Planted | CE12: Corn | CF12: Planted | CG12: Soybean | CH12: Planted | CI12: Wheat | CJ12: Planted | CM12: Corn | CN12: Planted | CO12: Soybean | CP12: Planted | CQ12: Wheat | CR12: Planted | CU12: Corn | CV12: Planted | CW12: Soybean | CX12: Planted | CY12: Wheat | CZ12: Planted | DC12: Corn | DD12: Planted | DE12: Soybean | DF12: Planted | DG12: Wheat | DH12: Planted | DK12: Corn | DL12: Planted | DM12: Soybean | DN12: Planted | DO12: Wheat | DP12: Planted | DS12: Corn | DT12: Planted | DU12: Soybean | DV12: Planted | DW12: Wheat | DX12: Planted | EA12: Corn | EB12: Planted | EC12: Soybean | ED12: Planted | EE12: Wheat | EF12: Planted | EI12: Corn | EJ12: Planted | EK12: Soybean | EL12: Planted | EM12: Wheat | EN12: Planted | EQ12: Corn | ER12: Planted | ES12: Soybean | ET12: Planted | EU12: Wheat | EV12: Planted | EY12: Corn | EZ12: Planted | FA12: Soybean | FB12: Planted | FC12: Wheat | FD12: Planted | FG12: Corn | FH12: Planted | FI12: Soybean | FJ12: Planted | FK12: Wheat | FL12: Planted | FO12: Corn | FP12: Planted | FQ12: Soybean | FR12: Planted | FS12: Wheat | FT12: Planted | FW12: Corn | FX12: Planted | FY12: Soybean | FZ12: Planted | GA12: Wheat | GB12: Planted | GE12: Corn | GF12: Planted | GG12: Soybean | GH12: Planted | GI12: Wheat | GJ12: Planted | GM12: Corn | GN12: Planted | GO12: Soybean | GP12: Planted | GQ12: Wheat | GR12: Planted | GU12: Corn | GV12: Planted | GW12: Soybean | GX12: Planted | GY12: Wheat | GZ12: Planted | HC12: Corn | HD12: Planted | HE12: Soybean | HF12: Planted | HG12: Wheat | HH12: Planted | HK12: Corn | HL12: Planted | HM12: Soybean | HN12: Planted | HO12: Wheat | HP12: Planted | HS12: Corn | HT12: Planted | HU12: Soybean | HV12: Planted | HW12: Wheat | HX12: Planted | IA12: Corn | IB12: Planted | IC12: Soybean | ID12: Planted | IE12: Wheat | IF12: Planted | II12: Corn | IJ12: Planted | IK12: Soybean | IL12: Planted | IM12: Wheat | IN12: Planted | IQ12: Corn | IR12: Planted | IS12: Soybean | IT12: Planted | IU12: Wheat | IV12: Planted | IY12: Corn | IZ12: Planted | JA12: Soybean | JB12: Planted | JC12: Wheat | JD12: Planted | JG12: Corn | JH12: Planted | JI12: Soybean | JJ12: Planted | JK12: Wheat | JL12: Planted | JO12: Corn | JP12: Planted | JQ12: Soybean | JR12: Planted | JS12: Wheat | JT12: Planted | JW12: Corn | JX12: Planted | JY12: Soybean | JZ12: Planted | KA12: Wheat | KB12: Planted | KE12: Corn | KF12: Planted | KG12: Soybean | KH12: Planted | KI12: Wheat | KJ12: Planted | KM12: Corn | KN12: Planted | KO12: Soybean | KP12: Planted | KQ12: Wheat | KR12: Planted | KU12: Corn | KV12: Planted | KW12: Soybean | KX12: Planted | KY12: Wheat | KZ12: Planted | LC12: Corn | LD12: Planted | LE12: Soybean | LF12: Planted | LG12: Wheat | LH12: Planted | LK12: Corn | LL12: Planted | LM12: Soybean | LN12: Planted | LO12: Wheat | LP12: Planted | LS12: Corn | LT12: Planted | LU12: Soybean | LV12: Planted | LW12: Wheat | LX12: Planted | MA12: Corn | MB12: Planted | MC12: Soybean | MD12: Planted | ME12: Wheat | MF12: Planted | MI12: Corn | MJ12: Planted | MK12: Soybean | ML12: Planted | MM12: Wheat | MN12: Planted | MQ12: Corn | MR12: Planted | MS12: Soybean | MT12: Planted | MU12: Wheat | MV12: Planted | MY12: Corn | MZ12: Planted | NA12: Soybean | NB12: Planted | NC12: Wheat | ND12: Planted | NG12: Corn | NH12: Planted | NI12: Soybean | NJ12: Planted | NK12: Wheat | NL12: Planted | NO12: Corn | NP12: Planted | NQ12: Soybean | NR12: Planted | NS12: Wheat | NT12: Planted | NW12: Corn | NX12: Planted | NY12: Soybean | NZ12: Planted | OA12: Wheat | OB12: Planted | OE12: Corn | OF12: Planted | OG12: Soybean | OH12: Planted | OI12: Wheat | OJ12: Planted | OM12: Corn | ON12: Planted | OO12: Soybean | OP12: Planted | OQ12: Wheat | OR12: Planted
C13: Farm Yield | D13: Acres | E13: Farm Yield | F13: Acres | G13: Farm Yield | H13: Acres | K13: Farm Yield | L13: Acres | M13: Farm Yield | N13: Acres | O13: Farm Yield | P13: Acres | S13: Farm Yield | T13: Acres | U13: Farm Yield | V13: Acres | W13: Farm Yield | X13: Acres | AA13: Farm Yield | AB13: Acres | AC13: Farm Yield | AD13: Acres | AE13: Farm Yield | AF13: Acres | AI13: Farm Yield | AJ13: Acres | AK13: Farm Yield | AL13: Acres | AM13: Farm Yield | AN13: Acres | AQ13: Farm Yield | AR13: Acres | AS13: Farm Yield | AT13: Acres | AU13: Farm Yield | AV13: Acres | AY13: Farm Yield | AZ13: Acres | BA13: Farm Yield | BB13: Acres | BC13: Farm Yield | BD13: Acres | BG13: Farm Yield | BH13: Acres | BI13: Farm Yield | BJ13: Acres | BK13: Farm Yield | BL13: Acres | BO13: Farm Yield | BP13: Acres | BQ13: Farm Yield | BR13: Acres | BS13: Farm Yield | BT13: Acres | BW13: Farm Yield | BX13: Acres | BY13: Farm Yield | BZ13: Acres | CA13: Farm Yield | CB13: Acres | CE13: Farm Yield | CF13: Acres | CG13: Farm Yield | CH13: Acres | CI13: Farm Yield | CJ13: Acres | CM13: Farm Yield | CN13: Acres | CO13: Farm Yield | CP13: Acres | CQ13: Farm Yield | CR13: Acres | CU13: Farm Yield | CV13: Acres | CW13: Farm Yield | CX13: Acres | CY13: Farm Yield | CZ13: Acres | DC13: Farm Yield | DD13: Acres | DE13: Farm Yield | DF13: Acres | DG13: Farm Yield | DH13: Acres | DK13: Farm Yield | DL13: Acres | DM13: Farm Yield | DN13: Acres | DO13: Farm Yield | DP13: Acres | DS13: Farm Yield | DT13: Acres | DU13: Farm Yield | DV13: Acres | DW13: Farm Yield | DX13: Acres | EA13: Farm Yield | EB13: Acres | EC13: Farm Yield | ED13: Acres | EE13: Farm Yield | EF13: Acres | EI13: Farm Yield | EJ13: Acres | EK13: Farm Yield | EL13: Acres | EM13: Farm Yield | EN13: Acres | EQ13: Farm Yield | ER13: Acres | ES13: Farm Yield | ET13: Acres | EU13: Farm Yield | EV13: Acres | EY13: Farm Yield | EZ13: Acres | FA13: Farm Yield | FB13: Acres | FC13: Farm Yield | FD13: Acres | FG13: Farm Yield | FH13: Acres | FI13: Farm Yield | FJ13: Acres | FK13: Farm Yield | FL13: Acres | FO13: Farm Yield | FP13: Acres | FQ13: Farm Yield | FR13: Acres | FS13: Farm Yield | FT13: Acres | FW13: Farm Yield | FX13: Acres | FY13: Farm Yield | FZ13: Acres | GA13: Farm Yield | GB13: Acres | GE13: Farm Yield | GF13: Acres | GG13: Farm Yield | GH13: Acres | GI13: Farm Yield | GJ13: Acres | GM13: Farm Yield | GN13: Acres | GO13: Farm Yield | GP13: Acres | GQ13: Farm Yield | GR13: Acres | GU13: Farm Yield | GV13: Acres | GW13: Farm Yield | GX13: Acres | GY13: Farm Yield | GZ13: Acres | HC13: Farm Yield | HD13: Acres | HE13: Farm Yield | HF13: Acres | HG13: Farm Yield | HH13: Acres | HK13: Farm Yield | HL13: Acres | HM13: Farm Yield | HN13: Acres | HO13: Farm Yield | HP13: Acres | HS13: Farm Yield | HT13: Acres | HU13: Farm Yield | HV13: Acres | HW13: Farm Yield | HX13: Acres | IA13: Farm Yield | IB13: Acres | IC13: Farm Yield | ID13: Acres | IE13: Farm Yield | IF13: Acres | II13: Farm Yield | IJ13: Acres | IK13: Farm Yield | IL13: Acres | IM13: Farm Yield | IN13: Acres | IQ13: Farm Yield | IR13: Acres | IS13: Farm Yield | IT13: Acres | IU13: Farm Yield | IV13: Acres | IY13: Farm Yield | IZ13: Acres | JA13: Farm Yield | JB13: Acres | JC13: Farm Yield | JD13: Acres | JG13: Farm Yield | JH13: Acres | JI13: Farm Yield | JJ13: Acres | JK13: Farm Yield | JL13: Acres | JO13: Farm Yield | JP13: Acres | JQ13: Farm Yield | JR13: Acres | JS13: Farm Yield | JT13: Acres | JW13: Farm Yield | JX13: Acres | JY13: Farm Yield | JZ13: Acres | KA13: Farm Yield | KB13: Acres | KE13: Farm Yield | KF13: Acres | KG13: Farm Yield | KH13: Acres | KI13: Farm Yield | KJ13: Acres | KM13: Farm Yield | KN13: Acres | KO13: Farm Yield | KP13: Acres | KQ13: Farm Yield | KR13: Acres | KU13: Farm Yield | KV13: Acres | KW13: Farm Yield | KX13: Acres | KY13: Farm Yield | KZ13: Acres | LC13: Farm Yield | LD13: Acres | LE13: Farm Yield | LF13: Acres | LG13: Farm Yield | LH13: Acres | LK13: Farm Yield | LL13: Acres | LM13: Farm Yield | LN13: Acres | LO13: Farm Yield | LP13: Acres | LS13: Farm Yield | LT13: Acres | LU13: Farm Yield | LV13: Acres | LW13: Farm Yield | LX13: Acres | MA13: Farm Yield | MB13: Acres | MC13: Farm Yield | MD13: Acres | ME13: Farm Yield | MF13: Acres | MI13: Farm Yield | MJ13: Acres | MK13: Farm Yield | ML13: Acres | MM13: Farm Yield | MN13: Acres | MQ13: Farm Yield | MR13: Acres | MS13: Farm Yield | MT13: Acres | MU13: Farm Yield | MV13: Acres | MY13: Farm Yield | MZ13: Acres | NA13: Farm Yield | NB13: Acres | NC13: Farm Yield | ND13: Acres | NG13: Farm Yield | NH13: Acres | NI13: Farm Yield | NJ13: Acres | NK13: Farm Yield | NL13: Acres | NO13: Farm Yield | NP13: Acres | NQ13: Farm Yield | NR13: Acres | NS13: Farm Yield | NT13: Acres | NW13: Farm Yield | NX13: Acres | NY13: Farm Yield | NZ13: Acres | OA13: Farm Yield | OB13: Acres | OE13: Farm Yield | OF13: Acres | OG13: Farm Yield | OH13: Acres | OI13: Farm Yield | OJ13: Acres | OM13: Farm Yield | ON13: Acres | OO13: Farm Yield | OP13: Acres | OQ13: Farm Yield | OR13: Acres
B14: 2013 | J14: 2013 | R14: 2013 | Z14: 2013 | AH14: 2013 | AP14: 2013 | AX14: 2013 | BF14: 2013 | BN14: 2013 | BV14: 2013 | CD14: 2013 | CL14: 2013 | CT14: 2013 | DB14: 2013 | DJ14: 2013 | DR14: 2013 | DZ14: 2013 | EH14: 2013 | EP14: 2013 | EX14: 2013 | FF14: 2013 | FN14: 2013 | FV14: 2013 | GD14: 2013 | GL14: 2013 | GT14: 2013 | HB14: 2013 | HJ14: 2013 | HR14: 2013 | HZ14: 2013 | IH14: 2013 | IP14: 2013 | IX14: 2013 | JF14: 2013 | JN14: 2013 | JV14: 2013 | KD14: 2013 | KL14: 2013 | KT14: 2013 | LB14: 2013 | LJ14: 2013 | LR14: 2013 | LZ14: 2013 | MH14: 2013 | MP14: 2013 | MX14: 2013 | NF14: 2013 | NN14: 2013 | NV14: 2013 | OD14: 2013 | OL14: 2013
B15: 2014 | J15: 2014 | R15: 2014 | Z15: 2014 | AH15: 2014 | AP15: 2014 | AX15: 2014 | BF15: 2014 | BN15: 2014 | BV15: 2014 | CD15: 2014 | CL15: 2014 | CT15: 2014 | DB15: 2014 | DJ15: 2014 | DR15: 2014 | DZ15: 2014 | EH15: 2014 | EP15: 2014 | EX15: 2014 | FF15: 2014 | FN15: 2014 | FV15: 2014 | GD15: 2014 | GL15: 2014 | GT15: 2014 | HB15: 2014 | HJ15: 2014 | HR15: 2014 | HZ15: 2014 | IH15: 2014 | IP15: 2014 | IX15: 2014 | JF15: 2014 | JN15: 2014 | JV15: 2014 | KD15: 2014 | KL15: 2014 | KT15: 2014 | LB15: 2014 | LJ15: 2014 | LR15: 2014 | LZ15: 2014 | MH15: 2014 | MP15: 2014 | MX15: 2014 | NF15: 2014 | NN15: 2014 | NV15: 2014 | OD15: 2014 | OL15: 2014
B16: 2015 | J16: 2015 | R16: 2015 | Z16: 2015 | AH16: 2015 | AP16: 2015 | AX16: 2015 | BF16: 2015 | BN16: 2015 | BV16: 2015 | CD16: 2015 | CL16: 2015 | CT16: 2015 | DB16: 2015 | DJ16: 2015 | DR16: 2015 | DZ16: 2015 | EH16: 2015 | EP16: 2015 | EX16: 2015 | FF16: 2015 | FN16: 2015 | FV16: 2015 | GD16: 2015 | GL16: 2015 | GT16: 2015 | HB16: 2015 | HJ16: 2015 | HR16: 2015 | HZ16: 2015 | IH16: 2015 | IP16: 2015 | IX16: 2015 | JF16: 2015 | JN16: 2015 | JV16: 2015 | KD16: 2015 | KL16: 2015 | KT16: 2015 | LB16: 2015 | LJ16: 2015 | LR16: 2015 | LZ16: 2015 | MH16: 2015 | MP16: 2015 | MX16: 2015 | NF16: 2015 | NN16: 2015 | NV16: 2015 | OD16: 2015 | OL16: 2015
B17: 2016 | J17: 2016 | R17: 2016 | Z17: 2016 | AH17: 2016 | AP17: 2016 | AX17: 2016 | BF17: 2016 | BN17: 2016 | BV17: 2016 | CD17: 2016 | CL17: 2016 | CT17: 2016 | DB17: 2016 | DJ17: 2016 | DR17: 2016 | DZ17: 2016 | EH17: 2016 | EP17: 2016 | EX17: 2016 | FF17: 2016 | FN17: 2016 | FV17: 2016 | GD17: 2016 | GL17: 2016 | GT17: 2016 | HB17: 2016 | HJ17: 2016 | HR17: 2016 | HZ17: 2016 | IH17: 2016 | IP17: 2016 | IX17: 2016 | JF17: 2016 | JN17: 2016 | JV17: 2016 | KD17: 2016 | KL17: 2016 | KT17: 2016 | LB17: 2016 | LJ17: 2016 | LR17: 2016 | LZ17: 2016 | MH17: 2016 | MP17: 2016 | MX17: 2016 | NF17: 2016 | NN17: 2016 | NV17: 2016 | OD17: 2016 | OL17: 2016
B18: 2017 | J18: 2017 | R18: 2017 | Z18: 2017 | AH18: 2017 | AP18: 2017 | AX18: 2017 | BF18: 2017 | BN18: 2017 | BV18: 2017 | CD18: 2017 | CL18: 2017 | CT18: 2017 | DB18: 2017 | DJ18: 2017 | DR18: 2017 | DZ18: 2017 | EH18: 2017 | EP18: 2017 | EX18: 2017 | FF18: 2017 | FN18: 2017 | FV18: 2017 | GD18: 2017 | GL18: 2017 | GT18: 2017 | HB18: 2017 | HJ18: 2017 | HR18: 2017 | HZ18: 2017 | IH18: 2017 | IP18: 2017 | IX18: 2017 | JF18: 2017 | JN18: 2017 | JV18: 2017 | KD18: 2017 | KL18: 2017 | KT18: 2017 | LB18: 2017 | LJ18: 2017 | LR18: 2017 | LZ18: 2017 | MH18: 2017 | MP18: 2017 | MX18: 2017 | NF18: 2017 | NN18: 2017 | NV18: 2017 | OD18: 2017 | OL18: 2017
B19: 2018 | J19: 2018 | R19: 2018 | Z19: 2018 | AH19: 2018 | AP19: 2018 | AX19: 2018 | BF19: 2018 | BN19: 2018 | BV19: 2018 | CD19: 2018 | CL19: 2018 | CT19: 2018 | DB19: 2018 | DJ19: 2018 | DR19: 2018 | DZ19: 2018 | EH19: 2018 | EP19: 2018 | EX19: 2018 | FF19: 2018 | FN19: 2018 | FV19: 2018 | GD19: 2018 | GL19: 2018 | GT19: 2018 | HB19: 2018 | HJ19: 2018 | HR19: 2018 | HZ19: 2018 | IH19: 2018 | IP19: 2018 | IX19: 2018 | JF19: 2018 | JN19: 2018 | JV19: 2018 | KD19: 2018 | KL19: 2018 | KT19: 2018 | LB19: 2018 | LJ19: 2018 | LR19: 2018 | LZ19: 2018 | MH19: 2018 | MP19: 2018 | MX19: 2018 | NF19: 2018 | NN19: 2018 | NV19: 2018 | OD19: 2018 | OL19: 2018
A20: Planted or Considered | B20: 2019 | J20: 2019 | R20: 2019 | Z20: 2019 | AH20: 2019 | AP20: 2019 | AX20: 2019 | BF20: 2019 | BN20: 2019 | BV20: 2019 | CD20: 2019 | CL20: 2019 | CT20: 2019 | DB20: 2019 | DJ20: 2019 | DR20: 2019 | DZ20: 2019 | EH20: 2019 | EP20: 2019 | EX20: 2019 | FF20: 2019 | FN20: 2019 | FV20: 2019 | GD20: 2019 | GL20: 2019 | GT20: 2019 | HB20: 2019 | HJ20: 2019 | HR20: 2019 | HZ20: 2019 | IH20: 2019 | IP20: 2019 | IX20: 2019 | JF20: 2019 | JN20: 2019 | JV20: 2019 | KD20: 2019 | KL20: 2019 | KT20: 2019 | LB20: 2019 | LJ20: 2019 | LR20: 2019 | LZ20: 2019 | MH20: 2019 | MP20: 2019 | MX20: 2019 | NF20: 2019 | NN20: 2019 | NV20: 2019 | OD20: 2019 | OL20: 2019
B21: 2020 | J21: 2020 | R21: 2020 | Z21: 2020 | AH21: 2020 | AP21: 2020 | AX21: 2020 | BF21: 2020 | BN21: 2020 | BV21: 2020 | CD21: 2020 | CL21: 2020 | CT21: 2020 | DB21: 2020 | DJ21: 2020 | DR21: 2020 | DZ21: 2020 | EH21: 2020 | EP21: 2020 | EX21: 2020 | FF21: 2020 | FN21: 2020 | FV21: 2020 | GD21: 2020 | GL21: 2020 | GT21: 2020 | HB21: 2020 | HJ21: 2020 | HR21: 2020 | HZ21: 2020 | IH21: 2020 | IP21: 2020 | IX21: 2020 | JF21: 2020 | JN21: 2020 | JV21: 2020 | KD21: 2020 | KL21: 2020 | KT21: 2020 | LB21: 2020 | LJ21: 2020 | LR21: 2020 | LZ21: 2020 | MH21: 2020 | MP21: 2020 | MX21: 2020 | NF21: 2020 | NN21: 2020 | NV21: 2020 | OD21: 2020 | OL21: 2020
C24: Farm Revenue | D24: Percent Acres | E24: Farm Revenue | F24: Percent Acres | G24: Farm Revenue | H24: Percent Acres | K24: Farm Revenue | L24: Percent Acres | M24: Farm Revenue | N24: Percent Acres | O24: Farm Revenue | P24: Percent Acres | S24: Farm Revenue | T24: Percent Acres | U24: Farm Revenue | V24: Percent Acres | W24: Farm Revenue | X24: Percent Acres | AA24: Farm Revenue | AB24: Percent Acres | AC24: Farm Revenue | AD24: Percent Acres | AE24: Farm Revenue | AF24: Percent Acres | AI24: Farm Revenue | AJ24: Percent Acres | AK24: Farm Revenue | AL24: Percent Acres | AM24: Farm Revenue | AN24: Percent Acres | AQ24: Farm Revenue | AR24: Percent Acres | AS24: Farm Revenue | AT24: Percent Acres | AU24: Farm Revenue | AV24: Percent Acres | AY24: Farm Revenue | AZ24: Percent Acres | BA24: Farm Revenue | BB24: Percent Acres | BC24: Farm Revenue | BD24: Percent Acres | BG24: Farm Revenue | BH24: Percent Acres | BI24: Farm Revenue | BJ24: Percent Acres | BK24: Farm Revenue | BL24: Percent Acres | BO24: Farm Revenue | BP24: Percent Acres | BQ24: Farm Revenue | BR24: Percent Acres | BS24: Farm Revenue | BT24: Percent Acres | BW24: Farm Revenue | BX24: Percent Acres | BY24: Farm Revenue | BZ24: Percent Acres | CA24: Farm Revenue | CB24: Percent Acres | CE24: Farm Revenue | CF24: Percent Acres | CG24: Farm Revenue | CH24: Percent Acres | CI24: Farm Revenue | CJ24: Percent Acres | CM24: Farm Revenue | CN24: Percent Acres | CO24: Farm Revenue | CP24: Percent Acres | CQ24: Farm Revenue | CR24: Percent Acres | CU24: Farm Revenue | CV24: Percent Acres | CW24: Farm Revenue | CX24: Percent Acres | CY24: Farm Revenue | CZ24: Percent Acres | DC24: Farm Revenue | DD24: Percent Acres | DE24: Farm Revenue | DF24: Percent Acres | DG24: Farm Revenue | DH24: Percent Acres | DK24: Farm Revenue | DL24: Percent Acres | DM24: Farm Revenue | DN24: Percent Acres | DO24: Farm Revenue | DP24: Percent Acres | DS24: Farm Revenue | DT24: Percent Acres | DU24: Farm Revenue | DV24: Percent Acres | DW24: Farm Revenue | DX24: Percent Acres | EA24: Farm Revenue | EB24: Percent Acres | EC24: Farm Revenue | ED24: Percent Acres | EE24: Farm Revenue | EF24: Percent Acres | EI24: Farm Revenue | EJ24: Percent Acres | EK24: Farm Revenue | EL24: Percent Acres | EM24: Farm Revenue | EN24: Percent Acres | EQ24: Farm Revenue | ER24: Percent Acres | ES24: Farm Revenue | ET24: Percent Acres | EU24: Farm Revenue | EV24: Percent Acres | EY24: Farm Revenue | EZ24: Percent Acres | FA24: Farm Revenue | FB24: Percent Acres | FC24: Farm Revenue | FD24: Percent Acres | FG24: Farm Revenue | FH24: Percent Acres | FI24: Farm Revenue | FJ24: Percent Acres | FK24: Farm Revenue | FL24: Percent Acres | FO24: Farm Revenue | FP24: Percent Acres | FQ24: Farm Revenue | FR24: Percent Acres | FS24: Farm Revenue | FT24: Percent Acres | FW24: Farm Revenue | FX24: Percent Acres | FY24: Farm Revenue | FZ24: Percent Acres | GA24: Farm Revenue | GB24: Percent Acres | GE24: Farm Revenue | GF24: Percent Acres | GG24: Farm Revenue | GH24: Percent Acres | GI24: Farm Revenue | GJ24: Percent Acres | GM24: Farm Revenue | GN24: Percent Acres | GO24: Farm Revenue | GP24: Percent Acres | GQ24: Farm Revenue | GR24: Percent Acres | GU24: Farm Revenue | GV24: Percent Acres | GW24: Farm Revenue | GX24: Percent Acres | GY24: Farm Revenue | GZ24: Percent Acres | HC24: Farm Revenue | HD24: Percent Acres | HE24: Farm Revenue | HF24: Percent Acres | HG24: Farm Revenue | HH24: Percent Acres | HK24: Farm Revenue | HL24: Percent Acres | HM24: Farm Revenue | HN24: Percent Acres | HO24: Farm Revenue | HP24: Percent Acres | HS24: Farm Revenue | HT24: Percent Acres | HU24: Farm Revenue | HV24: Percent Acres | HW24: Farm Revenue | HX24: Percent Acres | IA24: Farm Revenue | IB24: Percent Acres | IC24: Farm Revenue | ID24: Percent Acres | IE24: Farm Revenue | IF24: Percent Acres | II24: Farm Revenue | IJ24: Percent Acres | IK24: Farm Revenue | IL24: Percent Acres | IM24: Farm Revenue | IN24: Percent Acres | IQ24: Farm Revenue | IR24: Percent Acres | IS24: Farm Revenue | IT24: Percent Acres | IU24: Farm Revenue | IV24: Percent Acres | IY24: Farm Revenue | IZ24: Percent Acres | JA24: Farm Revenue | JB24: Percent Acres | JC24: Farm Revenue | JD24: Percent Acres | JG24: Farm Revenue | JH24: Percent Acres | JI24: Farm Revenue | JJ24: Percent Acres | JK24: Farm Revenue | JL24: Percent Acres | JO24: Farm Revenue | JP24: Percent Acres | JQ24: Farm Revenue | JR24: Percent Acres | JS24: Farm Revenue | JT24: Percent Acres | JW24: Farm Revenue | JX24: Percent Acres | JY24: Farm Revenue | JZ24: Percent Acres | KA24: Farm Revenue | KB24: Percent Acres | KE24: Farm Revenue | KF24: Percent Acres | KG24: Farm Revenue | KH24: Percent Acres | KI24: Farm Revenue | KJ24: Percent Acres | KM24: Farm Revenue | KN24: Percent Acres | KO24: Farm Revenue | KP24: Percent Acres | KQ24: Farm Revenue | KR24: Percent Acres | KU24: Farm Revenue | KV24: Percent Acres | KW24: Farm Revenue | KX24: Percent Acres | KY24: Farm Revenue | KZ24: Percent Acres | LC24: Farm Revenue | LD24: Percent Acres | LE24: Farm Revenue | LF24: Percent Acres | LG24: Farm Revenue | LH24: Percent Acres | LK24: Farm Revenue | LL24: Percent Acres | LM24: Farm Revenue | LN24: Percent Acres | LO24: Farm Revenue | LP24: Percent Acres | LS24: Farm Revenue | LT24: Percent Acres | LU24: Farm Revenue | LV24: Percent Acres | LW24: Farm Revenue | LX24: Percent Acres | MA24: Farm Revenue | MB24: Percent Acres | MC24: Farm Revenue | MD24: Percent Acres | ME24: Farm Revenue | MF24: Percent Acres | MI24: Farm Revenue | MJ24: Percent Acres | MK24: Farm Revenue | ML24: Percent Acres | MM24: Farm Revenue | MN24: Percent Acres | MQ24: Farm Revenue | MR24: Percent Acres | MS24: Farm Revenue | MT24: Percent Acres | MU24: Farm Revenue | MV24: Percent Acres | MY24: Farm Revenue | MZ24: Percent Acres | NA24: Farm Revenue | NB24: Percent Acres | NC24: Farm Revenue | ND24: Percent Acres | NG24: Farm Revenue | NH24: Percent Acres | NI24: Farm Revenue | NJ24: Percent Acres | NK24: Farm Revenue | NL24: Percent Acres | NO24: Farm Revenue | NP24: Percent Acres | NQ24: Farm Revenue | NR24: Percent Acres | NS24: Farm Revenue | NT24: Percent Acres | NW24: Farm Revenue | NX24: Percent Acres | NY24: Farm Revenue | NZ24: Percent Acres | OA24: Farm Revenue | OB24: Percent Acres | OE24: Farm Revenue | OF24: Percent Acres | OG24: Farm Revenue | OH24: Percent Acres | OI24: Farm Revenue | OJ24: Percent Acres | OM24: Farm Revenue | ON24: Percent Acres | OO24: Farm Revenue | OP24: Percent Acres | OQ24: Farm Revenue | OR24: Percent Acres
D25: =D20/$C$48 ->  | F25: =F20/$C$48 ->  | H25: =H20/$C$48 ->  | L25: =L20/$C$48 ->  | N25: =N20/$C$48 ->  | P25: =P20/$C$48 ->  | T25: =T20/$C$48 ->  | V25: =V20/$C$48 ->  | X25: =X20/$C$48 ->  | AB25: =AB20/$C$48 ->  | AD25: =AD20/$C$48 ->  | AF25: =AF20/$C$48 ->  | AJ25: =AJ20/$C$48 ->  | AL25: =AL20/$C$48 ->  | AN25: =AN20/$C$48 ->  | AR25: =AR20/$C$48 ->  | AT25: =AT20/$C$48 ->  | AV25: =AV20/$C$48 ->  | AZ25: =AZ20/$C$48 ->  | BB25: =BB20/$C$48 ->  | BD25: =BD20/$C$48 ->  | BH25: =BH20/$C$48 ->  | BJ25: =BJ20/$C$48 ->  | BL25: =BL20/$C$48 ->  | BP25: =BP20/$C$48 ->  | BR25: =BR20/$C$48 ->  | BT25: =BT20/$C$48 ->  | BX25: =BX20/$C$48 ->  | BZ25: =BZ20/$C$48 ->  | CB25: =CB20/$C$48 ->  | CF25: =CF20/$C$48 ->  | CH25: =CH20/$C$48 ->  | CJ25: =CJ20/$C$48 ->  | CN25: =CN20/$C$48 ->  | CP25: =CP20/$C$48 ->  | CR25: =CR20/$C$48 ->  | CV25: =CV20/$C$48 ->  | CX25: =CX20/$C$48 ->  | CZ25: =CZ20/$C$48 ->  | DD25: =DD20/$C$48 ->  | DF25: =DF20/$C$48 ->  | DH25: =DH20/$C$48 ->  | DL25: =DL20/$C$48 ->  | DN25: =DN20/$C$48 ->  | DP25: =DP20/$C$48 ->  | DT25: =DT20/$C$48 ->  | DV25: =DV20/$C$48 ->  | DX25: =DX20/$C$48 ->  | EB25: =EB20/$C$48 ->  | ED25: =ED20/$C$48 ->  | EF25: =EF20/$C$48 ->  | EJ25: =EJ20/$C$48 ->  | EL25: =EL20/$C$48 ->  | EN25: =EN20/$C$48 ->  | ER25: =ER20/$C$48 ->  | ET25: =ET20/$C$48 ->  | EV25: =EV20/$C$48 ->  | EZ25: =EZ20/$C$48 ->  | FB25: =FB20/$C$48 ->  | FD25: =FD20/$C$48 ->  | FH25: =FH20/$C$48 ->  | FJ25: =FJ20/$C$48 ->  | FL25: =FL20/$C$48 ->  | FP25: =FP20/$C$48 ->  | FR25: =FR20/$C$48 ->  | FT25: =FT20/$C$48 ->  | FX25: =FX20/$C$48 ->  | FZ25: =FZ20/$C$48 ->  | GB25: =GB20/$C$48 ->  | GF25: =GF20/$C$48 ->  | GH25: =GH20/$C$48 ->  | GJ25: =GJ20/$C$48 ->  | GN25: =GN20/$C$48 ->  | GP25: =GP20/$C$48 ->  | GR25: =GR20/$C$48 ->  | GV25: =GV20/$C$48 ->  | GX25: =GX20/$C$48 ->  | GZ25: =GZ20/$C$48 ->  | HD25: =HD20/$C$48 ->  | HF25: =HF20/$C$48 ->  | HH25: =HH20/$C$48 ->  | HL25: =HL20/$C$48 ->  | HN25: =HN20/$C$48 ->  | HP25: =HP20/$C$48 ->  | HT25: =HT20/$C$48 ->  | HV25: =HV20/$C$48 ->  | HX25: =HX20/$C$48 ->  | IB25: =IB20/$C$48 ->  | ID25: =ID20/$C$48 ->  | IF25: =IF20/$C$48 ->  | IJ25: =IJ20/$C$48 ->  | IL25: =IL20/$C$48 ->  | IN25: =IN20/$C$48 ->  | IR25: =IR20/$C$48 ->  | IT25: =IT20/$C$48 ->  | IV25: =IV20/$C$48 ->  | IZ25: =IZ20/$C$48 ->  | JB25: =JB20/$C$48 ->  | JD25: =JD20/$C$48 ->  | JH25: =JH20/$C$48 ->  | JJ25: =JJ20/$C$48 ->  | JL25: =JL20/$C$48 ->  | JP25: =JP20/$C$48 ->  | JR25: =JR20/$C$48 ->  | JT25: =JT20/$C$48 ->  | JX25: =JX20/$C$48 ->  | JZ25: =JZ20/$C$48 ->  | KB25: =KB20/$C$48 ->  | KF25: =KF20/$C$48 ->  | KH25: =KH20/$C$48 ->  | KJ25: =KJ20/$C$48 ->  | KN25: =KN20/$C$48 ->  | KP25: =KP20/$C$48 ->  | KR25: =KR20/$C$48 ->  | KV25: =KV20/$C$48 ->  | KX25: =KX20/$C$48 ->  | KZ25: =KZ20/$C$48 ->  | LD25: =LD20/$C$48 ->  | LF25: =LF20/$C$48 ->  | LH25: =LH20/$C$48 ->  | LL25: =LL20/$C$48 ->  | LN25: =LN20/$C$48 ->  | LP25: =LP20/$C$48 ->  | LT25: =LT20/$C$48 ->  | LV25: =LV20/$C$48 ->  | LX25: =LX20/$C$48 ->  | MB25: =MB20/$C$48 ->  | MD25: =MD20/$C$48 ->  | MF25: =MF20/$C$48 ->  | MJ25: =MJ20/$C$48 ->  | ML25: =ML20/$C$48 ->  | MN25: =MN20/$C$48 ->  | MR25: =MR20/$C$48 ->  | MT25: =MT20/$C$48 ->  | MV25: =MV20/$C$48 ->  | MZ25: =MZ20/$C$48 ->  | NB25: =NB20/$C$48 ->  | ND25: =ND20/$C$48 ->  | NH25: =NH20/$C$48 ->  | NJ25: =NJ20/$C$48 ->  | NL25: =NL20/$C$48 ->  | NP25: =NP20/$C$48 ->  | NR25: =NR20/$C$48 ->  | NT25: =NT20/$C$48 ->  | NX25: =NX20/$C$48 ->  | NZ25: =NZ20/$C$48 ->  | OB25: =OB20/$C$48 ->  | OF25: =OF20/$C$48 ->  | OH25: =OH20/$C$48 ->  | OJ25: =OJ20/$C$48 ->  | ON25: =ON20/$C$48 ->  | OP25: =OP20/$C$48 ->  | OR25: =OR20/$C$48 -> 
B26: 2013 | C26: =MAX(C14,C35)*'Background Calculations'!$N$51 -> 758.2 | E26: =MAX(E14,E35)*'Background Calculations'!$N$52 -> 624 | G26: =MAX(G14,G35)*'Background Calculations'!$N$53 -> 494.64 | J26: 2013 | K26: =MAX(K14,K35)*'Background Calculations'!$N$51 -> 758.2 | M26: =MAX(M14,M35)*'Background Calculations'!$N$52 -> 624 | O26: =MAX(O14,O35)*'Background Calculations'!$N$53 -> 494.64 | R26: 2013 | S26: =MAX(S14,S35)*'Background Calculations'!$N$51 -> 758.2 | U26: =MAX(U14,U35)*'Background Calculations'!$N$52 -> 624 | W26: =MAX(W14,W35)*'Background Calculations'!$N$53 -> 494.64 | Z26: 2013 | AA26: =MAX(AA14,AA35)*'Background Calculations'!$N$51 -> 758.2 | AC26: =MAX(AC14,AC35)*'Background Calculations'!$N$52 -> 624 | AE26: =MAX(AE14,AE35)*'Background Calculations'!$N$53 -> 494.64 | AH26: 2013 | AI26: =MAX(AI14,AI35)*'Background Calculations'!$N$51 -> 758.2 | AK26: =MAX(AK14,AK35)*'Background Calculations'!$N$52 -> 624 | AM26: =MAX(AM14,AM35)*'Background Calculations'!$N$53 -> 494.64 | AP26: 2013 | AQ26: =MAX(AQ14,AQ35)*'Background Calculations'!$N$51 -> 758.2 | AS26: =MAX(AS14,AS35)*'Background Calculations'!$N$52 -> 624 | AU26: =MAX(AU14,AU35)*'Background Calculations'!$N$53 -> 494.64 | AX26: 2013 | AY26: =MAX(AY14,AY35)*'Background Calculations'!$N$51 -> 758.2 | BA26: =MAX(BA14,BA35)*'Background Calculations'!$N$52 -> 624 | BC26: =MAX(BC14,BC35)*'Background Calculations'!$N$53 -> 494.64 | BF26: 2013 | BG26: =MAX(BG14,BG35)*'Background Calculations'!$N$51 -> 758.2 | BI26: =MAX(BI14,BI35)*'Background Calculations'!$N$52 -> 624 | BK26: =MAX(BK14,BK35)*'Background Calculations'!$N$53 -> 494.64 | BN26: 2013 | BO26: =MAX(BO14,BO35)*'Background Calculations'!$N$51 -> 758.2 | BQ26: =MAX(BQ14,BQ35)*'Background Calculations'!$N$52 -> 624 | BS26: =MAX(BS14,BS35)*'Background Calculations'!$N$53 -> 494.64 | BV26: 2013 | BW26: =MAX(BW14,BW35)*'Background Calculations'!$N$51 -> 758.2 | BY26: =MAX(BY14,BY35)*'Background Calculations'!$N$52 -> 624 | CA26: =MAX(CA14,CA35)*'Background Calculations'!$N$53 -> 494.64 | CD26: 2013 | CE26: =MAX(CE14,CE35)*'Background Calculations'!$N$51 -> 758.2 | CG26: =MAX(CG14,CG35)*'Background Calculations'!$N$52 -> 624 | CI26: =MAX(CI14,CI35)*'Background Calculations'!$N$53 -> 494.64 | CL26: 2013 | CM26: =MAX(CM14,CM35)*'Background Calculations'!$N$51 -> 758.2 | CO26: =MAX(CO14,CO35)*'Background Calculations'!$N$52 -> 624 | CQ26: =MAX(CQ14,CQ35)*'Background Calculations'!$N$53 -> 494.64 | CT26: 2013 | CU26: =MAX(CU14,CU35)*'Background Calculations'!$N$51 -> 758.2 | CW26: =MAX(CW14,CW35)*'Background Calculations'!$N$52 -> 624 | CY26: =MAX(CY14,CY35)*'Background Calculations'!$N$53 -> 494.64 | DB26: 2013 | DC26: =MAX(DC14,DC35)*'Background Calculations'!$N$51 -> 758.2 | DE26: =MAX(DE14,DE35)*'Background Calculations'!$N$52 -> 624 | DG26: =MAX(DG14,DG35)*'Background Calculations'!$N$53 -> 494.64 | DJ26: 2013 | DK26: =MAX(DK14,DK35)*'Background Calculations'!$N$51 -> 758.2 | DM26: =MAX(DM14,DM35)*'Background Calculations'!$N$52 -> 624 | DO26: =MAX(DO14,DO35)*'Background Calculations'!$N$53 -> 494.64 | DR26: 2013 | DS26: =MAX(DS14,DS35)*'Background Calculations'!$N$51 -> 758.2 | DU26: =MAX(DU14,DU35)*'Background Calculations'!$N$52 -> 624 | DW26: =MAX(DW14,DW35)*'Background Calculations'!$N$53 -> 494.64 | DZ26: 2013 | EA26: =MAX(EA14,EA35)*'Background Calculations'!$N$51 -> 758.2 | EC26: =MAX(EC14,EC35)*'Background Calculations'!$N$52 -> 624 | EE26: =MAX(EE14,EE35)*'Background Calculations'!$N$53 -> 494.64 | EH26: 2013 | EI26: =MAX(EI14,EI35)*'Background Calculations'!$N$51 -> 758.2 | EK26: =MAX(EK14,EK35)*'Background Calculations'!$N$52 -> 624 | EM26: =MAX(EM14,EM35)*'Background Calculations'!$N$53 -> 494.64 | EP26: 2013 | EQ26: =MAX(EQ14,EQ35)*'Background Calculations'!$N$51 -> 758.2 | ES26: =MAX(ES14,ES35)*'Background Calculations'!$N$52 -> 624 | EU26: =MAX(EU14,EU35)*'Background Calculations'!$N$53 -> 494.64 | EX26: 2013 | EY26: =MAX(EY14,EY35)*'Background Calculations'!$N$51 -> 758.2 | FA26: =MAX(FA14,FA35)*'Background Calculations'!$N$52 -> 624 | FC26: =MAX(FC14,FC35)*'Background Calculations'!$N$53 -> 494.64 | FF26: 2013 | FG26: =MAX(FG14,FG35)*'Background Calculations'!$N$51 -> 758.2 | FI26: =MAX(FI14,FI35)*'Background Calculations'!$N$52 -> 624 | FK26: =MAX(FK14,FK35)*'Background Calculations'!$N$53 -> 494.64 | FN26: 2013 | FO26: =MAX(FO14,FO35)*'Background Calculations'!$N$51 -> 758.2 | FQ26: =MAX(FQ14,FQ35)*'Background Calculations'!$N$52 -> 624 | FS26: =MAX(FS14,FS35)*'Background Calculations'!$N$53 -> 494.64 | FV26: 2013 | FW26: =MAX(FW14,FW35)*'Background Calculations'!$N$51 -> 758.2 | FY26: =MAX(FY14,FY35)*'Background Calculations'!$N$52 -> 624 | GA26: =MAX(GA14,GA35)*'Background Calculations'!$N$53 -> 494.64 | GD26: 2013 | GE26: =MAX(GE14,GE35)*'Background Calculations'!$N$51 -> 758.2 | GG26: =MAX(GG14,GG35)*'Background Calculations'!$N$52 -> 624 | GI26: =MAX(GI14,GI35)*'Background Calculations'!$N$53 -> 494.64 | GL26: 2013 | GM26: =MAX(GM14,GM35)*'Background Calculations'!$N$51 -> 758.2 | GO26: =MAX(GO14,GO35)*'Background Calculations'!$N$52 -> 624 | GQ26: =MAX(GQ14,GQ35)*'Background Calculations'!$N$53 -> 494.64 | GT26: 2013 | GU26: =MAX(GU14,GU35)*'Background Calculations'!$N$51 -> 758.2 | GW26: =MAX(GW14,GW35)*'Background Calculations'!$N$52 -> 624 | GY26: =MAX(GY14,GY35)*'Background Calculations'!$N$53 -> 494.64 | HB26: 2013 | HC26: =MAX(HC14,HC35)*'Background Calculations'!$N$51 -> 758.2 | HE26: =MAX(HE14,HE35)*'Background Calculations'!$N$52 -> 624 | HG26: =MAX(HG14,HG35)*'Background Calculations'!$N$53 -> 494.64 | HJ26: 2013 | HK26: =MAX(HK14,HK35)*'Background Calculations'!$N$51 -> 758.2 | HM26: =MAX(HM14,HM35)*'Background Calculations'!$N$52 -> 624 | HO26: =MAX(HO14,HO35)*'Background Calculations'!$N$53 -> 494.64 | HR26: 2013 | HS26: =MAX(HS14,HS35)*'Background Calculations'!$N$51 -> 758.2 | HU26: =MAX(HU14,HU35)*'Background Calculations'!$N$52 -> 624 | HW26: =MAX(HW14,HW35)*'Background Calculations'!$N$53 -> 494.64 | HZ26: 2013 | IA26: =MAX(IA14,IA35)*'Background Calculations'!$N$51 -> 758.2 | IC26: =MAX(IC14,IC35)*'Background Calculations'!$N$52 -> 624 | IE26: =MAX(IE14,IE35)*'Background Calculations'!$N$53 -> 494.64 | IH26: 2013 | II26: =MAX(II14,II35)*'Background Calculations'!$N$51 -> 758.2 | IK26: =MAX(IK14,IK35)*'Background Calculations'!$N$52 -> 624 | IM26: =MAX(IM14,IM35)*'Background Calculations'!$N$53 -> 494.64 | IP26: 2013 | IQ26: =MAX(IQ14,IQ35)*'Background Calculations'!$N$51 -> 758.2 | IS26: =MAX(IS14,IS35)*'Background Calculations'!$N$52 -> 624 | IU26: =MAX(IU14,IU35)*'Background Calculations'!$N$53 -> 494.64 | IX26: 2013 | IY26: =MAX(IY14,IY35)*'Background Calculations'!$N$51 -> 758.2 | JA26: =MAX(JA14,JA35)*'Background Calculations'!$N$52 -> 624 | JC26: =MAX(JC14,JC35)*'Background Calculations'!$N$53 -> 494.64 | JF26: 2013 | JG26: =MAX(JG14,JG35)*'Background Calculations'!$N$51 -> 758.2 | JI26: =MAX(JI14,JI35)*'Background Calculations'!$N$52 -> 624 | JK26: =MAX(JK14,JK35)*'Background Calculations'!$N$53 -> 494.64 | JN26: 2013 | JO26: =MAX(JO14,JO35)*'Background Calculations'!$N$51 -> 758.2 | JQ26: =MAX(JQ14,JQ35)*'Background Calculations'!$N$52 -> 624 | JS26: =MAX(JS14,JS35)*'Background Calculations'!$N$53 -> 494.64 | JV26: 2013 | JW26: =MAX(JW14,JW35)*'Background Calculations'!$N$51 -> 758.2 | JY26: =MAX(JY14,JY35)*'Background Calculations'!$N$52 -> 624 | KA26: =MAX(KA14,KA35)*'Background Calculations'!$N$53 -> 494.64 | KD26: 2013 | KE26: =MAX(KE14,KE35)*'Background Calculations'!$N$51 -> 758.2 | KG26: =MAX(KG14,KG35)*'Background Calculations'!$N$52 -> 624 | KI26: =MAX(KI14,KI35)*'Background Calculations'!$N$53 -> 494.64 | KL26: 2013 | KM26: =MAX(KM14,KM35)*'Background Calculations'!$N$51 -> 758.2 | KO26: =MAX(KO14,KO35)*'Background Calculations'!$N$52 -> 624 | KQ26: =MAX(KQ14,KQ35)*'Background Calculations'!$N$53 -> 494.64 | KT26: 2013 | KU26: =MAX(KU14,KU35)*'Background Calculations'!$N$51 -> 758.2 | KW26: =MAX(KW14,KW35)*'Background Calculations'!$N$52 -> 624 | KY26: =MAX(KY14,KY35)*'Background Calculations'!$N$53 -> 494.64 | LB26: 2013 | LC26: =MAX(LC14,LC35)*'Background Calculations'!$N$51 -> 758.2 | LE26: =MAX(LE14,LE35)*'Background Calculations'!$N$52 -> 624 | LG26: =MAX(LG14,LG35)*'Background Calculations'!$N$53 -> 494.64 | LJ26: 2013 | LK26: =MAX(LK14,LK35)*'Background Calculations'!$N$51 -> 758.2 | LM26: =MAX(LM14,LM35)*'Background Calculations'!$N$52 -> 624 | LO26: =MAX(LO14,LO35)*'Background Calculations'!$N$53 -> 494.64 | LR26: 2013 | LS26: =MAX(LS14,LS35)*'Background Calculations'!$N$51 -> 758.2 | LU26: =MAX(LU14,LU35)*'Background Calculations'!$N$52 -> 624 | LW26: =MAX(LW14,LW35)*'Background Calculations'!$N$53 -> 494.64 | LZ26: 2013 | MA26: =MAX(MA14,MA35)*'Background Calculations'!$N$51 -> 758.2 | MC26: =MAX(MC14,MC35)*'Background Calculations'!$N$52 -> 624 | ME26: =MAX(ME14,ME35)*'Background Calculations'!$N$53 -> 494.64 | MH26: 2013 | MI26: =MAX(MI14,MI35)*'Background Calculations'!$N$51 -> 758.2 | MK26: =MAX(MK14,MK35)*'Background Calculations'!$N$52 -> 624 | MM26: =MAX(MM14,MM35)*'Background Calculations'!$N$53 -> 494.64 | MP26: 2013 | MQ26: =MAX(MQ14,MQ35)*'Background Calculations'!$N$51 -> 758.2 | MS26: =MAX(MS14,MS35)*'Background Calculations'!$N$52 -> 624 | MU26: =MAX(MU14,MU35)*'Background Calculations'!$N$53 -> 494.64 | MX26: 2013 | MY26: =MAX(MY14,MY35)*'Background Calculations'!$N$51 -> 758.2 | NA26: =MAX(NA14,NA35)*'Background Calculations'!$N$52 -> 624 | NC26: =MAX(NC14,NC35)*'Background Calculations'!$N$53 -> 494.64 | NF26: 2013 | NG26: =MAX(NG14,NG35)*'Background Calculations'!$N$51 -> 758.2 | NI26: =MAX(NI14,NI35)*'Background Calculations'!$N$52 -> 624 | NK26: =MAX(NK14,NK35)*'Background Calculations'!$N$53 -> 494.64 | NN26: 2013 | NO26: =MAX(NO14,NO35)*'Background Calculations'!$N$51 -> 758.2 | NQ26: =MAX(NQ14,NQ35)*'Background Calculations'!$N$52 -> 624 | NS26: =MAX(NS14,NS35)*'Background Calculations'!$N$53 -> 494.64 | NV26: 2013 | NW26: =MAX(NW14,NW35)*'Background Calculations'!$N$51 -> 758.2 | NY26: =MAX(NY14,NY35)*'Background Calculations'!$N$52 -> 624 | OA26: =MAX(OA14,OA35)*'Background Calculations'!$N$53 -> 494.64 | OD26: 2013 | OE26: =MAX(OE14,OE35)*'Background Calculations'!$N$51 -> 758.2 | OG26: =MAX(OG14,OG35)*'Background Calculations'!$N$52 -> 624 | OI26: =MAX(OI14,OI35)*'Background Calculations'!$N$53 -> 494.64 | OL26: 2013 | OM26: =MAX(OM14,OM35)*'Background Calculations'!$N$51 -> 758.2 | OO26: =MAX(OO14,OO35)*'Background Calculations'!$N$52 -> 624 | OQ26: =MAX(OQ14,OQ35)*'Background Calculations'!$N$53 -> 494.64
B27: 2014 | C27: =MAX(C15,C36)*'Background Calculations'!$O$51 -> 651.2 | E27: =MAX(E15,E36)*'Background Calculations'!$O$52 -> 454.5 | G27: =MAX(G15,G36)*'Background Calculations'!$O$53 -> 461.23 | J27: 2014 | K27: =MAX(K15,K36)*'Background Calculations'!$O$51 -> 651.2 | M27: =MAX(M15,M36)*'Background Calculations'!$O$52 -> 454.5 | O27: =MAX(O15,O36)*'Background Calculations'!$O$53 -> 461.23 | R27: 2014 | S27: =MAX(S15,S36)*'Background Calculations'!$O$51 -> 651.2 | U27: =MAX(U15,U36)*'Background Calculations'!$O$52 -> 454.5 | W27: =MAX(W15,W36)*'Background Calculations'!$O$53 -> 461.23 | Z27: 2014 | AA27: =MAX(AA15,AA36)*'Background Calculations'!$O$51 -> 651.2 | AC27: =MAX(AC15,AC36)*'Background Calculations'!$O$52 -> 454.5 | AE27: =MAX(AE15,AE36)*'Background Calculations'!$O$53 -> 461.23 | AH27: 2014 | AI27: =MAX(AI15,AI36)*'Background Calculations'!$O$51 -> 651.2 | AK27: =MAX(AK15,AK36)*'Background Calculations'!$O$52 -> 454.5 | AM27: =MAX(AM15,AM36)*'Background Calculations'!$O$53 -> 461.23 | AP27: 2014 | AQ27: =MAX(AQ15,AQ36)*'Background Calculations'!$O$51 -> 651.2 | AS27: =MAX(AS15,AS36)*'Background Calculations'!$O$52 -> 454.5 | AU27: =MAX(AU15,AU36)*'Background Calculations'!$O$53 -> 461.23 | AX27: 2014 | AY27: =MAX(AY15,AY36)*'Background Calculations'!$O$51 -> 651.2 | BA27: =MAX(BA15,BA36)*'Background Calculations'!$O$52 -> 454.5 | BC27: =MAX(BC15,BC36)*'Background Calculations'!$O$53 -> 461.23 | BF27: 2014 | BG27: =MAX(BG15,BG36)*'Background Calculations'!$O$51 -> 651.2 | BI27: =MAX(BI15,BI36)*'Background Calculations'!$O$52 -> 454.5 | BK27: =MAX(BK15,BK36)*'Background Calculations'!$O$53 -> 461.23 | BN27: 2014 | BO27: =MAX(BO15,BO36)*'Background Calculations'!$O$51 -> 651.2 | BQ27: =MAX(BQ15,BQ36)*'Background Calculations'!$O$52 -> 454.5 | BS27: =MAX(BS15,BS36)*'Background Calculations'!$O$53 -> 461.23 | BV27: 2014 | BW27: =MAX(BW15,BW36)*'Background Calculations'!$O$51 -> 651.2 | BY27: =MAX(BY15,BY36)*'Background Calculations'!$O$52 -> 454.5 | CA27: =MAX(CA15,CA36)*'Background Calculations'!$O$53 -> 461.23 | CD27: 2014 | CE27: =MAX(CE15,CE36)*'Background Calculations'!$O$51 -> 651.2 | CG27: =MAX(CG15,CG36)*'Background Calculations'!$O$52 -> 454.5 | CI27: =MAX(CI15,CI36)*'Background Calculations'!$O$53 -> 461.23 | CL27: 2014 | CM27: =MAX(CM15,CM36)*'Background Calculations'!$O$51 -> 651.2 | CO27: =MAX(CO15,CO36)*'Background Calculations'!$O$52 -> 454.5 | CQ27: =MAX(CQ15,CQ36)*'Background Calculations'!$O$53 -> 461.23 | CT27: 2014 | CU27: =MAX(CU15,CU36)*'Background Calculations'!$O$51 -> 651.2 | CW27: =MAX(CW15,CW36)*'Background Calculations'!$O$52 -> 454.5 | CY27: =MAX(CY15,CY36)*'Background Calculations'!$O$53 -> 461.23 | DB27: 2014 | DC27: =MAX(DC15,DC36)*'Background Calculations'!$O$51 -> 651.2 | DE27: =MAX(DE15,DE36)*'Background Calculations'!$O$52 -> 454.5 | DG27: =MAX(DG15,DG36)*'Background Calculations'!$O$53 -> 461.23 | DJ27: 2014 | DK27: =MAX(DK15,DK36)*'Background Calculations'!$O$51 -> 651.2 | DM27: =MAX(DM15,DM36)*'Background Calculations'!$O$52 -> 454.5 | DO27: =MAX(DO15,DO36)*'Background Calculations'!$O$53 -> 461.23 | DR27: 2014 | DS27: =MAX(DS15,DS36)*'Background Calculations'!$O$51 -> 651.2 | DU27: =MAX(DU15,DU36)*'Background Calculations'!$O$52 -> 454.5 | DW27: =MAX(DW15,DW36)*'Background Calculations'!$O$53 -> 461.23 | DZ27: 2014 | EA27: =MAX(EA15,EA36)*'Background Calculations'!$O$51 -> 651.2 | EC27: =MAX(EC15,EC36)*'Background Calculations'!$O$52 -> 454.5 | EE27: =MAX(EE15,EE36)*'Background Calculations'!$O$53 -> 461.23 | EH27: 2014 | EI27: =MAX(EI15,EI36)*'Background Calculations'!$O$51 -> 651.2 | EK27: =MAX(EK15,EK36)*'Background Calculations'!$O$52 -> 454.5 | EM27: =MAX(EM15,EM36)*'Background Calculations'!$O$53 -> 461.23 | EP27: 2014 | EQ27: =MAX(EQ15,EQ36)*'Background Calculations'!$O$51 -> 651.2 | ES27: =MAX(ES15,ES36)*'Background Calculations'!$O$52 -> 454.5 | EU27: =MAX(EU15,EU36)*'Background Calculations'!$O$53 -> 461.23 | EX27: 2014 | EY27: =MAX(EY15,EY36)*'Background Calculations'!$O$51 -> 651.2 | FA27: =MAX(FA15,FA36)*'Background Calculations'!$O$52 -> 454.5 | FC27: =MAX(FC15,FC36)*'Background Calculations'!$O$53 -> 461.23 | FF27: 2014 | FG27: =MAX(FG15,FG36)*'Background Calculations'!$O$51 -> 651.2 | FI27: =MAX(FI15,FI36)*'Background Calculations'!$O$52 -> 454.5 | FK27: =MAX(FK15,FK36)*'Background Calculations'!$O$53 -> 461.23 | FN27: 2014 | FO27: =MAX(FO15,FO36)*'Background Calculations'!$O$51 -> 651.2 | FQ27: =MAX(FQ15,FQ36)*'Background Calculations'!$O$52 -> 454.5 | FS27: =MAX(FS15,FS36)*'Background Calculations'!$O$53 -> 461.23 | FV27: 2014 | FW27: =MAX(FW15,FW36)*'Background Calculations'!$O$51 -> 651.2 | FY27: =MAX(FY15,FY36)*'Background Calculations'!$O$52 -> 454.5 | GA27: =MAX(GA15,GA36)*'Background Calculations'!$O$53 -> 461.23 | GD27: 2014 | GE27: =MAX(GE15,GE36)*'Background Calculations'!$O$51 -> 651.2 | GG27: =MAX(GG15,GG36)*'Background Calculations'!$O$52 -> 454.5 | GI27: =MAX(GI15,GI36)*'Background Calculations'!$O$53 -> 461.23 | GL27: 2014 | GM27: =MAX(GM15,GM36)*'Background Calculations'!$O$51 -> 651.2 | GO27: =MAX(GO15,GO36)*'Background Calculations'!$O$52 -> 454.5 | GQ27: =MAX(GQ15,GQ36)*'Background Calculations'!$O$53 -> 461.23 | GT27: 2014 | GU27: =MAX(GU15,GU36)*'Background Calculations'!$O$51 -> 651.2 | GW27: =MAX(GW15,GW36)*'Background Calculations'!$O$52 -> 454.5 | GY27: =MAX(GY15,GY36)*'Background Calculations'!$O$53 -> 461.23 | HB27: 2014 | HC27: =MAX(HC15,HC36)*'Background Calculations'!$O$51 -> 651.2 | HE27: =MAX(HE15,HE36)*'Background Calculations'!$O$52 -> 454.5 | HG27: =MAX(HG15,HG36)*'Background Calculations'!$O$53 -> 461.23 | HJ27: 2014 | HK27: =MAX(HK15,HK36)*'Background Calculations'!$O$51 -> 651.2 | HM27: =MAX(HM15,HM36)*'Background Calculations'!$O$52 -> 454.5 | HO27: =MAX(HO15,HO36)*'Background Calculations'!$O$53 -> 461.23 | HR27: 2014 | HS27: =MAX(HS15,HS36)*'Background Calculations'!$O$51 -> 651.2 | HU27: =MAX(HU15,HU36)*'Background Calculations'!$O$52 -> 454.5 | HW27: =MAX(HW15,HW36)*'Background Calculations'!$O$53 -> 461.23 | HZ27: 2014 | IA27: =MAX(IA15,IA36)*'Background Calculations'!$O$51 -> 651.2 | IC27: =MAX(IC15,IC36)*'Background Calculations'!$O$52 -> 454.5 | IE27: =MAX(IE15,IE36)*'Background Calculations'!$O$53 -> 461.23 | IH27: 2014 | II27: =MAX(II15,II36)*'Background Calculations'!$O$51 -> 651.2 | IK27: =MAX(IK15,IK36)*'Background Calculations'!$O$52 -> 454.5 | IM27: =MAX(IM15,IM36)*'Background Calculations'!$O$53 -> 461.23 | IP27: 2014 | IQ27: =MAX(IQ15,IQ36)*'Background Calculations'!$O$51 -> 651.2 | IS27: =MAX(IS15,IS36)*'Background Calculations'!$O$52 -> 454.5 | IU27: =MAX(IU15,IU36)*'Background Calculations'!$O$53 -> 461.23 | IX27: 2014 | IY27: =MAX(IY15,IY36)*'Background Calculations'!$O$51 -> 651.2 | JA27: =MAX(JA15,JA36)*'Background Calculations'!$O$52 -> 454.5 | JC27: =MAX(JC15,JC36)*'Background Calculations'!$O$53 -> 461.23 | JF27: 2014 | JG27: =MAX(JG15,JG36)*'Background Calculations'!$O$51 -> 651.2 | JI27: =MAX(JI15,JI36)*'Background Calculations'!$O$52 -> 454.5 | JK27: =MAX(JK15,JK36)*'Background Calculations'!$O$53 -> 461.23 | JN27: 2014 | JO27: =MAX(JO15,JO36)*'Background Calculations'!$O$51 -> 651.2 | JQ27: =MAX(JQ15,JQ36)*'Background Calculations'!$O$52 -> 454.5 | JS27: =MAX(JS15,JS36)*'Background Calculations'!$O$53 -> 461.23 | JV27: 2014 | JW27: =MAX(JW15,JW36)*'Background Calculations'!$O$51 -> 651.2 | JY27: =MAX(JY15,JY36)*'Background Calculations'!$O$52 -> 454.5 | KA27: =MAX(KA15,KA36)*'Background Calculations'!$O$53 -> 461.23 | KD27: 2014 | KE27: =MAX(KE15,KE36)*'Background Calculations'!$O$51 -> 651.2 | KG27: =MAX(KG15,KG36)*'Background Calculations'!$O$52 -> 454.5 | KI27: =MAX(KI15,KI36)*'Background Calculations'!$O$53 -> 461.23 | KL27: 2014 | KM27: =MAX(KM15,KM36)*'Background Calculations'!$O$51 -> 651.2 | KO27: =MAX(KO15,KO36)*'Background Calculations'!$O$52 -> 454.5 | KQ27: =MAX(KQ15,KQ36)*'Background Calculations'!$O$53 -> 461.23 | KT27: 2014 | KU27: =MAX(KU15,KU36)*'Background Calculations'!$O$51 -> 651.2 | KW27: =MAX(KW15,KW36)*'Background Calculations'!$O$52 -> 454.5 | KY27: =MAX(KY15,KY36)*'Background Calculations'!$O$53 -> 461.23 | LB27: 2014 | LC27: =MAX(LC15,LC36)*'Background Calculations'!$O$51 -> 651.2 | LE27: =MAX(LE15,LE36)*'Background Calculations'!$O$52 -> 454.5 | LG27: =MAX(LG15,LG36)*'Background Calculations'!$O$53 -> 461.23 | LJ27: 2014 | LK27: =MAX(LK15,LK36)*'Background Calculations'!$O$51 -> 651.2 | LM27: =MAX(LM15,LM36)*'Background Calculations'!$O$52 -> 454.5 | LO27: =MAX(LO15,LO36)*'Background Calculations'!$O$53 -> 461.23 | LR27: 2014 | LS27: =MAX(LS15,LS36)*'Background Calculations'!$O$51 -> 651.2 | LU27: =MAX(LU15,LU36)*'Background Calculations'!$O$52 -> 454.5 | LW27: =MAX(LW15,LW36)*'Background Calculations'!$O$53 -> 461.23 | LZ27: 2014 | MA27: =MAX(MA15,MA36)*'Background Calculations'!$O$51 -> 651.2 | MC27: =MAX(MC15,MC36)*'Background Calculations'!$O$52 -> 454.5 | ME27: =MAX(ME15,ME36)*'Background Calculations'!$O$53 -> 461.23 | MH27: 2014 | MI27: =MAX(MI15,MI36)*'Background Calculations'!$O$51 -> 651.2 | MK27: =MAX(MK15,MK36)*'Background Calculations'!$O$52 -> 454.5 | MM27: =MAX(MM15,MM36)*'Background Calculations'!$O$53 -> 461.23 | MP27: 2014 | MQ27: =MAX(MQ15,MQ36)*'Background Calculations'!$O$51 -> 651.2 | MS27: =MAX(MS15,MS36)*'Background Calculations'!$O$52 -> 454.5 | MU27: =MAX(MU15,MU36)*'Background Calculations'!$O$53 -> 461.23 | MX27: 2014 | MY27: =MAX(MY15,MY36)*'Background Calculations'!$O$51 -> 651.2 | NA27: =MAX(NA15,NA36)*'Background Calculations'!$O$52 -> 454.5 | NC27: =MAX(NC15,NC36)*'Background Calculations'!$O$53 -> 461.23 | NF27: 2014 | NG27: =MAX(NG15,NG36)*'Background Calculations'!$O$51 -> 651.2 | NI27: =MAX(NI15,NI36)*'Background Calculations'!$O$52 -> 454.5 | NK27: =MAX(NK15,NK36)*'Background Calculations'!$O$53 -> 461.23 | NN27: 2014 | NO27: =MAX(NO15,NO36)*'Background Calculations'!$O$51 -> 651.2 | NQ27: =MAX(NQ15,NQ36)*'Background Calculations'!$O$52 -> 454.5 | NS27: =MAX(NS15,NS36)*'Background Calculations'!$O$53 -> 461.23 | NV27: 2014 | NW27: =MAX(NW15,NW36)*'Background Calculations'!$O$51 -> 651.2 | NY27: =MAX(NY15,NY36)*'Background Calculations'!$O$52 -> 454.5 | OA27: =MAX(OA15,OA36)*'Background Calculations'!$O$53 -> 461.23 | OD27: 2014 | OE27: =MAX(OE15,OE36)*'Background Calculations'!$O$51 -> 651.2 | OG27: =MAX(OG15,OG36)*'Background Calculations'!$O$52 -> 454.5 | OI27: =MAX(OI15,OI36)*'Background Calculations'!$O$53 -> 461.23 | OL27: 2014 | OM27: =MAX(OM15,OM36)*'Background Calculations'!$O$51 -> 651.2 | OO27: =MAX(OO15,OO36)*'Background Calculations'!$O$52 -> 454.5 | OQ27: =MAX(OQ15,OQ36)*'Background Calculations'!$O$53 -> 461.23
B28: 2015 | C28: =MAX(C16,C37)*'Background Calculations'!$P$51 -> 603.1 | E28: =MAX(E16,E37)*'Background Calculations'!$P$52 -> 438.55 | G28: =MAX(G16,G37)*'Background Calculations'!$P$53 -> 374 | J28: 2015 | K28: =MAX(K16,K37)*'Background Calculations'!$P$51 -> 603.1 | M28: =MAX(M16,M37)*'Background Calculations'!$P$52 -> 438.55 | O28: =MAX(O16,O37)*'Background Calculations'!$P$53 -> 374 | R28: 2015 | S28: =MAX(S16,S37)*'Background Calculations'!$P$51 -> 603.1 | U28: =MAX(U16,U37)*'Background Calculations'!$P$52 -> 438.55 | W28: =MAX(W16,W37)*'Background Calculations'!$P$53 -> 374 | Z28: 2015 | AA28: =MAX(AA16,AA37)*'Background Calculations'!$P$51 -> 603.1 | AC28: =MAX(AC16,AC37)*'Background Calculations'!$P$52 -> 438.55 | AE28: =MAX(AE16,AE37)*'Background Calculations'!$P$53 -> 374 | AH28: 2015 | AI28: =MAX(AI16,AI37)*'Background Calculations'!$P$51 -> 603.1 | AK28: =MAX(AK16,AK37)*'Background Calculations'!$P$52 -> 438.55 | AM28: =MAX(AM16,AM37)*'Background Calculations'!$P$53 -> 374 | AP28: 2015 | AQ28: =MAX(AQ16,AQ37)*'Background Calculations'!$P$51 -> 603.1 | AS28: =MAX(AS16,AS37)*'Background Calculations'!$P$52 -> 438.55 | AU28: =MAX(AU16,AU37)*'Background Calculations'!$P$53 -> 374 | AX28: 2015 | AY28: =MAX(AY16,AY37)*'Background Calculations'!$P$51 -> 603.1 | BA28: =MAX(BA16,BA37)*'Background Calculations'!$P$52 -> 438.55 | BC28: =MAX(BC16,BC37)*'Background Calculations'!$P$53 -> 374 | BF28: 2015 | BG28: =MAX(BG16,BG37)*'Background Calculations'!$P$51 -> 603.1 | BI28: =MAX(BI16,BI37)*'Background Calculations'!$P$52 -> 438.55 | BK28: =MAX(BK16,BK37)*'Background Calculations'!$P$53 -> 374 | BN28: 2015 | BO28: =MAX(BO16,BO37)*'Background Calculations'!$P$51 -> 603.1 | BQ28: =MAX(BQ16,BQ37)*'Background Calculations'!$P$52 -> 438.55 | BS28: =MAX(BS16,BS37)*'Background Calculations'!$P$53 -> 374 | BV28: 2015 | BW28: =MAX(BW16,BW37)*'Background Calculations'!$P$51 -> 603.1 | BY28: =MAX(BY16,BY37)*'Background Calculations'!$P$52 -> 438.55 | CA28: =MAX(CA16,CA37)*'Background Calculations'!$P$53 -> 374 | CD28: 2015 | CE28: =MAX(CE16,CE37)*'Background Calculations'!$P$51 -> 603.1 | CG28: =MAX(CG16,CG37)*'Background Calculations'!$P$52 -> 438.55 | CI28: =MAX(CI16,CI37)*'Background Calculations'!$P$53 -> 374 | CL28: 2015 | CM28: =MAX(CM16,CM37)*'Background Calculations'!$P$51 -> 603.1 | CO28: =MAX(CO16,CO37)*'Background Calculations'!$P$52 -> 438.55 | CQ28: =MAX(CQ16,CQ37)*'Background Calculations'!$P$53 -> 374 | CT28: 2015 | CU28: =MAX(CU16,CU37)*'Background Calculations'!$P$51 -> 603.1 | CW28: =MAX(CW16,CW37)*'Background Calculations'!$P$52 -> 438.55 | CY28: =MAX(CY16,CY37)*'Background Calculations'!$P$53 -> 374 | DB28: 2015 | DC28: =MAX(DC16,DC37)*'Background Calculations'!$P$51 -> 603.1 | DE28: =MAX(DE16,DE37)*'Background Calculations'!$P$52 -> 438.55 | DG28: =MAX(DG16,DG37)*'Background Calculations'!$P$53 -> 374 | DJ28: 2015 | DK28: =MAX(DK16,DK37)*'Background Calculations'!$P$51 -> 603.1 | DM28: =MAX(DM16,DM37)*'Background Calculations'!$P$52 -> 438.55 | DO28: =MAX(DO16,DO37)*'Background Calculations'!$P$53 -> 374 | DR28: 2015 | DS28: =MAX(DS16,DS37)*'Background Calculations'!$P$51 -> 603.1 | DU28: =MAX(DU16,DU37)*'Background Calculations'!$P$52 -> 438.55 | DW28: =MAX(DW16,DW37)*'Background Calculations'!$P$53 -> 374 | DZ28: 2015 | EA28: =MAX(EA16,EA37)*'Background Calculations'!$P$51 -> 603.1 | EC28: =MAX(EC16,EC37)*'Background Calculations'!$P$52 -> 438.55 | EE28: =MAX(EE16,EE37)*'Background Calculations'!$P$53 -> 374 | EH28: 2015 | EI28: =MAX(EI16,EI37)*'Background Calculations'!$P$51 -> 603.1 | EK28: =MAX(EK16,EK37)*'Background Calculations'!$P$52 -> 438.55 | EM28: =MAX(EM16,EM37)*'Background Calculations'!$P$53 -> 374 | EP28: 2015 | EQ28: =MAX(EQ16,EQ37)*'Background Calculations'!$P$51 -> 603.1 | ES28: =MAX(ES16,ES37)*'Background Calculations'!$P$52 -> 438.55 | EU28: =MAX(EU16,EU37)*'Background Calculations'!$P$53 -> 374 | EX28: 2015 | EY28: =MAX(EY16,EY37)*'Background Calculations'!$P$51 -> 603.1 | FA28: =MAX(FA16,FA37)*'Background Calculations'!$P$52 -> 438.55 | FC28: =MAX(FC16,FC37)*'Background Calculations'!$P$53 -> 374 | FF28: 2015 | FG28: =MAX(FG16,FG37)*'Background Calculations'!$P$51 -> 603.1 | FI28: =MAX(FI16,FI37)*'Background Calculations'!$P$52 -> 438.55 | FK28: =MAX(FK16,FK37)*'Background Calculations'!$P$53 -> 374 | FN28: 2015 | FO28: =MAX(FO16,FO37)*'Background Calculations'!$P$51 -> 603.1 | FQ28: =MAX(FQ16,FQ37)*'Background Calculations'!$P$52 -> 438.55 | FS28: =MAX(FS16,FS37)*'Background Calculations'!$P$53 -> 374 | FV28: 2015 | FW28: =MAX(FW16,FW37)*'Background Calculations'!$P$51 -> 603.1 | FY28: =MAX(FY16,FY37)*'Background Calculations'!$P$52 -> 438.55 | GA28: =MAX(GA16,GA37)*'Background Calculations'!$P$53 -> 374 | GD28: 2015 | GE28: =MAX(GE16,GE37)*'Background Calculations'!$P$51 -> 603.1 | GG28: =MAX(GG16,GG37)*'Background Calculations'!$P$52 -> 438.55 | GI28: =MAX(GI16,GI37)*'Background Calculations'!$P$53 -> 374 | GL28: 2015 | GM28: =MAX(GM16,GM37)*'Background Calculations'!$P$51 -> 603.1 | GO28: =MAX(GO16,GO37)*'Background Calculations'!$P$52 -> 438.55 | GQ28: =MAX(GQ16,GQ37)*'Background Calculations'!$P$53 -> 374 | GT28: 2015 | GU28: =MAX(GU16,GU37)*'Background Calculations'!$P$51 -> 603.1 | GW28: =MAX(GW16,GW37)*'Background Calculations'!$P$52 -> 438.55 | GY28: =MAX(GY16,GY37)*'Background Calculations'!$P$53 -> 374 | HB28: 2015 | HC28: =MAX(HC16,HC37)*'Background Calculations'!$P$51 -> 603.1 | HE28: =MAX(HE16,HE37)*'Background Calculations'!$P$52 -> 438.55 | HG28: =MAX(HG16,HG37)*'Background Calculations'!$P$53 -> 374 | HJ28: 2015 | HK28: =MAX(HK16,HK37)*'Background Calculations'!$P$51 -> 603.1 | HM28: =MAX(HM16,HM37)*'Background Calculations'!$P$52 -> 438.55 | HO28: =MAX(HO16,HO37)*'Background Calculations'!$P$53 -> 374 | HR28: 2015 | HS28: =MAX(HS16,HS37)*'Background Calculations'!$P$51 -> 603.1 | HU28: =MAX(HU16,HU37)*'Background Calculations'!$P$52 -> 438.55 | HW28: =MAX(HW16,HW37)*'Background Calculations'!$P$53 -> 374 | HZ28: 2015 | IA28: =MAX(IA16,IA37)*'Background Calculations'!$P$51 -> 603.1 | IC28: =MAX(IC16,IC37)*'Background Calculations'!$P$52 -> 438.55 | IE28: =MAX(IE16,IE37)*'Background Calculations'!$P$53 -> 374 | IH28: 2015 | II28: =MAX(II16,II37)*'Background Calculations'!$P$51 -> 603.1 | IK28: =MAX(IK16,IK37)*'Background Calculations'!$P$52 -> 438.55 | IM28: =MAX(IM16,IM37)*'Background Calculations'!$P$53 -> 374 | IP28: 2015 | IQ28: =MAX(IQ16,IQ37)*'Background Calculations'!$P$51 -> 603.1 | IS28: =MAX(IS16,IS37)*'Background Calculations'!$P$52 -> 438.55 | IU28: =MAX(IU16,IU37)*'Background Calculations'!$P$53 -> 374 | IX28: 2015 | IY28: =MAX(IY16,IY37)*'Background Calculations'!$P$51 -> 603.1 | JA28: =MAX(JA16,JA37)*'Background Calculations'!$P$52 -> 438.55 | JC28: =MAX(JC16,JC37)*'Background Calculations'!$P$53 -> 374 | JF28: 2015 | JG28: =MAX(JG16,JG37)*'Background Calculations'!$P$51 -> 603.1 | JI28: =MAX(JI16,JI37)*'Background Calculations'!$P$52 -> 438.55 | JK28: =MAX(JK16,JK37)*'Background Calculations'!$P$53 -> 374 | JN28: 2015 | JO28: =MAX(JO16,JO37)*'Background Calculations'!$P$51 -> 603.1 | JQ28: =MAX(JQ16,JQ37)*'Background Calculations'!$P$52 -> 438.55 | JS28: =MAX(JS16,JS37)*'Background Calculations'!$P$53 -> 374 | JV28: 2015 | JW28: =MAX(JW16,JW37)*'Background Calculations'!$P$51 -> 603.1 | JY28: =MAX(JY16,JY37)*'Background Calculations'!$P$52 -> 438.55 | KA28: =MAX(KA16,KA37)*'Background Calculations'!$P$53 -> 374 | KD28: 2015 | KE28: =MAX(KE16,KE37)*'Background Calculations'!$P$51 -> 603.1 | KG28: =MAX(KG16,KG37)*'Background Calculations'!$P$52 -> 438.55 | KI28: =MAX(KI16,KI37)*'Background Calculations'!$P$53 -> 374 | KL28: 2015 | KM28: =MAX(KM16,KM37)*'Background Calculations'!$P$51 -> 603.1 | KO28: =MAX(KO16,KO37)*'Background Calculations'!$P$52 -> 438.55 | KQ28: =MAX(KQ16,KQ37)*'Background Calculations'!$P$53 -> 374 | KT28: 2015 | KU28: =MAX(KU16,KU37)*'Background Calculations'!$P$51 -> 603.1 | KW28: =MAX(KW16,KW37)*'Background Calculations'!$P$52 -> 438.55 | KY28: =MAX(KY16,KY37)*'Background Calculations'!$P$53 -> 374 | LB28: 2015 | LC28: =MAX(LC16,LC37)*'Background Calculations'!$P$51 -> 603.1 | LE28: =MAX(LE16,LE37)*'Background Calculations'!$P$52 -> 438.55 | LG28: =MAX(LG16,LG37)*'Background Calculations'!$P$53 -> 374 | LJ28: 2015 | LK28: =MAX(LK16,LK37)*'Background Calculations'!$P$51 -> 603.1 | LM28: =MAX(LM16,LM37)*'Background Calculations'!$P$52 -> 438.55 | LO28: =MAX(LO16,LO37)*'Background Calculations'!$P$53 -> 374 | LR28: 2015 | LS28: =MAX(LS16,LS37)*'Background Calculations'!$P$51 -> 603.1 | LU28: =MAX(LU16,LU37)*'Background Calculations'!$P$52 -> 438.55 | LW28: =MAX(LW16,LW37)*'Background Calculations'!$P$53 -> 374 | LZ28: 2015 | MA28: =MAX(MA16,MA37)*'Background Calculations'!$P$51 -> 603.1 | MC28: =MAX(MC16,MC37)*'Background Calculations'!$P$52 -> 438.55 | ME28: =MAX(ME16,ME37)*'Background Calculations'!$P$53 -> 374 | MH28: 2015 | MI28: =MAX(MI16,MI37)*'Background Calculations'!$P$51 -> 603.1 | MK28: =MAX(MK16,MK37)*'Background Calculations'!$P$52 -> 438.55 | MM28: =MAX(MM16,MM37)*'Background Calculations'!$P$53 -> 374 | MP28: 2015 | MQ28: =MAX(MQ16,MQ37)*'Background Calculations'!$P$51 -> 603.1 | MS28: =MAX(MS16,MS37)*'Background Calculations'!$P$52 -> 438.55 | MU28: =MAX(MU16,MU37)*'Background Calculations'!$P$53 -> 374 | MX28: 2015 | MY28: =MAX(MY16,MY37)*'Background Calculations'!$P$51 -> 603.1 | NA28: =MAX(NA16,NA37)*'Background Calculations'!$P$52 -> 438.55 | NC28: =MAX(NC16,NC37)*'Background Calculations'!$P$53 -> 374 | NF28: 2015 | NG28: =MAX(NG16,NG37)*'Background Calculations'!$P$51 -> 603.1 | NI28: =MAX(NI16,NI37)*'Background Calculations'!$P$52 -> 438.55 | NK28: =MAX(NK16,NK37)*'Background Calculations'!$P$53 -> 374 | NN28: 2015 | NO28: =MAX(NO16,NO37)*'Background Calculations'!$P$51 -> 603.1 | NQ28: =MAX(NQ16,NQ37)*'Background Calculations'!$P$52 -> 438.55 | NS28: =MAX(NS16,NS37)*'Background Calculations'!$P$53 -> 374 | NV28: 2015 | NW28: =MAX(NW16,NW37)*'Background Calculations'!$P$51 -> 603.1 | NY28: =MAX(NY16,NY37)*'Background Calculations'!$P$52 -> 438.55 | OA28: =MAX(OA16,OA37)*'Background Calculations'!$P$53 -> 374 | OD28: 2015 | OE28: =MAX(OE16,OE37)*'Background Calculations'!$P$51 -> 603.1 | OG28: =MAX(OG16,OG37)*'Background Calculations'!$P$52 -> 438.55 | OI28: =MAX(OI16,OI37)*'Background Calculations'!$P$53 -> 374 | OL28: 2015 | OM28: =MAX(OM16,OM37)*'Background Calculations'!$P$51 -> 603.1 | OO28: =MAX(OO16,OO37)*'Background Calculations'!$P$52 -> 438.55 | OQ28: =MAX(OQ16,OQ37)*'Background Calculations'!$P$53 -> 374
B29: 2016 | C29: =MAX(C17,C38)*'Background Calculations'!$Q$51 -> 536.5 | E29: =MAX(E17,E38)*'Background Calculations'!$Q$52 -> 464.03 | G29: =MAX(G17,G38)*'Background Calculations'!$Q$53 -> 473 | J29: 2016 | K29: =MAX(K17,K38)*'Background Calculations'!$Q$51 -> 536.5 | M29: =MAX(M17,M38)*'Background Calculations'!$Q$52 -> 464.03 | O29: =MAX(O17,O38)*'Background Calculations'!$Q$53 -> 473 | R29: 2016 | S29: =MAX(S17,S38)*'Background Calculations'!$Q$51 -> 536.5 | U29: =MAX(U17,U38)*'Background Calculations'!$Q$52 -> 464.03 | W29: =MAX(W17,W38)*'Background Calculations'!$Q$53 -> 473 | Z29: 2016 | AA29: =MAX(AA17,AA38)*'Background Calculations'!$Q$51 -> 536.5 | AC29: =MAX(AC17,AC38)*'Background Calculations'!$Q$52 -> 464.03 | AE29: =MAX(AE17,AE38)*'Background Calculations'!$Q$53 -> 473 | AH29: 2016 | AI29: =MAX(AI17,AI38)*'Background Calculations'!$Q$51 -> 536.5 | AK29: =MAX(AK17,AK38)*'Background Calculations'!$Q$52 -> 464.03 | AM29: =MAX(AM17,AM38)*'Background Calculations'!$Q$53 -> 473 | AP29: 2016 | AQ29: =MAX(AQ17,AQ38)*'Background Calculations'!$Q$51 -> 536.5 | AS29: =MAX(AS17,AS38)*'Background Calculations'!$Q$52 -> 464.03 | AU29: =MAX(AU17,AU38)*'Background Calculations'!$Q$53 -> 473 | AX29: 2016 | AY29: =MAX(AY17,AY38)*'Background Calculations'!$Q$51 -> 536.5 | BA29: =MAX(BA17,BA38)*'Background Calculations'!$Q$52 -> 464.03 | BC29: =MAX(BC17,BC38)*'Background Calculations'!$Q$53 -> 473 | BF29: 2016 | BG29: =MAX(BG17,BG38)*'Background Calculations'!$Q$51 -> 536.5 | BI29: =MAX(BI17,BI38)*'Background Calculations'!$Q$52 -> 464.03 | BK29: =MAX(BK17,BK38)*'Background Calculations'!$Q$53 -> 473 | BN29: 2016 | BO29: =MAX(BO17,BO38)*'Background Calculations'!$Q$51 -> 536.5 | BQ29: =MAX(BQ17,BQ38)*'Background Calculations'!$Q$52 -> 464.03 | BS29: =MAX(BS17,BS38)*'Background Calculations'!$Q$53 -> 473 | BV29: 2016 | BW29: =MAX(BW17,BW38)*'Background Calculations'!$Q$51 -> 536.5 | BY29: =MAX(BY17,BY38)*'Background Calculations'!$Q$52 -> 464.03 | CA29: =MAX(CA17,CA38)*'Background Calculations'!$Q$53 -> 473 | CD29: 2016 | CE29: =MAX(CE17,CE38)*'Background Calculations'!$Q$51 -> 536.5 | CG29: =MAX(CG17,CG38)*'Background Calculations'!$Q$52 -> 464.03 | CI29: =MAX(CI17,CI38)*'Background Calculations'!$Q$53 -> 473 | CL29: 2016 | CM29: =MAX(CM17,CM38)*'Background Calculations'!$Q$51 -> 536.5 | CO29: =MAX(CO17,CO38)*'Background Calculations'!$Q$52 -> 464.03 | CQ29: =MAX(CQ17,CQ38)*'Background Calculations'!$Q$53 -> 473 | CT29: 2016 | CU29: =MAX(CU17,CU38)*'Background Calculations'!$Q$51 -> 536.5 | CW29: =MAX(CW17,CW38)*'Background Calculations'!$Q$52 -> 464.03 | CY29: =MAX(CY17,CY38)*'Background Calculations'!$Q$53 -> 473 | DB29: 2016 | DC29: =MAX(DC17,DC38)*'Background Calculations'!$Q$51 -> 536.5 | DE29: =MAX(DE17,DE38)*'Background Calculations'!$Q$52 -> 464.03 | DG29: =MAX(DG17,DG38)*'Background Calculations'!$Q$53 -> 473 | DJ29: 2016 | DK29: =MAX(DK17,DK38)*'Background Calculations'!$Q$51 -> 536.5 | DM29: =MAX(DM17,DM38)*'Background Calculations'!$Q$52 -> 464.03 | DO29: =MAX(DO17,DO38)*'Background Calculations'!$Q$53 -> 473 | DR29: 2016 | DS29: =MAX(DS17,DS38)*'Background Calculations'!$Q$51 -> 536.5 | DU29: =MAX(DU17,DU38)*'Background Calculations'!$Q$52 -> 464.03 | DW29: =MAX(DW17,DW38)*'Background Calculations'!$Q$53 -> 473 | DZ29: 2016 | EA29: =MAX(EA17,EA38)*'Background Calculations'!$Q$51 -> 536.5 | EC29: =MAX(EC17,EC38)*'Background Calculations'!$Q$52 -> 464.03 | EE29: =MAX(EE17,EE38)*'Background Calculations'!$Q$53 -> 473 | EH29: 2016 | EI29: =MAX(EI17,EI38)*'Background Calculations'!$Q$51 -> 536.5 | EK29: =MAX(EK17,EK38)*'Background Calculations'!$Q$52 -> 464.03 | EM29: =MAX(EM17,EM38)*'Background Calculations'!$Q$53 -> 473 | EP29: 2016 | EQ29: =MAX(EQ17,EQ38)*'Background Calculations'!$Q$51 -> 536.5 | ES29: =MAX(ES17,ES38)*'Background Calculations'!$Q$52 -> 464.03 | EU29: =MAX(EU17,EU38)*'Background Calculations'!$Q$53 -> 473 | EX29: 2016 | EY29: =MAX(EY17,EY38)*'Background Calculations'!$Q$51 -> 536.5 | FA29: =MAX(FA17,FA38)*'Background Calculations'!$Q$52 -> 464.03 | FC29: =MAX(FC17,FC38)*'Background Calculations'!$Q$53 -> 473 | FF29: 2016 | FG29: =MAX(FG17,FG38)*'Background Calculations'!$Q$51 -> 536.5 | FI29: =MAX(FI17,FI38)*'Background Calculations'!$Q$52 -> 464.03 | FK29: =MAX(FK17,FK38)*'Background Calculations'!$Q$53 -> 473 | FN29: 2016 | FO29: =MAX(FO17,FO38)*'Background Calculations'!$Q$51 -> 536.5 | FQ29: =MAX(FQ17,FQ38)*'Background Calculations'!$Q$52 -> 464.03 | FS29: =MAX(FS17,FS38)*'Background Calculations'!$Q$53 -> 473 | FV29: 2016 | FW29: =MAX(FW17,FW38)*'Background Calculations'!$Q$51 -> 536.5 | FY29: =MAX(FY17,FY38)*'Background Calculations'!$Q$52 -> 464.03 | GA29: =MAX(GA17,GA38)*'Background Calculations'!$Q$53 -> 473 | GD29: 2016 | GE29: =MAX(GE17,GE38)*'Background Calculations'!$Q$51 -> 536.5 | GG29: =MAX(GG17,GG38)*'Background Calculations'!$Q$52 -> 464.03 | GI29: =MAX(GI17,GI38)*'Background Calculations'!$Q$53 -> 473 | GL29: 2016 | GM29: =MAX(GM17,GM38)*'Background Calculations'!$Q$51 -> 536.5 | GO29: =MAX(GO17,GO38)*'Background Calculations'!$Q$52 -> 464.03 | GQ29: =MAX(GQ17,GQ38)*'Background Calculations'!$Q$53 -> 473 | GT29: 2016 | GU29: =MAX(GU17,GU38)*'Background Calculations'!$Q$51 -> 536.5 | GW29: =MAX(GW17,GW38)*'Background Calculations'!$Q$52 -> 464.03 | GY29: =MAX(GY17,GY38)*'Background Calculations'!$Q$53 -> 473 | HB29: 2016 | HC29: =MAX(HC17,HC38)*'Background Calculations'!$Q$51 -> 536.5 | HE29: =MAX(HE17,HE38)*'Background Calculations'!$Q$52 -> 464.03 | HG29: =MAX(HG17,HG38)*'Background Calculations'!$Q$53 -> 473 | HJ29: 2016 | HK29: =MAX(HK17,HK38)*'Background Calculations'!$Q$51 -> 536.5 | HM29: =MAX(HM17,HM38)*'Background Calculations'!$Q$52 -> 464.03 | HO29: =MAX(HO17,HO38)*'Background Calculations'!$Q$53 -> 473 | HR29: 2016 | HS29: =MAX(HS17,HS38)*'Background Calculations'!$Q$51 -> 536.5 | HU29: =MAX(HU17,HU38)*'Background Calculations'!$Q$52 -> 464.03 | HW29: =MAX(HW17,HW38)*'Background Calculations'!$Q$53 -> 473 | HZ29: 2016 | IA29: =MAX(IA17,IA38)*'Background Calculations'!$Q$51 -> 536.5 | IC29: =MAX(IC17,IC38)*'Background Calculations'!$Q$52 -> 464.03 | IE29: =MAX(IE17,IE38)*'Background Calculations'!$Q$53 -> 473 | IH29: 2016 | II29: =MAX(II17,II38)*'Background Calculations'!$Q$51 -> 536.5 | IK29: =MAX(IK17,IK38)*'Background Calculations'!$Q$52 -> 464.03 | IM29: =MAX(IM17,IM38)*'Background Calculations'!$Q$53 -> 473 | IP29: 2016 | IQ29: =MAX(IQ17,IQ38)*'Background Calculations'!$Q$51 -> 536.5 | IS29: =MAX(IS17,IS38)*'Background Calculations'!$Q$52 -> 464.03 | IU29: =MAX(IU17,IU38)*'Background Calculations'!$Q$53 -> 473 | IX29: 2016 | IY29: =MAX(IY17,IY38)*'Background Calculations'!$Q$51 -> 536.5 | JA29: =MAX(JA17,JA38)*'Background Calculations'!$Q$52 -> 464.03 | JC29: =MAX(JC17,JC38)*'Background Calculations'!$Q$53 -> 473 | JF29: 2016 | JG29: =MAX(JG17,JG38)*'Background Calculations'!$Q$51 -> 536.5 | JI29: =MAX(JI17,JI38)*'Background Calculations'!$Q$52 -> 464.03 | JK29: =MAX(JK17,JK38)*'Background Calculations'!$Q$53 -> 473 | JN29: 2016 | JO29: =MAX(JO17,JO38)*'Background Calculations'!$Q$51 -> 536.5 | JQ29: =MAX(JQ17,JQ38)*'Background Calculations'!$Q$52 -> 464.03 | JS29: =MAX(JS17,JS38)*'Background Calculations'!$Q$53 -> 473 | JV29: 2016 | JW29: =MAX(JW17,JW38)*'Background Calculations'!$Q$51 -> 536.5 | JY29: =MAX(JY17,JY38)*'Background Calculations'!$Q$52 -> 464.03 | KA29: =MAX(KA17,KA38)*'Background Calculations'!$Q$53 -> 473 | KD29: 2016 | KE29: =MAX(KE17,KE38)*'Background Calculations'!$Q$51 -> 536.5 | KG29: =MAX(KG17,KG38)*'Background Calculations'!$Q$52 -> 464.03 | KI29: =MAX(KI17,KI38)*'Background Calculations'!$Q$53 -> 473 | KL29: 2016 | KM29: =MAX(KM17,KM38)*'Background Calculations'!$Q$51 -> 536.5 | KO29: =MAX(KO17,KO38)*'Background Calculations'!$Q$52 -> 464.03 | KQ29: =MAX(KQ17,KQ38)*'Background Calculations'!$Q$53 -> 473 | KT29: 2016 | KU29: =MAX(KU17,KU38)*'Background Calculations'!$Q$51 -> 536.5 | KW29: =MAX(KW17,KW38)*'Background Calculations'!$Q$52 -> 464.03 | KY29: =MAX(KY17,KY38)*'Background Calculations'!$Q$53 -> 473 | LB29: 2016 | LC29: =MAX(LC17,LC38)*'Background Calculations'!$Q$51 -> 536.5 | LE29: =MAX(LE17,LE38)*'Background Calculations'!$Q$52 -> 464.03 | LG29: =MAX(LG17,LG38)*'Background Calculations'!$Q$53 -> 473 | LJ29: 2016 | LK29: =MAX(LK17,LK38)*'Background Calculations'!$Q$51 -> 536.5 | LM29: =MAX(LM17,LM38)*'Background Calculations'!$Q$52 -> 464.03 | LO29: =MAX(LO17,LO38)*'Background Calculations'!$Q$53 -> 473 | LR29: 2016 | LS29: =MAX(LS17,LS38)*'Background Calculations'!$Q$51 -> 536.5 | LU29: =MAX(LU17,LU38)*'Background Calculations'!$Q$52 -> 464.03 | LW29: =MAX(LW17,LW38)*'Background Calculations'!$Q$53 -> 473 | LZ29: 2016 | MA29: =MAX(MA17,MA38)*'Background Calculations'!$Q$51 -> 536.5 | MC29: =MAX(MC17,MC38)*'Background Calculations'!$Q$52 -> 464.03 | ME29: =MAX(ME17,ME38)*'Background Calculations'!$Q$53 -> 473 | MH29: 2016 | MI29: =MAX(MI17,MI38)*'Background Calculations'!$Q$51 -> 536.5 | MK29: =MAX(MK17,MK38)*'Background Calculations'!$Q$52 -> 464.03 | MM29: =MAX(MM17,MM38)*'Background Calculations'!$Q$53 -> 473 | MP29: 2016 | MQ29: =MAX(MQ17,MQ38)*'Background Calculations'!$Q$51 -> 536.5 | MS29: =MAX(MS17,MS38)*'Background Calculations'!$Q$52 -> 464.03 | MU29: =MAX(MU17,MU38)*'Background Calculations'!$Q$53 -> 473 | MX29: 2016 | MY29: =MAX(MY17,MY38)*'Background Calculations'!$Q$51 -> 536.5 | NA29: =MAX(NA17,NA38)*'Background Calculations'!$Q$52 -> 464.03 | NC29: =MAX(NC17,NC38)*'Background Calculations'!$Q$53 -> 473 | NF29: 2016 | NG29: =MAX(NG17,NG38)*'Background Calculations'!$Q$51 -> 536.5 | NI29: =MAX(NI17,NI38)*'Background Calculations'!$Q$52 -> 464.03 | NK29: =MAX(NK17,NK38)*'Background Calculations'!$Q$53 -> 473 | NN29: 2016 | NO29: =MAX(NO17,NO38)*'Background Calculations'!$Q$51 -> 536.5 | NQ29: =MAX(NQ17,NQ38)*'Background Calculations'!$Q$52 -> 464.03 | NS29: =MAX(NS17,NS38)*'Background Calculations'!$Q$53 -> 473 | NV29: 2016 | NW29: =MAX(NW17,NW38)*'Background Calculations'!$Q$51 -> 536.5 | NY29: =MAX(NY17,NY38)*'Background Calculations'!$Q$52 -> 464.03 | OA29: =MAX(OA17,OA38)*'Background Calculations'!$Q$53 -> 473 | OD29: 2016 | OE29: =MAX(OE17,OE38)*'Background Calculations'!$Q$51 -> 536.5 | OG29: =MAX(OG17,OG38)*'Background Calculations'!$Q$52 -> 464.03 | OI29: =MAX(OI17,OI38)*'Background Calculations'!$Q$53 -> 473 | OL29: 2016 | OM29: =MAX(OM17,OM38)*'Background Calculations'!$Q$51 -> 536.5 | OO29: =MAX(OO17,OO38)*'Background Calculations'!$Q$52 -> 464.03 | OQ29: =MAX(OQ17,OQ38)*'Background Calculations'!$Q$53 -> 473
B30: 2017 | C30: =MAX(C18,C39)*'Background Calculations'!$R$51 -> 617.9 | E30: =MAX(E18,E39)*'Background Calculations'!$R$52 -> 382.53 | G30: =MAX(G18,G39)*'Background Calculations'!$R$53 -> 330 | J30: 2017 | K30: =MAX(K18,K39)*'Background Calculations'!$R$51 -> 617.9 | M30: =MAX(M18,M39)*'Background Calculations'!$R$52 -> 382.53 | O30: =MAX(O18,O39)*'Background Calculations'!$R$53 -> 330 | R30: 2017 | S30: =MAX(S18,S39)*'Background Calculations'!$R$51 -> 617.9 | U30: =MAX(U18,U39)*'Background Calculations'!$R$52 -> 382.53 | W30: =MAX(W18,W39)*'Background Calculations'!$R$53 -> 330 | Z30: 2017 | AA30: =MAX(AA18,AA39)*'Background Calculations'!$R$51 -> 617.9 | AC30: =MAX(AC18,AC39)*'Background Calculations'!$R$52 -> 382.53 | AE30: =MAX(AE18,AE39)*'Background Calculations'!$R$53 -> 330 | AH30: 2017 | AI30: =MAX(AI18,AI39)*'Background Calculations'!$R$51 -> 617.9 | AK30: =MAX(AK18,AK39)*'Background Calculations'!$R$52 -> 382.53 | AM30: =MAX(AM18,AM39)*'Background Calculations'!$R$53 -> 330 | AP30: 2017 | AQ30: =MAX(AQ18,AQ39)*'Background Calculations'!$R$51 -> 617.9 | AS30: =MAX(AS18,AS39)*'Background Calculations'!$R$52 -> 382.53 | AU30: =MAX(AU18,AU39)*'Background Calculations'!$R$53 -> 330 | AX30: 2017 | AY30: =MAX(AY18,AY39)*'Background Calculations'!$R$51 -> 617.9 | BA30: =MAX(BA18,BA39)*'Background Calculations'!$R$52 -> 382.53 | BC30: =MAX(BC18,BC39)*'Background Calculations'!$R$53 -> 330 | BF30: 2017 | BG30: =MAX(BG18,BG39)*'Background Calculations'!$R$51 -> 617.9 | BI30: =MAX(BI18,BI39)*'Background Calculations'!$R$52 -> 382.53 | BK30: =MAX(BK18,BK39)*'Background Calculations'!$R$53 -> 330 | BN30: 2017 | BO30: =MAX(BO18,BO39)*'Background Calculations'!$R$51 -> 617.9 | BQ30: =MAX(BQ18,BQ39)*'Background Calculations'!$R$52 -> 382.53 | BS30: =MAX(BS18,BS39)*'Background Calculations'!$R$53 -> 330 | BV30: 2017 | BW30: =MAX(BW18,BW39)*'Background Calculations'!$R$51 -> 617.9 | BY30: =MAX(BY18,BY39)*'Background Calculations'!$R$52 -> 382.53 | CA30: =MAX(CA18,CA39)*'Background Calculations'!$R$53 -> 330 | CD30: 2017 | CE30: =MAX(CE18,CE39)*'Background Calculations'!$R$51 -> 617.9 | CG30: =MAX(CG18,CG39)*'Background Calculations'!$R$52 -> 382.53 | CI30: =MAX(CI18,CI39)*'Background Calculations'!$R$53 -> 330 | CL30: 2017 | CM30: =MAX(CM18,CM39)*'Background Calculations'!$R$51 -> 617.9 | CO30: =MAX(CO18,CO39)*'Background Calculations'!$R$52 -> 382.53 | CQ30: =MAX(CQ18,CQ39)*'Background Calculations'!$R$53 -> 330 | CT30: 2017 | CU30: =MAX(CU18,CU39)*'Background Calculations'!$R$51 -> 617.9 | CW30: =MAX(CW18,CW39)*'Background Calculations'!$R$52 -> 382.53 | CY30: =MAX(CY18,CY39)*'Background Calculations'!$R$53 -> 330 | DB30: 2017 | DC30: =MAX(DC18,DC39)*'Background Calculations'!$R$51 -> 617.9 | DE30: =MAX(DE18,DE39)*'Background Calculations'!$R$52 -> 382.53 | DG30: =MAX(DG18,DG39)*'Background Calculations'!$R$53 -> 330 | DJ30: 2017 | DK30: =MAX(DK18,DK39)*'Background Calculations'!$R$51 -> 617.9 | DM30: =MAX(DM18,DM39)*'Background Calculations'!$R$52 -> 382.53 | DO30: =MAX(DO18,DO39)*'Background Calculations'!$R$53 -> 330 | DR30: 2017 | DS30: =MAX(DS18,DS39)*'Background Calculations'!$R$51 -> 617.9 | DU30: =MAX(DU18,DU39)*'Background Calculations'!$R$52 -> 382.53 | DW30: =MAX(DW18,DW39)*'Background Calculations'!$R$53 -> 330 | DZ30: 2017 | EA30: =MAX(EA18,EA39)*'Background Calculations'!$R$51 -> 617.9 | EC30: =MAX(EC18,EC39)*'Background Calculations'!$R$52 -> 382.53 | EE30: =MAX(EE18,EE39)*'Background Calculations'!$R$53 -> 330 | EH30: 2017 | EI30: =MAX(EI18,EI39)*'Background Calculations'!$R$51 -> 617.9 | EK30: =MAX(EK18,EK39)*'Background Calculations'!$R$52 -> 382.53 | EM30: =MAX(EM18,EM39)*'Background Calculations'!$R$53 -> 330 | EP30: 2017 | EQ30: =MAX(EQ18,EQ39)*'Background Calculations'!$R$51 -> 617.9 | ES30: =MAX(ES18,ES39)*'Background Calculations'!$R$52 -> 382.53 | EU30: =MAX(EU18,EU39)*'Background Calculations'!$R$53 -> 330 | EX30: 2017 | EY30: =MAX(EY18,EY39)*'Background Calculations'!$R$51 -> 617.9 | FA30: =MAX(FA18,FA39)*'Background Calculations'!$R$52 -> 382.53 | FC30: =MAX(FC18,FC39)*'Background Calculations'!$R$53 -> 330 | FF30: 2017 | FG30: =MAX(FG18,FG39)*'Background Calculations'!$R$51 -> 617.9 | FI30: =MAX(FI18,FI39)*'Background Calculations'!$R$52 -> 382.53 | FK30: =MAX(FK18,FK39)*'Background Calculations'!$R$53 -> 330 | FN30: 2017 | FO30: =MAX(FO18,FO39)*'Background Calculations'!$R$51 -> 617.9 | FQ30: =MAX(FQ18,FQ39)*'Background Calculations'!$R$52 -> 382.53 | FS30: =MAX(FS18,FS39)*'Background Calculations'!$R$53 -> 330 | FV30: 2017 | FW30: =MAX(FW18,FW39)*'Background Calculations'!$R$51 -> 617.9 | FY30: =MAX(FY18,FY39)*'Background Calculations'!$R$52 -> 382.53 | GA30: =MAX(GA18,GA39)*'Background Calculations'!$R$53 -> 330 | GD30: 2017 | GE30: =MAX(GE18,GE39)*'Background Calculations'!$R$51 -> 617.9 | GG30: =MAX(GG18,GG39)*'Background Calculations'!$R$52 -> 382.53 | GI30: =MAX(GI18,GI39)*'Background Calculations'!$R$53 -> 330 | GL30: 2017 | GM30: =MAX(GM18,GM39)*'Background Calculations'!$R$51 -> 617.9 | GO30: =MAX(GO18,GO39)*'Background Calculations'!$R$52 -> 382.53 | GQ30: =MAX(GQ18,GQ39)*'Background Calculations'!$R$53 -> 330 | GT30: 2017 | GU30: =MAX(GU18,GU39)*'Background Calculations'!$R$51 -> 617.9 | GW30: =MAX(GW18,GW39)*'Background Calculations'!$R$52 -> 382.53 | GY30: =MAX(GY18,GY39)*'Background Calculations'!$R$53 -> 330 | HB30: 2017 | HC30: =MAX(HC18,HC39)*'Background Calculations'!$R$51 -> 617.9 | HE30: =MAX(HE18,HE39)*'Background Calculations'!$R$52 -> 382.53 | HG30: =MAX(HG18,HG39)*'Background Calculations'!$R$53 -> 330 | HJ30: 2017 | HK30: =MAX(HK18,HK39)*'Background Calculations'!$R$51 -> 617.9 | HM30: =MAX(HM18,HM39)*'Background Calculations'!$R$52 -> 382.53 | HO30: =MAX(HO18,HO39)*'Background Calculations'!$R$53 -> 330 | HR30: 2017 | HS30: =MAX(HS18,HS39)*'Background Calculations'!$R$51 -> 617.9 | HU30: =MAX(HU18,HU39)*'Background Calculations'!$R$52 -> 382.53 | HW30: =MAX(HW18,HW39)*'Background Calculations'!$R$53 -> 330 | HZ30: 2017 | IA30: =MAX(IA18,IA39)*'Background Calculations'!$R$51 -> 617.9 | IC30: =MAX(IC18,IC39)*'Background Calculations'!$R$52 -> 382.53 | IE30: =MAX(IE18,IE39)*'Background Calculations'!$R$53 -> 330 | IH30: 2017 | II30: =MAX(II18,II39)*'Background Calculations'!$R$51 -> 617.9 | IK30: =MAX(IK18,IK39)*'Background Calculations'!$R$52 -> 382.53 | IM30: =MAX(IM18,IM39)*'Background Calculations'!$R$53 -> 330 | IP30: 2017 | IQ30: =MAX(IQ18,IQ39)*'Background Calculations'!$R$51 -> 617.9 | IS30: =MAX(IS18,IS39)*'Background Calculations'!$R$52 -> 382.53 | IU30: =MAX(IU18,IU39)*'Background Calculations'!$R$53 -> 330 | IX30: 2017 | IY30: =MAX(IY18,IY39)*'Background Calculations'!$R$51 -> 617.9 | JA30: =MAX(JA18,JA39)*'Background Calculations'!$R$52 -> 382.53 | JC30: =MAX(JC18,JC39)*'Background Calculations'!$R$53 -> 330 | JF30: 2017 | JG30: =MAX(JG18,JG39)*'Background Calculations'!$R$51 -> 617.9 | JI30: =MAX(JI18,JI39)*'Background Calculations'!$R$52 -> 382.53 | JK30: =MAX(JK18,JK39)*'Background Calculations'!$R$53 -> 330 | JN30: 2017 | JO30: =MAX(JO18,JO39)*'Background Calculations'!$R$51 -> 617.9 | JQ30: =MAX(JQ18,JQ39)*'Background Calculations'!$R$52 -> 382.53 | JS30: =MAX(JS18,JS39)*'Background Calculations'!$R$53 -> 330 | JV30: 2017 | JW30: =MAX(JW18,JW39)*'Background Calculations'!$R$51 -> 617.9 | JY30: =MAX(JY18,JY39)*'Background Calculations'!$R$52 -> 382.53 | KA30: =MAX(KA18,KA39)*'Background Calculations'!$R$53 -> 330 | KD30: 2017 | KE30: =MAX(KE18,KE39)*'Background Calculations'!$R$51 -> 617.9 | KG30: =MAX(KG18,KG39)*'Background Calculations'!$R$52 -> 382.53 | KI30: =MAX(KI18,KI39)*'Background Calculations'!$R$53 -> 330 | KL30: 2017 | KM30: =MAX(KM18,KM39)*'Background Calculations'!$R$51 -> 617.9 | KO30: =MAX(KO18,KO39)*'Background Calculations'!$R$52 -> 382.53 | KQ30: =MAX(KQ18,KQ39)*'Background Calculations'!$R$53 -> 330 | KT30: 2017 | KU30: =MAX(KU18,KU39)*'Background Calculations'!$R$51 -> 617.9 | KW30: =MAX(KW18,KW39)*'Background Calculations'!$R$52 -> 382.53 | KY30: =MAX(KY18,KY39)*'Background Calculations'!$R$53 -> 330 | LB30: 2017 | LC30: =MAX(LC18,LC39)*'Background Calculations'!$R$51 -> 617.9 | LE30: =MAX(LE18,LE39)*'Background Calculations'!$R$52 -> 382.53 | LG30: =MAX(LG18,LG39)*'Background Calculations'!$R$53 -> 330 | LJ30: 2017 | LK30: =MAX(LK18,LK39)*'Background Calculations'!$R$51 -> 617.9 | LM30: =MAX(LM18,LM39)*'Background Calculations'!$R$52 -> 382.53 | LO30: =MAX(LO18,LO39)*'Background Calculations'!$R$53 -> 330 | LR30: 2017 | LS30: =MAX(LS18,LS39)*'Background Calculations'!$R$51 -> 617.9 | LU30: =MAX(LU18,LU39)*'Background Calculations'!$R$52 -> 382.53 | LW30: =MAX(LW18,LW39)*'Background Calculations'!$R$53 -> 330 | LZ30: 2017 | MA30: =MAX(MA18,MA39)*'Background Calculations'!$R$51 -> 617.9 | MC30: =MAX(MC18,MC39)*'Background Calculations'!$R$52 -> 382.53 | ME30: =MAX(ME18,ME39)*'Background Calculations'!$R$53 -> 330 | MH30: 2017 | MI30: =MAX(MI18,MI39)*'Background Calculations'!$R$51 -> 617.9 | MK30: =MAX(MK18,MK39)*'Background Calculations'!$R$52 -> 382.53 | MM30: =MAX(MM18,MM39)*'Background Calculations'!$R$53 -> 330 | MP30: 2017 | MQ30: =MAX(MQ18,MQ39)*'Background Calculations'!$R$51 -> 617.9 | MS30: =MAX(MS18,MS39)*'Background Calculations'!$R$52 -> 382.53 | MU30: =MAX(MU18,MU39)*'Background Calculations'!$R$53 -> 330 | MX30: 2017 | MY30: =MAX(MY18,MY39)*'Background Calculations'!$R$51 -> 617.9 | NA30: =MAX(NA18,NA39)*'Background Calculations'!$R$52 -> 382.53 | NC30: =MAX(NC18,NC39)*'Background Calculations'!$R$53 -> 330 | NF30: 2017 | NG30: =MAX(NG18,NG39)*'Background Calculations'!$R$51 -> 617.9 | NI30: =MAX(NI18,NI39)*'Background Calculations'!$R$52 -> 382.53 | NK30: =MAX(NK18,NK39)*'Background Calculations'!$R$53 -> 330 | NN30: 2017 | NO30: =MAX(NO18,NO39)*'Background Calculations'!$R$51 -> 617.9 | NQ30: =MAX(NQ18,NQ39)*'Background Calculations'!$R$52 -> 382.53 | NS30: =MAX(NS18,NS39)*'Background Calculations'!$R$53 -> 330 | NV30: 2017 | NW30: =MAX(NW18,NW39)*'Background Calculations'!$R$51 -> 617.9 | NY30: =MAX(NY18,NY39)*'Background Calculations'!$R$52 -> 382.53 | OA30: =MAX(OA18,OA39)*'Background Calculations'!$R$53 -> 330 | OD30: 2017 | OE30: =MAX(OE18,OE39)*'Background Calculations'!$R$51 -> 617.9 | OG30: =MAX(OG18,OG39)*'Background Calculations'!$R$52 -> 382.53 | OI30: =MAX(OI18,OI39)*'Background Calculations'!$R$53 -> 330 | OL30: 2017 | OM30: =MAX(OM18,OM39)*'Background Calculations'!$R$51 -> 617.9 | OO30: =MAX(OO18,OO39)*'Background Calculations'!$R$52 -> 382.53 | OQ30: =MAX(OQ18,OQ39)*'Background Calculations'!$R$53 -> 330
A31: Farm Benchmark | C31: =(C26+C27+C28+C29+C30-MAX(C26:C30)-MIN(C26:C30))/3 -> 624.0666667 | E31: =(E26+E27+E28+E29+E30-MAX(E26:E30)-MIN(E26:E30))/3 -> 452.36 | G31: =(G26+G27+G28+G29+G30-MAX(G26:G30)-MIN(G26:G30))/3 -> 436.0766667 | J31: Farm Benchmark | K31: =(K26+K27+K28+K29+K30-MAX(K26:K30)-MIN(K26:K30))/3 -> 624.0666667 | M31: =(M26+M27+M28+M29+M30-MAX(M26:M30)-MIN(M26:M30))/3 -> 452.36 | O31: =(O26+O27+O28+O29+O30-MAX(O26:O30)-MIN(O26:O30))/3 -> 436.0766667 | R31: Farm Benchmark | S31: =(S26+S27+S28+S29+S30-MAX(S26:S30)-MIN(S26:S30))/3 -> 624.0666667 | U31: =(U26+U27+U28+U29+U30-MAX(U26:U30)-MIN(U26:U30))/3 -> 452.36 | W31: =(W26+W27+W28+W29+W30-MAX(W26:W30)-MIN(W26:W30))/3 -> 436.0766667 | Z31: Farm Benchmark | AA31: =(AA26+AA27+AA28+AA29+AA30-MAX(AA26:AA30)-MIN(AA26:AA30))/3 -> 624.0666667 | AC31: =(AC26+AC27+AC28+AC29+AC30-MAX(AC26:AC30)-MIN(AC26:AC30))/3 -> 452.36 | AE31: =(AE26+AE27+AE28+AE29+AE30-MAX(AE26:AE30)-MIN(AE26:AE30))/3 -> 436.0766667 | AH31: Farm Benchmark | AI31: =(AI26+AI27+AI28+AI29+AI30-MAX(AI26:AI30)-MIN(AI26:AI30))/3 -> 624.0666667 | AK31: =(AK26+AK27+AK28+AK29+AK30-MAX(AK26:AK30)-MIN(AK26:AK30))/3 -> 452.36 | AM31: =(AM26+AM27+AM28+AM29+AM30-MAX(AM26:AM30)-MIN(AM26:AM30))/3 -> 436.0766667 | AP31: Farm Benchmark | AQ31: =(AQ26+AQ27+AQ28+AQ29+AQ30-MAX(AQ26:AQ30)-MIN(AQ26:AQ30))/3 -> 624.0666667 | AS31: =(AS26+AS27+AS28+AS29+AS30-MAX(AS26:AS30)-MIN(AS26:AS30))/3 -> 452.36 | AU31: =(AU26+AU27+AU28+AU29+AU30-MAX(AU26:AU30)-MIN(AU26:AU30))/3 -> 436.0766667 | AX31: Farm Benchmark | AY31: =(AY26+AY27+AY28+AY29+AY30-MAX(AY26:AY30)-MIN(AY26:AY30))/3 -> 624.0666667 | BA31: =(BA26+BA27+BA28+BA29+BA30-MAX(BA26:BA30)-MIN(BA26:BA30))/3 -> 452.36 | BC31: =(BC26+BC27+BC28+BC29+BC30-MAX(BC26:BC30)-MIN(BC26:BC30))/3 -> 436.0766667 | BF31: Farm Benchmark | BG31: =(BG26+BG27+BG28+BG29+BG30-MAX(BG26:BG30)-MIN(BG26:BG30))/3 -> 624.0666667 | BI31: =(BI26+BI27+BI28+BI29+BI30-MAX(BI26:BI30)-MIN(BI26:BI30))/3 -> 452.36 | BK31: =(BK26+BK27+BK28+BK29+BK30-MAX(BK26:BK30)-MIN(BK26:BK30))/3 -> 436.0766667 | BN31: Farm Benchmark | BO31: =(BO26+BO27+BO28+BO29+BO30-MAX(BO26:BO30)-MIN(BO26:BO30))/3 -> 624.0666667 | BQ31: =(BQ26+BQ27+BQ28+BQ29+BQ30-MAX(BQ26:BQ30)-MIN(BQ26:BQ30))/3 -> 452.36 | BS31: =(BS26+BS27+BS28+BS29+BS30-MAX(BS26:BS30)-MIN(BS26:BS30))/3 -> 436.0766667 | BV31: Farm Benchmark | BW31: =(BW26+BW27+BW28+BW29+BW30-MAX(BW26:BW30)-MIN(BW26:BW30))/3 -> 624.0666667 | BY31: =(BY26+BY27+BY28+BY29+BY30-MAX(BY26:BY30)-MIN(BY26:BY30))/3 -> 452.36 | CA31: =(CA26+CA27+CA28+CA29+CA30-MAX(CA26:CA30)-MIN(CA26:CA30))/3 -> 436.0766667 | CD31: Farm Benchmark | CE31: =(CE26+CE27+CE28+CE29+CE30-MAX(CE26:CE30)-MIN(CE26:CE30))/3 -> 624.0666667 | CG31: =(CG26+CG27+CG28+CG29+CG30-MAX(CG26:CG30)-MIN(CG26:CG30))/3 -> 452.36 | CI31: =(CI26+CI27+CI28+CI29+CI30-MAX(CI26:CI30)-MIN(CI26:CI30))/3 -> 436.0766667 | CL31: Farm Benchmark | CM31: =(CM26+CM27+CM28+CM29+CM30-MAX(CM26:CM30)-MIN(CM26:CM30))/3 -> 624.0666667 | CO31: =(CO26+CO27+CO28+CO29+CO30-MAX(CO26:CO30)-MIN(CO26:CO30))/3 -> 452.36 | CQ31: =(CQ26+CQ27+CQ28+CQ29+CQ30-MAX(CQ26:CQ30)-MIN(CQ26:CQ30))/3 -> 436.0766667 | CT31: Farm Benchmark | CU31: =(CU26+CU27+CU28+CU29+CU30-MAX(CU26:CU30)-MIN(CU26:CU30))/3 -> 624.0666667 | CW31: =(CW26+CW27+CW28+CW29+CW30-MAX(CW26:CW30)-MIN(CW26:CW30))/3 -> 452.36 | CY31: =(CY26+CY27+CY28+CY29+CY30-MAX(CY26:CY30)-MIN(CY26:CY30))/3 -> 436.0766667 | DB31: Farm Benchmark | DC31: =(DC26+DC27+DC28+DC29+DC30-MAX(DC26:DC30)-MIN(DC26:DC30))/3 -> 624.0666667 | DE31: =(DE26+DE27+DE28+DE29+DE30-MAX(DE26:DE30)-MIN(DE26:DE30))/3 -> 452.36 | DG31: =(DG26+DG27+DG28+DG29+DG30-MAX(DG26:DG30)-MIN(DG26:DG30))/3 -> 436.0766667 | DJ31: Farm Benchmark | DK31: =(DK26+DK27+DK28+DK29+DK30-MAX(DK26:DK30)-MIN(DK26:DK30))/3 -> 624.0666667 | DM31: =(DM26+DM27+DM28+DM29+DM30-MAX(DM26:DM30)-MIN(DM26:DM30))/3 -> 452.36 | DO31: =(DO26+DO27+DO28+DO29+DO30-MAX(DO26:DO30)-MIN(DO26:DO30))/3 -> 436.0766667 | DR31: Farm Benchmark | DS31: =(DS26+DS27+DS28+DS29+DS30-MAX(DS26:DS30)-MIN(DS26:DS30))/3 -> 624.0666667 | DU31: =(DU26+DU27+DU28+DU29+DU30-MAX(DU26:DU30)-MIN(DU26:DU30))/3 -> 452.36 | DW31: =(DW26+DW27+DW28+DW29+DW30-MAX(DW26:DW30)-MIN(DW26:DW30))/3 -> 436.0766667 | DZ31: Farm Benchmark | EA31: =(EA26+EA27+EA28+EA29+EA30-MAX(EA26:EA30)-MIN(EA26:EA30))/3 -> 624.0666667 | EC31: =(EC26+EC27+EC28+EC29+EC30-MAX(EC26:EC30)-MIN(EC26:EC30))/3 -> 452.36 | EE31: =(EE26+EE27+EE28+EE29+EE30-MAX(EE26:EE30)-MIN(EE26:EE30))/3 -> 436.0766667 | EH31: Farm Benchmark | EI31: =(EI26+EI27+EI28+EI29+EI30-MAX(EI26:EI30)-MIN(EI26:EI30))/3 -> 624.0666667 | EK31: =(EK26+EK27+EK28+EK29+EK30-MAX(EK26:EK30)-MIN(EK26:EK30))/3 -> 452.36 | EM31: =(EM26+EM27+EM28+EM29+EM30-MAX(EM26:EM30)-MIN(EM26:EM30))/3 -> 436.0766667 | EP31: Farm Benchmark | EQ31: =(EQ26+EQ27+EQ28+EQ29+EQ30-MAX(EQ26:EQ30)-MIN(EQ26:EQ30))/3 -> 624.0666667 | ES31: =(ES26+ES27+ES28+ES29+ES30-MAX(ES26:ES30)-MIN(ES26:ES30))/3 -> 452.36 | EU31: =(EU26+EU27+EU28+EU29+EU30-MAX(EU26:EU30)-MIN(EU26:EU30))/3 -> 436.0766667 | EX31: Farm Benchmark | EY31: =(EY26+EY27+EY28+EY29+EY30-MAX(EY26:EY30)-MIN(EY26:EY30))/3 -> 624.0666667 | FA31: =(FA26+FA27+FA28+FA29+FA30-MAX(FA26:FA30)-MIN(FA26:FA30))/3 -> 452.36 | FC31: =(FC26+FC27+FC28+FC29+FC30-MAX(FC26:FC30)-MIN(FC26:FC30))/3 -> 436.0766667 | FF31: Farm Benchmark | FG31: =(FG26+FG27+FG28+FG29+FG30-MAX(FG26:FG30)-MIN(FG26:FG30))/3 -> 624.0666667 | FI31: =(FI26+FI27+FI28+FI29+FI30-MAX(FI26:FI30)-MIN(FI26:FI30))/3 -> 452.36 | FK31: =(FK26+FK27+FK28+FK29+FK30-MAX(FK26:FK30)-MIN(FK26:FK30))/3 -> 436.0766667 | FN31: Farm Benchmark | FO31: =(FO26+FO27+FO28+FO29+FO30-MAX(FO26:FO30)-MIN(FO26:FO30))/3 -> 624.0666667 | FQ31: =(FQ26+FQ27+FQ28+FQ29+FQ30-MAX(FQ26:FQ30)-MIN(FQ26:FQ30))/3 -> 452.36 | FS31: =(FS26+FS27+FS28+FS29+FS30-MAX(FS26:FS30)-MIN(FS26:FS30))/3 -> 436.0766667 | FV31: Farm Benchmark | FW31: =(FW26+FW27+FW28+FW29+FW30-MAX(FW26:FW30)-MIN(FW26:FW30))/3 -> 624.0666667 | FY31: =(FY26+FY27+FY28+FY29+FY30-MAX(FY26:FY30)-MIN(FY26:FY30))/3 -> 452.36 | GA31: =(GA26+GA27+GA28+GA29+GA30-MAX(GA26:GA30)-MIN(GA26:GA30))/3 -> 436.0766667 | GD31: Farm Benchmark | GE31: =(GE26+GE27+GE28+GE29+GE30-MAX(GE26:GE30)-MIN(GE26:GE30))/3 -> 624.0666667 | GG31: =(GG26+GG27+GG28+GG29+GG30-MAX(GG26:GG30)-MIN(GG26:GG30))/3 -> 452.36 | GI31: =(GI26+GI27+GI28+GI29+GI30-MAX(GI26:GI30)-MIN(GI26:GI30))/3 -> 436.0766667 | GL31: Farm Benchmark | GM31: =(GM26+GM27+GM28+GM29+GM30-MAX(GM26:GM30)-MIN(GM26:GM30))/3 -> 624.0666667 | GO31: =(GO26+GO27+GO28+GO29+GO30-MAX(GO26:GO30)-MIN(GO26:GO30))/3 -> 452.36 | GQ31: =(GQ26+GQ27+GQ28+GQ29+GQ30-MAX(GQ26:GQ30)-MIN(GQ26:GQ30))/3 -> 436.0766667 | GT31: Farm Benchmark | GU31: =(GU26+GU27+GU28+GU29+GU30-MAX(GU26:GU30)-MIN(GU26:GU30))/3 -> 624.0666667 | GW31: =(GW26+GW27+GW28+GW29+GW30-MAX(GW26:GW30)-MIN(GW26:GW30))/3 -> 452.36 | GY31: =(GY26+GY27+GY28+GY29+GY30-MAX(GY26:GY30)-MIN(GY26:GY30))/3 -> 436.0766667 | HB31: Farm Benchmark | HC31: =(HC26+HC27+HC28+HC29+HC30-MAX(HC26:HC30)-MIN(HC26:HC30))/3 -> 624.0666667 | HE31: =(HE26+HE27+HE28+HE29+HE30-MAX(HE26:HE30)-MIN(HE26:HE30))/3 -> 452.36 | HG31: =(HG26+HG27+HG28+HG29+HG30-MAX(HG26:HG30)-MIN(HG26:HG30))/3 -> 436.0766667 | HJ31: Farm Benchmark | HK31: =(HK26+HK27+HK28+HK29+HK30-MAX(HK26:HK30)-MIN(HK26:HK30))/3 -> 624.0666667 | HM31: =(HM26+HM27+HM28+HM29+HM30-MAX(HM26:HM30)-MIN(HM26:HM30))/3 -> 452.36 | HO31: =(HO26+HO27+HO28+HO29+HO30-MAX(HO26:HO30)-MIN(HO26:HO30))/3 -> 436.0766667 | HR31: Farm Benchmark | HS31: =(HS26+HS27+HS28+HS29+HS30-MAX(HS26:HS30)-MIN(HS26:HS30))/3 -> 624.0666667 | HU31: =(HU26+HU27+HU28+HU29+HU30-MAX(HU26:HU30)-MIN(HU26:HU30))/3 -> 452.36 | HW31: =(HW26+HW27+HW28+HW29+HW30-MAX(HW26:HW30)-MIN(HW26:HW30))/3 -> 436.0766667 | HZ31: Farm Benchmark | IA31: =(IA26+IA27+IA28+IA29+IA30-MAX(IA26:IA30)-MIN(IA26:IA30))/3 -> 624.0666667 | IC31: =(IC26+IC27+IC28+IC29+IC30-MAX(IC26:IC30)-MIN(IC26:IC30))/3 -> 452.36 | IE31: =(IE26+IE27+IE28+IE29+IE30-MAX(IE26:IE30)-MIN(IE26:IE30))/3 -> 436.0766667 | IH31: Farm Benchmark | II31: =(II26+II27+II28+II29+II30-MAX(II26:II30)-MIN(II26:II30))/3 -> 624.0666667 | IK31: =(IK26+IK27+IK28+IK29+IK30-MAX(IK26:IK30)-MIN(IK26:IK30))/3 -> 452.36 | IM31: =(IM26+IM27+IM28+IM29+IM30-MAX(IM26:IM30)-MIN(IM26:IM30))/3 -> 436.0766667 | IP31: Farm Benchmark | IQ31: =(IQ26+IQ27+IQ28+IQ29+IQ30-MAX(IQ26:IQ30)-MIN(IQ26:IQ30))/3 -> 624.0666667 | IS31: =(IS26+IS27+IS28+IS29+IS30-MAX(IS26:IS30)-MIN(IS26:IS30))/3 -> 452.36 | IU31: =(IU26+IU27+IU28+IU29+IU30-MAX(IU26:IU30)-MIN(IU26:IU30))/3 -> 436.0766667 | IX31: Farm Benchmark | IY31: =(IY26+IY27+IY28+IY29+IY30-MAX(IY26:IY30)-MIN(IY26:IY30))/3 -> 624.0666667 | JA31: =(JA26+JA27+JA28+JA29+JA30-MAX(JA26:JA30)-MIN(JA26:JA30))/3 -> 452.36 | JC31: =(JC26+JC27+JC28+JC29+JC30-MAX(JC26:JC30)-MIN(JC26:JC30))/3 -> 436.0766667 | JF31: Farm Benchmark | JG31: =(JG26+JG27+JG28+JG29+JG30-MAX(JG26:JG30)-MIN(JG26:JG30))/3 -> 624.0666667 | JI31: =(JI26+JI27+JI28+JI29+JI30-MAX(JI26:JI30)-MIN(JI26:JI30))/3 -> 452.36 | JK31: =(JK26+JK27+JK28+JK29+JK30-MAX(JK26:JK30)-MIN(JK26:JK30))/3 -> 436.0766667 | JN31: Farm Benchmark | JO31: =(JO26+JO27+JO28+JO29+JO30-MAX(JO26:JO30)-MIN(JO26:JO30))/3 -> 624.0666667 | JQ31: =(JQ26+JQ27+JQ28+JQ29+JQ30-MAX(JQ26:JQ30)-MIN(JQ26:JQ30))/3 -> 452.36 | JS31: =(JS26+JS27+JS28+JS29+JS30-MAX(JS26:JS30)-MIN(JS26:JS30))/3 -> 436.0766667 | JV31: Farm Benchmark | JW31: =(JW26+JW27+JW28+JW29+JW30-MAX(JW26:JW30)-MIN(JW26:JW30))/3 -> 624.0666667 | JY31: =(JY26+JY27+JY28+JY29+JY30-MAX(JY26:JY30)-MIN(JY26:JY30))/3 -> 452.36 | KA31: =(KA26+KA27+KA28+KA29+KA30-MAX(KA26:KA30)-MIN(KA26:KA30))/3 -> 436.0766667 | KD31: Farm Benchmark | KE31: =(KE26+KE27+KE28+KE29+KE30-MAX(KE26:KE30)-MIN(KE26:KE30))/3 -> 624.0666667 | KG31: =(KG26+KG27+KG28+KG29+KG30-MAX(KG26:KG30)-MIN(KG26:KG30))/3 -> 452.36 | KI31: =(KI26+KI27+KI28+KI29+KI30-MAX(KI26:KI30)-MIN(KI26:KI30))/3 -> 436.0766667 | KL31: Farm Benchmark | KM31: =(KM26+KM27+KM28+KM29+KM30-MAX(KM26:KM30)-MIN(KM26:KM30))/3 -> 624.0666667 | KO31: =(KO26+KO27+KO28+KO29+KO30-MAX(KO26:KO30)-MIN(KO26:KO30))/3 -> 452.36 | KQ31: =(KQ26+KQ27+KQ28+KQ29+KQ30-MAX(KQ26:KQ30)-MIN(KQ26:KQ30))/3 -> 436.0766667 | KT31: Farm Benchmark | KU31: =(KU26+KU27+KU28+KU29+KU30-MAX(KU26:KU30)-MIN(KU26:KU30))/3 -> 624.0666667 | KW31: =(KW26+KW27+KW28+KW29+KW30-MAX(KW26:KW30)-MIN(KW26:KW30))/3 -> 452.36 | KY31: =(KY26+KY27+KY28+KY29+KY30-MAX(KY26:KY30)-MIN(KY26:KY30))/3 -> 436.0766667 | LB31: Farm Benchmark | LC31: =(LC26+LC27+LC28+LC29+LC30-MAX(LC26:LC30)-MIN(LC26:LC30))/3 -> 624.0666667 | LE31: =(LE26+LE27+LE28+LE29+LE30-MAX(LE26:LE30)-MIN(LE26:LE30))/3 -> 452.36 | LG31: =(LG26+LG27+LG28+LG29+LG30-MAX(LG26:LG30)-MIN(LG26:LG30))/3 -> 436.0766667 | LJ31: Farm Benchmark | LK31: =(LK26+LK27+LK28+LK29+LK30-MAX(LK26:LK30)-MIN(LK26:LK30))/3 -> 624.0666667 | LM31: =(LM26+LM27+LM28+LM29+LM30-MAX(LM26:LM30)-MIN(LM26:LM30))/3 -> 452.36 | LO31: =(LO26+LO27+LO28+LO29+LO30-MAX(LO26:LO30)-MIN(LO26:LO30))/3 -> 436.0766667 | LR31: Farm Benchmark | LS31: =(LS26+LS27+LS28+LS29+LS30-MAX(LS26:LS30)-MIN(LS26:LS30))/3 -> 624.0666667 | LU31: =(LU26+LU27+LU28+LU29+LU30-MAX(LU26:LU30)-MIN(LU26:LU30))/3 -> 452.36 | LW31: =(LW26+LW27+LW28+LW29+LW30-MAX(LW26:LW30)-MIN(LW26:LW30))/3 -> 436.0766667 | LZ31: Farm Benchmark | MA31: =(MA26+MA27+MA28+MA29+MA30-MAX(MA26:MA30)-MIN(MA26:MA30))/3 -> 624.0666667 | MC31: =(MC26+MC27+MC28+MC29+MC30-MAX(MC26:MC30)-MIN(MC26:MC30))/3 -> 452.36 | ME31: =(ME26+ME27+ME28+ME29+ME30-MAX(ME26:ME30)-MIN(ME26:ME30))/3 -> 436.0766667 | MH31: Farm Benchmark | MI31: =(MI26+MI27+MI28+MI29+MI30-MAX(MI26:MI30)-MIN(MI26:MI30))/3 -> 624.0666667 | MK31: =(MK26+MK27+MK28+MK29+MK30-MAX(MK26:MK30)-MIN(MK26:MK30))/3 -> 452.36 | MM31: =(MM26+MM27+MM28+MM29+MM30-MAX(MM26:MM30)-MIN(MM26:MM30))/3 -> 436.0766667 | MP31: Farm Benchmark | MQ31: =(MQ26+MQ27+MQ28+MQ29+MQ30-MAX(MQ26:MQ30)-MIN(MQ26:MQ30))/3 -> 624.0666667 | MS31: =(MS26+MS27+MS28+MS29+MS30-MAX(MS26:MS30)-MIN(MS26:MS30))/3 -> 452.36 | MU31: =(MU26+MU27+MU28+MU29+MU30-MAX(MU26:MU30)-MIN(MU26:MU30))/3 -> 436.0766667 | MX31: Farm Benchmark | MY31: =(MY26+MY27+MY28+MY29+MY30-MAX(MY26:MY30)-MIN(MY26:MY30))/3 -> 624.0666667 | NA31: =(NA26+NA27+NA28+NA29+NA30-MAX(NA26:NA30)-MIN(NA26:NA30))/3 -> 452.36 | NC31: =(NC26+NC27+NC28+NC29+NC30-MAX(NC26:NC30)-MIN(NC26:NC30))/3 -> 436.0766667 | NF31: Farm Benchmark | NG31: =(NG26+NG27+NG28+NG29+NG30-MAX(NG26:NG30)-MIN(NG26:NG30))/3 -> 624.0666667 | NI31: =(NI26+NI27+NI28+NI29+NI30-MAX(NI26:NI30)-MIN(NI26:NI30))/3 -> 452.36 | NK31: =(NK26+NK27+NK28+NK29+NK30-MAX(NK26:NK30)-MIN(NK26:NK30))/3 -> 436.0766667 | NN31: Farm Benchmark | NO31: =(NO26+NO27+NO28+NO29+NO30-MAX(NO26:NO30)-MIN(NO26:NO30))/3 -> 624.0666667 | NQ31: =(NQ26+NQ27+NQ28+NQ29+NQ30-MAX(NQ26:NQ30)-MIN(NQ26:NQ30))/3 -> 452.36 | NS31: =(NS26+NS27+NS28+NS29+NS30-MAX(NS26:NS30)-MIN(NS26:NS30))/3 -> 436.0766667 | NV31: Farm Benchmark | NW31: =(NW26+NW27+NW28+NW29+NW30-MAX(NW26:NW30)-MIN(NW26:NW30))/3 -> 624.0666667 | NY31: =(NY26+NY27+NY28+NY29+NY30-MAX(NY26:NY30)-MIN(NY26:NY30))/3 -> 452.36 | OA31: =(OA26+OA27+OA28+OA29+OA30-MAX(OA26:OA30)-MIN(OA26:OA30))/3 -> 436.0766667 | OD31: Farm Benchmark | OE31: =(OE26+OE27+OE28+OE29+OE30-MAX(OE26:OE30)-MIN(OE26:OE30))/3 -> 624.0666667 | OG31: =(OG26+OG27+OG28+OG29+OG30-MAX(OG26:OG30)-MIN(OG26:OG30))/3 -> 452.36 | OI31: =(OI26+OI27+OI28+OI29+OI30-MAX(OI26:OI30)-MIN(OI26:OI30))/3 -> 436.0766667 | OL31: Farm Benchmark | OM31: =(OM26+OM27+OM28+OM29+OM30-MAX(OM26:OM30)-MIN(OM26:OM30))/3 -> 624.0666667 | OO31: =(OO26+OO27+OO28+OO29+OO30-MAX(OO26:OO30)-MIN(OO26:OO30))/3 -> 452.36 | OQ31: =(OQ26+OQ27+OQ28+OQ29+OQ30-MAX(OQ26:OQ30)-MIN(OQ26:OQ30))/3 -> 436.0766667
A32: Weighted Farm BenchMark Revenue | C32: =C31*D25 ->  | E32: =E31*F25 ->  | G32: =G31*H25 ->  | J32: Weighted | K32: =K31*L25 ->  | M32: =M31*N25 ->  | O32: =O31*P25 ->  | R32: Weighted | S32: =S31*T25 ->  | U32: =U31*V25 ->  | W32: =W31*X25 ->  | Z32: Weighted | AA32: =AA31*AB25 ->  | AC32: =AC31*AD25 ->  | AE32: =AE31*AF25 ->  | AH32: Weighted | AI32: =AI31*AJ25 ->  | AK32: =AK31*AL25 ->  | AM32: =AM31*AN25 ->  | AP32: Weighted | AQ32: =AQ31*AR25 ->  | AS32: =AS31*AT25 ->  | AU32: =AU31*AV25 ->  | AX32: Weighted | AY32: =AY31*AZ25 ->  | BA32: =BA31*BB25 ->  | BC32: =BC31*BD25 ->  | BF32: Weighted | BG32: =BG31*BH25 ->  | BI32: =BI31*BJ25 ->  | BK32: =BK31*BL25 ->  | BN32: Weighted | BO32: =BO31*BP25 ->  | BQ32: =BQ31*BR25 ->  | BS32: =BS31*BT25 ->  | BV32: Weighted | BW32: =BW31*BX25 ->  | BY32: =BY31*BZ25 ->  | CA32: =CA31*CB25 ->  | CD32: Weighted | CE32: =CE31*CF25 ->  | CG32: =CG31*CH25 ->  | CI32: =CI31*CJ25 ->  | CL32: Weighted | CM32: =CM31*CN25 ->  | CO32: =CO31*CP25 ->  | CQ32: =CQ31*CR25 ->  | CT32: Weighted | CU32: =CU31*CV25 ->  | CW32: =CW31*CX25 ->  | CY32: =CY31*CZ25 ->  | DB32: Weighted | DC32: =DC31*DD25 ->  | DE32: =DE31*DF25 ->  | DG32: =DG31*DH25 ->  | DJ32: Weighted | DK32: =DK31*DL25 ->  | DM32: =DM31*DN25 ->  | DO32: =DO31*DP25 ->  | DR32: Weighted | DS32: =DS31*DT25 ->  | DU32: =DU31*DV25 ->  | DW32: =DW31*DX25 ->  | DZ32: Weighted | EA32: =EA31*EB25 ->  | EC32: =EC31*ED25 ->  | EE32: =EE31*EF25 ->  | EH32: Weighted | EI32: =EI31*EJ25 ->  | EK32: =EK31*EL25 ->  | EM32: =EM31*EN25 ->  | EP32: Weighted | EQ32: =EQ31*ER25 ->  | ES32: =ES31*ET25 ->  | EU32: =EU31*EV25 ->  | EX32: Weighted | EY32: =EY31*EZ25 ->  | FA32: =FA31*FB25 ->  | FC32: =FC31*FD25 ->  | FF32: Weighted | FG32: =FG31*FH25 ->  | FI32: =FI31*FJ25 ->  | FK32: =FK31*FL25 ->  | FN32: Weighted | FO32: =FO31*FP25 ->  | FQ32: =FQ31*FR25 ->  | FS32: =FS31*FT25 ->  | FV32: Weighted | FW32: =FW31*FX25 ->  | FY32: =FY31*FZ25 ->  | GA32: =GA31*GB25 ->  | GD32: Weighted | GE32: =GE31*GF25 ->  | GG32: =GG31*GH25 ->  | GI32: =GI31*GJ25 ->  | GL32: Weighted | GM32: =GM31*GN25 ->  | GO32: =GO31*GP25 ->  | GQ32: =GQ31*GR25 ->  | GT32: Weighted | GU32: =GU31*GV25 ->  | GW32: =GW31*GX25 ->  | GY32: =GY31*GZ25 ->  | HB32: Weighted | HC32: =HC31*HD25 ->  | HE32: =HE31*HF25 ->  | HG32: =HG31*HH25 ->  | HJ32: Weighted | HK32: =HK31*HL25 ->  | HM32: =HM31*HN25 ->  | HO32: =HO31*HP25 ->  | HR32: Weighted | HS32: =HS31*HT25 ->  | HU32: =HU31*HV25 ->  | HW32: =HW31*HX25 ->  | HZ32: Weighted | IA32: =IA31*IB25 ->  | IC32: =IC31*ID25 ->  | IE32: =IE31*IF25 ->  | IH32: Weighted | II32: =II31*IJ25 ->  | IK32: =IK31*IL25 ->  | IM32: =IM31*IN25 ->  | IP32: Weighted | IQ32: =IQ31*IR25 ->  | IS32: =IS31*IT25 ->  | IU32: =IU31*IV25 ->  | IX32: Weighted | IY32: =IY31*IZ25 ->  | JA32: =JA31*JB25 ->  | JC32: =JC31*JD25 ->  | JF32: Weighted | JG32: =JG31*JH25 ->  | JI32: =JI31*JJ25 ->  | JK32: =JK31*JL25 ->  | JN32: Weighted | JO32: =JO31*JP25 ->  | JQ32: =JQ31*JR25 ->  | JS32: =JS31*JT25 ->  | JV32: Weighted | JW32: =JW31*JX25 ->  | JY32: =JY31*JZ25 ->  | KA32: =KA31*KB25 ->  | KD32: Weighted | KE32: =KE31*KF25 ->  | KG32: =KG31*KH25 ->  | KI32: =KI31*KJ25 ->  | KL32: Weighted | KM32: =KM31*KN25 ->  | KO32: =KO31*KP25 ->  | KQ32: =KQ31*KR25 ->  | KT32: Weighted | KU32: =KU31*KV25 ->  | KW32: =KW31*KX25 ->  | KY32: =KY31*KZ25 ->  | LB32: Weighted | LC32: =LC31*LD25 ->  | LE32: =LE31*LF25 ->  | LG32: =LG31*LH25 ->  | LJ32: Weighted | LK32: =LK31*LL25 ->  | LM32: =LM31*LN25 ->  | LO32: =LO31*LP25 ->  | LR32: Weighted | LS32: =LS31*LT25 ->  | LU32: =LU31*LV25 ->  | LW32: =LW31*LX25 ->  | LZ32: Weighted | MA32: =MA31*MB25 ->  | MC32: =MC31*MD25 ->  | ME32: =ME31*MF25 ->  | MH32: Weighted | MI32: =MI31*MJ25 ->  | MK32: =MK31*ML25 ->  | MM32: =MM31*MN25 ->  | MP32: Weighted | MQ32: =MQ31*MR25 ->  | MS32: =MS31*MT25 ->  | MU32: =MU31*MV25 ->  | MX32: Weighted | MY32: =MY31*MZ25 ->  | NA32: =NA31*NB25 ->  | NC32: =NC31*ND25 ->  | NF32: Weighted | NG32: =NG31*NH25 ->  | NI32: =NI31*NJ25 ->  | NK32: =NK31*NL25 ->  | NN32: Weighted | NO32: =NO31*NP25 ->  | NQ32: =NQ31*NR25 ->  | NS32: =NS31*NT25 ->  | NV32: Weighted | NW32: =NW31*NX25 ->  | NY32: =NY31*NZ25 ->  | OA32: =OA31*OB25 ->  | OD32: Weighted | OE32: =OE31*OF25 ->  | OG32: =OG31*OH25 ->  | OI32: =OI31*OJ25 ->  | OL32: Weighted | OM32: =OM31*ON25 ->  | OO32: =OO31*OP25 ->  | OQ32: =OQ31*OR25 -> 
A33: Actual Farm Revenue 2019 | C33: =C20*D20*'2019-20 Farm Bill Calculator'!$E$48 -> 0 | E33: =E20*F20*'2019-20 Farm Bill Calculator'!$G$48 -> 0 | G33: =G20*H20*'2019-20 Farm Bill Calculator'!$I$48 -> 0 | K33: =K20*L20*'2019-20 Farm Bill Calculator'!$E$48 -> 0 | M33: =M20*N20*'2019-20 Farm Bill Calculator'!$G$48 -> 0 | O33: =O20*P20*'2019-20 Farm Bill Calculator'!$I$48 -> 0 | S33: =S20*T20*'2019-20 Farm Bill Calculator'!$E$48 -> 0 | U33: =U20*V20*'2019-20 Farm Bill Calculator'!$G$48 -> 0 | W33: =W20*X20*'2019-20 Farm Bill Calculator'!$I$48 -> 0 | AA33: =AA20*AB20*'2019-20 Farm Bill Calculator'!$E$48 -> 0 | AC33: =AC20*AD20*'2019-20 Farm Bill Calculator'!$G$48 -> 0 | AE33: =AE20*AF20*'2019-20 Farm Bill Calculator'!$I$48 -> 0 | AI33: =AI20*AJ20*'2019-20 Farm Bill Calculator'!$E$48 -> 0 | AK33: =AK20*AL20*'2019-20 Farm Bill Calculator'!$G$48 -> 0 | AM33: =AM20*AN20*'2019-20 Farm Bill Calculator'!$I$48 -> 0 | AQ33: =AQ20*AR20*'2019-20 Farm Bill Calculator'!$E$48 -> 0 | AS33: =AS20*AT20*'2019-20 Farm Bill Calculator'!$G$48 -> 0 | AU33: =AU20*AV20*'2019-20 Farm Bill Calculator'!$I$48 -> 0 | AY33: =AY20*AZ20*'2019-20 Farm Bill Calculator'!$E$48 -> 0 | BA33: =BA20*BB20*'2019-20 Farm Bill Calculator'!$G$48 -> 0 | BC33: =BC20*BD20*'2019-20 Farm Bill Calculator'!$I$48 -> 0 | BG33: =BG20*BH20*'2019-20 Farm Bill Calculator'!$E$48 -> 0 | BI33: =BI20*BJ20*'2019-20 Farm Bill Calculator'!$G$48 -> 0 | BK33: =BK20*BL20*'2019-20 Farm Bill Calculator'!$I$48 -> 0 | BO33: =BO20*BP20*'2019-20 Farm Bill Calculator'!$E$48 -> 0 | BQ33: =BQ20*BR20*'2019-20 Farm Bill Calculator'!$G$48 -> 0 | BS33: =BS20*BT20*'2019-20 Farm Bill Calculator'!$I$48 -> 0 | BW33: =BW20*BX20*'2019-20 Farm Bill Calculator'!$E$48 -> 0 | BY33: =BY20*BZ20*'2019-20 Farm Bill Calculator'!$G$48 -> 0 | CA33: =CA20*CB20*'2019-20 Farm Bill Calculator'!$I$48 -> 0 | CE33: =CE20*CF20*'2019-20 Farm Bill Calculator'!$E$48 -> 0 | CG33: =CG20*CH20*'2019-20 Farm Bill Calculator'!$G$48 -> 0 | CI33: =CI20*CJ20*'2019-20 Farm Bill Calculator'!$I$48 -> 0 | CM33: =CM20*CN20*'2019-20 Farm Bill Calculator'!$E$48 -> 0 | CO33: =CO20*CP20*'2019-20 Farm Bill Calculator'!$G$48 -> 0 | CQ33: =CQ20*CR20*'2019-20 Farm Bill Calculator'!$I$48 -> 0 | CU33: =CU20*CV20*'2019-20 Farm Bill Calculator'!$E$48 -> 0 | CW33: =CW20*CX20*'2019-20 Farm Bill Calculator'!$G$48 -> 0 | CY33: =CY20*CZ20*'2019-20 Farm Bill Calculator'!$I$48 -> 0 | DC33: =DC20*DD20*'2019-20 Farm Bill Calculator'!$E$48 -> 0 | DE33: =DE20*DF20*'2019-20 Farm Bill Calculator'!$G$48 -> 0 | DG33: =DG20*DH20*'2019-20 Farm Bill Calculator'!$I$48 -> 0 | DK33: =DK20*DL20*'2019-20 Farm Bill Calculator'!$E$48 -> 0 | DM33: =DM20*DN20*'2019-20 Farm Bill Calculator'!$G$48 -> 0 | DO33: =DO20*DP20*'2019-20 Farm Bill Calculator'!$I$48 -> 0 | DS33: =DS20*DT20*'2019-20 Farm Bill Calculator'!$E$48 -> 0 | DU33: =DU20*DV20*'2019-20 Farm Bill Calculator'!$G$48 -> 0 | DW33: =DW20*DX20*'2019-20 Farm Bill Calculator'!$I$48 -> 0 | EA33: =EA20*EB20*'2019-20 Farm Bill Calculator'!$E$48 -> 0 | EC33: =EC20*ED20*'2019-20 Farm Bill Calculator'!$G$48 -> 0 | EE33: =EE20*EF20*'2019-20 Farm Bill Calculator'!$I$48 -> 0 | EI33: =EI20*EJ20*'2019-20 Farm Bill Calculator'!$E$48 -> 0 | EK33: =EK20*EL20*'2019-20 Farm Bill Calculator'!$G$48 -> 0 | EM33: =EM20*EN20*'2019-20 Farm Bill Calculator'!$I$48 -> 0 | EQ33: =EQ20*ER20*'2019-20 Farm Bill Calculator'!$E$48 -> 0 | ES33: =ES20*ET20*'2019-20 Farm Bill Calculator'!$G$48 -> 0 | EU33: =EU20*EV20*'2019-20 Farm Bill Calculator'!$I$48 -> 0 | EY33: =EY20*EZ20*'2019-20 Farm Bill Calculator'!$E$48 -> 0 | FA33: =FA20*FB20*'2019-20 Farm Bill Calculator'!$G$48 -> 0 | FC33: =FC20*FD20*'2019-20 Farm Bill Calculator'!$I$48 -> 0 | FG33: =FG20*FH20*'2019-20 Farm Bill Calculator'!$E$48 -> 0 | FI33: =FI20*FJ20*'2019-20 Farm Bill Calculator'!$G$48 -> 0 | FK33: =FK20*FL20*'2019-20 Farm Bill Calculator'!$I$48 -> 0 | FO33: =FO20*FP20*'2019-20 Farm Bill Calculator'!$E$48 -> 0 | FQ33: =FQ20*FR20*'2019-20 Farm Bill Calculator'!$G$48 -> 0 | FS33: =FS20*FT20*'2019-20 Farm Bill Calculator'!$I$48 -> 0 | FW33: =FW20*FX20*'2019-20 Farm Bill Calculator'!$E$48 -> 0 | FY33: =FY20*FZ20*'2019-20 Farm Bill Calculator'!$G$48 -> 0 | GA33: =GA20*GB20*'2019-20 Farm Bill Calculator'!$I$48 -> 0 | GE33: =GE20*GF20*'2019-20 Farm Bill Calculator'!$E$48 -> 0 | GG33: =GG20*GH20*'2019-20 Farm Bill Calculator'!$G$48 -> 0 | GI33: =GI20*GJ20*'2019-20 Farm Bill Calculator'!$I$48 -> 0 | GM33: =GM20*GN20*'2019-20 Farm Bill Calculator'!$E$48 -> 0 | GO33: =GO20*GP20*'2019-20 Farm Bill Calculator'!$G$48 -> 0 | GQ33: =GQ20*GR20*'2019-20 Farm Bill Calculator'!$I$48 -> 0 | GU33: =GU20*GV20*'2019-20 Farm Bill Calculator'!$E$48 -> 0 | GW33: =GW20*GX20*'2019-20 Farm Bill Calculator'!$G$48 -> 0 | GY33: =GY20*GZ20*'2019-20 Farm Bill Calculator'!$I$48 -> 0 | HC33: =HC20*HD20*'2019-20 Farm Bill Calculator'!$E$48 -> 0 | HE33: =HE20*HF20*'2019-20 Farm Bill Calculator'!$G$48 -> 0 | HG33: =HG20*HH20*'2019-20 Farm Bill Calculator'!$I$48 -> 0 | HK33: =HK20*HL20*'2019-20 Farm Bill Calculator'!$E$48 -> 0 | HM33: =HM20*HN20*'2019-20 Farm Bill Calculator'!$G$48 -> 0 | HO33: =HO20*HP20*'2019-20 Farm Bill Calculator'!$I$48 -> 0 | HS33: =HS20*HT20*'2019-20 Farm Bill Calculator'!$E$48 -> 0 | HU33: =HU20*HV20*'2019-20 Farm Bill Calculator'!$G$48 -> 0 | HW33: =HW20*HX20*'2019-20 Farm Bill Calculator'!$I$48 -> 0 | IA33: =IA20*IB20*'2019-20 Farm Bill Calculator'!$E$48 -> 0 | IC33: =IC20*ID20*'2019-20 Farm Bill Calculator'!$G$48 -> 0 | IE33: =IE20*IF20*'2019-20 Farm Bill Calculator'!$I$48 -> 0 | II33: =II20*IJ20*'2019-20 Farm Bill Calculator'!$E$48 -> 0 | IK33: =IK20*IL20*'2019-20 Farm Bill Calculator'!$G$48 -> 0 | IM33: =IM20*IN20*'2019-20 Farm Bill Calculator'!$I$48 -> 0 | IQ33: =IQ20*IR20*'2019-20 Farm Bill Calculator'!$E$48 -> 0 | IS33: =IS20*IT20*'2019-20 Farm Bill Calculator'!$G$48 -> 0 | IU33: =IU20*IV20*'2019-20 Farm Bill Calculator'!$I$48 -> 0 | IY33: =IY20*IZ20*'2019-20 Farm Bill Calculator'!$E$48 -> 0 | JA33: =JA20*JB20*'2019-20 Farm Bill Calculator'!$G$48 -> 0 | JC33: =JC20*JD20*'2019-20 Farm Bill Calculator'!$I$48 -> 0 | JG33: =JG20*JH20*'2019-20 Farm Bill Calculator'!$E$48 -> 0 | JI33: =JI20*JJ20*'2019-20 Farm Bill Calculator'!$G$48 -> 0 | JK33: =JK20*JL20*'2019-20 Farm Bill Calculator'!$I$48 -> 0 | JO33: =JO20*JP20*'2019-20 Farm Bill Calculator'!$E$48 -> 0 | JQ33: =JQ20*JR20*'2019-20 Farm Bill Calculator'!$G$48 -> 0 | JS33: =JS20*JT20*'2019-20 Farm Bill Calculator'!$I$48 -> 0 | JW33: =JW20*JX20*'2019-20 Farm Bill Calculator'!$E$48 -> 0 | JY33: =JY20*JZ20*'2019-20 Farm Bill Calculator'!$G$48 -> 0 | KA33: =KA20*KB20*'2019-20 Farm Bill Calculator'!$I$48 -> 0 | KE33: =KE20*KF20*'2019-20 Farm Bill Calculator'!$E$48 -> 0 | KG33: =KG20*KH20*'2019-20 Farm Bill Calculator'!$G$48 -> 0 | KI33: =KI20*KJ20*'2019-20 Farm Bill Calculator'!$I$48 -> 0 | KM33: =KM20*KN20*'2019-20 Farm Bill Calculator'!$E$48 -> 0 | KO33: =KO20*KP20*'2019-20 Farm Bill Calculator'!$G$48 -> 0 | KQ33: =KQ20*KR20*'2019-20 Farm Bill Calculator'!$I$48 -> 0 | KU33: =KU20*KV20*'2019-20 Farm Bill Calculator'!$E$48 -> 0 | KW33: =KW20*KX20*'2019-20 Farm Bill Calculator'!$G$48 -> 0 | KY33: =KY20*KZ20*'2019-20 Farm Bill Calculator'!$I$48 -> 0 | LC33: =LC20*LD20*'2019-20 Farm Bill Calculator'!$E$48 -> 0 | LE33: =LE20*LF20*'2019-20 Farm Bill Calculator'!$G$48 -> 0 | LG33: =LG20*LH20*'2019-20 Farm Bill Calculator'!$I$48 -> 0 | LK33: =LK20*LL20*'2019-20 Farm Bill Calculator'!$E$48 -> 0 | LM33: =LM20*LN20*'2019-20 Farm Bill Calculator'!$G$48 -> 0 | LO33: =LO20*LP20*'2019-20 Farm Bill Calculator'!$I$48 -> 0 | LS33: =LS20*LT20*'2019-20 Farm Bill Calculator'!$E$48 -> 0 | LU33: =LU20*LV20*'2019-20 Farm Bill Calculator'!$G$48 -> 0 | LW33: =LW20*LX20*'2019-20 Farm Bill Calculator'!$I$48 -> 0 | MA33: =MA20*MB20*'2019-20 Farm Bill Calculator'!$E$48 -> 0 | MC33: =MC20*MD20*'2019-20 Farm Bill Calculator'!$G$48 -> 0 | ME33: =ME20*MF20*'2019-20 Farm Bill Calculator'!$I$48 -> 0 | MI33: =MI20*MJ20*'2019-20 Farm Bill Calculator'!$E$48 -> 0 | MK33: =MK20*ML20*'2019-20 Farm Bill Calculator'!$G$48 -> 0 | MM33: =MM20*MN20*'2019-20 Farm Bill Calculator'!$I$48 -> 0 | MQ33: =MQ20*MR20*'2019-20 Farm Bill Calculator'!$E$48 -> 0 | MS33: =MS20*MT20*'2019-20 Farm Bill Calculator'!$G$48 -> 0 | MU33: =MU20*MV20*'2019-20 Farm Bill Calculator'!$I$48 -> 0 | MY33: =MY20*MZ20*'2019-20 Farm Bill Calculator'!$E$48 -> 0 | NA33: =NA20*NB20*'2019-20 Farm Bill Calculator'!$G$48 -> 0 | NC33: =NC20*ND20*'2019-20 Farm Bill Calculator'!$I$48 -> 0 | NG33: =NG20*NH20*'2019-20 Farm Bill Calculator'!$E$48 -> 0 | NI33: =NI20*NJ20*'2019-20 Farm Bill Calculator'!$G$48 -> 0 | NK33: =NK20*NL20*'2019-20 Farm Bill Calculator'!$I$48 -> 0 | NO33: =NO20*NP20*'2019-20 Farm Bill Calculator'!$E$48 -> 0 | NQ33: =NQ20*NR20*'2019-20 Farm Bill Calculator'!$G$48 -> 0 | NS33: =NS20*NT20*'2019-20 Farm Bill Calculator'!$I$48 -> 0 | NW33: =NW20*NX20*'2019-20 Farm Bill Calculator'!$E$48 -> 0 | NY33: =NY20*NZ20*'2019-20 Farm Bill Calculator'!$G$48 -> 0 | OA33: =OA20*OB20*'2019-20 Farm Bill Calculator'!$I$48 -> 0 | OE33: =OE20*OF20*'2019-20 Farm Bill Calculator'!$E$48 -> 0 | OG33: =OG20*OH20*'2019-20 Farm Bill Calculator'!$G$48 -> 0 | OI33: =OI20*OJ20*'2019-20 Farm Bill Calculator'!$I$48 -> 0 | OM33: =OM20*ON20*'2019-20 Farm Bill Calculator'!$E$48 -> 0 | OO33: =OO20*OP20*'2019-20 Farm Bill Calculator'!$G$48 -> 0 | OQ33: =OQ20*OR20*'2019-20 Farm Bill Calculator'!$I$48 -> 0
C34: = max of actual farm yield or 80% of " 5 yr county average????" or if not planted the average county yield for the year???? or 5 year average ???? or 10 year avreage??????????
B35: 2013 | C35: =IF(C14>0.01,MAX('Background Calculations'!$R$80*0.8,C14),MAX('Background Calculations'!$R$75,'Background Calculations'!$R$80*0.75)) -> 170 | E35: =IF(E14>0.01,MAX('Background Calculations'!$R$81*0.8,E14),MAX('Background Calculations'!$R$76,'Background Calculations'!$R$81*0.75)) -> 48 | G35: =IF(G14>0.01,MAX('Background Calculations'!$R$82*0.8,G14),MAX('Background Calculations'!$R$77,'Background Calculations'!$R$82*0.75)) -> 72 | J35: 2013 | K35: =IF(K14>0.01,MAX('Background Calculations'!$R$80*0.8,K14),MAX('Background Calculations'!$R$75,'Background Calculations'!$R$80*0.75)) -> 170 | M35: =IF(M14>0.01,MAX('Background Calculations'!$R$81*0.8,M14),MAX('Background Calculations'!$R$76,'Background Calculations'!$R$81*0.75)) -> 48 | O35: =IF(O14>0.01,MAX('Background Calculations'!$R$82*0.8,O14),MAX('Background Calculations'!$R$77,'Background Calculations'!$R$82*0.75)) -> 72 | R35: 2013 | S35: =IF(S14>0.01,MAX('Background Calculations'!$R$80*0.8,S14),MAX('Background Calculations'!$R$75,'Background Calculations'!$R$80*0.75)) -> 170 | U35: =IF(U14>0.01,MAX('Background Calculations'!$R$81*0.8,U14),MAX('Background Calculations'!$R$76,'Background Calculations'!$R$81*0.75)) -> 48 | W35: =IF(W14>0.01,MAX('Background Calculations'!$R$82*0.8,W14),MAX('Background Calculations'!$R$77,'Background Calculations'!$R$82*0.75)) -> 72 | Z35: 2013 | AA35: =IF(AA14>0.01,MAX('Background Calculations'!$R$80*0.8,AA14),MAX('Background Calculations'!$R$75,'Background Calculations'!$R$80*0.75)) -> 170 | AC35: =IF(AC14>0.01,MAX('Background Calculations'!$R$81*0.8,AC14),MAX('Background Calculations'!$R$76,'Background Calculations'!$R$81*0.75)) -> 48 | AE35: =IF(AE14>0.01,MAX('Background Calculations'!$R$82*0.8,AE14),MAX('Background Calculations'!$R$77,'Background Calculations'!$R$82*0.75)) -> 72 | AH35: 2013 | AI35: =IF(AI14>0.01,MAX('Background Calculations'!$R$80*0.8,AI14),MAX('Background Calculations'!$R$75,'Background Calculations'!$R$80*0.75)) -> 170 | AK35: =IF(AK14>0.01,MAX('Background Calculations'!$R$81*0.8,AK14),MAX('Background Calculations'!$R$76,'Background Calculations'!$R$81*0.75)) -> 48 | AM35: =IF(AM14>0.01,MAX('Background Calculations'!$R$82*0.8,AM14),MAX('Background Calculations'!$R$77,'Background Calculations'!$R$82*0.75)) -> 72 | AP35: 2013 | AQ35: =IF(AQ14>0.01,MAX('Background Calculations'!$R$80*0.8,AQ14),MAX('Background Calculations'!$R$75,'Background Calculations'!$R$80*0.75)) -> 170 | AS35: =IF(AS14>0.01,MAX('Background Calculations'!$R$81*0.8,AS14),MAX('Background Calculations'!$R$76,'Background Calculations'!$R$81*0.75)) -> 48 | AU35: =IF(AU14>0.01,MAX('Background Calculations'!$R$82*0.8,AU14),MAX('Background Calculations'!$R$77,'Background Calculations'!$R$82*0.75)) -> 72 | AX35: 2013 | AY35: =IF(AY14>0.01,MAX('Background Calculations'!$R$80*0.8,AY14),MAX('Background Calculations'!$R$75,'Background Calculations'!$R$80*0.75)) -> 170 | BA35: =IF(BA14>0.01,MAX('Background Calculations'!$R$81*0.8,BA14),MAX('Background Calculations'!$R$76,'Background Calculations'!$R$81*0.75)) -> 48 | BC35: =IF(BC14>0.01,MAX('Background Calculations'!$R$82*0.8,BC14),MAX('Background Calculations'!$R$77,'Background Calculations'!$R$82*0.75)) -> 72 | BF35: 2013 | BG35: =IF(BG14>0.01,MAX('Background Calculations'!$R$80*0.8,BG14),MAX('Background Calculations'!$R$75,'Background Calculations'!$R$80*0.75)) -> 170 | BI35: =IF(BI14>0.01,MAX('Background Calculations'!$R$81*0.8,BI14),MAX('Background Calculations'!$R$76,'Background Calculations'!$R$81*0.75)) -> 48 | BK35: =IF(BK14>0.01,MAX('Background Calculations'!$R$82*0.8,BK14),MAX('Background Calculations'!$R$77,'Background Calculations'!$R$82*0.75)) -> 72 | BN35: 2013 | BO35: =IF(BO14>0.01,MAX('Background Calculations'!$R$80*0.8,BO14),MAX('Background Calculations'!$R$75,'Background Calculations'!$R$80*0.75)) -> 170 | BQ35: =IF(BQ14>0.01,MAX('Background Calculations'!$R$81*0.8,BQ14),MAX('Background Calculations'!$R$76,'Background Calculations'!$R$81*0.75)) -> 48 | BS35: =IF(BS14>0.01,MAX('Background Calculations'!$R$82*0.8,BS14),MAX('Background Calculations'!$R$77,'Background Calculations'!$R$82*0.75)) -> 72 | BV35: 2013 | BW35: =IF(BW14>0.01,MAX('Background Calculations'!$R$80*0.8,BW14),MAX('Background Calculations'!$R$75,'Background Calculations'!$R$80*0.75)) -> 170 | BY35: =IF(BY14>0.01,MAX('Background Calculations'!$R$81*0.8,BY14),MAX('Background Calculations'!$R$76,'Background Calculations'!$R$81*0.75)) -> 48 | CA35: =IF(CA14>0.01,MAX('Background Calculations'!$R$82*0.8,CA14),MAX('Background Calculations'!$R$77,'Background Calculations'!$R$82*0.75)) -> 72 | CD35: 2013 | CE35: =IF(CE14>0.01,MAX('Background Calculations'!$R$80*0.8,CE14),MAX('Background Calculations'!$R$75,'Background Calculations'!$R$80*0.75)) -> 170 | CG35: =IF(CG14>0.01,MAX('Background Calculations'!$R$81*0.8,CG14),MAX('Background Calculations'!$R$76,'Background Calculations'!$R$81*0.75)) -> 48 | CI35: =IF(CI14>0.01,MAX('Background Calculations'!$R$82*0.8,CI14),MAX('Background Calculations'!$R$77,'Background Calculations'!$R$82*0.75)) -> 72 | CL35: 2013 | CM35: =IF(CM14>0.01,MAX('Background Calculations'!$R$80*0.8,CM14),MAX('Background Calculations'!$R$75,'Background Calculations'!$R$80*0.75)) -> 170 | CO35: =IF(CO14>0.01,MAX('Background Calculations'!$R$81*0.8,CO14),MAX('Background Calculations'!$R$76,'Background Calculations'!$R$81*0.75)) -> 48 | CQ35: =IF(CQ14>0.01,MAX('Background Calculations'!$R$82*0.8,CQ14),MAX('Background Calculations'!$R$77,'Background Calculations'!$R$82*0.75)) -> 72 | CT35: 2013 | CU35: =IF(CU14>0.01,MAX('Background Calculations'!$R$80*0.8,CU14),MAX('Background Calculations'!$R$75,'Background Calculations'!$R$80*0.75)) -> 170 | CW35: =IF(CW14>0.01,MAX('Background Calculations'!$R$81*0.8,CW14),MAX('Background Calculations'!$R$76,'Background Calculations'!$R$81*0.75)) -> 48 | CY35: =IF(CY14>0.01,MAX('Background Calculations'!$R$82*0.8,CY14),MAX('Background Calculations'!$R$77,'Background Calculations'!$R$82*0.75)) -> 72 | DB35: 2013 | DC35: =IF(DC14>0.01,MAX('Background Calculations'!$R$80*0.8,DC14),MAX('Background Calculations'!$R$75,'Background Calculations'!$R$80*0.75)) -> 170 | DE35: =IF(DE14>0.01,MAX('Background Calculations'!$R$81*0.8,DE14),MAX('Background Calculations'!$R$76,'Background Calculations'!$R$81*0.75)) -> 48 | DG35: =IF(DG14>0.01,MAX('Background Calculations'!$R$82*0.8,DG14),MAX('Background Calculations'!$R$77,'Background Calculations'!$R$82*0.75)) -> 72 | DJ35: 2013 | DK35: =IF(DK14>0.01,MAX('Background Calculations'!$R$80*0.8,DK14),MAX('Background Calculations'!$R$75,'Background Calculations'!$R$80*0.75)) -> 170 | DM35: =IF(DM14>0.01,MAX('Background Calculations'!$R$81*0.8,DM14),MAX('Background Calculations'!$R$76,'Background Calculations'!$R$81*0.75)) -> 48 | DO35: =IF(DO14>0.01,MAX('Background Calculations'!$R$82*0.8,DO14),MAX('Background Calculations'!$R$77,'Background Calculations'!$R$82*0.75)) -> 72 | DR35: 2013 | DS35: =IF(DS14>0.01,MAX('Background Calculations'!$R$80*0.8,DS14),MAX('Background Calculations'!$R$75,'Background Calculations'!$R$80*0.75)) -> 170 | DU35: =IF(DU14>0.01,MAX('Background Calculations'!$R$81*0.8,DU14),MAX('Background Calculations'!$R$76,'Background Calculations'!$R$81*0.75)) -> 48 | DW35: =IF(DW14>0.01,MAX('Background Calculations'!$R$82*0.8,DW14),MAX('Background Calculations'!$R$77,'Background Calculations'!$R$82*0.75)) -> 72 | DZ35: 2013 | EA35: =IF(EA14>0.01,MAX('Background Calculations'!$R$80*0.8,EA14),MAX('Background Calculations'!$R$75,'Background Calculations'!$R$80*0.75)) -> 170 | EC35: =IF(EC14>0.01,MAX('Background Calculations'!$R$81*0.8,EC14),MAX('Background Calculations'!$R$76,'Background Calculations'!$R$81*0.75)) -> 48 | EE35: =IF(EE14>0.01,MAX('Background Calculations'!$R$82*0.8,EE14),MAX('Background Calculations'!$R$77,'Background Calculations'!$R$82*0.75)) -> 72 | EH35: 2013 | EI35: =IF(EI14>0.01,MAX('Background Calculations'!$R$80*0.8,EI14),MAX('Background Calculations'!$R$75,'Background Calculations'!$R$80*0.75)) -> 170 | EK35: =IF(EK14>0.01,MAX('Background Calculations'!$R$81*0.8,EK14),MAX('Background Calculations'!$R$76,'Background Calculations'!$R$81*0.75)) -> 48 | EM35: =IF(EM14>0.01,MAX('Background Calculations'!$R$82*0.8,EM14),MAX('Background Calculations'!$R$77,'Background Calculations'!$R$82*0.75)) -> 72 | EP35: 2013 | EQ35: =IF(EQ14>0.01,MAX('Background Calculations'!$R$80*0.8,EQ14),MAX('Background Calculations'!$R$75,'Background Calculations'!$R$80*0.75)) -> 170 | ES35: =IF(ES14>0.01,MAX('Background Calculations'!$R$81*0.8,ES14),MAX('Background Calculations'!$R$76,'Background Calculations'!$R$81*0.75)) -> 48 | EU35: =IF(EU14>0.01,MAX('Background Calculations'!$R$82*0.8,EU14),MAX('Background Calculations'!$R$77,'Background Calculations'!$R$82*0.75)) -> 72 | EX35: 2013 | EY35: =IF(EY14>0.01,MAX('Background Calculations'!$R$80*0.8,EY14),MAX('Background Calculations'!$R$75,'Background Calculations'!$R$80*0.75)) -> 170 | FA35: =IF(FA14>0.01,MAX('Background Calculations'!$R$81*0.8,FA14),MAX('Background Calculations'!$R$76,'Background Calculations'!$R$81*0.75)) -> 48 | FC35: =IF(FC14>0.01,MAX('Background Calculations'!$R$82*0.8,FC14),MAX('Background Calculations'!$R$77,'Background Calculations'!$R$82*0.75)) -> 72 | FF35: 2013 | FG35: =IF(FG14>0.01,MAX('Background Calculations'!$R$80*0.8,FG14),MAX('Background Calculations'!$R$75,'Background Calculations'!$R$80*0.75)) -> 170 | FI35: =IF(FI14>0.01,MAX('Background Calculations'!$R$81*0.8,FI14),MAX('Background Calculations'!$R$76,'Background Calculations'!$R$81*0.75)) -> 48 | FK35: =IF(FK14>0.01,MAX('Background Calculations'!$R$82*0.8,FK14),MAX('Background Calculations'!$R$77,'Background Calculations'!$R$82*0.75)) -> 72 | FN35: 2013 | FO35: =IF(FO14>0.01,MAX('Background Calculations'!$R$80*0.8,FO14),MAX('Background Calculations'!$R$75,'Background Calculations'!$R$80*0.75)) -> 170 | FQ35: =IF(FQ14>0.01,MAX('Background Calculations'!$R$81*0.8,FQ14),MAX('Background Calculations'!$R$76,'Background Calculations'!$R$81*0.75)) -> 48 | FS35: =IF(FS14>0.01,MAX('Background Calculations'!$R$82*0.8,FS14),MAX('Background Calculations'!$R$77,'Background Calculations'!$R$82*0.75)) -> 72 | FV35: 2013 | FW35: =IF(FW14>0.01,MAX('Background Calculations'!$R$80*0.8,FW14),MAX('Background Calculations'!$R$75,'Background Calculations'!$R$80*0.75)) -> 170 | FY35: =IF(FY14>0.01,MAX('Background Calculations'!$R$81*0.8,FY14),MAX('Background Calculations'!$R$76,'Background Calculations'!$R$81*0.75)) -> 48 | GA35: =IF(GA14>0.01,MAX('Background Calculations'!$R$82*0.8,GA14),MAX('Background Calculations'!$R$77,'Background Calculations'!$R$82*0.75)) -> 72 | GD35: 2013 | GE35: =IF(GE14>0.01,MAX('Background Calculations'!$R$80*0.8,GE14),MAX('Background Calculations'!$R$75,'Background Calculations'!$R$80*0.75)) -> 170 | GG35: =IF(GG14>0.01,MAX('Background Calculations'!$R$81*0.8,GG14),MAX('Background Calculations'!$R$76,'Background Calculations'!$R$81*0.75)) -> 48 | GI35: =IF(GI14>0.01,MAX('Background Calculations'!$R$82*0.8,GI14),MAX('Background Calculations'!$R$77,'Background Calculations'!$R$82*0.75)) -> 72 | GL35: 2013 | GM35: =IF(GM14>0.01,MAX('Background Calculations'!$R$80*0.8,GM14),MAX('Background Calculations'!$R$75,'Background Calculations'!$R$80*0.75)) -> 170 | GO35: =IF(GO14>0.01,MAX('Background Calculations'!$R$81*0.8,GO14),MAX('Background Calculations'!$R$76,'Background Calculations'!$R$81*0.75)) -> 48 | GQ35: =IF(GQ14>0.01,MAX('Background Calculations'!$R$82*0.8,GQ14),MAX('Background Calculations'!$R$77,'Background Calculations'!$R$82*0.75)) -> 72 | GT35: 2013 | GU35: =IF(GU14>0.01,MAX('Background Calculations'!$R$80*0.8,GU14),MAX('Background Calculations'!$R$75,'Background Calculations'!$R$80*0.75)) -> 170 | GW35: =IF(GW14>0.01,MAX('Background Calculations'!$R$81*0.8,GW14),MAX('Background Calculations'!$R$76,'Background Calculations'!$R$81*0.75)) -> 48 | GY35: =IF(GY14>0.01,MAX('Background Calculations'!$R$82*0.8,GY14),MAX('Background Calculations'!$R$77,'Background Calculations'!$R$82*0.75)) -> 72 | HB35: 2013 | HC35: =IF(HC14>0.01,MAX('Background Calculations'!$R$80*0.8,HC14),MAX('Background Calculations'!$R$75,'Background Calculations'!$R$80*0.75)) -> 170 | HE35: =IF(HE14>0.01,MAX('Background Calculations'!$R$81*0.8,HE14),MAX('Background Calculations'!$R$76,'Background Calculations'!$R$81*0.75)) -> 48 | HG35: =IF(HG14>0.01,MAX('Background Calculations'!$R$82*0.8,HG14),MAX('Background Calculations'!$R$77,'Background Calculations'!$R$82*0.75)) -> 72 | HJ35: 2013 | HK35: =IF(HK14>0.01,MAX('Background Calculations'!$R$80*0.8,HK14),MAX('Background Calculations'!$R$75,'Background Calculations'!$R$80*0.75)) -> 170 | HM35: =IF(HM14>0.01,MAX('Background Calculations'!$R$81*0.8,HM14),MAX('Background Calculations'!$R$76,'Background Calculations'!$R$81*0.75)) -> 48 | HO35: =IF(HO14>0.01,MAX('Background Calculations'!$R$82*0.8,HO14),MAX('Background Calculations'!$R$77,'Background Calculations'!$R$82*0.75)) -> 72 | HR35: 2013 | HS35: =IF(HS14>0.01,MAX('Background Calculations'!$R$80*0.8,HS14),MAX('Background Calculations'!$R$75,'Background Calculations'!$R$80*0.75)) -> 170 | HU35: =IF(HU14>0.01,MAX('Background Calculations'!$R$81*0.8,HU14),MAX('Background Calculations'!$R$76,'Background Calculations'!$R$81*0.75)) -> 48 | HW35: =IF(HW14>0.01,MAX('Background Calculations'!$R$82*0.8,HW14),MAX('Background Calculations'!$R$77,'Background Calculations'!$R$82*0.75)) -> 72 | HZ35: 2013 | IA35: =IF(IA14>0.01,MAX('Background Calculations'!$R$80*0.8,IA14),MAX('Background Calculations'!$R$75,'Background Calculations'!$R$80*0.75)) -> 170 | IC35: =IF(IC14>0.01,MAX('Background Calculations'!$R$81*0.8,IC14),MAX('Background Calculations'!$R$76,'Background Calculations'!$R$81*0.75)) -> 48 | IE35: =IF(IE14>0.01,MAX('Background Calculations'!$R$82*0.8,IE14),MAX('Background Calculations'!$R$77,'Background Calculations'!$R$82*0.75)) -> 72 | IH35: 2013 | II35: =IF(II14>0.01,MAX('Background Calculations'!$R$80*0.8,II14),MAX('Background Calculations'!$R$75,'Background Calculations'!$R$80*0.75)) -> 170 | IK35: =IF(IK14>0.01,MAX('Background Calculations'!$R$81*0.8,IK14),MAX('Background Calculations'!$R$76,'Background Calculations'!$R$81*0.75)) -> 48 | IM35: =IF(IM14>0.01,MAX('Background Calculations'!$R$82*0.8,IM14),MAX('Background Calculations'!$R$77,'Background Calculations'!$R$82*0.75)) -> 72 | IP35: 2013 | IQ35: =IF(IQ14>0.01,MAX('Background Calculations'!$R$80*0.8,IQ14),MAX('Background Calculations'!$R$75,'Background Calculations'!$R$80*0.75)) -> 170 | IS35: =IF(IS14>0.01,MAX('Background Calculations'!$R$81*0.8,IS14),MAX('Background Calculations'!$R$76,'Background Calculations'!$R$81*0.75)) -> 48 | IU35: =IF(IU14>0.01,MAX('Background Calculations'!$R$82*0.8,IU14),MAX('Background Calculations'!$R$77,'Background Calculations'!$R$82*0.75)) -> 72 | IX35: 2013 | IY35: =IF(IY14>0.01,MAX('Background Calculations'!$R$80*0.8,IY14),MAX('Background Calculations'!$R$75,'Background Calculations'!$R$80*0.75)) -> 170 | JA35: =IF(JA14>0.01,MAX('Background Calculations'!$R$81*0.8,JA14),MAX('Background Calculations'!$R$76,'Background Calculations'!$R$81*0.75)) -> 48 | JC35: =IF(JC14>0.01,MAX('Background Calculations'!$R$82*0.8,JC14),MAX('Background Calculations'!$R$77,'Background Calculations'!$R$82*0.75)) -> 72 | JF35: 2013 | JG35: =IF(JG14>0.01,MAX('Background Calculations'!$R$80*0.8,JG14),MAX('Background Calculations'!$R$75,'Background Calculations'!$R$80*0.75)) -> 170 | JI35: =IF(JI14>0.01,MAX('Background Calculations'!$R$81*0.8,JI14),MAX('Background Calculations'!$R$76,'Background Calculations'!$R$81*0.75)) -> 48 | JK35: =IF(JK14>0.01,MAX('Background Calculations'!$R$82*0.8,JK14),MAX('Background Calculations'!$R$77,'Background Calculations'!$R$82*0.75)) -> 72 | JN35: 2013 | JO35: =IF(JO14>0.01,MAX('Background Calculations'!$R$80*0.8,JO14),MAX('Background Calculations'!$R$75,'Background Calculations'!$R$80*0.75)) -> 170 | JQ35: =IF(JQ14>0.01,MAX('Background Calculations'!$R$81*0.8,JQ14),MAX('Background Calculations'!$R$76,'Background Calculations'!$R$81*0.75)) -> 48 | JS35: =IF(JS14>0.01,MAX('Background Calculations'!$R$82*0.8,JS14),MAX('Background Calculations'!$R$77,'Background Calculations'!$R$82*0.75)) -> 72 | JV35: 2013 | JW35: =IF(JW14>0.01,MAX('Background Calculations'!$R$80*0.8,JW14),MAX('Background Calculations'!$R$75,'Background Calculations'!$R$80*0.75)) -> 170 | JY35: =IF(JY14>0.01,MAX('Background Calculations'!$R$81*0.8,JY14),MAX('Background Calculations'!$R$76,'Background Calculations'!$R$81*0.75)) -> 48 | KA35: =IF(KA14>0.01,MAX('Background Calculations'!$R$82*0.8,KA14),MAX('Background Calculations'!$R$77,'Background Calculations'!$R$82*0.75)) -> 72 | KD35: 2013 | KE35: =IF(KE14>0.01,MAX('Background Calculations'!$R$80*0.8,KE14),MAX('Background Calculations'!$R$75,'Background Calculations'!$R$80*0.75)) -> 170 | KG35: =IF(KG14>0.01,MAX('Background Calculations'!$R$81*0.8,KG14),MAX('Background Calculations'!$R$76,'Background Calculations'!$R$81*0.75)) -> 48 | KI35: =IF(KI14>0.01,MAX('Background Calculations'!$R$82*0.8,KI14),MAX('Background Calculations'!$R$77,'Background Calculations'!$R$82*0.75)) -> 72 | KL35: 2013 | KM35: =IF(KM14>0.01,MAX('Background Calculations'!$R$80*0.8,KM14),MAX('Background Calculations'!$R$75,'Background Calculations'!$R$80*0.75)) -> 170 | KO35: =IF(KO14>0.01,MAX('Background Calculations'!$R$81*0.8,KO14),MAX('Background Calculations'!$R$76,'Background Calculations'!$R$81*0.75)) -> 48 | KQ35: =IF(KQ14>0.01,MAX('Background Calculations'!$R$82*0.8,KQ14),MAX('Background Calculations'!$R$77,'Background Calculations'!$R$82*0.75)) -> 72 | KT35: 2013 | KU35: =IF(KU14>0.01,MAX('Background Calculations'!$R$80*0.8,KU14),MAX('Background Calculations'!$R$75,'Background Calculations'!$R$80*0.75)) -> 170 | KW35: =IF(KW14>0.01,MAX('Background Calculations'!$R$81*0.8,KW14),MAX('Background Calculations'!$R$76,'Background Calculations'!$R$81*0.75)) -> 48 | KY35: =IF(KY14>0.01,MAX('Background Calculations'!$R$82*0.8,KY14),MAX('Background Calculations'!$R$77,'Background Calculations'!$R$82*0.75)) -> 72 | LB35: 2013 | LC35: =IF(LC14>0.01,MAX('Background Calculations'!$R$80*0.8,LC14),MAX('Background Calculations'!$R$75,'Background Calculations'!$R$80*0.75)) -> 170 | LE35: =IF(LE14>0.01,MAX('Background Calculations'!$R$81*0.8,LE14),MAX('Background Calculations'!$R$76,'Background Calculations'!$R$81*0.75)) -> 48 | LG35: =IF(LG14>0.01,MAX('Background Calculations'!$R$82*0.8,LG14),MAX('Background Calculations'!$R$77,'Background Calculations'!$R$82*0.75)) -> 72 | LJ35: 2013 | LK35: =IF(LK14>0.01,MAX('Background Calculations'!$R$80*0.8,LK14),MAX('Background Calculations'!$R$75,'Background Calculations'!$R$80*0.75)) -> 170 | LM35: =IF(LM14>0.01,MAX('Background Calculations'!$R$81*0.8,LM14),MAX('Background Calculations'!$R$76,'Background Calculations'!$R$81*0.75)) -> 48 | LO35: =IF(LO14>0.01,MAX('Background Calculations'!$R$82*0.8,LO14),MAX('Background Calculations'!$R$77,'Background Calculations'!$R$82*0.75)) -> 72 | LR35: 2013 | LS35: =IF(LS14>0.01,MAX('Background Calculations'!$R$80*0.8,LS14),MAX('Background Calculations'!$R$75,'Background Calculations'!$R$80*0.75)) -> 170 | LU35: =IF(LU14>0.01,MAX('Background Calculations'!$R$81*0.8,LU14),MAX('Background Calculations'!$R$76,'Background Calculations'!$R$81*0.75)) -> 48 | LW35: =IF(LW14>0.01,MAX('Background Calculations'!$R$82*0.8,LW14),MAX('Background Calculations'!$R$77,'Background Calculations'!$R$82*0.75)) -> 72 | LZ35: 2013 | MA35: =IF(MA14>0.01,MAX('Background Calculations'!$R$80*0.8,MA14),MAX('Background Calculations'!$R$75,'Background Calculations'!$R$80*0.75)) -> 170 | MC35: =IF(MC14>0.01,MAX('Background Calculations'!$R$81*0.8,MC14),MAX('Background Calculations'!$R$76,'Background Calculations'!$R$81*0.75)) -> 48 | ME35: =IF(ME14>0.01,MAX('Background Calculations'!$R$82*0.8,ME14),MAX('Background Calculations'!$R$77,'Background Calculations'!$R$82*0.75)) -> 72 | MH35: 2013 | MI35: =IF(MI14>0.01,MAX('Background Calculations'!$R$80*0.8,MI14),MAX('Background Calculations'!$R$75,'Background Calculations'!$R$80*0.75)) -> 170 | MK35: =IF(MK14>0.01,MAX('Background Calculations'!$R$81*0.8,MK14),MAX('Background Calculations'!$R$76,'Background Calculations'!$R$81*0.75)) -> 48 | MM35: =IF(MM14>0.01,MAX('Background Calculations'!$R$82*0.8,MM14),MAX('Background Calculations'!$R$77,'Background Calculations'!$R$82*0.75)) -> 72 | MP35: 2013 | MQ35: =IF(MQ14>0.01,MAX('Background Calculations'!$R$80*0.8,MQ14),MAX('Background Calculations'!$R$75,'Background Calculations'!$R$80*0.75)) -> 170 | MS35: =IF(MS14>0.01,MAX('Background Calculations'!$R$81*0.8,MS14),MAX('Background Calculations'!$R$76,'Background Calculations'!$R$81*0.75)) -> 48 | MU35: =IF(MU14>0.01,MAX('Background Calculations'!$R$82*0.8,MU14),MAX('Background Calculations'!$R$77,'Background Calculations'!$R$82*0.75)) -> 72 | MX35: 2013 | MY35: =IF(MY14>0.01,MAX('Background Calculations'!$R$80*0.8,MY14),MAX('Background Calculations'!$R$75,'Background Calculations'!$R$80*0.75)) -> 170 | NA35: =IF(NA14>0.01,MAX('Background Calculations'!$R$81*0.8,NA14),MAX('Background Calculations'!$R$76,'Background Calculations'!$R$81*0.75)) -> 48 | NC35: =IF(NC14>0.01,MAX('Background Calculations'!$R$82*0.8,NC14),MAX('Background Calculations'!$R$77,'Background Calculations'!$R$82*0.75)) -> 72 | NF35: 2013 | NG35: =IF(NG14>0.01,MAX('Background Calculations'!$R$80*0.8,NG14),MAX('Background Calculations'!$R$75,'Background Calculations'!$R$80*0.75)) -> 170 | NI35: =IF(NI14>0.01,MAX('Background Calculations'!$R$81*0.8,NI14),MAX('Background Calculations'!$R$76,'Background Calculations'!$R$81*0.75)) -> 48 | NK35: =IF(NK14>0.01,MAX('Background Calculations'!$R$82*0.8,NK14),MAX('Background Calculations'!$R$77,'Background Calculations'!$R$82*0.75)) -> 72 | NN35: 2013 | NO35: =IF(NO14>0.01,MAX('Background Calculations'!$R$80*0.8,NO14),MAX('Background Calculations'!$R$75,'Background Calculations'!$R$80*0.75)) -> 170 | NQ35: =IF(NQ14>0.01,MAX('Background Calculations'!$R$81*0.8,NQ14),MAX('Background Calculations'!$R$76,'Background Calculations'!$R$81*0.75)) -> 48 | NS35: =IF(NS14>0.01,MAX('Background Calculations'!$R$82*0.8,NS14),MAX('Background Calculations'!$R$77,'Background Calculations'!$R$82*0.75)) -> 72 | NV35: 2013 | NW35: =IF(NW14>0.01,MAX('Background Calculations'!$R$80*0.8,NW14),MAX('Background Calculations'!$R$75,'Background Calculations'!$R$80*0.75)) -> 170 | NY35: =IF(NY14>0.01,MAX('Background Calculations'!$R$81*0.8,NY14),MAX('Background Calculations'!$R$76,'Background Calculations'!$R$81*0.75)) -> 48 | OA35: =IF(OA14>0.01,MAX('Background Calculations'!$R$82*0.8,OA14),MAX('Background Calculations'!$R$77,'Background Calculations'!$R$82*0.75)) -> 72 | OD35: 2013 | OE35: =IF(OE14>0.01,MAX('Background Calculations'!$R$80*0.8,OE14),MAX('Background Calculations'!$R$75,'Background Calculations'!$R$80*0.75)) -> 170 | OG35: =IF(OG14>0.01,MAX('Background Calculations'!$R$81*0.8,OG14),MAX('Background Calculations'!$R$76,'Background Calculations'!$R$81*0.75)) -> 48 | OI35: =IF(OI14>0.01,MAX('Background Calculations'!$R$82*0.8,OI14),MAX('Background Calculations'!$R$77,'Background Calculations'!$R$82*0.75)) -> 72 | OL35: 2013 | OM35: =IF(OM14>0.01,MAX('Background Calculations'!$R$80*0.8,OM14),MAX('Background Calculations'!$R$75,'Background Calculations'!$R$80*0.75)) -> 170 | OO35: =IF(OO14>0.01,MAX('Background Calculations'!$R$81*0.8,OO14),MAX('Background Calculations'!$R$76,'Background Calculations'!$R$81*0.75)) -> 48 | OQ35: =IF(OQ14>0.01,MAX('Background Calculations'!$R$82*0.8,OQ14),MAX('Background Calculations'!$R$77,'Background Calculations'!$R$82*0.75)) -> 72
B36: 2014 | C36: =IF(C15>0.01,MAX('Background Calculations'!$S$80*0.8,C15),MAX('Background Calculations'!$S$75,'Background Calculations'!$S$80*0.75)) -> 176 | E36: =IF(E15>0.01,MAX('Background Calculations'!$S$81*0.8,E15),MAX('Background Calculations'!$S$76,'Background Calculations'!$S$81*0.75)) -> 45 | G36: =IF(G15>0.01,MAX('Background Calculations'!$S$82*0.8,G15),MAX('Background Calculations'!$S$77,'Background Calculations'!$S$82*0.75)) -> 77 | J36: 2014 | K36: =IF(K15>0.01,MAX('Background Calculations'!$S$80*0.8,K15),MAX('Background Calculations'!$S$75,'Background Calculations'!$S$80*0.75)) -> 176 | M36: =IF(M15>0.01,MAX('Background Calculations'!$S$81*0.8,M15),MAX('Background Calculations'!$S$76,'Background Calculations'!$S$81*0.75)) -> 45 | O36: =IF(O15>0.01,MAX('Background Calculations'!$S$82*0.8,O15),MAX('Background Calculations'!$S$77,'Background Calculations'!$S$82*0.75)) -> 77 | R36: 2014 | S36: =IF(S15>0.01,MAX('Background Calculations'!$S$80*0.8,S15),MAX('Background Calculations'!$S$75,'Background Calculations'!$S$80*0.75)) -> 176 | U36: =IF(U15>0.01,MAX('Background Calculations'!$S$81*0.8,U15),MAX('Background Calculations'!$S$76,'Background Calculations'!$S$81*0.75)) -> 45 | W36: =IF(W15>0.01,MAX('Background Calculations'!$S$82*0.8,W15),MAX('Background Calculations'!$S$77,'Background Calculations'!$S$82*0.75)) -> 77 | Z36: 2014 | AA36: =IF(AA15>0.01,MAX('Background Calculations'!$S$80*0.8,AA15),MAX('Background Calculations'!$S$75,'Background Calculations'!$S$80*0.75)) -> 176 | AC36: =IF(AC15>0.01,MAX('Background Calculations'!$S$81*0.8,AC15),MAX('Background Calculations'!$S$76,'Background Calculations'!$S$81*0.75)) -> 45 | AE36: =IF(AE15>0.01,MAX('Background Calculations'!$S$82*0.8,AE15),MAX('Background Calculations'!$S$77,'Background Calculations'!$S$82*0.75)) -> 77 | AH36: 2014 | AI36: =IF(AI15>0.01,MAX('Background Calculations'!$S$80*0.8,AI15),MAX('Background Calculations'!$S$75,'Background Calculations'!$S$80*0.75)) -> 176 | AK36: =IF(AK15>0.01,MAX('Background Calculations'!$S$81*0.8,AK15),MAX('Background Calculations'!$S$76,'Background Calculations'!$S$81*0.75)) -> 45 | AM36: =IF(AM15>0.01,MAX('Background Calculations'!$S$82*0.8,AM15),MAX('Background Calculations'!$S$77,'Background Calculations'!$S$82*0.75)) -> 77 | AP36: 2014 | AQ36: =IF(AQ15>0.01,MAX('Background Calculations'!$S$80*0.8,AQ15),MAX('Background Calculations'!$S$75,'Background Calculations'!$S$80*0.75)) -> 176 | AS36: =IF(AS15>0.01,MAX('Background Calculations'!$S$81*0.8,AS15),MAX('Background Calculations'!$S$76,'Background Calculations'!$S$81*0.75)) -> 45 | AU36: =IF(AU15>0.01,MAX('Background Calculations'!$S$82*0.8,AU15),MAX('Background Calculations'!$S$77,'Background Calculations'!$S$82*0.75)) -> 77 | AX36: 2014 | AY36: =IF(AY15>0.01,MAX('Background Calculations'!$S$80*0.8,AY15),MAX('Background Calculations'!$S$75,'Background Calculations'!$S$80*0.75)) -> 176 | BA36: =IF(BA15>0.01,MAX('Background Calculations'!$S$81*0.8,BA15),MAX('Background Calculations'!$S$76,'Background Calculations'!$S$81*0.75)) -> 45 | BC36: =IF(BC15>0.01,MAX('Background Calculations'!$S$82*0.8,BC15),MAX('Background Calculations'!$S$77,'Background Calculations'!$S$82*0.75)) -> 77 | BF36: 2014 | BG36: =IF(BG15>0.01,MAX('Background Calculations'!$S$80*0.8,BG15),MAX('Background Calculations'!$S$75,'Background Calculations'!$S$80*0.75)) -> 176 | BI36: =IF(BI15>0.01,MAX('Background Calculations'!$S$81*0.8,BI15),MAX('Background Calculations'!$S$76,'Background Calculations'!$S$81*0.75)) -> 45 | BK36: =IF(BK15>0.01,MAX('Background Calculations'!$S$82*0.8,BK15),MAX('Background Calculations'!$S$77,'Background Calculations'!$S$82*0.75)) -> 77 | BN36: 2014 | BO36: =IF(BO15>0.01,MAX('Background Calculations'!$S$80*0.8,BO15),MAX('Background Calculations'!$S$75,'Background Calculations'!$S$80*0.75)) -> 176 | BQ36: =IF(BQ15>0.01,MAX('Background Calculations'!$S$81*0.8,BQ15),MAX('Background Calculations'!$S$76,'Background Calculations'!$S$81*0.75)) -> 45 | BS36: =IF(BS15>0.01,MAX('Background Calculations'!$S$82*0.8,BS15),MAX('Background Calculations'!$S$77,'Background Calculations'!$S$82*0.75)) -> 77 | BV36: 2014 | BW36: =IF(BW15>0.01,MAX('Background Calculations'!$S$80*0.8,BW15),MAX('Background Calculations'!$S$75,'Background Calculations'!$S$80*0.75)) -> 176 | BY36: =IF(BY15>0.01,MAX('Background Calculations'!$S$81*0.8,BY15),MAX('Background Calculations'!$S$76,'Background Calculations'!$S$81*0.75)) -> 45 | CA36: =IF(CA15>0.01,MAX('Background Calculations'!$S$82*0.8,CA15),MAX('Background Calculations'!$S$77,'Background Calculations'!$S$82*0.75)) -> 77 | CD36: 2014 | CE36: =IF(CE15>0.01,MAX('Background Calculations'!$S$80*0.8,CE15),MAX('Background Calculations'!$S$75,'Background Calculations'!$S$80*0.75)) -> 176 | CG36: =IF(CG15>0.01,MAX('Background Calculations'!$S$81*0.8,CG15),MAX('Background Calculations'!$S$76,'Background Calculations'!$S$81*0.75)) -> 45 | CI36: =IF(CI15>0.01,MAX('Background Calculations'!$S$82*0.8,CI15),MAX('Background Calculations'!$S$77,'Background Calculations'!$S$82*0.75)) -> 77 | CL36: 2014 | CM36: =IF(CM15>0.01,MAX('Background Calculations'!$S$80*0.8,CM15),MAX('Background Calculations'!$S$75,'Background Calculations'!$S$80*0.75)) -> 176 | CO36: =IF(CO15>0.01,MAX('Background Calculations'!$S$81*0.8,CO15),MAX('Background Calculations'!$S$76,'Background Calculations'!$S$81*0.75)) -> 45 | CQ36: =IF(CQ15>0.01,MAX('Background Calculations'!$S$82*0.8,CQ15),MAX('Background Calculations'!$S$77,'Background Calculations'!$S$82*0.75)) -> 77 | CT36: 2014 | CU36: =IF(CU15>0.01,MAX('Background Calculations'!$S$80*0.8,CU15),MAX('Background Calculations'!$S$75,'Background Calculations'!$S$80*0.75)) -> 176 | CW36: =IF(CW15>0.01,MAX('Background Calculations'!$S$81*0.8,CW15),MAX('Background Calculations'!$S$76,'Background Calculations'!$S$81*0.75)) -> 45 | CY36: =IF(CY15>0.01,MAX('Background Calculations'!$S$82*0.8,CY15),MAX('Background Calculations'!$S$77,'Background Calculations'!$S$82*0.75)) -> 77 | DB36: 2014 | DC36: =IF(DC15>0.01,MAX('Background Calculations'!$S$80*0.8,DC15),MAX('Background Calculations'!$S$75,'Background Calculations'!$S$80*0.75)) -> 176 | DE36: =IF(DE15>0.01,MAX('Background Calculations'!$S$81*0.8,DE15),MAX('Background Calculations'!$S$76,'Background Calculations'!$S$81*0.75)) -> 45 | DG36: =IF(DG15>0.01,MAX('Background Calculations'!$S$82*0.8,DG15),MAX('Background Calculations'!$S$77,'Background Calculations'!$S$82*0.75)) -> 77 | DJ36: 2014 | DK36: =IF(DK15>0.01,MAX('Background Calculations'!$S$80*0.8,DK15),MAX('Background Calculations'!$S$75,'Background Calculations'!$S$80*0.75)) -> 176 | DM36: =IF(DM15>0.01,MAX('Background Calculations'!$S$81*0.8,DM15),MAX('Background Calculations'!$S$76,'Background Calculations'!$S$81*0.75)) -> 45 | DO36: =IF(DO15>0.01,MAX('Background Calculations'!$S$82*0.8,DO15),MAX('Background Calculations'!$S$77,'Background Calculations'!$S$82*0.75)) -> 77 | DR36: 2014 | DS36: =IF(DS15>0.01,MAX('Background Calculations'!$S$80*0.8,DS15),MAX('Background Calculations'!$S$75,'Background Calculations'!$S$80*0.75)) -> 176 | DU36: =IF(DU15>0.01,MAX('Background Calculations'!$S$81*0.8,DU15),MAX('Background Calculations'!$S$76,'Background Calculations'!$S$81*0.75)) -> 45 | DW36: =IF(DW15>0.01,MAX('Background Calculations'!$S$82*0.8,DW15),MAX('Background Calculations'!$S$77,'Background Calculations'!$S$82*0.75)) -> 77 | DZ36: 2014 | EA36: =IF(EA15>0.01,MAX('Background Calculations'!$S$80*0.8,EA15),MAX('Background Calculations'!$S$75,'Background Calculations'!$S$80*0.75)) -> 176 | EC36: =IF(EC15>0.01,MAX('Background Calculations'!$S$81*0.8,EC15),MAX('Background Calculations'!$S$76,'Background Calculations'!$S$81*0.75)) -> 45 | EE36: =IF(EE15>0.01,MAX('Background Calculations'!$S$82*0.8,EE15),MAX('Background Calculations'!$S$77,'Background Calculations'!$S$82*0.75)) -> 77 | EH36: 2014 | EI36: =IF(EI15>0.01,MAX('Background Calculations'!$S$80*0.8,EI15),MAX('Background Calculations'!$S$75,'Background Calculations'!$S$80*0.75)) -> 176 | EK36: =IF(EK15>0.01,MAX('Background Calculations'!$S$81*0.8,EK15),MAX('Background Calculations'!$S$76,'Background Calculations'!$S$81*0.75)) -> 45 | EM36: =IF(EM15>0.01,MAX('Background Calculations'!$S$82*0.8,EM15),MAX('Background Calculations'!$S$77,'Background Calculations'!$S$82*0.75)) -> 77 | EP36: 2014 | EQ36: =IF(EQ15>0.01,MAX('Background Calculations'!$S$80*0.8,EQ15),MAX('Background Calculations'!$S$75,'Background Calculations'!$S$80*0.75)) -> 176 | ES36: =IF(ES15>0.01,MAX('Background Calculations'!$S$81*0.8,ES15),MAX('Background Calculations'!$S$76,'Background Calculations'!$S$81*0.75)) -> 45 | EU36: =IF(EU15>0.01,MAX('Background Calculations'!$S$82*0.8,EU15),MAX('Background Calculations'!$S$77,'Background Calculations'!$S$82*0.75)) -> 77 | EX36: 2014 | EY36: =IF(EY15>0.01,MAX('Background Calculations'!$S$80*0.8,EY15),MAX('Background Calculations'!$S$75,'Background Calculations'!$S$80*0.75)) -> 176 | FA36: =IF(FA15>0.01,MAX('Background Calculations'!$S$81*0.8,FA15),MAX('Background Calculations'!$S$76,'Background Calculations'!$S$81*0.75)) -> 45 | FC36: =IF(FC15>0.01,MAX('Background Calculations'!$S$82*0.8,FC15),MAX('Background Calculations'!$S$77,'Background Calculations'!$S$82*0.75)) -> 77 | FF36: 2014 | FG36: =IF(FG15>0.01,MAX('Background Calculations'!$S$80*0.8,FG15),MAX('Background Calculations'!$S$75,'Background Calculations'!$S$80*0.75)) -> 176 | FI36: =IF(FI15>0.01,MAX('Background Calculations'!$S$81*0.8,FI15),MAX('Background Calculations'!$S$76,'Background Calculations'!$S$81*0.75)) -> 45 | FK36: =IF(FK15>0.01,MAX('Background Calculations'!$S$82*0.8,FK15),MAX('Background Calculations'!$S$77,'Background Calculations'!$S$82*0.75)) -> 77 | FN36: 2014 | FO36: =IF(FO15>0.01,MAX('Background Calculations'!$S$80*0.8,FO15),MAX('Background Calculations'!$S$75,'Background Calculations'!$S$80*0.75)) -> 176 | FQ36: =IF(FQ15>0.01,MAX('Background Calculations'!$S$81*0.8,FQ15),MAX('Background Calculations'!$S$76,'Background Calculations'!$S$81*0.75)) -> 45 | FS36: =IF(FS15>0.01,MAX('Background Calculations'!$S$82*0.8,FS15),MAX('Background Calculations'!$S$77,'Background Calculations'!$S$82*0.75)) -> 77 | FV36: 2014 | FW36: =IF(FW15>0.01,MAX('Background Calculations'!$S$80*0.8,FW15),MAX('Background Calculations'!$S$75,'Background Calculations'!$S$80*0.75)) -> 176 | FY36: =IF(FY15>0.01,MAX('Background Calculations'!$S$81*0.8,FY15),MAX('Background Calculations'!$S$76,'Background Calculations'!$S$81*0.75)) -> 45 | GA36: =IF(GA15>0.01,MAX('Background Calculations'!$S$82*0.8,GA15),MAX('Background Calculations'!$S$77,'Background Calculations'!$S$82*0.75)) -> 77 | GD36: 2014 | GE36: =IF(GE15>0.01,MAX('Background Calculations'!$S$80*0.8,GE15),MAX('Background Calculations'!$S$75,'Background Calculations'!$S$80*0.75)) -> 176 | GG36: =IF(GG15>0.01,MAX('Background Calculations'!$S$81*0.8,GG15),MAX('Background Calculations'!$S$76,'Background Calculations'!$S$81*0.75)) -> 45 | GI36: =IF(GI15>0.01,MAX('Background Calculations'!$S$82*0.8,GI15),MAX('Background Calculations'!$S$77,'Background Calculations'!$S$82*0.75)) -> 77 | GL36: 2014 | GM36: =IF(GM15>0.01,MAX('Background Calculations'!$S$80*0.8,GM15),MAX('Background Calculations'!$S$75,'Background Calculations'!$S$80*0.75)) -> 176 | GO36: =IF(GO15>0.01,MAX('Background Calculations'!$S$81*0.8,GO15),MAX('Background Calculations'!$S$76,'Background Calculations'!$S$81*0.75)) -> 45 | GQ36: =IF(GQ15>0.01,MAX('Background Calculations'!$S$82*0.8,GQ15),MAX('Background Calculations'!$S$77,'Background Calculations'!$S$82*0.75)) -> 77 | GT36: 2014 | GU36: =IF(GU15>0.01,MAX('Background Calculations'!$S$80*0.8,GU15),MAX('Background Calculations'!$S$75,'Background Calculations'!$S$80*0.75)) -> 176 | GW36: =IF(GW15>0.01,MAX('Background Calculations'!$S$81*0.8,GW15),MAX('Background Calculations'!$S$76,'Background Calculations'!$S$81*0.75)) -> 45 | GY36: =IF(GY15>0.01,MAX('Background Calculations'!$S$82*0.8,GY15),MAX('Background Calculations'!$S$77,'Background Calculations'!$S$82*0.75)) -> 77 | HB36: 2014 | HC36: =IF(HC15>0.01,MAX('Background Calculations'!$S$80*0.8,HC15),MAX('Background Calculations'!$S$75,'Background Calculations'!$S$80*0.75)) -> 176 | HE36: =IF(HE15>0.01,MAX('Background Calculations'!$S$81*0.8,HE15),MAX('Background Calculations'!$S$76,'Background Calculations'!$S$81*0.75)) -> 45 | HG36: =IF(HG15>0.01,MAX('Background Calculations'!$S$82*0.8,HG15),MAX('Background Calculations'!$S$77,'Background Calculations'!$S$82*0.75)) -> 77 | HJ36: 2014 | HK36: =IF(HK15>0.01,MAX('Background Calculations'!$S$80*0.8,HK15),MAX('Background Calculations'!$S$75,'Background Calculations'!$S$80*0.75)) -> 176 | HM36: =IF(HM15>0.01,MAX('Background Calculations'!$S$81*0.8,HM15),MAX('Background Calculations'!$S$76,'Background Calculations'!$S$81*0.75)) -> 45 | HO36: =IF(HO15>0.01,MAX('Background Calculations'!$S$82*0.8,HO15),MAX('Background Calculations'!$S$77,'Background Calculations'!$S$82*0.75)) -> 77 | HR36: 2014 | HS36: =IF(HS15>0.01,MAX('Background Calculations'!$S$80*0.8,HS15),MAX('Background Calculations'!$S$75,'Background Calculations'!$S$80*0.75)) -> 176 | HU36: =IF(HU15>0.01,MAX('Background Calculations'!$S$81*0.8,HU15),MAX('Background Calculations'!$S$76,'Background Calculations'!$S$81*0.75)) -> 45 | HW36: =IF(HW15>0.01,MAX('Background Calculations'!$S$82*0.8,HW15),MAX('Background Calculations'!$S$77,'Background Calculations'!$S$82*0.75)) -> 77 | HZ36: 2014 | IA36: =IF(IA15>0.01,MAX('Background Calculations'!$S$80*0.8,IA15),MAX('Background Calculations'!$S$75,'Background Calculations'!$S$80*0.75)) -> 176 | IC36: =IF(IC15>0.01,MAX('Background Calculations'!$S$81*0.8,IC15),MAX('Background Calculations'!$S$76,'Background Calculations'!$S$81*0.75)) -> 45 | IE36: =IF(IE15>0.01,MAX('Background Calculations'!$S$82*0.8,IE15),MAX('Background Calculations'!$S$77,'Background Calculations'!$S$82*0.75)) -> 77 | IH36: 2014 | II36: =IF(II15>0.01,MAX('Background Calculations'!$S$80*0.8,II15),MAX('Background Calculations'!$S$75,'Background Calculations'!$S$80*0.75)) -> 176 | IK36: =IF(IK15>0.01,MAX('Background Calculations'!$S$81*0.8,IK15),MAX('Background Calculations'!$S$76,'Background Calculations'!$S$81*0.75)) -> 45 | IM36: =IF(IM15>0.01,MAX('Background Calculations'!$S$82*0.8,IM15),MAX('Background Calculations'!$S$77,'Background Calculations'!$S$82*0.75)) -> 77 | IP36: 2014 | IQ36: =IF(IQ15>0.01,MAX('Background Calculations'!$S$80*0.8,IQ15),MAX('Background Calculations'!$S$75,'Background Calculations'!$S$80*0.75)) -> 176 | IS36: =IF(IS15>0.01,MAX('Background Calculations'!$S$81*0.8,IS15),MAX('Background Calculations'!$S$76,'Background Calculations'!$S$81*0.75)) -> 45 | IU36: =IF(IU15>0.01,MAX('Background Calculations'!$S$82*0.8,IU15),MAX('Background Calculations'!$S$77,'Background Calculations'!$S$82*0.75)) -> 77 | IX36: 2014 | IY36: =IF(IY15>0.01,MAX('Background Calculations'!$S$80*0.8,IY15),MAX('Background Calculations'!$S$75,'Background Calculations'!$S$80*0.75)) -> 176 | JA36: =IF(JA15>0.01,MAX('Background Calculations'!$S$81*0.8,JA15),MAX('Background Calculations'!$S$76,'Background Calculations'!$S$81*0.75)) -> 45 | JC36: =IF(JC15>0.01,MAX('Background Calculations'!$S$82*0.8,JC15),MAX('Background Calculations'!$S$77,'Background Calculations'!$S$82*0.75)) -> 77 | JF36: 2014 | JG36: =IF(JG15>0.01,MAX('Background Calculations'!$S$80*0.8,JG15),MAX('Background Calculations'!$S$75,'Background Calculations'!$S$80*0.75)) -> 176 | JI36: =IF(JI15>0.01,MAX('Background Calculations'!$S$81*0.8,JI15),MAX('Background Calculations'!$S$76,'Background Calculations'!$S$81*0.75)) -> 45 | JK36: =IF(JK15>0.01,MAX('Background Calculations'!$S$82*0.8,JK15),MAX('Background Calculations'!$S$77,'Background Calculations'!$S$82*0.75)) -> 77 | JN36: 2014 | JO36: =IF(JO15>0.01,MAX('Background Calculations'!$S$80*0.8,JO15),MAX('Background Calculations'!$S$75,'Background Calculations'!$S$80*0.75)) -> 176 | JQ36: =IF(JQ15>0.01,MAX('Background Calculations'!$S$81*0.8,JQ15),MAX('Background Calculations'!$S$76,'Background Calculations'!$S$81*0.75)) -> 45 | JS36: =IF(JS15>0.01,MAX('Background Calculations'!$S$82*0.8,JS15),MAX('Background Calculations'!$S$77,'Background Calculations'!$S$82*0.75)) -> 77 | JV36: 2014 | JW36: =IF(JW15>0.01,MAX('Background Calculations'!$S$80*0.8,JW15),MAX('Background Calculations'!$S$75,'Background Calculations'!$S$80*0.75)) -> 176 | JY36: =IF(JY15>0.01,MAX('Background Calculations'!$S$81*0.8,JY15),MAX('Background Calculations'!$S$76,'Background Calculations'!$S$81*0.75)) -> 45 | KA36: =IF(KA15>0.01,MAX('Background Calculations'!$S$82*0.8,KA15),MAX('Background Calculations'!$S$77,'Background Calculations'!$S$82*0.75)) -> 77 | KD36: 2014 | KE36: =IF(KE15>0.01,MAX('Background Calculations'!$S$80*0.8,KE15),MAX('Background Calculations'!$S$75,'Background Calculations'!$S$80*0.75)) -> 176 | KG36: =IF(KG15>0.01,MAX('Background Calculations'!$S$81*0.8,KG15),MAX('Background Calculations'!$S$76,'Background Calculations'!$S$81*0.75)) -> 45 | KI36: =IF(KI15>0.01,MAX('Background Calculations'!$S$82*0.8,KI15),MAX('Background Calculations'!$S$77,'Background Calculations'!$S$82*0.75)) -> 77 | KL36: 2014 | KM36: =IF(KM15>0.01,MAX('Background Calculations'!$S$80*0.8,KM15),MAX('Background Calculations'!$S$75,'Background Calculations'!$S$80*0.75)) -> 176 | KO36: =IF(KO15>0.01,MAX('Background Calculations'!$S$81*0.8,KO15),MAX('Background Calculations'!$S$76,'Background Calculations'!$S$81*0.75)) -> 45 | KQ36: =IF(KQ15>0.01,MAX('Background Calculations'!$S$82*0.8,KQ15),MAX('Background Calculations'!$S$77,'Background Calculations'!$S$82*0.75)) -> 77 | KT36: 2014 | KU36: =IF(KU15>0.01,MAX('Background Calculations'!$S$80*0.8,KU15),MAX('Background Calculations'!$S$75,'Background Calculations'!$S$80*0.75)) -> 176 | KW36: =IF(KW15>0.01,MAX('Background Calculations'!$S$81*0.8,KW15),MAX('Background Calculations'!$S$76,'Background Calculations'!$S$81*0.75)) -> 45 | KY36: =IF(KY15>0.01,MAX('Background Calculations'!$S$82*0.8,KY15),MAX('Background Calculations'!$S$77,'Background Calculations'!$S$82*0.75)) -> 77 | LB36: 2014 | LC36: =IF(LC15>0.01,MAX('Background Calculations'!$S$80*0.8,LC15),MAX('Background Calculations'!$S$75,'Background Calculations'!$S$80*0.75)) -> 176 | LE36: =IF(LE15>0.01,MAX('Background Calculations'!$S$81*0.8,LE15),MAX('Background Calculations'!$S$76,'Background Calculations'!$S$81*0.75)) -> 45 | LG36: =IF(LG15>0.01,MAX('Background Calculations'!$S$82*0.8,LG15),MAX('Background Calculations'!$S$77,'Background Calculations'!$S$82*0.75)) -> 77 | LJ36: 2014 | LK36: =IF(LK15>0.01,MAX('Background Calculations'!$S$80*0.8,LK15),MAX('Background Calculations'!$S$75,'Background Calculations'!$S$80*0.75)) -> 176 | LM36: =IF(LM15>0.01,MAX('Background Calculations'!$S$81*0.8,LM15),MAX('Background Calculations'!$S$76,'Background Calculations'!$S$81*0.75)) -> 45 | LO36: =IF(LO15>0.01,MAX('Background Calculations'!$S$82*0.8,LO15),MAX('Background Calculations'!$S$77,'Background Calculations'!$S$82*0.75)) -> 77 | LR36: 2014 | LS36: =IF(LS15>0.01,MAX('Background Calculations'!$S$80*0.8,LS15),MAX('Background Calculations'!$S$75,'Background Calculations'!$S$80*0.75)) -> 176 | LU36: =IF(LU15>0.01,MAX('Background Calculations'!$S$81*0.8,LU15),MAX('Background Calculations'!$S$76,'Background Calculations'!$S$81*0.75)) -> 45 | LW36: =IF(LW15>0.01,MAX('Background Calculations'!$S$82*0.8,LW15),MAX('Background Calculations'!$S$77,'Background Calculations'!$S$82*0.75)) -> 77 | LZ36: 2014 | MA36: =IF(MA15>0.01,MAX('Background Calculations'!$S$80*0.8,MA15),MAX('Background Calculations'!$S$75,'Background Calculations'!$S$80*0.75)) -> 176 | MC36: =IF(MC15>0.01,MAX('Background Calculations'!$S$81*0.8,MC15),MAX('Background Calculations'!$S$76,'Background Calculations'!$S$81*0.75)) -> 45 | ME36: =IF(ME15>0.01,MAX('Background Calculations'!$S$82*0.8,ME15),MAX('Background Calculations'!$S$77,'Background Calculations'!$S$82*0.75)) -> 77 | MH36: 2014 | MI36: =IF(MI15>0.01,MAX('Background Calculations'!$S$80*0.8,MI15),MAX('Background Calculations'!$S$75,'Background Calculations'!$S$80*0.75)) -> 176 | MK36: =IF(MK15>0.01,MAX('Background Calculations'!$S$81*0.8,MK15),MAX('Background Calculations'!$S$76,'Background Calculations'!$S$81*0.75)) -> 45 | MM36: =IF(MM15>0.01,MAX('Background Calculations'!$S$82*0.8,MM15),MAX('Background Calculations'!$S$77,'Background Calculations'!$S$82*0.75)) -> 77 | MP36: 2014 | MQ36: =IF(MQ15>0.01,MAX('Background Calculations'!$S$80*0.8,MQ15),MAX('Background Calculations'!$S$75,'Background Calculations'!$S$80*0.75)) -> 176 | MS36: =IF(MS15>0.01,MAX('Background Calculations'!$S$81*0.8,MS15),MAX('Background Calculations'!$S$76,'Background Calculations'!$S$81*0.75)) -> 45 | MU36: =IF(MU15>0.01,MAX('Background Calculations'!$S$82*0.8,MU15),MAX('Background Calculations'!$S$77,'Background Calculations'!$S$82*0.75)) -> 77 | MX36: 2014 | MY36: =IF(MY15>0.01,MAX('Background Calculations'!$S$80*0.8,MY15),MAX('Background Calculations'!$S$75,'Background Calculations'!$S$80*0.75)) -> 176 | NA36: =IF(NA15>0.01,MAX('Background Calculations'!$S$81*0.8,NA15),MAX('Background Calculations'!$S$76,'Background Calculations'!$S$81*0.75)) -> 45 | NC36: =IF(NC15>0.01,MAX('Background Calculations'!$S$82*0.8,NC15),MAX('Background Calculations'!$S$77,'Background Calculations'!$S$82*0.75)) -> 77 | NF36: 2014 | NG36: =IF(NG15>0.01,MAX('Background Calculations'!$S$80*0.8,NG15),MAX('Background Calculations'!$S$75,'Background Calculations'!$S$80*0.75)) -> 176 | NI36: =IF(NI15>0.01,MAX('Background Calculations'!$S$81*0.8,NI15),MAX('Background Calculations'!$S$76,'Background Calculations'!$S$81*0.75)) -> 45 | NK36: =IF(NK15>0.01,MAX('Background Calculations'!$S$82*0.8,NK15),MAX('Background Calculations'!$S$77,'Background Calculations'!$S$82*0.75)) -> 77 | NN36: 2014 | NO36: =IF(NO15>0.01,MAX('Background Calculations'!$S$80*0.8,NO15),MAX('Background Calculations'!$S$75,'Background Calculations'!$S$80*0.75)) -> 176 | NQ36: =IF(NQ15>0.01,MAX('Background Calculations'!$S$81*0.8,NQ15),MAX('Background Calculations'!$S$76,'Background Calculations'!$S$81*0.75)) -> 45 | NS36: =IF(NS15>0.01,MAX('Background Calculations'!$S$82*0.8,NS15),MAX('Background Calculations'!$S$77,'Background Calculations'!$S$82*0.75)) -> 77 | NV36: 2014 | NW36: =IF(NW15>0.01,MAX('Background Calculations'!$S$80*0.8,NW15),MAX('Background Calculations'!$S$75,'Background Calculations'!$S$80*0.75)) -> 176 | NY36: =IF(NY15>0.01,MAX('Background Calculations'!$S$81*0.8,NY15),MAX('Background Calculations'!$S$76,'Background Calculations'!$S$81*0.75)) -> 45 | OA36: =IF(OA15>0.01,MAX('Background Calculations'!$S$82*0.8,OA15),MAX('Background Calculations'!$S$77,'Background Calculations'!$S$82*0.75)) -> 77 | OD36: 2014 | OE36: =IF(OE15>0.01,MAX('Background Calculations'!$S$80*0.8,OE15),MAX('Background Calculations'!$S$75,'Background Calculations'!$S$80*0.75)) -> 176 | OG36: =IF(OG15>0.01,MAX('Background Calculations'!$S$81*0.8,OG15),MAX('Background Calculations'!$S$76,'Background Calculations'!$S$81*0.75)) -> 45 | OI36: =IF(OI15>0.01,MAX('Background Calculations'!$S$82*0.8,OI15),MAX('Background Calculations'!$S$77,'Background Calculations'!$S$82*0.75)) -> 77 | OL36: 2014 | OM36: =IF(OM15>0.01,MAX('Background Calculations'!$S$80*0.8,OM15),MAX('Background Calculations'!$S$75,'Background Calculations'!$S$80*0.75)) -> 176 | OO36: =IF(OO15>0.01,MAX('Background Calculations'!$S$81*0.8,OO15),MAX('Background Calculations'!$S$76,'Background Calculations'!$S$81*0.75)) -> 45 | OQ36: =IF(OQ15>0.01,MAX('Background Calculations'!$S$82*0.8,OQ15),MAX('Background Calculations'!$S$77,'Background Calculations'!$S$82*0.75)) -> 77
B37: 2015 | C37: =IF(C16>0.01,MAX('Background Calculations'!$T$80*0.8,C16),MAX('Background Calculations'!$T$75,'Background Calculations'!$T$80*0.75)) -> 163 | E37: =IF(E16>0.01,MAX('Background Calculations'!$T$81*0.8,E16),MAX('Background Calculations'!$T$76,'Background Calculations'!$T$81*0.75)) -> 49 | G37: =IF(G16>0.01,MAX('Background Calculations'!$T$82*0.8,G16),MAX('Background Calculations'!$T$77,'Background Calculations'!$T$82*0.75)) -> 68 | J37: 2015 | K37: =IF(K16>0.01,MAX('Background Calculations'!$T$80*0.8,K16),MAX('Background Calculations'!$T$75,'Background Calculations'!$T$80*0.75)) -> 163 | M37: =IF(M16>0.01,MAX('Background Calculations'!$T$81*0.8,M16),MAX('Background Calculations'!$T$76,'Background Calculations'!$T$81*0.75)) -> 49 | O37: =IF(O16>0.01,MAX('Background Calculations'!$T$82*0.8,O16),MAX('Background Calculations'!$T$77,'Background Calculations'!$T$82*0.75)) -> 68 | R37: 2015 | S37: =IF(S16>0.01,MAX('Background Calculations'!$T$80*0.8,S16),MAX('Background Calculations'!$T$75,'Background Calculations'!$T$80*0.75)) -> 163 | U37: =IF(U16>0.01,MAX('Background Calculations'!$T$81*0.8,U16),MAX('Background Calculations'!$T$76,'Background Calculations'!$T$81*0.75)) -> 49 | W37: =IF(W16>0.01,MAX('Background Calculations'!$T$82*0.8,W16),MAX('Background Calculations'!$T$77,'Background Calculations'!$T$82*0.75)) -> 68 | Z37: 2015 | AA37: =IF(AA16>0.01,MAX('Background Calculations'!$T$80*0.8,AA16),MAX('Background Calculations'!$T$75,'Background Calculations'!$T$80*0.75)) -> 163 | AC37: =IF(AC16>0.01,MAX('Background Calculations'!$T$81*0.8,AC16),MAX('Background Calculations'!$T$76,'Background Calculations'!$T$81*0.75)) -> 49 | AE37: =IF(AE16>0.01,MAX('Background Calculations'!$T$82*0.8,AE16),MAX('Background Calculations'!$T$77,'Background Calculations'!$T$82*0.75)) -> 68 | AH37: 2015 | AI37: =IF(AI16>0.01,MAX('Background Calculations'!$T$80*0.8,AI16),MAX('Background Calculations'!$T$75,'Background Calculations'!$T$80*0.75)) -> 163 | AK37: =IF(AK16>0.01,MAX('Background Calculations'!$T$81*0.8,AK16),MAX('Background Calculations'!$T$76,'Background Calculations'!$T$81*0.75)) -> 49 | AM37: =IF(AM16>0.01,MAX('Background Calculations'!$T$82*0.8,AM16),MAX('Background Calculations'!$T$77,'Background Calculations'!$T$82*0.75)) -> 68 | AP37: 2015 | AQ37: =IF(AQ16>0.01,MAX('Background Calculations'!$T$80*0.8,AQ16),MAX('Background Calculations'!$T$75,'Background Calculations'!$T$80*0.75)) -> 163 | AS37: =IF(AS16>0.01,MAX('Background Calculations'!$T$81*0.8,AS16),MAX('Background Calculations'!$T$76,'Background Calculations'!$T$81*0.75)) -> 49 | AU37: =IF(AU16>0.01,MAX('Background Calculations'!$T$82*0.8,AU16),MAX('Background Calculations'!$T$77,'Background Calculations'!$T$82*0.75)) -> 68 | AX37: 2015 | AY37: =IF(AY16>0.01,MAX('Background Calculations'!$T$80*0.8,AY16),MAX('Background Calculations'!$T$75,'Background Calculations'!$T$80*0.75)) -> 163 | BA37: =IF(BA16>0.01,MAX('Background Calculations'!$T$81*0.8,BA16),MAX('Background Calculations'!$T$76,'Background Calculations'!$T$81*0.75)) -> 49 | BC37: =IF(BC16>0.01,MAX('Background Calculations'!$T$82*0.8,BC16),MAX('Background Calculations'!$T$77,'Background Calculations'!$T$82*0.75)) -> 68 | BF37: 2015 | BG37: =IF(BG16>0.01,MAX('Background Calculations'!$T$80*0.8,BG16),MAX('Background Calculations'!$T$75,'Background Calculations'!$T$80*0.75)) -> 163 | BI37: =IF(BI16>0.01,MAX('Background Calculations'!$T$81*0.8,BI16),MAX('Background Calculations'!$T$76,'Background Calculations'!$T$81*0.75)) -> 49 | BK37: =IF(BK16>0.01,MAX('Background Calculations'!$T$82*0.8,BK16),MAX('Background Calculations'!$T$77,'Background Calculations'!$T$82*0.75)) -> 68 | BN37: 2015 | BO37: =IF(BO16>0.01,MAX('Background Calculations'!$T$80*0.8,BO16),MAX('Background Calculations'!$T$75,'Background Calculations'!$T$80*0.75)) -> 163 | BQ37: =IF(BQ16>0.01,MAX('Background Calculations'!$T$81*0.8,BQ16),MAX('Background Calculations'!$T$76,'Background Calculations'!$T$81*0.75)) -> 49 | BS37: =IF(BS16>0.01,MAX('Background Calculations'!$T$82*0.8,BS16),MAX('Background Calculations'!$T$77,'Background Calculations'!$T$82*0.75)) -> 68 | BV37: 2015 | BW37: =IF(BW16>0.01,MAX('Background Calculations'!$T$80*0.8,BW16),MAX('Background Calculations'!$T$75,'Background Calculations'!$T$80*0.75)) -> 163 | BY37: =IF(BY16>0.01,MAX('Background Calculations'!$T$81*0.8,BY16),MAX('Background Calculations'!$T$76,'Background Calculations'!$T$81*0.75)) -> 49 | CA37: =IF(CA16>0.01,MAX('Background Calculations'!$T$82*0.8,CA16),MAX('Background Calculations'!$T$77,'Background Calculations'!$T$82*0.75)) -> 68 | CD37: 2015 | CE37: =IF(CE16>0.01,MAX('Background Calculations'!$T$80*0.8,CE16),MAX('Background Calculations'!$T$75,'Background Calculations'!$T$80*0.75)) -> 163 | CG37: =IF(CG16>0.01,MAX('Background Calculations'!$T$81*0.8,CG16),MAX('Background Calculations'!$T$76,'Background Calculations'!$T$81*0.75)) -> 49 | CI37: =IF(CI16>0.01,MAX('Background Calculations'!$T$82*0.8,CI16),MAX('Background Calculations'!$T$77,'Background Calculations'!$T$82*0.75)) -> 68 | CL37: 2015 | CM37: =IF(CM16>0.01,MAX('Background Calculations'!$T$80*0.8,CM16),MAX('Background Calculations'!$T$75,'Background Calculations'!$T$80*0.75)) -> 163 | CO37: =IF(CO16>0.01,MAX('Background Calculations'!$T$81*0.8,CO16),MAX('Background Calculations'!$T$76,'Background Calculations'!$T$81*0.75)) -> 49 | CQ37: =IF(CQ16>0.01,MAX('Background Calculations'!$T$82*0.8,CQ16),MAX('Background Calculations'!$T$77,'Background Calculations'!$T$82*0.75)) -> 68 | CT37: 2015 | CU37: =IF(CU16>0.01,MAX('Background Calculations'!$T$80*0.8,CU16),MAX('Background Calculations'!$T$75,'Background Calculations'!$T$80*0.75)) -> 163 | CW37: =IF(CW16>0.01,MAX('Background Calculations'!$T$81*0.8,CW16),MAX('Background Calculations'!$T$76,'Background Calculations'!$T$81*0.75)) -> 49 | CY37: =IF(CY16>0.01,MAX('Background Calculations'!$T$82*0.8,CY16),MAX('Background Calculations'!$T$77,'Background Calculations'!$T$82*0.75)) -> 68 | DB37: 2015 | DC37: =IF(DC16>0.01,MAX('Background Calculations'!$T$80*0.8,DC16),MAX('Background Calculations'!$T$75,'Background Calculations'!$T$80*0.75)) -> 163 | DE37: =IF(DE16>0.01,MAX('Background Calculations'!$T$81*0.8,DE16),MAX('Background Calculations'!$T$76,'Background Calculations'!$T$81*0.75)) -> 49 | DG37: =IF(DG16>0.01,MAX('Background Calculations'!$T$82*0.8,DG16),MAX('Background Calculations'!$T$77,'Background Calculations'!$T$82*0.75)) -> 68 | DJ37: 2015 | DK37: =IF(DK16>0.01,MAX('Background Calculations'!$T$80*0.8,DK16),MAX('Background Calculations'!$T$75,'Background Calculations'!$T$80*0.75)) -> 163 | DM37: =IF(DM16>0.01,MAX('Background Calculations'!$T$81*0.8,DM16),MAX('Background Calculations'!$T$76,'Background Calculations'!$T$81*0.75)) -> 49 | DO37: =IF(DO16>0.01,MAX('Background Calculations'!$T$82*0.8,DO16),MAX('Background Calculations'!$T$77,'Background Calculations'!$T$82*0.75)) -> 68 | DR37: 2015 | DS37: =IF(DS16>0.01,MAX('Background Calculations'!$T$80*0.8,DS16),MAX('Background Calculations'!$T$75,'Background Calculations'!$T$80*0.75)) -> 163 | DU37: =IF(DU16>0.01,MAX('Background Calculations'!$T$81*0.8,DU16),MAX('Background Calculations'!$T$76,'Background Calculations'!$T$81*0.75)) -> 49 | DW37: =IF(DW16>0.01,MAX('Background Calculations'!$T$82*0.8,DW16),MAX('Background Calculations'!$T$77,'Background Calculations'!$T$82*0.75)) -> 68 | DZ37: 2015 | EA37: =IF(EA16>0.01,MAX('Background Calculations'!$T$80*0.8,EA16),MAX('Background Calculations'!$T$75,'Background Calculations'!$T$80*0.75)) -> 163 | EC37: =IF(EC16>0.01,MAX('Background Calculations'!$T$81*0.8,EC16),MAX('Background Calculations'!$T$76,'Background Calculations'!$T$81*0.75)) -> 49 | EE37: =IF(EE16>0.01,MAX('Background Calculations'!$T$82*0.8,EE16),MAX('Background Calculations'!$T$77,'Background Calculations'!$T$82*0.75)) -> 68 | EH37: 2015 | EI37: =IF(EI16>0.01,MAX('Background Calculations'!$T$80*0.8,EI16),MAX('Background Calculations'!$T$75,'Background Calculations'!$T$80*0.75)) -> 163 | EK37: =IF(EK16>0.01,MAX('Background Calculations'!$T$81*0.8,EK16),MAX('Background Calculations'!$T$76,'Background Calculations'!$T$81*0.75)) -> 49 | EM37: =IF(EM16>0.01,MAX('Background Calculations'!$T$82*0.8,EM16),MAX('Background Calculations'!$T$77,'Background Calculations'!$T$82*0.75)) -> 68 | EP37: 2015 | EQ37: =IF(EQ16>0.01,MAX('Background Calculations'!$T$80*0.8,EQ16),MAX('Background Calculations'!$T$75,'Background Calculations'!$T$80*0.75)) -> 163 | ES37: =IF(ES16>0.01,MAX('Background Calculations'!$T$81*0.8,ES16),MAX('Background Calculations'!$T$76,'Background Calculations'!$T$81*0.75)) -> 49 | EU37: =IF(EU16>0.01,MAX('Background Calculations'!$T$82*0.8,EU16),MAX('Background Calculations'!$T$77,'Background Calculations'!$T$82*0.75)) -> 68 | EX37: 2015 | EY37: =IF(EY16>0.01,MAX('Background Calculations'!$T$80*0.8,EY16),MAX('Background Calculations'!$T$75,'Background Calculations'!$T$80*0.75)) -> 163 | FA37: =IF(FA16>0.01,MAX('Background Calculations'!$T$81*0.8,FA16),MAX('Background Calculations'!$T$76,'Background Calculations'!$T$81*0.75)) -> 49 | FC37: =IF(FC16>0.01,MAX('Background Calculations'!$T$82*0.8,FC16),MAX('Background Calculations'!$T$77,'Background Calculations'!$T$82*0.75)) -> 68 | FF37: 2015 | FG37: =IF(FG16>0.01,MAX('Background Calculations'!$T$80*0.8,FG16),MAX('Background Calculations'!$T$75,'Background Calculations'!$T$80*0.75)) -> 163 | FI37: =IF(FI16>0.01,MAX('Background Calculations'!$T$81*0.8,FI16),MAX('Background Calculations'!$T$76,'Background Calculations'!$T$81*0.75)) -> 49 | FK37: =IF(FK16>0.01,MAX('Background Calculations'!$T$82*0.8,FK16),MAX('Background Calculations'!$T$77,'Background Calculations'!$T$82*0.75)) -> 68 | FN37: 2015 | FO37: =IF(FO16>0.01,MAX('Background Calculations'!$T$80*0.8,FO16),MAX('Background Calculations'!$T$75,'Background Calculations'!$T$80*0.75)) -> 163 | FQ37: =IF(FQ16>0.01,MAX('Background Calculations'!$T$81*0.8,FQ16),MAX('Background Calculations'!$T$76,'Background Calculations'!$T$81*0.75)) -> 49 | FS37: =IF(FS16>0.01,MAX('Background Calculations'!$T$82*0.8,FS16),MAX('Background Calculations'!$T$77,'Background Calculations'!$T$82*0.75)) -> 68 | FV37: 2015 | FW37: =IF(FW16>0.01,MAX('Background Calculations'!$T$80*0.8,FW16),MAX('Background Calculations'!$T$75,'Background Calculations'!$T$80*0.75)) -> 163 | FY37: =IF(FY16>0.01,MAX('Background Calculations'!$T$81*0.8,FY16),MAX('Background Calculations'!$T$76,'Background Calculations'!$T$81*0.75)) -> 49 | GA37: =IF(GA16>0.01,MAX('Background Calculations'!$T$82*0.8,GA16),MAX('Background Calculations'!$T$77,'Background Calculations'!$T$82*0.75)) -> 68 | GD37: 2015 | GE37: =IF(GE16>0.01,MAX('Background Calculations'!$T$80*0.8,GE16),MAX('Background Calculations'!$T$75,'Background Calculations'!$T$80*0.75)) -> 163 | GG37: =IF(GG16>0.01,MAX('Background Calculations'!$T$81*0.8,GG16),MAX('Background Calculations'!$T$76,'Background Calculations'!$T$81*0.75)) -> 49 | GI37: =IF(GI16>0.01,MAX('Background Calculations'!$T$82*0.8,GI16),MAX('Background Calculations'!$T$77,'Background Calculations'!$T$82*0.75)) -> 68 | GL37: 2015 | GM37: =IF(GM16>0.01,MAX('Background Calculations'!$T$80*0.8,GM16),MAX('Background Calculations'!$T$75,'Background Calculations'!$T$80*0.75)) -> 163 | GO37: =IF(GO16>0.01,MAX('Background Calculations'!$T$81*0.8,GO16),MAX('Background Calculations'!$T$76,'Background Calculations'!$T$81*0.75)) -> 49 | GQ37: =IF(GQ16>0.01,MAX('Background Calculations'!$T$82*0.8,GQ16),MAX('Background Calculations'!$T$77,'Background Calculations'!$T$82*0.75)) -> 68 | GT37: 2015 | GU37: =IF(GU16>0.01,MAX('Background Calculations'!$T$80*0.8,GU16),MAX('Background Calculations'!$T$75,'Background Calculations'!$T$80*0.75)) -> 163 | GW37: =IF(GW16>0.01,MAX('Background Calculations'!$T$81*0.8,GW16),MAX('Background Calculations'!$T$76,'Background Calculations'!$T$81*0.75)) -> 49 | GY37: =IF(GY16>0.01,MAX('Background Calculations'!$T$82*0.8,GY16),MAX('Background Calculations'!$T$77,'Background Calculations'!$T$82*0.75)) -> 68 | HB37: 2015 | HC37: =IF(HC16>0.01,MAX('Background Calculations'!$T$80*0.8,HC16),MAX('Background Calculations'!$T$75,'Background Calculations'!$T$80*0.75)) -> 163 | HE37: =IF(HE16>0.01,MAX('Background Calculations'!$T$81*0.8,HE16),MAX('Background Calculations'!$T$76,'Background Calculations'!$T$81*0.75)) -> 49 | HG37: =IF(HG16>0.01,MAX('Background Calculations'!$T$82*0.8,HG16),MAX('Background Calculations'!$T$77,'Background Calculations'!$T$82*0.75)) -> 68 | HJ37: 2015 | HK37: =IF(HK16>0.01,MAX('Background Calculations'!$T$80*0.8,HK16),MAX('Background Calculations'!$T$75,'Background Calculations'!$T$80*0.75)) -> 163 | HM37: =IF(HM16>0.01,MAX('Background Calculations'!$T$81*0.8,HM16),MAX('Background Calculations'!$T$76,'Background Calculations'!$T$81*0.75)) -> 49 | HO37: =IF(HO16>0.01,MAX('Background Calculations'!$T$82*0.8,HO16),MAX('Background Calculations'!$T$77,'Background Calculations'!$T$82*0.75)) -> 68 | HR37: 2015 | HS37: =IF(HS16>0.01,MAX('Background Calculations'!$T$80*0.8,HS16),MAX('Background Calculations'!$T$75,'Background Calculations'!$T$80*0.75)) -> 163 | HU37: =IF(HU16>0.01,MAX('Background Calculations'!$T$81*0.8,HU16),MAX('Background Calculations'!$T$76,'Background Calculations'!$T$81*0.75)) -> 49 | HW37: =IF(HW16>0.01,MAX('Background Calculations'!$T$82*0.8,HW16),MAX('Background Calculations'!$T$77,'Background Calculations'!$T$82*0.75)) -> 68 | HZ37: 2015 | IA37: =IF(IA16>0.01,MAX('Background Calculations'!$T$80*0.8,IA16),MAX('Background Calculations'!$T$75,'Background Calculations'!$T$80*0.75)) -> 163 | IC37: =IF(IC16>0.01,MAX('Background Calculations'!$T$81*0.8,IC16),MAX('Background Calculations'!$T$76,'Background Calculations'!$T$81*0.75)) -> 49 | IE37: =IF(IE16>0.01,MAX('Background Calculations'!$T$82*0.8,IE16),MAX('Background Calculations'!$T$77,'Background Calculations'!$T$82*0.75)) -> 68 | IH37: 2015 | II37: =IF(II16>0.01,MAX('Background Calculations'!$T$80*0.8,II16),MAX('Background Calculations'!$T$75,'Background Calculations'!$T$80*0.75)) -> 163 | IK37: =IF(IK16>0.01,MAX('Background Calculations'!$T$81*0.8,IK16),MAX('Background Calculations'!$T$76,'Background Calculations'!$T$81*0.75)) -> 49 | IM37: =IF(IM16>0.01,MAX('Background Calculations'!$T$82*0.8,IM16),MAX('Background Calculations'!$T$77,'Background Calculations'!$T$82*0.75)) -> 68 | IP37: 2015 | IQ37: =IF(IQ16>0.01,MAX('Background Calculations'!$T$80*0.8,IQ16),MAX('Background Calculations'!$T$75,'Background Calculations'!$T$80*0.75)) -> 163 | IS37: =IF(IS16>0.01,MAX('Background Calculations'!$T$81*0.8,IS16),MAX('Background Calculations'!$T$76,'Background Calculations'!$T$81*0.75)) -> 49 | IU37: =IF(IU16>0.01,MAX('Background Calculations'!$T$82*0.8,IU16),MAX('Background Calculations'!$T$77,'Background Calculations'!$T$82*0.75)) -> 68 | IX37: 2015 | IY37: =IF(IY16>0.01,MAX('Background Calculations'!$T$80*0.8,IY16),MAX('Background Calculations'!$T$75,'Background Calculations'!$T$80*0.75)) -> 163 | JA37: =IF(JA16>0.01,MAX('Background Calculations'!$T$81*0.8,JA16),MAX('Background Calculations'!$T$76,'Background Calculations'!$T$81*0.75)) -> 49 | JC37: =IF(JC16>0.01,MAX('Background Calculations'!$T$82*0.8,JC16),MAX('Background Calculations'!$T$77,'Background Calculations'!$T$82*0.75)) -> 68 | JF37: 2015 | JG37: =IF(JG16>0.01,MAX('Background Calculations'!$T$80*0.8,JG16),MAX('Background Calculations'!$T$75,'Background Calculations'!$T$80*0.75)) -> 163 | JI37: =IF(JI16>0.01,MAX('Background Calculations'!$T$81*0.8,JI16),MAX('Background Calculations'!$T$76,'Background Calculations'!$T$81*0.75)) -> 49 | JK37: =IF(JK16>0.01,MAX('Background Calculations'!$T$82*0.8,JK16),MAX('Background Calculations'!$T$77,'Background Calculations'!$T$82*0.75)) -> 68 | JN37: 2015 | JO37: =IF(JO16>0.01,MAX('Background Calculations'!$T$80*0.8,JO16),MAX('Background Calculations'!$T$75,'Background Calculations'!$T$80*0.75)) -> 163 | JQ37: =IF(JQ16>0.01,MAX('Background Calculations'!$T$81*0.8,JQ16),MAX('Background Calculations'!$T$76,'Background Calculations'!$T$81*0.75)) -> 49 | JS37: =IF(JS16>0.01,MAX('Background Calculations'!$T$82*0.8,JS16),MAX('Background Calculations'!$T$77,'Background Calculations'!$T$82*0.75)) -> 68 | JV37: 2015 | JW37: =IF(JW16>0.01,MAX('Background Calculations'!$T$80*0.8,JW16),MAX('Background Calculations'!$T$75,'Background Calculations'!$T$80*0.75)) -> 163 | JY37: =IF(JY16>0.01,MAX('Background Calculations'!$T$81*0.8,JY16),MAX('Background Calculations'!$T$76,'Background Calculations'!$T$81*0.75)) -> 49 | KA37: =IF(KA16>0.01,MAX('Background Calculations'!$T$82*0.8,KA16),MAX('Background Calculations'!$T$77,'Background Calculations'!$T$82*0.75)) -> 68 | KD37: 2015 | KE37: =IF(KE16>0.01,MAX('Background Calculations'!$T$80*0.8,KE16),MAX('Background Calculations'!$T$75,'Background Calculations'!$T$80*0.75)) -> 163 | KG37: =IF(KG16>0.01,MAX('Background Calculations'!$T$81*0.8,KG16),MAX('Background Calculations'!$T$76,'Background Calculations'!$T$81*0.75)) -> 49 | KI37: =IF(KI16>0.01,MAX('Background Calculations'!$T$82*0.8,KI16),MAX('Background Calculations'!$T$77,'Background Calculations'!$T$82*0.75)) -> 68 | KL37: 2015 | KM37: =IF(KM16>0.01,MAX('Background Calculations'!$T$80*0.8,KM16),MAX('Background Calculations'!$T$75,'Background Calculations'!$T$80*0.75)) -> 163 | KO37: =IF(KO16>0.01,MAX('Background Calculations'!$T$81*0.8,KO16),MAX('Background Calculations'!$T$76,'Background Calculations'!$T$81*0.75)) -> 49 | KQ37: =IF(KQ16>0.01,MAX('Background Calculations'!$T$82*0.8,KQ16),MAX('Background Calculations'!$T$77,'Background Calculations'!$T$82*0.75)) -> 68 | KT37: 2015 | KU37: =IF(KU16>0.01,MAX('Background Calculations'!$T$80*0.8,KU16),MAX('Background Calculations'!$T$75,'Background Calculations'!$T$80*0.75)) -> 163 | KW37: =IF(KW16>0.01,MAX('Background Calculations'!$T$81*0.8,KW16),MAX('Background Calculations'!$T$76,'Background Calculations'!$T$81*0.75)) -> 49 | KY37: =IF(KY16>0.01,MAX('Background Calculations'!$T$82*0.8,KY16),MAX('Background Calculations'!$T$77,'Background Calculations'!$T$82*0.75)) -> 68 | LB37: 2015 | LC37: =IF(LC16>0.01,MAX('Background Calculations'!$T$80*0.8,LC16),MAX('Background Calculations'!$T$75,'Background Calculations'!$T$80*0.75)) -> 163 | LE37: =IF(LE16>0.01,MAX('Background Calculations'!$T$81*0.8,LE16),MAX('Background Calculations'!$T$76,'Background Calculations'!$T$81*0.75)) -> 49 | LG37: =IF(LG16>0.01,MAX('Background Calculations'!$T$82*0.8,LG16),MAX('Background Calculations'!$T$77,'Background Calculations'!$T$82*0.75)) -> 68 | LJ37: 2015 | LK37: =IF(LK16>0.01,MAX('Background Calculations'!$T$80*0.8,LK16),MAX('Background Calculations'!$T$75,'Background Calculations'!$T$80*0.75)) -> 163 | LM37: =IF(LM16>0.01,MAX('Background Calculations'!$T$81*0.8,LM16),MAX('Background Calculations'!$T$76,'Background Calculations'!$T$81*0.75)) -> 49 | LO37: =IF(LO16>0.01,MAX('Background Calculations'!$T$82*0.8,LO16),MAX('Background Calculations'!$T$77,'Background Calculations'!$T$82*0.75)) -> 68 | LR37: 2015 | LS37: =IF(LS16>0.01,MAX('Background Calculations'!$T$80*0.8,LS16),MAX('Background Calculations'!$T$75,'Background Calculations'!$T$80*0.75)) -> 163 | LU37: =IF(LU16>0.01,MAX('Background Calculations'!$T$81*0.8,LU16),MAX('Background Calculations'!$T$76,'Background Calculations'!$T$81*0.75)) -> 49 | LW37: =IF(LW16>0.01,MAX('Background Calculations'!$T$82*0.8,LW16),MAX('Background Calculations'!$T$77,'Background Calculations'!$T$82*0.75)) -> 68 | LZ37: 2015 | MA37: =IF(MA16>0.01,MAX('Background Calculations'!$T$80*0.8,MA16),MAX('Background Calculations'!$T$75,'Background Calculations'!$T$80*0.75)) -> 163 | MC37: =IF(MC16>0.01,MAX('Background Calculations'!$T$81*0.8,MC16),MAX('Background Calculations'!$T$76,'Background Calculations'!$T$81*0.75)) -> 49 | ME37: =IF(ME16>0.01,MAX('Background Calculations'!$T$82*0.8,ME16),MAX('Background Calculations'!$T$77,'Background Calculations'!$T$82*0.75)) -> 68 | MH37: 2015 | MI37: =IF(MI16>0.01,MAX('Background Calculations'!$T$80*0.8,MI16),MAX('Background Calculations'!$T$75,'Background Calculations'!$T$80*0.75)) -> 163 | MK37: =IF(MK16>0.01,MAX('Background Calculations'!$T$81*0.8,MK16),MAX('Background Calculations'!$T$76,'Background Calculations'!$T$81*0.75)) -> 49 | MM37: =IF(MM16>0.01,MAX('Background Calculations'!$T$82*0.8,MM16),MAX('Background Calculations'!$T$77,'Background Calculations'!$T$82*0.75)) -> 68 | MP37: 2015 | MQ37: =IF(MQ16>0.01,MAX('Background Calculations'!$T$80*0.8,MQ16),MAX('Background Calculations'!$T$75,'Background Calculations'!$T$80*0.75)) -> 163 | MS37: =IF(MS16>0.01,MAX('Background Calculations'!$T$81*0.8,MS16),MAX('Background Calculations'!$T$76,'Background Calculations'!$T$81*0.75)) -> 49 | MU37: =IF(MU16>0.01,MAX('Background Calculations'!$T$82*0.8,MU16),MAX('Background Calculations'!$T$77,'Background Calculations'!$T$82*0.75)) -> 68 | MX37: 2015 | MY37: =IF(MY16>0.01,MAX('Background Calculations'!$T$80*0.8,MY16),MAX('Background Calculations'!$T$75,'Background Calculations'!$T$80*0.75)) -> 163 | NA37: =IF(NA16>0.01,MAX('Background Calculations'!$T$81*0.8,NA16),MAX('Background Calculations'!$T$76,'Background Calculations'!$T$81*0.75)) -> 49 | NC37: =IF(NC16>0.01,MAX('Background Calculations'!$T$82*0.8,NC16),MAX('Background Calculations'!$T$77,'Background Calculations'!$T$82*0.75)) -> 68 | NF37: 2015 | NG37: =IF(NG16>0.01,MAX('Background Calculations'!$T$80*0.8,NG16),MAX('Background Calculations'!$T$75,'Background Calculations'!$T$80*0.75)) -> 163 | NI37: =IF(NI16>0.01,MAX('Background Calculations'!$T$81*0.8,NI16),MAX('Background Calculations'!$T$76,'Background Calculations'!$T$81*0.75)) -> 49 | NK37: =IF(NK16>0.01,MAX('Background Calculations'!$T$82*0.8,NK16),MAX('Background Calculations'!$T$77,'Background Calculations'!$T$82*0.75)) -> 68 | NN37: 2015 | NO37: =IF(NO16>0.01,MAX('Background Calculations'!$T$80*0.8,NO16),MAX('Background Calculations'!$T$75,'Background Calculations'!$T$80*0.75)) -> 163 | NQ37: =IF(NQ16>0.01,MAX('Background Calculations'!$T$81*0.8,NQ16),MAX('Background Calculations'!$T$76,'Background Calculations'!$T$81*0.75)) -> 49 | NS37: =IF(NS16>0.01,MAX('Background Calculations'!$T$82*0.8,NS16),MAX('Background Calculations'!$T$77,'Background Calculations'!$T$82*0.75)) -> 68 | NV37: 2015 | NW37: =IF(NW16>0.01,MAX('Background Calculations'!$T$80*0.8,NW16),MAX('Background Calculations'!$T$75,'Background Calculations'!$T$80*0.75)) -> 163 | NY37: =IF(NY16>0.01,MAX('Background Calculations'!$T$81*0.8,NY16),MAX('Background Calculations'!$T$76,'Background Calculations'!$T$81*0.75)) -> 49 | OA37: =IF(OA16>0.01,MAX('Background Calculations'!$T$82*0.8,OA16),MAX('Background Calculations'!$T$77,'Background Calculations'!$T$82*0.75)) -> 68 | OD37: 2015 | OE37: =IF(OE16>0.01,MAX('Background Calculations'!$T$80*0.8,OE16),MAX('Background Calculations'!$T$75,'Background Calculations'!$T$80*0.75)) -> 163 | OG37: =IF(OG16>0.01,MAX('Background Calculations'!$T$81*0.8,OG16),MAX('Background Calculations'!$T$76,'Background Calculations'!$T$81*0.75)) -> 49 | OI37: =IF(OI16>0.01,MAX('Background Calculations'!$T$82*0.8,OI16),MAX('Background Calculations'!$T$77,'Background Calculations'!$T$82*0.75)) -> 68 | OL37: 2015 | OM37: =IF(OM16>0.01,MAX('Background Calculations'!$T$80*0.8,OM16),MAX('Background Calculations'!$T$75,'Background Calculations'!$T$80*0.75)) -> 163 | OO37: =IF(OO16>0.01,MAX('Background Calculations'!$T$81*0.8,OO16),MAX('Background Calculations'!$T$76,'Background Calculations'!$T$81*0.75)) -> 49 | OQ37: =IF(OQ16>0.01,MAX('Background Calculations'!$T$82*0.8,OQ16),MAX('Background Calculations'!$T$77,'Background Calculations'!$T$82*0.75)) -> 68
B38: 2016 | C38: =IF(C17>0.01,MAX('Background Calculations'!$U$80*0.8,C17),MAX('Background Calculations'!$U$75,'Background Calculations'!$U$80*0.75)) -> 145 | E38: =IF(E17>0.01,MAX('Background Calculations'!$U$81*0.8,E17),MAX('Background Calculations'!$U$76,'Background Calculations'!$U$81*0.75)) -> 49 | G38: =IF(G17>0.01,MAX('Background Calculations'!$U$82*0.8,G17),MAX('Background Calculations'!$U$77,'Background Calculations'!$U$82*0.75)) -> 86 | J38: 2016 | K38: =IF(K17>0.01,MAX('Background Calculations'!$U$80*0.8,K17),MAX('Background Calculations'!$U$75,'Background Calculations'!$U$80*0.75)) -> 145 | M38: =IF(M17>0.01,MAX('Background Calculations'!$U$81*0.8,M17),MAX('Background Calculations'!$U$76,'Background Calculations'!$U$81*0.75)) -> 49 | O38: =IF(O17>0.01,MAX('Background Calculations'!$U$82*0.8,O17),MAX('Background Calculations'!$U$77,'Background Calculations'!$U$82*0.75)) -> 86 | R38: 2016 | S38: =IF(S17>0.01,MAX('Background Calculations'!$U$80*0.8,S17),MAX('Background Calculations'!$U$75,'Background Calculations'!$U$80*0.75)) -> 145 | U38: =IF(U17>0.01,MAX('Background Calculations'!$U$81*0.8,U17),MAX('Background Calculations'!$U$76,'Background Calculations'!$U$81*0.75)) -> 49 | W38: =IF(W17>0.01,MAX('Background Calculations'!$U$82*0.8,W17),MAX('Background Calculations'!$U$77,'Background Calculations'!$U$82*0.75)) -> 86 | Z38: 2016 | AA38: =IF(AA17>0.01,MAX('Background Calculations'!$U$80*0.8,AA17),MAX('Background Calculations'!$U$75,'Background Calculations'!$U$80*0.75)) -> 145 | AC38: =IF(AC17>0.01,MAX('Background Calculations'!$U$81*0.8,AC17),MAX('Background Calculations'!$U$76,'Background Calculations'!$U$81*0.75)) -> 49 | AE38: =IF(AE17>0.01,MAX('Background Calculations'!$U$82*0.8,AE17),MAX('Background Calculations'!$U$77,'Background Calculations'!$U$82*0.75)) -> 86 | AH38: 2016 | AI38: =IF(AI17>0.01,MAX('Background Calculations'!$U$80*0.8,AI17),MAX('Background Calculations'!$U$75,'Background Calculations'!$U$80*0.75)) -> 145 | AK38: =IF(AK17>0.01,MAX('Background Calculations'!$U$81*0.8,AK17),MAX('Background Calculations'!$U$76,'Background Calculations'!$U$81*0.75)) -> 49 | AM38: =IF(AM17>0.01,MAX('Background Calculations'!$U$82*0.8,AM17),MAX('Background Calculations'!$U$77,'Background Calculations'!$U$82*0.75)) -> 86 | AP38: 2016 | AQ38: =IF(AQ17>0.01,MAX('Background Calculations'!$U$80*0.8,AQ17),MAX('Background Calculations'!$U$75,'Background Calculations'!$U$80*0.75)) -> 145 | AS38: =IF(AS17>0.01,MAX('Background Calculations'!$U$81*0.8,AS17),MAX('Background Calculations'!$U$76,'Background Calculations'!$U$81*0.75)) -> 49 | AU38: =IF(AU17>0.01,MAX('Background Calculations'!$U$82*0.8,AU17),MAX('Background Calculations'!$U$77,'Background Calculations'!$U$82*0.75)) -> 86 | AX38: 2016 | AY38: =IF(AY17>0.01,MAX('Background Calculations'!$U$80*0.8,AY17),MAX('Background Calculations'!$U$75,'Background Calculations'!$U$80*0.75)) -> 145 | BA38: =IF(BA17>0.01,MAX('Background Calculations'!$U$81*0.8,BA17),MAX('Background Calculations'!$U$76,'Background Calculations'!$U$81*0.75)) -> 49 | BC38: =IF(BC17>0.01,MAX('Background Calculations'!$U$82*0.8,BC17),MAX('Background Calculations'!$U$77,'Background Calculations'!$U$82*0.75)) -> 86 | BF38: 2016 | BG38: =IF(BG17>0.01,MAX('Background Calculations'!$U$80*0.8,BG17),MAX('Background Calculations'!$U$75,'Background Calculations'!$U$80*0.75)) -> 145 | BI38: =IF(BI17>0.01,MAX('Background Calculations'!$U$81*0.8,BI17),MAX('Background Calculations'!$U$76,'Background Calculations'!$U$81*0.75)) -> 49 | BK38: =IF(BK17>0.01,MAX('Background Calculations'!$U$82*0.8,BK17),MAX('Background Calculations'!$U$77,'Background Calculations'!$U$82*0.75)) -> 86 | BN38: 2016 | BO38: =IF(BO17>0.01,MAX('Background Calculations'!$U$80*0.8,BO17),MAX('Background Calculations'!$U$75,'Background Calculations'!$U$80*0.75)) -> 145 | BQ38: =IF(BQ17>0.01,MAX('Background Calculations'!$U$81*0.8,BQ17),MAX('Background Calculations'!$U$76,'Background Calculations'!$U$81*0.75)) -> 49 | BS38: =IF(BS17>0.01,MAX('Background Calculations'!$U$82*0.8,BS17),MAX('Background Calculations'!$U$77,'Background Calculations'!$U$82*0.75)) -> 86 | BV38: 2016 | BW38: =IF(BW17>0.01,MAX('Background Calculations'!$U$80*0.8,BW17),MAX('Background Calculations'!$U$75,'Background Calculations'!$U$80*0.75)) -> 145 | BY38: =IF(BY17>0.01,MAX('Background Calculations'!$U$81*0.8,BY17),MAX('Background Calculations'!$U$76,'Background Calculations'!$U$81*0.75)) -> 49 | CA38: =IF(CA17>0.01,MAX('Background Calculations'!$U$82*0.8,CA17),MAX('Background Calculations'!$U$77,'Background Calculations'!$U$82*0.75)) -> 86 | CD38: 2016 | CE38: =IF(CE17>0.01,MAX('Background Calculations'!$U$80*0.8,CE17),MAX('Background Calculations'!$U$75,'Background Calculations'!$U$80*0.75)) -> 145 | CG38: =IF(CG17>0.01,MAX('Background Calculations'!$U$81*0.8,CG17),MAX('Background Calculations'!$U$76,'Background Calculations'!$U$81*0.75)) -> 49 | CI38: =IF(CI17>0.01,MAX('Background Calculations'!$U$82*0.8,CI17),MAX('Background Calculations'!$U$77,'Background Calculations'!$U$82*0.75)) -> 86 | CL38: 2016 | CM38: =IF(CM17>0.01,MAX('Background Calculations'!$U$80*0.8,CM17),MAX('Background Calculations'!$U$75,'Background Calculations'!$U$80*0.75)) -> 145 | CO38: =IF(CO17>0.01,MAX('Background Calculations'!$U$81*0.8,CO17),MAX('Background Calculations'!$U$76,'Background Calculations'!$U$81*0.75)) -> 49 | CQ38: =IF(CQ17>0.01,MAX('Background Calculations'!$U$82*0.8,CQ17),MAX('Background Calculations'!$U$77,'Background Calculations'!$U$82*0.75)) -> 86 | CT38: 2016 | CU38: =IF(CU17>0.01,MAX('Background Calculations'!$U$80*0.8,CU17),MAX('Background Calculations'!$U$75,'Background Calculations'!$U$80*0.75)) -> 145 | CW38: =IF(CW17>0.01,MAX('Background Calculations'!$U$81*0.8,CW17),MAX('Background Calculations'!$U$76,'Background Calculations'!$U$81*0.75)) -> 49 | CY38: =IF(CY17>0.01,MAX('Background Calculations'!$U$82*0.8,CY17),MAX('Background Calculations'!$U$77,'Background Calculations'!$U$82*0.75)) -> 86 | DB38: 2016 | DC38: =IF(DC17>0.01,MAX('Background Calculations'!$U$80*0.8,DC17),MAX('Background Calculations'!$U$75,'Background Calculations'!$U$80*0.75)) -> 145 | DE38: =IF(DE17>0.01,MAX('Background Calculations'!$U$81*0.8,DE17),MAX('Background Calculations'!$U$76,'Background Calculations'!$U$81*0.75)) -> 49 | DG38: =IF(DG17>0.01,MAX('Background Calculations'!$U$82*0.8,DG17),MAX('Background Calculations'!$U$77,'Background Calculations'!$U$82*0.75)) -> 86 | DJ38: 2016 | DK38: =IF(DK17>0.01,MAX('Background Calculations'!$U$80*0.8,DK17),MAX('Background Calculations'!$U$75,'Background Calculations'!$U$80*0.75)) -> 145 | DM38: =IF(DM17>0.01,MAX('Background Calculations'!$U$81*0.8,DM17),MAX('Background Calculations'!$U$76,'Background Calculations'!$U$81*0.75)) -> 49 | DO38: =IF(DO17>0.01,MAX('Background Calculations'!$U$82*0.8,DO17),MAX('Background Calculations'!$U$77,'Background Calculations'!$U$82*0.75)) -> 86 | DR38: 2016 | DS38: =IF(DS17>0.01,MAX('Background Calculations'!$U$80*0.8,DS17),MAX('Background Calculations'!$U$75,'Background Calculations'!$U$80*0.75)) -> 145 | DU38: =IF(DU17>0.01,MAX('Background Calculations'!$U$81*0.8,DU17),MAX('Background Calculations'!$U$76,'Background Calculations'!$U$81*0.75)) -> 49 | DW38: =IF(DW17>0.01,MAX('Background Calculations'!$U$82*0.8,DW17),MAX('Background Calculations'!$U$77,'Background Calculations'!$U$82*0.75)) -> 86 | DZ38: 2016 | EA38: =IF(EA17>0.01,MAX('Background Calculations'!$U$80*0.8,EA17),MAX('Background Calculations'!$U$75,'Background Calculations'!$U$80*0.75)) -> 145 | EC38: =IF(EC17>0.01,MAX('Background Calculations'!$U$81*0.8,EC17),MAX('Background Calculations'!$U$76,'Background Calculations'!$U$81*0.75)) -> 49 | EE38: =IF(EE17>0.01,MAX('Background Calculations'!$U$82*0.8,EE17),MAX('Background Calculations'!$U$77,'Background Calculations'!$U$82*0.75)) -> 86 | EH38: 2016 | EI38: =IF(EI17>0.01,MAX('Background Calculations'!$U$80*0.8,EI17),MAX('Background Calculations'!$U$75,'Background Calculations'!$U$80*0.75)) -> 145 | EK38: =IF(EK17>0.01,MAX('Background Calculations'!$U$81*0.8,EK17),MAX('Background Calculations'!$U$76,'Background Calculations'!$U$81*0.75)) -> 49 | EM38: =IF(EM17>0.01,MAX('Background Calculations'!$U$82*0.8,EM17),MAX('Background Calculations'!$U$77,'Background Calculations'!$U$82*0.75)) -> 86 | EP38: 2016 | EQ38: =IF(EQ17>0.01,MAX('Background Calculations'!$U$80*0.8,EQ17),MAX('Background Calculations'!$U$75,'Background Calculations'!$U$80*0.75)) -> 145 | ES38: =IF(ES17>0.01,MAX('Background Calculations'!$U$81*0.8,ES17),MAX('Background Calculations'!$U$76,'Background Calculations'!$U$81*0.75)) -> 49 | EU38: =IF(EU17>0.01,MAX('Background Calculations'!$U$82*0.8,EU17),MAX('Background Calculations'!$U$77,'Background Calculations'!$U$82*0.75)) -> 86 | EX38: 2016 | EY38: =IF(EY17>0.01,MAX('Background Calculations'!$U$80*0.8,EY17),MAX('Background Calculations'!$U$75,'Background Calculations'!$U$80*0.75)) -> 145 | FA38: =IF(FA17>0.01,MAX('Background Calculations'!$U$81*0.8,FA17),MAX('Background Calculations'!$U$76,'Background Calculations'!$U$81*0.75)) -> 49 | FC38: =IF(FC17>0.01,MAX('Background Calculations'!$U$82*0.8,FC17),MAX('Background Calculations'!$U$77,'Background Calculations'!$U$82*0.75)) -> 86 | FF38: 2016 | FG38: =IF(FG17>0.01,MAX('Background Calculations'!$U$80*0.8,FG17),MAX('Background Calculations'!$U$75,'Background Calculations'!$U$80*0.75)) -> 145 | FI38: =IF(FI17>0.01,MAX('Background Calculations'!$U$81*0.8,FI17),MAX('Background Calculations'!$U$76,'Background Calculations'!$U$81*0.75)) -> 49 | FK38: =IF(FK17>0.01,MAX('Background Calculations'!$U$82*0.8,FK17),MAX('Background Calculations'!$U$77,'Background Calculations'!$U$82*0.75)) -> 86 | FN38: 2016 | FO38: =IF(FO17>0.01,MAX('Background Calculations'!$U$80*0.8,FO17),MAX('Background Calculations'!$U$75,'Background Calculations'!$U$80*0.75)) -> 145 | FQ38: =IF(FQ17>0.01,MAX('Background Calculations'!$U$81*0.8,FQ17),MAX('Background Calculations'!$U$76,'Background Calculations'!$U$81*0.75)) -> 49 | FS38: =IF(FS17>0.01,MAX('Background Calculations'!$U$82*0.8,FS17),MAX('Background Calculations'!$U$77,'Background Calculations'!$U$82*0.75)) -> 86 | FV38: 2016 | FW38: =IF(FW17>0.01,MAX('Background Calculations'!$U$80*0.8,FW17),MAX('Background Calculations'!$U$75,'Background Calculations'!$U$80*0.75)) -> 145 | FY38: =IF(FY17>0.01,MAX('Background Calculations'!$U$81*0.8,FY17),MAX('Background Calculations'!$U$76,'Background Calculations'!$U$81*0.75)) -> 49 | GA38: =IF(GA17>0.01,MAX('Background Calculations'!$U$82*0.8,GA17),MAX('Background Calculations'!$U$77,'Background Calculations'!$U$82*0.75)) -> 86 | GD38: 2016 | GE38: =IF(GE17>0.01,MAX('Background Calculations'!$U$80*0.8,GE17),MAX('Background Calculations'!$U$75,'Background Calculations'!$U$80*0.75)) -> 145 | GG38: =IF(GG17>0.01,MAX('Background Calculations'!$U$81*0.8,GG17),MAX('Background Calculations'!$U$76,'Background Calculations'!$U$81*0.75)) -> 49 | GI38: =IF(GI17>0.01,MAX('Background Calculations'!$U$82*0.8,GI17),MAX('Background Calculations'!$U$77,'Background Calculations'!$U$82*0.75)) -> 86 | GL38: 2016 | GM38: =IF(GM17>0.01,MAX('Background Calculations'!$U$80*0.8,GM17),MAX('Background Calculations'!$U$75,'Background Calculations'!$U$80*0.75)) -> 145 | GO38: =IF(GO17>0.01,MAX('Background Calculations'!$U$81*0.8,GO17),MAX('Background Calculations'!$U$76,'Background Calculations'!$U$81*0.75)) -> 49 | GQ38: =IF(GQ17>0.01,MAX('Background Calculations'!$U$82*0.8,GQ17),MAX('Background Calculations'!$U$77,'Background Calculations'!$U$82*0.75)) -> 86 | GT38: 2016 | GU38: =IF(GU17>0.01,MAX('Background Calculations'!$U$80*0.8,GU17),MAX('Background Calculations'!$U$75,'Background Calculations'!$U$80*0.75)) -> 145 | GW38: =IF(GW17>0.01,MAX('Background Calculations'!$U$81*0.8,GW17),MAX('Background Calculations'!$U$76,'Background Calculations'!$U$81*0.75)) -> 49 | GY38: =IF(GY17>0.01,MAX('Background Calculations'!$U$82*0.8,GY17),MAX('Background Calculations'!$U$77,'Background Calculations'!$U$82*0.75)) -> 86 | HB38: 2016 | HC38: =IF(HC17>0.01,MAX('Background Calculations'!$U$80*0.8,HC17),MAX('Background Calculations'!$U$75,'Background Calculations'!$U$80*0.75)) -> 145 | HE38: =IF(HE17>0.01,MAX('Background Calculations'!$U$81*0.8,HE17),MAX('Background Calculations'!$U$76,'Background Calculations'!$U$81*0.75)) -> 49 | HG38: =IF(HG17>0.01,MAX('Background Calculations'!$U$82*0.8,HG17),MAX('Background Calculations'!$U$77,'Background Calculations'!$U$82*0.75)) -> 86 | HJ38: 2016 | HK38: =IF(HK17>0.01,MAX('Background Calculations'!$U$80*0.8,HK17),MAX('Background Calculations'!$U$75,'Background Calculations'!$U$80*0.75)) -> 145 | HM38: =IF(HM17>0.01,MAX('Background Calculations'!$U$81*0.8,HM17),MAX('Background Calculations'!$U$76,'Background Calculations'!$U$81*0.75)) -> 49 | HO38: =IF(HO17>0.01,MAX('Background Calculations'!$U$82*0.8,HO17),MAX('Background Calculations'!$U$77,'Background Calculations'!$U$82*0.75)) -> 86 | HR38: 2016 | HS38: =IF(HS17>0.01,MAX('Background Calculations'!$U$80*0.8,HS17),MAX('Background Calculations'!$U$75,'Background Calculations'!$U$80*0.75)) -> 145 | HU38: =IF(HU17>0.01,MAX('Background Calculations'!$U$81*0.8,HU17),MAX('Background Calculations'!$U$76,'Background Calculations'!$U$81*0.75)) -> 49 | HW38: =IF(HW17>0.01,MAX('Background Calculations'!$U$82*0.8,HW17),MAX('Background Calculations'!$U$77,'Background Calculations'!$U$82*0.75)) -> 86 | HZ38: 2016 | IA38: =IF(IA17>0.01,MAX('Background Calculations'!$U$80*0.8,IA17),MAX('Background Calculations'!$U$75,'Background Calculations'!$U$80*0.75)) -> 145 | IC38: =IF(IC17>0.01,MAX('Background Calculations'!$U$81*0.8,IC17),MAX('Background Calculations'!$U$76,'Background Calculations'!$U$81*0.75)) -> 49 | IE38: =IF(IE17>0.01,MAX('Background Calculations'!$U$82*0.8,IE17),MAX('Background Calculations'!$U$77,'Background Calculations'!$U$82*0.75)) -> 86 | IH38: 2016 | II38: =IF(II17>0.01,MAX('Background Calculations'!$U$80*0.8,II17),MAX('Background Calculations'!$U$75,'Background Calculations'!$U$80*0.75)) -> 145 | IK38: =IF(IK17>0.01,MAX('Background Calculations'!$U$81*0.8,IK17),MAX('Background Calculations'!$U$76,'Background Calculations'!$U$81*0.75)) -> 49 | IM38: =IF(IM17>0.01,MAX('Background Calculations'!$U$82*0.8,IM17),MAX('Background Calculations'!$U$77,'Background Calculations'!$U$82*0.75)) -> 86 | IP38: 2016 | IQ38: =IF(IQ17>0.01,MAX('Background Calculations'!$U$80*0.8,IQ17),MAX('Background Calculations'!$U$75,'Background Calculations'!$U$80*0.75)) -> 145 | IS38: =IF(IS17>0.01,MAX('Background Calculations'!$U$81*0.8,IS17),MAX('Background Calculations'!$U$76,'Background Calculations'!$U$81*0.75)) -> 49 | IU38: =IF(IU17>0.01,MAX('Background Calculations'!$U$82*0.8,IU17),MAX('Background Calculations'!$U$77,'Background Calculations'!$U$82*0.75)) -> 86 | IX38: 2016 | IY38: =IF(IY17>0.01,MAX('Background Calculations'!$U$80*0.8,IY17),MAX('Background Calculations'!$U$75,'Background Calculations'!$U$80*0.75)) -> 145 | JA38: =IF(JA17>0.01,MAX('Background Calculations'!$U$81*0.8,JA17),MAX('Background Calculations'!$U$76,'Background Calculations'!$U$81*0.75)) -> 49 | JC38: =IF(JC17>0.01,MAX('Background Calculations'!$U$82*0.8,JC17),MAX('Background Calculations'!$U$77,'Background Calculations'!$U$82*0.75)) -> 86 | JF38: 2016 | JG38: =IF(JG17>0.01,MAX('Background Calculations'!$U$80*0.8,JG17),MAX('Background Calculations'!$U$75,'Background Calculations'!$U$80*0.75)) -> 145 | JI38: =IF(JI17>0.01,MAX('Background Calculations'!$U$81*0.8,JI17),MAX('Background Calculations'!$U$76,'Background Calculations'!$U$81*0.75)) -> 49 | JK38: =IF(JK17>0.01,MAX('Background Calculations'!$U$82*0.8,JK17),MAX('Background Calculations'!$U$77,'Background Calculations'!$U$82*0.75)) -> 86 | JN38: 2016 | JO38: =IF(JO17>0.01,MAX('Background Calculations'!$U$80*0.8,JO17),MAX('Background Calculations'!$U$75,'Background Calculations'!$U$80*0.75)) -> 145 | JQ38: =IF(JQ17>0.01,MAX('Background Calculations'!$U$81*0.8,JQ17),MAX('Background Calculations'!$U$76,'Background Calculations'!$U$81*0.75)) -> 49 | JS38: =IF(JS17>0.01,MAX('Background Calculations'!$U$82*0.8,JS17),MAX('Background Calculations'!$U$77,'Background Calculations'!$U$82*0.75)) -> 86 | JV38: 2016 | JW38: =IF(JW17>0.01,MAX('Background Calculations'!$U$80*0.8,JW17),MAX('Background Calculations'!$U$75,'Background Calculations'!$U$80*0.75)) -> 145 | JY38: =IF(JY17>0.01,MAX('Background Calculations'!$U$81*0.8,JY17),MAX('Background Calculations'!$U$76,'Background Calculations'!$U$81*0.75)) -> 49 | KA38: =IF(KA17>0.01,MAX('Background Calculations'!$U$82*0.8,KA17),MAX('Background Calculations'!$U$77,'Background Calculations'!$U$82*0.75)) -> 86 | KD38: 2016 | KE38: =IF(KE17>0.01,MAX('Background Calculations'!$U$80*0.8,KE17),MAX('Background Calculations'!$U$75,'Background Calculations'!$U$80*0.75)) -> 145 | KG38: =IF(KG17>0.01,MAX('Background Calculations'!$U$81*0.8,KG17),MAX('Background Calculations'!$U$76,'Background Calculations'!$U$81*0.75)) -> 49 | KI38: =IF(KI17>0.01,MAX('Background Calculations'!$U$82*0.8,KI17),MAX('Background Calculations'!$U$77,'Background Calculations'!$U$82*0.75)) -> 86 | KL38: 2016 | KM38: =IF(KM17>0.01,MAX('Background Calculations'!$U$80*0.8,KM17),MAX('Background Calculations'!$U$75,'Background Calculations'!$U$80*0.75)) -> 145 | KO38: =IF(KO17>0.01,MAX('Background Calculations'!$U$81*0.8,KO17),MAX('Background Calculations'!$U$76,'Background Calculations'!$U$81*0.75)) -> 49 | KQ38: =IF(KQ17>0.01,MAX('Background Calculations'!$U$82*0.8,KQ17),MAX('Background Calculations'!$U$77,'Background Calculations'!$U$82*0.75)) -> 86 | KT38: 2016 | KU38: =IF(KU17>0.01,MAX('Background Calculations'!$U$80*0.8,KU17),MAX('Background Calculations'!$U$75,'Background Calculations'!$U$80*0.75)) -> 145 | KW38: =IF(KW17>0.01,MAX('Background Calculations'!$U$81*0.8,KW17),MAX('Background Calculations'!$U$76,'Background Calculations'!$U$81*0.75)) -> 49 | KY38: =IF(KY17>0.01,MAX('Background Calculations'!$U$82*0.8,KY17),MAX('Background Calculations'!$U$77,'Background Calculations'!$U$82*0.75)) -> 86 | LB38: 2016 | LC38: =IF(LC17>0.01,MAX('Background Calculations'!$U$80*0.8,LC17),MAX('Background Calculations'!$U$75,'Background Calculations'!$U$80*0.75)) -> 145 | LE38: =IF(LE17>0.01,MAX('Background Calculations'!$U$81*0.8,LE17),MAX('Background Calculations'!$U$76,'Background Calculations'!$U$81*0.75)) -> 49 | LG38: =IF(LG17>0.01,MAX('Background Calculations'!$U$82*0.8,LG17),MAX('Background Calculations'!$U$77,'Background Calculations'!$U$82*0.75)) -> 86 | LJ38: 2016 | LK38: =IF(LK17>0.01,MAX('Background Calculations'!$U$80*0.8,LK17),MAX('Background Calculations'!$U$75,'Background Calculations'!$U$80*0.75)) -> 145 | LM38: =IF(LM17>0.01,MAX('Background Calculations'!$U$81*0.8,LM17),MAX('Background Calculations'!$U$76,'Background Calculations'!$U$81*0.75)) -> 49 | LO38: =IF(LO17>0.01,MAX('Background Calculations'!$U$82*0.8,LO17),MAX('Background Calculations'!$U$77,'Background Calculations'!$U$82*0.75)) -> 86 | LR38: 2016 | LS38: =IF(LS17>0.01,MAX('Background Calculations'!$U$80*0.8,LS17),MAX('Background Calculations'!$U$75,'Background Calculations'!$U$80*0.75)) -> 145 | LU38: =IF(LU17>0.01,MAX('Background Calculations'!$U$81*0.8,LU17),MAX('Background Calculations'!$U$76,'Background Calculations'!$U$81*0.75)) -> 49 | LW38: =IF(LW17>0.01,MAX('Background Calculations'!$U$82*0.8,LW17),MAX('Background Calculations'!$U$77,'Background Calculations'!$U$82*0.75)) -> 86 | LZ38: 2016 | MA38: =IF(MA17>0.01,MAX('Background Calculations'!$U$80*0.8,MA17),MAX('Background Calculations'!$U$75,'Background Calculations'!$U$80*0.75)) -> 145 | MC38: =IF(MC17>0.01,MAX('Background Calculations'!$U$81*0.8,MC17),MAX('Background Calculations'!$U$76,'Background Calculations'!$U$81*0.75)) -> 49 | ME38: =IF(ME17>0.01,MAX('Background Calculations'!$U$82*0.8,ME17),MAX('Background Calculations'!$U$77,'Background Calculations'!$U$82*0.75)) -> 86 | MH38: 2016 | MI38: =IF(MI17>0.01,MAX('Background Calculations'!$U$80*0.8,MI17),MAX('Background Calculations'!$U$75,'Background Calculations'!$U$80*0.75)) -> 145 | MK38: =IF(MK17>0.01,MAX('Background Calculations'!$U$81*0.8,MK17),MAX('Background Calculations'!$U$76,'Background Calculations'!$U$81*0.75)) -> 49 | MM38: =IF(MM17>0.01,MAX('Background Calculations'!$U$82*0.8,MM17),MAX('Background Calculations'!$U$77,'Background Calculations'!$U$82*0.75)) -> 86 | MP38: 2016 | MQ38: =IF(MQ17>0.01,MAX('Background Calculations'!$U$80*0.8,MQ17),MAX('Background Calculations'!$U$75,'Background Calculations'!$U$80*0.75)) -> 145 | MS38: =IF(MS17>0.01,MAX('Background Calculations'!$U$81*0.8,MS17),MAX('Background Calculations'!$U$76,'Background Calculations'!$U$81*0.75)) -> 49 | MU38: =IF(MU17>0.01,MAX('Background Calculations'!$U$82*0.8,MU17),MAX('Background Calculations'!$U$77,'Background Calculations'!$U$82*0.75)) -> 86 | MX38: 2016 | MY38: =IF(MY17>0.01,MAX('Background Calculations'!$U$80*0.8,MY17),MAX('Background Calculations'!$U$75,'Background Calculations'!$U$80*0.75)) -> 145 | NA38: =IF(NA17>0.01,MAX('Background Calculations'!$U$81*0.8,NA17),MAX('Background Calculations'!$U$76,'Background Calculations'!$U$81*0.75)) -> 49 | NC38: =IF(NC17>0.01,MAX('Background Calculations'!$U$82*0.8,NC17),MAX('Background Calculations'!$U$77,'Background Calculations'!$U$82*0.75)) -> 86 | NF38: 2016 | NG38: =IF(NG17>0.01,MAX('Background Calculations'!$U$80*0.8,NG17),MAX('Background Calculations'!$U$75,'Background Calculations'!$U$80*0.75)) -> 145 | NI38: =IF(NI17>0.01,MAX('Background Calculations'!$U$81*0.8,NI17),MAX('Background Calculations'!$U$76,'Background Calculations'!$U$81*0.75)) -> 49 | NK38: =IF(NK17>0.01,MAX('Background Calculations'!$U$82*0.8,NK17),MAX('Background Calculations'!$U$77,'Background Calculations'!$U$82*0.75)) -> 86 | NN38: 2016 | NO38: =IF(NO17>0.01,MAX('Background Calculations'!$U$80*0.8,NO17),MAX('Background Calculations'!$U$75,'Background Calculations'!$U$80*0.75)) -> 145 | NQ38: =IF(NQ17>0.01,MAX('Background Calculations'!$U$81*0.8,NQ17),MAX('Background Calculations'!$U$76,'Background Calculations'!$U$81*0.75)) -> 49 | NS38: =IF(NS17>0.01,MAX('Background Calculations'!$U$82*0.8,NS17),MAX('Background Calculations'!$U$77,'Background Calculations'!$U$82*0.75)) -> 86 | NV38: 2016 | NW38: =IF(NW17>0.01,MAX('Background Calculations'!$U$80*0.8,NW17),MAX('Background Calculations'!$U$75,'Background Calculations'!$U$80*0.75)) -> 145 | NY38: =IF(NY17>0.01,MAX('Background Calculations'!$U$81*0.8,NY17),MAX('Background Calculations'!$U$76,'Background Calculations'!$U$81*0.75)) -> 49 | OA38: =IF(OA17>0.01,MAX('Background Calculations'!$U$82*0.8,OA17),MAX('Background Calculations'!$U$77,'Background Calculations'!$U$82*0.75)) -> 86 | OD38: 2016 | OE38: =IF(OE17>0.01,MAX('Background Calculations'!$U$80*0.8,OE17),MAX('Background Calculations'!$U$75,'Background Calculations'!$U$80*0.75)) -> 145 | OG38: =IF(OG17>0.01,MAX('Background Calculations'!$U$81*0.8,OG17),MAX('Background Calculations'!$U$76,'Background Calculations'!$U$81*0.75)) -> 49 | OI38: =IF(OI17>0.01,MAX('Background Calculations'!$U$82*0.8,OI17),MAX('Background Calculations'!$U$77,'Background Calculations'!$U$82*0.75)) -> 86 | OL38: 2016 | OM38: =IF(OM17>0.01,MAX('Background Calculations'!$U$80*0.8,OM17),MAX('Background Calculations'!$U$75,'Background Calculations'!$U$80*0.75)) -> 145 | OO38: =IF(OO17>0.01,MAX('Background Calculations'!$U$81*0.8,OO17),MAX('Background Calculations'!$U$76,'Background Calculations'!$U$81*0.75)) -> 49 | OQ38: =IF(OQ17>0.01,MAX('Background Calculations'!$U$82*0.8,OQ17),MAX('Background Calculations'!$U$77,'Background Calculations'!$U$82*0.75)) -> 86
B39: 2017 | C39: =IF(C18>0.01,MAX('Background Calculations'!$V$80*0.8,C18),MAX('Background Calculations'!$V$75,'Background Calculations'!$V$80*0.75)) -> 167 | E39: =IF(E18>0.01,MAX('Background Calculations'!$V$81*0.8,E18),MAX('Background Calculations'!$V$76,'Background Calculations'!$V$81*0.75)) -> 41 | G39: =IF(G18>0.01,MAX('Background Calculations'!$V$82*0.8,G18),MAX('Background Calculations'!$V$77,'Background Calculations'!$V$82*0.75)) -> 60 | J39: 2017 | K39: =IF(K18>0.01,MAX('Background Calculations'!$V$80*0.8,K18),MAX('Background Calculations'!$V$75,'Background Calculations'!$V$80*0.75)) -> 167 | M39: =IF(M18>0.01,MAX('Background Calculations'!$V$81*0.8,M18),MAX('Background Calculations'!$V$76,'Background Calculations'!$V$81*0.75)) -> 41 | O39: =IF(O18>0.01,MAX('Background Calculations'!$V$82*0.8,O18),MAX('Background Calculations'!$V$77,'Background Calculations'!$V$82*0.75)) -> 60 | R39: 2017 | S39: =IF(S18>0.01,MAX('Background Calculations'!$V$80*0.8,S18),MAX('Background Calculations'!$V$75,'Background Calculations'!$V$80*0.75)) -> 167 | U39: =IF(U18>0.01,MAX('Background Calculations'!$V$81*0.8,U18),MAX('Background Calculations'!$V$76,'Background Calculations'!$V$81*0.75)) -> 41 | W39: =IF(W18>0.01,MAX('Background Calculations'!$V$82*0.8,W18),MAX('Background Calculations'!$V$77,'Background Calculations'!$V$82*0.75)) -> 60 | Z39: 2017 | AA39: =IF(AA18>0.01,MAX('Background Calculations'!$V$80*0.8,AA18),MAX('Background Calculations'!$V$75,'Background Calculations'!$V$80*0.75)) -> 167 | AC39: =IF(AC18>0.01,MAX('Background Calculations'!$V$81*0.8,AC18),MAX('Background Calculations'!$V$76,'Background Calculations'!$V$81*0.75)) -> 41 | AE39: =IF(AE18>0.01,MAX('Background Calculations'!$V$82*0.8,AE18),MAX('Background Calculations'!$V$77,'Background Calculations'!$V$82*0.75)) -> 60 | AH39: 2017 | AI39: =IF(AI18>0.01,MAX('Background Calculations'!$V$80*0.8,AI18),MAX('Background Calculations'!$V$75,'Background Calculations'!$V$80*0.75)) -> 167 | AK39: =IF(AK18>0.01,MAX('Background Calculations'!$V$81*0.8,AK18),MAX('Background Calculations'!$V$76,'Background Calculations'!$V$81*0.75)) -> 41 | AM39: =IF(AM18>0.01,MAX('Background Calculations'!$V$82*0.8,AM18),MAX('Background Calculations'!$V$77,'Background Calculations'!$V$82*0.75)) -> 60 | AP39: 2017 | AQ39: =IF(AQ18>0.01,MAX('Background Calculations'!$V$80*0.8,AQ18),MAX('Background Calculations'!$V$75,'Background Calculations'!$V$80*0.75)) -> 167 | AS39: =IF(AS18>0.01,MAX('Background Calculations'!$V$81*0.8,AS18),MAX('Background Calculations'!$V$76,'Background Calculations'!$V$81*0.75)) -> 41 | AU39: =IF(AU18>0.01,MAX('Background Calculations'!$V$82*0.8,AU18),MAX('Background Calculations'!$V$77,'Background Calculations'!$V$82*0.75)) -> 60 | AX39: 2017 | AY39: =IF(AY18>0.01,MAX('Background Calculations'!$V$80*0.8,AY18),MAX('Background Calculations'!$V$75,'Background Calculations'!$V$80*0.75)) -> 167 | BA39: =IF(BA18>0.01,MAX('Background Calculations'!$V$81*0.8,BA18),MAX('Background Calculations'!$V$76,'Background Calculations'!$V$81*0.75)) -> 41 | BC39: =IF(BC18>0.01,MAX('Background Calculations'!$V$82*0.8,BC18),MAX('Background Calculations'!$V$77,'Background Calculations'!$V$82*0.75)) -> 60 | BF39: 2017 | BG39: =IF(BG18>0.01,MAX('Background Calculations'!$V$80*0.8,BG18),MAX('Background Calculations'!$V$75,'Background Calculations'!$V$80*0.75)) -> 167 | BI39: =IF(BI18>0.01,MAX('Background Calculations'!$V$81*0.8,BI18),MAX('Background Calculations'!$V$76,'Background Calculations'!$V$81*0.75)) -> 41 | BK39: =IF(BK18>0.01,MAX('Background Calculations'!$V$82*0.8,BK18),MAX('Background Calculations'!$V$77,'Background Calculations'!$V$82*0.75)) -> 60 | BN39: 2017 | BO39: =IF(BO18>0.01,MAX('Background Calculations'!$V$80*0.8,BO18),MAX('Background Calculations'!$V$75,'Background Calculations'!$V$80*0.75)) -> 167 | BQ39: =IF(BQ18>0.01,MAX('Background Calculations'!$V$81*0.8,BQ18),MAX('Background Calculations'!$V$76,'Background Calculations'!$V$81*0.75)) -> 41 | BS39: =IF(BS18>0.01,MAX('Background Calculations'!$V$82*0.8,BS18),MAX('Background Calculations'!$V$77,'Background Calculations'!$V$82*0.75)) -> 60 | BV39: 2017 | BW39: =IF(BW18>0.01,MAX('Background Calculations'!$V$80*0.8,BW18),MAX('Background Calculations'!$V$75,'Background Calculations'!$V$80*0.75)) -> 167 | BY39: =IF(BY18>0.01,MAX('Background Calculations'!$V$81*0.8,BY18),MAX('Background Calculations'!$V$76,'Background Calculations'!$V$81*0.75)) -> 41 | CA39: =IF(CA18>0.01,MAX('Background Calculations'!$V$82*0.8,CA18),MAX('Background Calculations'!$V$77,'Background Calculations'!$V$82*0.75)) -> 60 | CD39: 2017 | CE39: =IF(CE18>0.01,MAX('Background Calculations'!$V$80*0.8,CE18),MAX('Background Calculations'!$V$75,'Background Calculations'!$V$80*0.75)) -> 167 | CG39: =IF(CG18>0.01,MAX('Background Calculations'!$V$81*0.8,CG18),MAX('Background Calculations'!$V$76,'Background Calculations'!$V$81*0.75)) -> 41 | CI39: =IF(CI18>0.01,MAX('Background Calculations'!$V$82*0.8,CI18),MAX('Background Calculations'!$V$77,'Background Calculations'!$V$82*0.75)) -> 60 | CL39: 2017 | CM39: =IF(CM18>0.01,MAX('Background Calculations'!$V$80*0.8,CM18),MAX('Background Calculations'!$V$75,'Background Calculations'!$V$80*0.75)) -> 167 | CO39: =IF(CO18>0.01,MAX('Background Calculations'!$V$81*0.8,CO18),MAX('Background Calculations'!$V$76,'Background Calculations'!$V$81*0.75)) -> 41 | CQ39: =IF(CQ18>0.01,MAX('Background Calculations'!$V$82*0.8,CQ18),MAX('Background Calculations'!$V$77,'Background Calculations'!$V$82*0.75)) -> 60 | CT39: 2017 | CU39: =IF(CU18>0.01,MAX('Background Calculations'!$V$80*0.8,CU18),MAX('Background Calculations'!$V$75,'Background Calculations'!$V$80*0.75)) -> 167 | CW39: =IF(CW18>0.01,MAX('Background Calculations'!$V$81*0.8,CW18),MAX('Background Calculations'!$V$76,'Background Calculations'!$V$81*0.75)) -> 41 | CY39: =IF(CY18>0.01,MAX('Background Calculations'!$V$82*0.8,CY18),MAX('Background Calculations'!$V$77,'Background Calculations'!$V$82*0.75)) -> 60 | DB39: 2017 | DC39: =IF(DC18>0.01,MAX('Background Calculations'!$V$80*0.8,DC18),MAX('Background Calculations'!$V$75,'Background Calculations'!$V$80*0.75)) -> 167 | DE39: =IF(DE18>0.01,MAX('Background Calculations'!$V$81*0.8,DE18),MAX('Background Calculations'!$V$76,'Background Calculations'!$V$81*0.75)) -> 41 | DG39: =IF(DG18>0.01,MAX('Background Calculations'!$V$82*0.8,DG18),MAX('Background Calculations'!$V$77,'Background Calculations'!$V$82*0.75)) -> 60 | DJ39: 2017 | DK39: =IF(DK18>0.01,MAX('Background Calculations'!$V$80*0.8,DK18),MAX('Background Calculations'!$V$75,'Background Calculations'!$V$80*0.75)) -> 167 | DM39: =IF(DM18>0.01,MAX('Background Calculations'!$V$81*0.8,DM18),MAX('Background Calculations'!$V$76,'Background Calculations'!$V$81*0.75)) -> 41 | DO39: =IF(DO18>0.01,MAX('Background Calculations'!$V$82*0.8,DO18),MAX('Background Calculations'!$V$77,'Background Calculations'!$V$82*0.75)) -> 60 | DR39: 2017 | DS39: =IF(DS18>0.01,MAX('Background Calculations'!$V$80*0.8,DS18),MAX('Background Calculations'!$V$75,'Background Calculations'!$V$80*0.75)) -> 167 | DU39: =IF(DU18>0.01,MAX('Background Calculations'!$V$81*0.8,DU18),MAX('Background Calculations'!$V$76,'Background Calculations'!$V$81*0.75)) -> 41 | DW39: =IF(DW18>0.01,MAX('Background Calculations'!$V$82*0.8,DW18),MAX('Background Calculations'!$V$77,'Background Calculations'!$V$82*0.75)) -> 60 | DZ39: 2017 | EA39: =IF(EA18>0.01,MAX('Background Calculations'!$V$80*0.8,EA18),MAX('Background Calculations'!$V$75,'Background Calculations'!$V$80*0.75)) -> 167 | EC39: =IF(EC18>0.01,MAX('Background Calculations'!$V$81*0.8,EC18),MAX('Background Calculations'!$V$76,'Background Calculations'!$V$81*0.75)) -> 41 | EE39: =IF(EE18>0.01,MAX('Background Calculations'!$V$82*0.8,EE18),MAX('Background Calculations'!$V$77,'Background Calculations'!$V$82*0.75)) -> 60 | EH39: 2017 | EI39: =IF(EI18>0.01,MAX('Background Calculations'!$V$80*0.8,EI18),MAX('Background Calculations'!$V$75,'Background Calculations'!$V$80*0.75)) -> 167 | EK39: =IF(EK18>0.01,MAX('Background Calculations'!$V$81*0.8,EK18),MAX('Background Calculations'!$V$76,'Background Calculations'!$V$81*0.75)) -> 41 | EM39: =IF(EM18>0.01,MAX('Background Calculations'!$V$82*0.8,EM18),MAX('Background Calculations'!$V$77,'Background Calculations'!$V$82*0.75)) -> 60 | EP39: 2017 | EQ39: =IF(EQ18>0.01,MAX('Background Calculations'!$V$80*0.8,EQ18),MAX('Background Calculations'!$V$75,'Background Calculations'!$V$80*0.75)) -> 167 | ES39: =IF(ES18>0.01,MAX('Background Calculations'!$V$81*0.8,ES18),MAX('Background Calculations'!$V$76,'Background Calculations'!$V$81*0.75)) -> 41 | EU39: =IF(EU18>0.01,MAX('Background Calculations'!$V$82*0.8,EU18),MAX('Background Calculations'!$V$77,'Background Calculations'!$V$82*0.75)) -> 60 | EX39: 2017 | EY39: =IF(EY18>0.01,MAX('Background Calculations'!$V$80*0.8,EY18),MAX('Background Calculations'!$V$75,'Background Calculations'!$V$80*0.75)) -> 167 | FA39: =IF(FA18>0.01,MAX('Background Calculations'!$V$81*0.8,FA18),MAX('Background Calculations'!$V$76,'Background Calculations'!$V$81*0.75)) -> 41 | FC39: =IF(FC18>0.01,MAX('Background Calculations'!$V$82*0.8,FC18),MAX('Background Calculations'!$V$77,'Background Calculations'!$V$82*0.75)) -> 60 | FF39: 2017 | FG39: =IF(FG18>0.01,MAX('Background Calculations'!$V$80*0.8,FG18),MAX('Background Calculations'!$V$75,'Background Calculations'!$V$80*0.75)) -> 167 | FI39: =IF(FI18>0.01,MAX('Background Calculations'!$V$81*0.8,FI18),MAX('Background Calculations'!$V$76,'Background Calculations'!$V$81*0.75)) -> 41 | FK39: =IF(FK18>0.01,MAX('Background Calculations'!$V$82*0.8,FK18),MAX('Background Calculations'!$V$77,'Background Calculations'!$V$82*0.75)) -> 60 | FN39: 2017 | FO39: =IF(FO18>0.01,MAX('Background Calculations'!$V$80*0.8,FO18),MAX('Background Calculations'!$V$75,'Background Calculations'!$V$80*0.75)) -> 167 | FQ39: =IF(FQ18>0.01,MAX('Background Calculations'!$V$81*0.8,FQ18),MAX('Background Calculations'!$V$76,'Background Calculations'!$V$81*0.75)) -> 41 | FS39: =IF(FS18>0.01,MAX('Background Calculations'!$V$82*0.8,FS18),MAX('Background Calculations'!$V$77,'Background Calculations'!$V$82*0.75)) -> 60 | FV39: 2017 | FW39: =IF(FW18>0.01,MAX('Background Calculations'!$V$80*0.8,FW18),MAX('Background Calculations'!$V$75,'Background Calculations'!$V$80*0.75)) -> 167 | FY39: =IF(FY18>0.01,MAX('Background Calculations'!$V$81*0.8,FY18),MAX('Background Calculations'!$V$76,'Background Calculations'!$V$81*0.75)) -> 41 | GA39: =IF(GA18>0.01,MAX('Background Calculations'!$V$82*0.8,GA18),MAX('Background Calculations'!$V$77,'Background Calculations'!$V$82*0.75)) -> 60 | GD39: 2017 | GE39: =IF(GE18>0.01,MAX('Background Calculations'!$V$80*0.8,GE18),MAX('Background Calculations'!$V$75,'Background Calculations'!$V$80*0.75)) -> 167 | GG39: =IF(GG18>0.01,MAX('Background Calculations'!$V$81*0.8,GG18),MAX('Background Calculations'!$V$76,'Background Calculations'!$V$81*0.75)) -> 41 | GI39: =IF(GI18>0.01,MAX('Background Calculations'!$V$82*0.8,GI18),MAX('Background Calculations'!$V$77,'Background Calculations'!$V$82*0.75)) -> 60 | GL39: 2017 | GM39: =IF(GM18>0.01,MAX('Background Calculations'!$V$80*0.8,GM18),MAX('Background Calculations'!$V$75,'Background Calculations'!$V$80*0.75)) -> 167 | GO39: =IF(GO18>0.01,MAX('Background Calculations'!$V$81*0.8,GO18),MAX('Background Calculations'!$V$76,'Background Calculations'!$V$81*0.75)) -> 41 | GQ39: =IF(GQ18>0.01,MAX('Background Calculations'!$V$82*0.8,GQ18),MAX('Background Calculations'!$V$77,'Background Calculations'!$V$82*0.75)) -> 60 | GT39: 2017 | GU39: =IF(GU18>0.01,MAX('Background Calculations'!$V$80*0.8,GU18),MAX('Background Calculations'!$V$75,'Background Calculations'!$V$80*0.75)) -> 167 | GW39: =IF(GW18>0.01,MAX('Background Calculations'!$V$81*0.8,GW18),MAX('Background Calculations'!$V$76,'Background Calculations'!$V$81*0.75)) -> 41 | GY39: =IF(GY18>0.01,MAX('Background Calculations'!$V$82*0.8,GY18),MAX('Background Calculations'!$V$77,'Background Calculations'!$V$82*0.75)) -> 60 | HB39: 2017 | HC39: =IF(HC18>0.01,MAX('Background Calculations'!$V$80*0.8,HC18),MAX('Background Calculations'!$V$75,'Background Calculations'!$V$80*0.75)) -> 167 | HE39: =IF(HE18>0.01,MAX('Background Calculations'!$V$81*0.8,HE18),MAX('Background Calculations'!$V$76,'Background Calculations'!$V$81*0.75)) -> 41 | HG39: =IF(HG18>0.01,MAX('Background Calculations'!$V$82*0.8,HG18),MAX('Background Calculations'!$V$77,'Background Calculations'!$V$82*0.75)) -> 60 | HJ39: 2017 | HK39: =IF(HK18>0.01,MAX('Background Calculations'!$V$80*0.8,HK18),MAX('Background Calculations'!$V$75,'Background Calculations'!$V$80*0.75)) -> 167 | HM39: =IF(HM18>0.01,MAX('Background Calculations'!$V$81*0.8,HM18),MAX('Background Calculations'!$V$76,'Background Calculations'!$V$81*0.75)) -> 41 | HO39: =IF(HO18>0.01,MAX('Background Calculations'!$V$82*0.8,HO18),MAX('Background Calculations'!$V$77,'Background Calculations'!$V$82*0.75)) -> 60 | HR39: 2017 | HS39: =IF(HS18>0.01,MAX('Background Calculations'!$V$80*0.8,HS18),MAX('Background Calculations'!$V$75,'Background Calculations'!$V$80*0.75)) -> 167 | HU39: =IF(HU18>0.01,MAX('Background Calculations'!$V$81*0.8,HU18),MAX('Background Calculations'!$V$76,'Background Calculations'!$V$81*0.75)) -> 41 | HW39: =IF(HW18>0.01,MAX('Background Calculations'!$V$82*0.8,HW18),MAX('Background Calculations'!$V$77,'Background Calculations'!$V$82*0.75)) -> 60 | HZ39: 2017 | IA39: =IF(IA18>0.01,MAX('Background Calculations'!$V$80*0.8,IA18),MAX('Background Calculations'!$V$75,'Background Calculations'!$V$80*0.75)) -> 167 | IC39: =IF(IC18>0.01,MAX('Background Calculations'!$V$81*0.8,IC18),MAX('Background Calculations'!$V$76,'Background Calculations'!$V$81*0.75)) -> 41 | IE39: =IF(IE18>0.01,MAX('Background Calculations'!$V$82*0.8,IE18),MAX('Background Calculations'!$V$77,'Background Calculations'!$V$82*0.75)) -> 60 | IH39: 2017 | II39: =IF(II18>0.01,MAX('Background Calculations'!$V$80*0.8,II18),MAX('Background Calculations'!$V$75,'Background Calculations'!$V$80*0.75)) -> 167 | IK39: =IF(IK18>0.01,MAX('Background Calculations'!$V$81*0.8,IK18),MAX('Background Calculations'!$V$76,'Background Calculations'!$V$81*0.75)) -> 41 | IM39: =IF(IM18>0.01,MAX('Background Calculations'!$V$82*0.8,IM18),MAX('Background Calculations'!$V$77,'Background Calculations'!$V$82*0.75)) -> 60 | IP39: 2017 | IQ39: =IF(IQ18>0.01,MAX('Background Calculations'!$V$80*0.8,IQ18),MAX('Background Calculations'!$V$75,'Background Calculations'!$V$80*0.75)) -> 167 | IS39: =IF(IS18>0.01,MAX('Background Calculations'!$V$81*0.8,IS18),MAX('Background Calculations'!$V$76,'Background Calculations'!$V$81*0.75)) -> 41 | IU39: =IF(IU18>0.01,MAX('Background Calculations'!$V$82*0.8,IU18),MAX('Background Calculations'!$V$77,'Background Calculations'!$V$82*0.75)) -> 60 | IX39: 2017 | IY39: =IF(IY18>0.01,MAX('Background Calculations'!$V$80*0.8,IY18),MAX('Background Calculations'!$V$75,'Background Calculations'!$V$80*0.75)) -> 167 | JA39: =IF(JA18>0.01,MAX('Background Calculations'!$V$81*0.8,JA18),MAX('Background Calculations'!$V$76,'Background Calculations'!$V$81*0.75)) -> 41 | JC39: =IF(JC18>0.01,MAX('Background Calculations'!$V$82*0.8,JC18),MAX('Background Calculations'!$V$77,'Background Calculations'!$V$82*0.75)) -> 60 | JF39: 2017 | JG39: =IF(JG18>0.01,MAX('Background Calculations'!$V$80*0.8,JG18),MAX('Background Calculations'!$V$75,'Background Calculations'!$V$80*0.75)) -> 167 | JI39: =IF(JI18>0.01,MAX('Background Calculations'!$V$81*0.8,JI18),MAX('Background Calculations'!$V$76,'Background Calculations'!$V$81*0.75)) -> 41 | JK39: =IF(JK18>0.01,MAX('Background Calculations'!$V$82*0.8,JK18),MAX('Background Calculations'!$V$77,'Background Calculations'!$V$82*0.75)) -> 60 | JN39: 2017 | JO39: =IF(JO18>0.01,MAX('Background Calculations'!$V$80*0.8,JO18),MAX('Background Calculations'!$V$75,'Background Calculations'!$V$80*0.75)) -> 167 | JQ39: =IF(JQ18>0.01,MAX('Background Calculations'!$V$81*0.8,JQ18),MAX('Background Calculations'!$V$76,'Background Calculations'!$V$81*0.75)) -> 41 | JS39: =IF(JS18>0.01,MAX('Background Calculations'!$V$82*0.8,JS18),MAX('Background Calculations'!$V$77,'Background Calculations'!$V$82*0.75)) -> 60 | JV39: 2017 | JW39: =IF(JW18>0.01,MAX('Background Calculations'!$V$80*0.8,JW18),MAX('Background Calculations'!$V$75,'Background Calculations'!$V$80*0.75)) -> 167 | JY39: =IF(JY18>0.01,MAX('Background Calculations'!$V$81*0.8,JY18),MAX('Background Calculations'!$V$76,'Background Calculations'!$V$81*0.75)) -> 41 | KA39: =IF(KA18>0.01,MAX('Background Calculations'!$V$82*0.8,KA18),MAX('Background Calculations'!$V$77,'Background Calculations'!$V$82*0.75)) -> 60 | KD39: 2017 | KE39: =IF(KE18>0.01,MAX('Background Calculations'!$V$80*0.8,KE18),MAX('Background Calculations'!$V$75,'Background Calculations'!$V$80*0.75)) -> 167 | KG39: =IF(KG18>0.01,MAX('Background Calculations'!$V$81*0.8,KG18),MAX('Background Calculations'!$V$76,'Background Calculations'!$V$81*0.75)) -> 41 | KI39: =IF(KI18>0.01,MAX('Background Calculations'!$V$82*0.8,KI18),MAX('Background Calculations'!$V$77,'Background Calculations'!$V$82*0.75)) -> 60 | KL39: 2017 | KM39: =IF(KM18>0.01,MAX('Background Calculations'!$V$80*0.8,KM18),MAX('Background Calculations'!$V$75,'Background Calculations'!$V$80*0.75)) -> 167 | KO39: =IF(KO18>0.01,MAX('Background Calculations'!$V$81*0.8,KO18),MAX('Background Calculations'!$V$76,'Background Calculations'!$V$81*0.75)) -> 41 | KQ39: =IF(KQ18>0.01,MAX('Background Calculations'!$V$82*0.8,KQ18),MAX('Background Calculations'!$V$77,'Background Calculations'!$V$82*0.75)) -> 60 | KT39: 2017 | KU39: =IF(KU18>0.01,MAX('Background Calculations'!$V$80*0.8,KU18),MAX('Background Calculations'!$V$75,'Background Calculations'!$V$80*0.75)) -> 167 | KW39: =IF(KW18>0.01,MAX('Background Calculations'!$V$81*0.8,KW18),MAX('Background Calculations'!$V$76,'Background Calculations'!$V$81*0.75)) -> 41 | KY39: =IF(KY18>0.01,MAX('Background Calculations'!$V$82*0.8,KY18),MAX('Background Calculations'!$V$77,'Background Calculations'!$V$82*0.75)) -> 60 | LB39: 2017 | LC39: =IF(LC18>0.01,MAX('Background Calculations'!$V$80*0.8,LC18),MAX('Background Calculations'!$V$75,'Background Calculations'!$V$80*0.75)) -> 167 | LE39: =IF(LE18>0.01,MAX('Background Calculations'!$V$81*0.8,LE18),MAX('Background Calculations'!$V$76,'Background Calculations'!$V$81*0.75)) -> 41 | LG39: =IF(LG18>0.01,MAX('Background Calculations'!$V$82*0.8,LG18),MAX('Background Calculations'!$V$77,'Background Calculations'!$V$82*0.75)) -> 60 | LJ39: 2017 | LK39: =IF(LK18>0.01,MAX('Background Calculations'!$V$80*0.8,LK18),MAX('Background Calculations'!$V$75,'Background Calculations'!$V$80*0.75)) -> 167 | LM39: =IF(LM18>0.01,MAX('Background Calculations'!$V$81*0.8,LM18),MAX('Background Calculations'!$V$76,'Background Calculations'!$V$81*0.75)) -> 41 | LO39: =IF(LO18>0.01,MAX('Background Calculations'!$V$82*0.8,LO18),MAX('Background Calculations'!$V$77,'Background Calculations'!$V$82*0.75)) -> 60 | LR39: 2017 | LS39: =IF(LS18>0.01,MAX('Background Calculations'!$V$80*0.8,LS18),MAX('Background Calculations'!$V$75,'Background Calculations'!$V$80*0.75)) -> 167 | LU39: =IF(LU18>0.01,MAX('Background Calculations'!$V$81*0.8,LU18),MAX('Background Calculations'!$V$76,'Background Calculations'!$V$81*0.75)) -> 41 | LW39: =IF(LW18>0.01,MAX('Background Calculations'!$V$82*0.8,LW18),MAX('Background Calculations'!$V$77,'Background Calculations'!$V$82*0.75)) -> 60 | LZ39: 2017 | MA39: =IF(MA18>0.01,MAX('Background Calculations'!$V$80*0.8,MA18),MAX('Background Calculations'!$V$75,'Background Calculations'!$V$80*0.75)) -> 167 | MC39: =IF(MC18>0.01,MAX('Background Calculations'!$V$81*0.8,MC18),MAX('Background Calculations'!$V$76,'Background Calculations'!$V$81*0.75)) -> 41 | ME39: =IF(ME18>0.01,MAX('Background Calculations'!$V$82*0.8,ME18),MAX('Background Calculations'!$V$77,'Background Calculations'!$V$82*0.75)) -> 60 | MH39: 2017 | MI39: =IF(MI18>0.01,MAX('Background Calculations'!$V$80*0.8,MI18),MAX('Background Calculations'!$V$75,'Background Calculations'!$V$80*0.75)) -> 167 | MK39: =IF(MK18>0.01,MAX('Background Calculations'!$V$81*0.8,MK18),MAX('Background Calculations'!$V$76,'Background Calculations'!$V$81*0.75)) -> 41 | MM39: =IF(MM18>0.01,MAX('Background Calculations'!$V$82*0.8,MM18),MAX('Background Calculations'!$V$77,'Background Calculations'!$V$82*0.75)) -> 60 | MP39: 2017 | MQ39: =IF(MQ18>0.01,MAX('Background Calculations'!$V$80*0.8,MQ18),MAX('Background Calculations'!$V$75,'Background Calculations'!$V$80*0.75)) -> 167 | MS39: =IF(MS18>0.01,MAX('Background Calculations'!$V$81*0.8,MS18),MAX('Background Calculations'!$V$76,'Background Calculations'!$V$81*0.75)) -> 41 | MU39: =IF(MU18>0.01,MAX('Background Calculations'!$V$82*0.8,MU18),MAX('Background Calculations'!$V$77,'Background Calculations'!$V$82*0.75)) -> 60 | MX39: 2017 | MY39: =IF(MY18>0.01,MAX('Background Calculations'!$V$80*0.8,MY18),MAX('Background Calculations'!$V$75,'Background Calculations'!$V$80*0.75)) -> 167 | NA39: =IF(NA18>0.01,MAX('Background Calculations'!$V$81*0.8,NA18),MAX('Background Calculations'!$V$76,'Background Calculations'!$V$81*0.75)) -> 41 | NC39: =IF(NC18>0.01,MAX('Background Calculations'!$V$82*0.8,NC18),MAX('Background Calculations'!$V$77,'Background Calculations'!$V$82*0.75)) -> 60 | NF39: 2017 | NG39: =IF(NG18>0.01,MAX('Background Calculations'!$V$80*0.8,NG18),MAX('Background Calculations'!$V$75,'Background Calculations'!$V$80*0.75)) -> 167 | NI39: =IF(NI18>0.01,MAX('Background Calculations'!$V$81*0.8,NI18),MAX('Background Calculations'!$V$76,'Background Calculations'!$V$81*0.75)) -> 41 | NK39: =IF(NK18>0.01,MAX('Background Calculations'!$V$82*0.8,NK18),MAX('Background Calculations'!$V$77,'Background Calculations'!$V$82*0.75)) -> 60 | NN39: 2017 | NO39: =IF(NO18>0.01,MAX('Background Calculations'!$V$80*0.8,NO18),MAX('Background Calculations'!$V$75,'Background Calculations'!$V$80*0.75)) -> 167 | NQ39: =IF(NQ18>0.01,MAX('Background Calculations'!$V$81*0.8,NQ18),MAX('Background Calculations'!$V$76,'Background Calculations'!$V$81*0.75)) -> 41 | NS39: =IF(NS18>0.01,MAX('Background Calculations'!$V$82*0.8,NS18),MAX('Background Calculations'!$V$77,'Background Calculations'!$V$82*0.75)) -> 60 | NV39: 2017 | NW39: =IF(NW18>0.01,MAX('Background Calculations'!$V$80*0.8,NW18),MAX('Background Calculations'!$V$75,'Background Calculations'!$V$80*0.75)) -> 167 | NY39: =IF(NY18>0.01,MAX('Background Calculations'!$V$81*0.8,NY18),MAX('Background Calculations'!$V$76,'Background Calculations'!$V$81*0.75)) -> 41 | OA39: =IF(OA18>0.01,MAX('Background Calculations'!$V$82*0.8,OA18),MAX('Background Calculations'!$V$77,'Background Calculations'!$V$82*0.75)) -> 60 | OD39: 2017 | OE39: =IF(OE18>0.01,MAX('Background Calculations'!$V$80*0.8,OE18),MAX('Background Calculations'!$V$75,'Background Calculations'!$V$80*0.75)) -> 167 | OG39: =IF(OG18>0.01,MAX('Background Calculations'!$V$81*0.8,OG18),MAX('Background Calculations'!$V$76,'Background Calculations'!$V$81*0.75)) -> 41 | OI39: =IF(OI18>0.01,MAX('Background Calculations'!$V$82*0.8,OI18),MAX('Background Calculations'!$V$77,'Background Calculations'!$V$82*0.75)) -> 60 | OL39: 2017 | OM39: =IF(OM18>0.01,MAX('Background Calculations'!$V$80*0.8,OM18),MAX('Background Calculations'!$V$75,'Background Calculations'!$V$80*0.75)) -> 167 | OO39: =IF(OO18>0.01,MAX('Background Calculations'!$V$81*0.8,OO18),MAX('Background Calculations'!$V$76,'Background Calculations'!$V$81*0.75)) -> 41 | OQ39: =IF(OQ18>0.01,MAX('Background Calculations'!$V$82*0.8,OQ18),MAX('Background Calculations'!$V$77,'Background Calculations'!$V$82*0.75)) -> 60
C40: By Farm | D40: =H5*$C$46*0.65 ->  | K40: By Farm | L40: =P5*$C$46*0.65 ->  | S40: By Farm | T40: =X5*$C$46*0.65 ->  | AA40: By Farm | AB40: =AF5*$C$46*0.65 ->  | AI40: By Farm | AJ40: =AN5*$C$46*0.65 ->  | AQ40: By Farm | AR40: =AV5*$C$46*0.65 ->  | AY40: By Farm | AZ40: =BD5*$C$46*0.65 ->  | BG40: By Farm | BH40: =BL5*$C$46*0.65 ->  | BO40: By Farm | BP40: =BT5*$C$46*0.65 ->  | BW40: By Farm | BX40: =CB5*$C$46*0.65 ->  | CE40: By Farm | CF40: =CJ5*$C$46*0.65 ->  | CM40: By Farm | CN40: =CR5*$C$46*0.65 ->  | CU40: By Farm | CV40: =CZ5*$C$46*0.65 ->  | DC40: By Farm | DD40: =DH5*$C$46*0.65 ->  | DK40: By Farm | DL40: =DP5*$C$46*0.65 ->  | DS40: By Farm | DT40: =DX5*$C$46*0.65 ->  | EA40: By Farm | EB40: =EF5*$C$46*0.65 ->  | EI40: By Farm | EJ40: =EN5*$C$46*0.65 ->  | EQ40: By Farm | ER40: =EV5*$C$46*0.65 ->  | EY40: By Farm | EZ40: =FD5*$C$46*0.65 ->  | FG40: By Farm | FH40: =FL5*$C$46*0.65 ->  | FO40: By Farm | FP40: =FT5*$C$46*0.65 ->  | FW40: By Farm | FX40: =GB5*$C$46*0.65 ->  | GE40: By Farm | GF40: =GJ5*$C$46*0.65 ->  | GM40: By Farm | GN40: =GR5*$C$46*0.65 ->  | GU40: By Farm | GV40: =GZ5*$C$46*0.65 ->  | HC40: By Farm | HD40: =HH5*$C$46*0.65 ->  | HK40: By Farm | HL40: =HP5*$C$46*0.65 ->  | HS40: By Farm | HT40: =HX5*$C$46*0.65 ->  | IA40: By Farm | IB40: =IF5*$C$46*0.65 ->  | II40: By Farm | IJ40: =IN5*$C$46*0.65 ->  | IQ40: By Farm | IR40: =IV5*$C$46*0.65 ->  | IY40: By Farm | IZ40: =JD5*$C$46*0.65 ->  | JG40: By Farm | JH40: =JL5*$C$46*0.65 ->  | JO40: By Farm | JP40: =JT5*$C$46*0.65 ->  | JW40: By Farm | JX40: =KB5*$C$46*0.65 ->  | KE40: By Farm | KF40: =KJ5*$C$46*0.65 ->  | KM40: By Farm | KN40: =KR5*$C$46*0.65 ->  | KU40: By Farm | KV40: =KZ5*$C$46*0.65 ->  | LC40: By Farm | LD40: =LH5*$C$46*0.65 ->  | LK40: By Farm | LL40: =LP5*$C$46*0.65 ->  | LS40: By Farm | LT40: =LX5*$C$46*0.65 ->  | MA40: By Farm | MB40: =MF5*$C$46*0.65 ->  | MI40: By Farm | MJ40: =MN5*$C$46*0.65 ->  | MQ40: By Farm | MR40: =MV5*$C$46*0.65 ->  | MY40: By Farm | MZ40: =ND5*$C$46*0.65 ->  | NG40: By Farm | NH40: =NL5*$C$46*0.65 ->  | NO40: By Farm | NP40: =NT5*$C$46*0.65 ->  | NW40: By Farm | NX40: =OB5*$C$46*0.65 ->  | OE40: By Farm | OF40: =OJ5*$C$46*0.65 ->  | OM40: By Farm | ON40: =OR5*$C$46*0.65 -> 
A41: Combined Total Benchmark Revenue | C41: =SUM(C32:OR32) -> 
A42: 86% Guaratee/ac | C42: =C41*0.86 -> 
A43: Combined Actaul Revenue/ac | C43: =SUM(C33:OR33)/C48 -> 
A44: Shortfall/ac | C44: =C42-C43 -> 
A45: 10% Max Payment/ac | C45: =0.1*C41 -> 
B46: Payment Rate | C46: =IF(C44>0,MIN(C45,C44),0) -> 
A47: Combined All Farms Total Payment | E47: =SUM(C40:OR40) -> 
B48: Total Planted and Considered Planted | C48: =A108+A118+A128 -> 0
C51: FSA PLC WEIGHTED YIELDS
C52: Commodity | D52: Corn | F52: Soybeans | H52: Wheat | J52: Total Base Acres | L52: Yield | N52: Yield | P52: Yield
C53: Combined Base Acres | D53: =A58 -> 0 | F53: =A59 -> 0 | H53: =A60 -> 0 | J53: =SUM(D53:H53) -> 0 | L53: =IF(C5*C6>0.1,C5*C6,0)+IF(K5*K6>0.1,K5*K6,0)+IF(S5*S6>0.1,S5*S6,0)+IF(AA5*AA6>0.1,AA5*AA6,0)+IF(AI5*AI6>0.1,AI5*AI6,0) -> 0 | N53: =IF(E5*E6>0.1,E5*E6,0)+IF(M5*M6>0.1,M5*M6,0)+IF(U5*U6>0.1,U5*U6,0)+IF(AC5*AC6>0.1,AC5*AC6,0)+IF(AK5*AK6>0.1,AK5*AK6,0) -> 0 | P53: =IF(G5*G6>0.1,G5*G6,0)+IF(O5*O6>0.1,O5*O6,0)+IF(W5*W6>0.1,W5*W6,0)+IF(AE5*AE6>0.1,AE5*AE6,0)+IF(AM5*AM6>0.1,AM5*AM6,0) -> 0
C54: Weighted 2018 PLC Yield | D54: =A61 -> 0 | F54: =A62 -> 0 | H54: =A63 -> 0 | L54: =IFERROR((L53/(C5+K5+S5+AA5+AI5)),0) -> 0 | N54: =IFERROR((N53/(E5+M5+U5+AC5+AK5)),0) -> 0 | P54: =IFERROR((P53/(G5+O5+W5+AE5+AM5)),0) -> 0
C55: 13-17 Historical Irrigated Percentage | D55: =A67 -> 0 | F55: =A68 -> 0 | H55: =A69 -> 0 | L55: =IFERROR((C7*C5+K7*K5+S7*S5+AA7*AA5+AI7*AI5)/(C5+K5+S5+AA5+AI5),0) -> 0 | N55: =IFERROR((E7*E5+M7*M5+U7*U5+AC7*AC5+AK7*AK5)/(E5+M5+U5+AC5+AK5),0) -> 0 | P55: =IFERROR((G7*G5+O7*O5+W7*W5+AE7*AE5+AM7*AM5)/(G5+O5+W5+AE5+AM5),0) -> 0
A57: FSA Base and PLC Yields
A58: =IFERROR(SUM(C58:OR58),0) -> 0 | B58: CornAcres | C58: =C5 -> 0 | K58: =K5 -> 0 | S58: =S5 -> 0 | AA58: =AA5 -> 0 | AI58: =AI5 -> 0 | AQ58: =AQ5 -> 0 | AY58: =AY5 -> 0 | BG58: =BG5 -> 0 | BO58: =BO5 -> 0 | BW58: =BW5 -> 0 | CE58: =CE5 -> 0 | CM58: =CM5 -> 0 | CU58: =CU5 -> 0 | DC58: =DC5 -> 0 | DK58: =DK5 -> 0 | DS58: =DS5 -> 0 | EA58: =EA5 -> 0 | EI58: =EI5 -> 0 | EQ58: =EQ5 -> 0 | EY58: =EY5 -> 0 | FG58: =FG5 -> 0 | FO58: =FO5 -> 0 | FW58: =FW5 -> 0 | GE58: =GE5 -> 0 | GM58: =GM5 -> 0 | GU58: =GU5 -> 0 | HC58: =HC5 -> 0 | HK58: =HK5 -> 0 | HS58: =HS5 -> 0 | IA58: =IA5 -> 0 | II58: =II5 -> 0 | IQ58: =IQ5 -> 0 | IY58: =IY5 -> 0 | JG58: =JG5 -> 0 | JO58: =JO5 -> 0 | JW58: =JW5 -> 0 | KE58: =KE5 -> 0 | KM58: =KM5 -> 0 | KU58: =KU5 -> 0 | LC58: =LC5 -> 0 | LK58: =LK5 -> 0 | LS58: =LS5 -> 0 | MA58: =MA5 -> 0 | MI58: =MI5 -> 0 | MQ58: =MQ5 -> 0 | MY58: =MY5 -> 0 | NG58: =NG5 -> 0 | NO58: =NO5 -> 0 | NW58: =NW5 -> 0 | OE58: =OE5 -> 0 | OM58: =OM5 -> 0
A59: =IFERROR(SUM(C59:OR59),0) -> 0 | B59: SoysAcres | C59: =E5 -> 0 | K59: =M5 -> 0 | S59: =U5 -> 0 | AA59: =AC5 -> 0 | AI59: =AK5 -> 0 | AQ59: =AS5 -> 0 | AY59: =BA5 -> 0 | BG59: =BI5 -> 0 | BO59: =BQ5 -> 0 | BW59: =BY5 -> 0 | CE59: =CG5 -> 0 | CM59: =CO5 -> 0 | CU59: =CW5 -> 0 | DC59: =DE5 -> 0 | DK59: =DM5 -> 0 | DS59: =DU5 -> 0 | EA59: =EC5 -> 0 | EI59: =EK5 -> 0 | EQ59: =ES5 -> 0 | EY59: =FA5 -> 0 | FG59: =FI5 -> 0 | FO59: =FQ5 -> 0 | FW59: =FY5 -> 0 | GE59: =GG5 -> 0 | GM59: =GO5 -> 0 | GU59: =GW5 -> 0 | HC59: =HE5 -> 0 | HK59: =HM5 -> 0 | HS59: =HU5 -> 0 | IA59: =IC5 -> 0 | II59: =IK5 -> 0 | IQ59: =IS5 -> 0 | IY59: =JA5 -> 0 | JG59: =JI5 -> 0 | JO59: =JQ5 -> 0 | JW59: =JY5 -> 0 | KE59: =KG5 -> 0 | KM59: =KO5 -> 0 | KU59: =KW5 -> 0 | LC59: =LE5 -> 0 | LK59: =LM5 -> 0 | LS59: =LU5 -> 0 | MA59: =MC5 -> 0 | MI59: =MK5 -> 0 | MQ59: =MS5 -> 0 | MY59: =NA5 -> 0 | NG59: =NI5 -> 0 | NO59: =NQ5 -> 0 | NW59: =NY5 -> 0 | OE59: =OG5 -> 0 | OM59: =OO5 -> 0
A60: 0 | B60: Wheat Acres | C60: =G5 -> 0 | K60: =O5 -> 0 | S60: =W5 -> 0 | AA60: =AE5 -> 0 | AI60: =AM5 -> 0 | AQ60: =AU5 -> 0 | AY60: =BC5 -> 0 | BG60: =BK5 -> 0 | BO60: =BS5 -> 0 | BW60: =CA5 -> 0 | CE60: =CI5 -> 0 | CM60: =CQ5 -> 0 | CU60: =CY5 -> 0 | DC60: =DG5 -> 0 | DK60: =DO5 -> 0 | DS60: =DW5 -> 0 | EA60: =EE5 -> 0 | EI60: =EM5 -> 0 | EQ60: =EU5 -> 0 | EY60: =FC5 -> 0 | FG60: =FK5 -> 0 | FO60: =FS5 -> 0 | FW60: =GA5 -> 0 | GE60: =GI5 -> 0 | GM60: =GQ5 -> 0 | GU60: =GY5 -> 0 | HC60: =HG5 -> 0 | HK60: =HO5 -> 0 | HS60: =HW5 -> 0 | IA60: =IE5 -> 0 | II60: =IM5 -> 0 | IQ60: =IU5 -> 0 | IY60: =JC5 -> 0 | JG60: =JK5 -> 0 | JO60: =JS5 -> 0 | JW60: =KA5 -> 0 | KE60: =KI5 -> 0 | KM60: =KQ5 -> 0 | KU60: =KY5 -> 0 | LC60: =LG5 -> 0 | LK60: =LO5 -> 0 | LS60: =LW5 -> 0 | MA60: =ME5 -> 0 | MI60: =MM5 -> 0 | MQ60: =MU5 -> 0 | MY60: =NC5 -> 0 | NG60: =NK5 -> 0 | NO60: =NS5 -> 0 | NW60: =OA5 -> 0 | OE60: =OI5 -> 0 | OM60: =OQ5 -> 0
A61: =IFERROR(SUM(C61:OR61)/A58,0) -> 0 | B61: PLC YIELD Corn | C61: =C6*C58 -> 0 | K61: =K6*K58 -> 0 | S61: =S6*S58 -> 0 | AA61: =AA6*AA58 -> 0 | AI61: =AI6*AI58 -> 0 | AQ61: =AQ6*AQ58 -> 0 | AY61: =AY6*AY58 -> 0 | BG61: =BG6*BG58 -> 0 | BO61: =BO6*BO58 -> 0 | BW61: =BW6*BW58 -> 0 | CE61: =CE6*CE58 -> 0 | CM61: =CM6*CM58 -> 0 | CU61: =CU6*CU58 -> 0 | DC61: =DC6*DC58 -> 0 | DK61: =DK6*DK58 -> 0 | DS61: =DS6*DS58 -> 0 | EA61: =EA6*EA58 -> 0 | EI61: =EI6*EI58 -> 0 | EQ61: =EQ6*EQ58 -> 0 | EY61: =EY6*EY58 -> 0 | FG61: =FG6*FG58 -> 0 | FO61: =FO6*FO58 -> 0 | FW61: =FW6*FW58 -> 0 | GE61: =GE6*GE58 -> 0 | GM61: =GM6*GM58 -> 0 | GU61: =GU6*GU58 -> 0 | HC61: =HC6*HC58 -> 0 | HK61: =HK6*HK58 -> 0 | HS61: =HS6*HS58 -> 0 | IA61: =IA6*IA58 -> 0 | II61: =II6*II58 -> 0 | IQ61: =IQ6*IQ58 -> 0 | IY61: =IY6*IY58 -> 0 | JG61: =JG6*JG58 -> 0 | JO61: =JO6*JO58 -> 0 | JW61: =JW6*JW58 -> 0 | KE61: =KE6*KE58 -> 0 | KM61: =KM6*KM58 -> 0 | KU61: =KU6*KU58 -> 0 | LC61: =LC6*LC58 -> 0 | LK61: =LK6*LK58 -> 0 | LS61: =LS6*LS58 -> 0 | MA61: =MA6*MA58 -> 0 | MI61: =MI6*MI58 -> 0 | MQ61: =MQ6*MQ58 -> 0 | MY61: =MY6*MY58 -> 0 | NG61: =NG6*NG58 -> 0 | NO61: =NO6*NO58 -> 0 | NW61: =NW6*NW58 -> 0 | OE61: =OE6*OE58 -> 0 | OM61: =OM6*OM58 -> 0
A62: =IFERROR(SUM(C62:OR62)/A59,0) -> 0 | B62: PLC YIELD SOYS | C62: =E6*C59 -> 0 | K62: =M6*K59 -> 0 | S62: =U6*S59 -> 0 | AA62: =AC6*AA59 -> 0 | AI62: =AK6*AI59 -> 0 | AQ62: =AS6*AQ59 -> 0 | AY62: =BA6*AY59 -> 0 | BG62: =BI6*BG59 -> 0 | BO62: =BQ6*BO59 -> 0 | BW62: =BY6*BW59 -> 0 | CE62: =CG6*CE59 -> 0 | CM62: =CO6*CM59 -> 0 | CU62: =CW6*CU59 -> 0 | DC62: =DE6*DC59 -> 0 | DK62: =DM6*DK59 -> 0 | DS62: =DU6*DS59 -> 0 | EA62: =EC6*EA59 -> 0 | EI62: =EK6*EI59 -> 0 | EQ62: =ES6*EQ59 -> 0 | EY62: =FA6*EY59 -> 0 | FG62: =FI6*FG59 -> 0 | FO62: =FQ6*FO59 -> 0 | FW62: =FY6*FW59 -> 0 | GE62: =GG6*GE59 -> 0 | GM62: =GO6*GM59 -> 0 | GU62: =GW6*GU59 -> 0 | HC62: =HE6*HC59 -> 0 | HK62: =HM6*HK59 -> 0 | HS62: =HU6*HS59 -> 0 | IA62: =IC6*IA59 -> 0 | II62: =IK6*II59 -> 0 | IQ62: =IS6*IQ59 -> 0 | IY62: =JA6*IY59 -> 0 | JG62: =JI6*JG59 -> 0 | JO62: =JQ6*JO59 -> 0 | JW62: =JY6*JW59 -> 0 | KE62: =KG6*KE59 -> 0 | KM62: =KO6*KM59 -> 0 | KU62: =KW6*KU59 -> 0 | LC62: =LE6*LC59 -> 0 | LK62: =LM6*LK59 -> 0 | LS62: =LU6*LS59 -> 0 | MA62: =MC6*MA59 -> 0 | MI62: =MK6*MI59 -> 0 | MQ62: =MS6*MQ59 -> 0 | MY62: =NA6*MY59 -> 0 | NG62: =NI6*NG59 -> 0 | NO62: =NQ6*NO59 -> 0 | NW62: =NY6*NW59 -> 0 | OE62: =OG6*OE59 -> 0 | OM62: =OO6*OM59 -> 0
A63: 0 | B63: PLC YIELD WHEAT | C63: =G6*C60 -> 0 | K63: =O6*K60 -> 0 | S63: =W6*S60 -> 0 | AA63: =AE6*AA60 -> 0 | AI63: =AM6*AI60 -> 0 | AQ63: =AU6*AQ60 -> 0 | AY63: =BC6*AY60 -> 0 | BG63: =BK6*BG60 -> 0 | BO63: =BS6*BO60 -> 0 | BW63: =CA6*BW60 -> 0 | CE63: =CI6*CE60 -> 0 | CM63: =CQ6*CM60 -> 0 | CU63: =CY6*CU60 -> 0 | DC63: =DG6*DC60 -> 0 | DK63: =DO6*DK60 -> 0 | DS63: =DW6*DS60 -> 0 | EA63: =EE6*EA60 -> 0 | EI63: =EM6*EI60 -> 0 | EQ63: =EU6*EQ60 -> 0 | EY63: =FC6*EY60 -> 0 | FG63: =FK6*FG60 -> 0 | FO63: =FS6*FO60 -> 0 | FW63: =GA6*FW60 -> 0 | GE63: =GI6*GE60 -> 0 | GM63: =GQ6*GM60 -> 0 | GU63: =GY6*GU60 -> 0 | HC63: =HG6*HC60 -> 0 | HK63: =HO6*HK60 -> 0 | HS63: =HW6*HS60 -> 0 | IA63: =IE6*IA60 -> 0 | II63: =IM6*II60 -> 0 | IQ63: =IU6*IQ60 -> 0 | IY63: =JC6*IY60 -> 0 | JG63: =JK6*JG60 -> 0 | JO63: =JS6*JO60 -> 0 | JW63: =KA6*JW60 -> 0 | KE63: =KI6*KE60 -> 0 | KM63: =KQ6*KM60 -> 0 | KU63: =KY6*KU60 -> 0 | LC63: =LG6*LC60 -> 0 | LK63: =LO6*LK60 -> 0 | LS63: =LW6*LS60 -> 0 | MA63: =ME6*MA60 -> 0 | MI63: =MM6*MI60 -> 0 | MQ63: =MU6*MQ60 -> 0 | MY63: =NC6*MY60 -> 0 | NG63: =NK6*NG60 -> 0 | NO63: =NS6*NO60 -> 0 | NW63: =OA6*NW60 -> 0 | OE63: =OI6*OE60 -> 0 | OM63: =OQ6*OM60 -> 0
A64: =IFERROR(SUM(C64:OR64),0) -> 0 | B64: HIP Corn Arces | C64: =C7*C58 -> 0 | K64: =K7*K58 -> 0 | S64: =S7*S58 -> 0 | AA64: =AA7*AA58 -> 0 | AI64: =AI7*AI58 -> 0 | AQ64: =AQ7*AQ58 -> 0 | AY64: =AY7*AY58 -> 0 | BG64: =BG7*BG58 -> 0 | BO64: =BO7*BO58 -> 0 | BW64: =BW7*BW58 -> 0 | CE64: =CE7*CE58 -> 0 | CM64: =CM7*CM58 -> 0 | CU64: =CU7*CU58 -> 0 | DC64: =DC7*DC58 -> 0 | DK64: =DK7*DK58 -> 0 | DS64: =DS7*DS58 -> 0 | EA64: =EA7*EA58 -> 0 | EI64: =EI7*EI58 -> 0 | EQ64: =EQ7*EQ58 -> 0 | EY64: =EY7*EY58 -> 0 | FG64: =FG7*FG58 -> 0 | FO64: =FO7*FO58 -> 0 | FW64: =FW7*FW58 -> 0 | GE64: =GE7*GE58 -> 0 | GM64: =GM7*GM58 -> 0 | GU64: =GU7*GU58 -> 0 | HC64: =HC7*HC58 -> 0 | HK64: =HK7*HK58 -> 0 | HS64: =HS7*HS58 -> 0 | IA64: =IA7*IA58 -> 0 | II64: =II7*II58 -> 0 | IQ64: =IQ7*IQ58 -> 0 | IY64: =IY7*IY58 -> 0 | JG64: =JG7*JG58 -> 0 | JO64: =JO7*JO58 -> 0 | JW64: =JW7*JW58 -> 0 | KE64: =KE7*KE58 -> 0 | KM64: =KM7*KM58 -> 0 | KU64: =KU7*KU58 -> 0 | LC64: =LC7*LC58 -> 0 | LK64: =LK7*LK58 -> 0 | LS64: =LS7*LS58 -> 0 | MA64: =MA7*MA58 -> 0 | MI64: =MI7*MI58 -> 0 | MQ64: =MQ7*MQ58 -> 0 | MY64: =MY7*MY58 -> 0 | NG64: =NG7*NG58 -> 0 | NO64: =NO7*NO58 -> 0 | NW64: =NW7*NW58 -> 0 | OE64: =OE7*OE58 -> 0 | OM64: =OM7*OM58 -> 0
A65: =IFERROR(SUM(C65:OR65),0) -> 0 | B65: HIP SOYS Acres | C65: =E7*C59 -> 0 | K65: =M7*K59 -> 0 | S65: =U7*S59 -> 0 | AA65: =AC7*AA59 -> 0 | AI65: =AK7*AI59 -> 0 | AQ65: =AS7*AQ59 -> 0 | AY65: =BA7*AY59 -> 0 | BG65: =BI7*BG59 -> 0 | BO65: =BQ7*BO59 -> 0 | BW65: =BY7*BW59 -> 0 | CE65: =CG7*CE59 -> 0 | CM65: =CO7*CM59 -> 0 | CU65: =CW7*CU59 -> 0 | DC65: =DE7*DC59 -> 0 | DK65: =DM7*DK59 -> 0 | DS65: =DU7*DS59 -> 0 | EA65: =EC7*EA59 -> 0 | EI65: =EK7*EI59 -> 0 | EQ65: =ES7*EQ59 -> 0 | EY65: =FA7*EY59 -> 0 | FG65: =FI7*FG59 -> 0 | FO65: =FQ7*FO59 -> 0 | FW65: =FY7*FW59 -> 0 | GE65: =GG7*GE59 -> 0 | GM65: =GO7*GM59 -> 0 | GU65: =GW7*GU59 -> 0 | HC65: =HE7*HC59 -> 0 | HK65: =HM7*HK59 -> 0 | HS65: =HU7*HS59 -> 0 | IA65: =IC7*IA59 -> 0 | II65: =IK7*II59 -> 0 | IQ65: =IS7*IQ59 -> 0 | IY65: =JA7*IY59 -> 0 | JG65: =JI7*JG59 -> 0 | JO65: =JQ7*JO59 -> 0 | JW65: =JY7*JW59 -> 0 | KE65: =KG7*KE59 -> 0 | KM65: =KO7*KM59 -> 0 | KU65: =KW7*KU59 -> 0 | LC65: =LE7*LC59 -> 0 | LK65: =LM7*LK59 -> 0 | LS65: =LU7*LS59 -> 0 | MA65: =MC7*MA59 -> 0 | MI65: =MK7*MI59 -> 0 | MQ65: =MS7*MQ59 -> 0 | MY65: =NA7*MY59 -> 0 | NG65: =NI7*NG59 -> 0 | NO65: =NQ7*NO59 -> 0 | NW65: =NY7*NW59 -> 0 | OE65: =OG7*OE59 -> 0 | OM65: =OO7*OM59 -> 0
A66: 0 | B66: HIP Wheat Acres | C66: =G7*C60 -> 0 | K66: =O7*K60 -> 0 | S66: =W7*S60 -> 0 | AA66: =AE7*AA60 -> 0 | AI66: =AM7*AI60 -> 0 | AQ66: =AU7*AQ60 -> 0 | AY66: =BC7*AY60 -> 0 | BG66: =BK7*BG60 -> 0 | BO66: =BS7*BO60 -> 0 | BW66: =CA7*BW60 -> 0 | CE66: =CI7*CE60 -> 0 | CM66: =CQ7*CM60 -> 0 | CU66: =CY7*CU60 -> 0 | DC66: =DG7*DC60 -> 0 | DK66: =DO7*DK60 -> 0 | DS66: =DW7*DS60 -> 0 | EA66: =EE7*EA60 -> 0 | EI66: =EM7*EI60 -> 0 | EQ66: =EU7*EQ60 -> 0 | EY66: =FC7*EY60 -> 0 | FG66: =FK7*FG60 -> 0 | FO66: =FS7*FO60 -> 0 | FW66: =GA7*FW60 -> 0 | GE66: =GI7*GE60 -> 0 | GM66: =GQ7*GM60 -> 0 | GU66: =GY7*GU60 -> 0 | HC66: =HG7*HC60 -> 0 | HK66: =HO7*HK60 -> 0 | HS66: =HW7*HS60 -> 0 | IA66: =IE7*IA60 -> 0 | II66: =IM7*II60 -> 0 | IQ66: =IU7*IQ60 -> 0 | IY66: =JC7*IY60 -> 0 | JG66: =JK7*JG60 -> 0 | JO66: =JS7*JO60 -> 0 | JW66: =KA7*JW60 -> 0 | KE66: =KI7*KE60 -> 0 | KM66: =KQ7*KM60 -> 0 | KU66: =KY7*KU60 -> 0 | LC66: =LG7*LC60 -> 0 | LK66: =LO7*LK60 -> 0 | LS66: =LW7*LS60 -> 0 | MA66: =ME7*MA60 -> 0 | MI66: =MM7*MI60 -> 0 | MQ66: =MU7*MQ60 -> 0 | MY66: =NC7*MY60 -> 0 | NG66: =NK7*NG60 -> 0 | NO66: =NS7*NO60 -> 0 | NW66: =OA7*NW60 -> 0 | OE66: =OI7*OE60 -> 0 | OM66: =OQ7*OM60 -> 0
A67: =IFERROR(A64/A58,0) -> 0 | B67: % HIP Corn
A68: =IFERROR(A65/A59,0) -> 0 | B68: % HIP SOYS
A69: 0 | B69: % HIP WHEAT
A71: Production | B71: Corn | C71: Production | K71: Production | S71: Production | AA71: Production | AI71: Production | AQ71: Production | AY71: Production | BG71: Production | BO71: Production | BW71: Production | CE71: Production | CM71: Production | CU71: Production | DC71: Production | DK71: Production | DS71: Production | EA71: Production | EI71: Production | EQ71: Production | EY71: Production | FG71: Production | FO71: Production | FW71: Production | GE71: Production | GM71: Production | GU71: Production | HC71: Production | HK71: Production | HS71: Production | IA71: Production | II71: Production | IQ71: Production | IY71: Production | JG71: Production | JO71: Production | JW71: Production | KE71: Production | KM71: Production | KU71: Production | LC71: Production | LK71: Production | LS71: Production | MA71: Production | MI71: Production | MQ71: Production | MY71: Production | NG71: Production | NO71: Production | NW71: Production | OE71: Production | OM71: Production
A72: =SUM(C72:OR72) -> 0 | B72: 2013 | C72: =C14*D14 -> 0 | K72: =K14*L14 -> 0 | S72: =S14*T14 -> 0 | AA72: =AA14*AB14 -> 0 | AI72: =AI14*AJ14 -> 0 | AQ72: =AQ14*AR14 -> 0 | AY72: =AY14*AZ14 -> 0 | BG72: =BG14*BH14 -> 0 | BO72: =BO14*BP14 -> 0 | BW72: =BW14*BX14 -> 0 | CE72: =CE14*CF14 -> 0 | CM72: =CM14*CN14 -> 0 | CU72: =CU14*CV14 -> 0 | DC72: =DC14*DD14 -> 0 | DK72: =DK14*DL14 -> 0 | DS72: =DS14*DT14 -> 0 | EA72: =EA14*EB14 -> 0 | EI72: =EI14*EJ14 -> 0 | EQ72: =EQ14*ER14 -> 0 | EY72: =EY14*EZ14 -> 0 | FG72: =FG14*FH14 -> 0 | FO72: =FO14*FP14 -> 0 | FW72: =FW14*FX14 -> 0 | GE72: =GE14*GF14 -> 0 | GM72: =GM14*GN14 -> 0 | GU72: =GU14*GV14 -> 0 | HC72: =HC14*HD14 -> 0 | HK72: =HK14*HL14 -> 0 | HS72: =HS14*HT14 -> 0 | IA72: =IA14*IB14 -> 0 | II72: =II14*IJ14 -> 0 | IQ72: =IQ14*IR14 -> 0 | IY72: =IY14*IZ14 -> 0 | JG72: =JG14*JH14 -> 0 | JO72: =JO14*JP14 -> 0 | JW72: =JW14*JX14 -> 0 | KE72: =KE14*KF14 -> 0 | KM72: =KM14*KN14 -> 0 | KU72: =KU14*KV14 -> 0 | LC72: =LC14*LD14 -> 0 | LK72: =LK14*LL14 -> 0 | LS72: =LS14*LT14 -> 0 | MA72: =MA14*MB14 -> 0 | MI72: =MI14*MJ14 -> 0 | MQ72: =MQ14*MR14 -> 0 | MY72: =MY14*MZ14 -> 0 | NG72: =NG14*NH14 -> 0 | NO72: =NO14*NP14 -> 0 | NW72: =NW14*NX14 -> 0 | OE72: =OE14*OF14 -> 0 | OM72: =OM14*ON14 -> 0
A73: 0 | B73: 2014 | C73: =C15*D15 -> 0 | K73: =K15*L15 -> 0 | S73: =S15*T15 -> 0 | AA73: =AA15*AB15 -> 0 | AI73: =AI15*AJ15 -> 0 | AQ73: =AQ15*AR15 -> 0 | AY73: =AY15*AZ15 -> 0 | BG73: =BG15*BH15 -> 0 | BO73: =BO15*BP15 -> 0 | BW73: =BW15*BX15 -> 0 | CE73: =CE15*CF15 -> 0 | CM73: =CM15*CN15 -> 0 | CU73: =CU15*CV15 -> 0 | DC73: =DC15*DD15 -> 0 | DK73: =DK15*DL15 -> 0 | DS73: =DS15*DT15 -> 0 | EA73: =EA15*EB15 -> 0 | EI73: =EI15*EJ15 -> 0 | EQ73: =EQ15*ER15 -> 0 | EY73: =EY15*EZ15 -> 0 | FG73: =FG15*FH15 -> 0 | FO73: =FO15*FP15 -> 0 | FW73: =FW15*FX15 -> 0 | GE73: =GE15*GF15 -> 0 | GM73: =GM15*GN15 -> 0 | GU73: =GU15*GV15 -> 0 | HC73: =HC15*HD15 -> 0 | HK73: =HK15*HL15 -> 0 | HS73: =HS15*HT15 -> 0 | IA73: =IA15*IB15 -> 0 | II73: =II15*IJ15 -> 0 | IQ73: =IQ15*IR15 -> 0 | IY73: =IY15*IZ15 -> 0 | JG73: =JG15*JH15 -> 0 | JO73: =JO15*JP15 -> 0 | JW73: =JW15*JX15 -> 0 | KE73: =KE15*KF15 -> 0 | KM73: =KM15*KN15 -> 0 | KU73: =KU15*KV15 -> 0 | LC73: =LC15*LD15 -> 0 | LK73: =LK15*LL15 -> 0 | LS73: =LS15*LT15 -> 0 | MA73: =MA15*MB15 -> 0 | MI73: =MI15*MJ15 -> 0 | MQ73: =MQ15*MR15 -> 0 | MY73: =MY15*MZ15 -> 0 | NG73: =NG15*NH15 -> 0 | NO73: =NO15*NP15 -> 0 | NW73: =NW15*NX15 -> 0 | OE73: =OE15*OF15 -> 0 | OM73: =OM15*ON15 -> 0
A74: 0 | B74: 2015 | C74: 0 | K74: 0 | S74: 0 | AA74: 0 | AI74: 0 | AQ74: 0 | AY74: 0 | BG74: 0 | BO74: 0 | BW74: 0 | CE74: 0 | CM74: 0 | CU74: 0 | DC74: 0 | DK74: 0 | DS74: 0 | EA74: 0 | EI74: 0 | EQ74: 0 | EY74: 0 | FG74: 0 | FO74: 0 | FW74: 0 | GE74: 0 | GM74: 0 | GU74: 0 | HC74: 0 | HK74: 0 | HS74: 0 | IA74: 0 | II74: 0 | IQ74: 0 | IY74: 0 | JG74: 0 | JO74: 0 | JW74: 0 | KE74: 0 | KM74: 0 | KU74: 0 | LC74: 0 | LK74: 0 | LS74: 0 | MA74: 0 | MI74: 0 | MQ74: 0 | MY74: 0 | NG74: 0 | NO74: 0 | NW74: 0 | OE74: 0 | OM74: 0
A75: 0 | B75: 2016 | C75: 0 | K75: 0 | S75: 0 | AA75: 0 | AI75: 0 | AQ75: 0 | AY75: 0 | BG75: 0 | BO75: 0 | BW75: 0 | CE75: 0 | CM75: 0 | CU75: 0 | DC75: 0 | DK75: 0 | DS75: 0 | EA75: 0 | EI75: 0 | EQ75: 0 | EY75: 0 | FG75: 0 | FO75: 0 | FW75: 0 | GE75: 0 | GM75: 0 | GU75: 0 | HC75: 0 | HK75: 0 | HS75: 0 | IA75: 0 | II75: 0 | IQ75: 0 | IY75: 0 | JG75: 0 | JO75: 0 | JW75: 0 | KE75: 0 | KM75: 0 | KU75: 0 | LC75: 0 | LK75: 0 | LS75: 0 | MA75: 0 | MI75: 0 | MQ75: 0 | MY75: 0 | NG75: 0 | NO75: 0 | NW75: 0 | OE75: 0 | OM75: 0
A76: 0 | B76: 2017 | C76: 0 | K76: 0 | S76: 0 | AA76: 0 | AI76: 0 | AQ76: 0 | AY76: 0 | BG76: 0 | BO76: 0 | BW76: 0 | CE76: 0 | CM76: 0 | CU76: 0 | DC76: 0 | DK76: 0 | DS76: 0 | EA76: 0 | EI76: 0 | EQ76: 0 | EY76: 0 | FG76: 0 | FO76: 0 | FW76: 0 | GE76: 0 | GM76: 0 | GU76: 0 | HC76: 0 | HK76: 0 | HS76: 0 | IA76: 0 | II76: 0 | IQ76: 0 | IY76: 0 | JG76: 0 | JO76: 0 | JW76: 0 | KE76: 0 | KM76: 0 | KU76: 0 | LC76: 0 | LK76: 0 | LS76: 0 | MA76: 0 | MI76: 0 | MQ76: 0 | MY76: 0 | NG76: 0 | NO76: 0 | NW76: 0 | OE76: 0 | OM76: 0
A77: 0 | B77: 2018 | C77: =C19*D19 -> 0 | K77: 0 | S77: 0 | AA77: 0 | AI77: 0 | AQ77: 0 | AY77: 0 | BG77: 0 | BO77: 0 | BW77: 0 | CE77: 0 | CM77: 0 | CU77: 0 | DC77: 0 | DK77: 0 | DS77: 0 | EA77: 0 | EI77: 0 | EQ77: 0 | EY77: 0 | FG77: 0 | FO77: 0 | FW77: 0 | GE77: 0 | GM77: 0 | GU77: 0 | HC77: 0 | HK77: 0 | HS77: 0 | IA77: 0 | II77: 0 | IQ77: 0 | IY77: 0 | JG77: 0 | JO77: 0 | JW77: 0 | KE77: 0 | KM77: 0 | KU77: 0 | LC77: 0 | LK77: 0 | LS77: 0 | MA77: 0 | MI77: 0 | MQ77: 0 | MY77: 0 | NG77: 0 | NO77: 0 | NW77: 0 | OE77: 0 | OM77: 0
A78: 0 | B78: 2019 or Considered | C78: 0 | K78: 0 | S78: 0 | AA78: 0 | AI78: 0 | AQ78: 0 | AY78: 0 | BG78: 0 | BO78: 0 | BW78: 0 | CE78: 0 | CM78: 0 | CU78: 0 | DC78: 0 | DK78: 0 | DS78: 0 | EA78: 0 | EI78: 0 | EQ78: 0 | EY78: 0 | FG78: 0 | FO78: 0 | FW78: 0 | GE78: 0 | GM78: 0 | GU78: 0 | HC78: 0 | HK78: 0 | HS78: 0 | IA78: 0 | II78: 0 | IQ78: 0 | IY78: 0 | JG78: 0 | JO78: 0 | JW78: 0 | KE78: 0 | KM78: 0 | KU78: 0 | LC78: 0 | LK78: 0 | LS78: 0 | MA78: 0 | MI78: 0 | MQ78: 0 | MY78: 0 | NG78: 0 | NO78: 0 | NW78: 0 | OE78: 0 | OM78: 0
A79: 0 | B79: 2020 | C79: 0 | K79: 0 | S79: 0 | AA79: 0 | AI79: 0 | AQ79: 0 | AY79: 0 | BG79: 0 | BO79: 0 | BW79: 0 | CE79: 0 | CM79: 0 | CU79: 0 | DC79: 0 | DK79: 0 | DS79: 0 | EA79: 0 | EI79: 0 | EQ79: 0 | EY79: 0 | FG79: 0 | FO79: 0 | FW79: 0 | GE79: 0 | GM79: 0 | GU79: 0 | HC79: 0 | HK79: 0 | HS79: 0 | IA79: 0 | II79: 0 | IQ79: 0 | IY79: 0 | JG79: 0 | JO79: 0 | JW79: 0 | KE79: 0 | KM79: 0 | KU79: 0 | LC79: 0 | LK79: 0 | LS79: 0 | MA79: 0 | MI79: 0 | MQ79: 0 | MY79: 0 | NG79: 0 | NO79: 0 | NW79: 0 | OE79: 0 | OM79: 0
A80: =SUM(C80:OR80) -> 0
A81: 0 | B81: Soys
A82: 0 | B82: 2013 | E82: =E14*F14 -> 0 | M82: =M14*N14 -> 0 | U82: =U14*V14 -> 0 | AC82: =AC14*AD14 -> 0 | AK82: =AK14*AL14 -> 0 | AS82: =AS14*AT14 -> 0 | BA82: =BA14*BB14 -> 0 | BI82: =BI14*BJ14 -> 0 | BQ82: =BQ14*BR14 -> 0 | BY82: =BY14*BZ14 -> 0 | CG82: =CG14*CH14 -> 0 | CO82: =CO14*CP14 -> 0 | CW82: =CW14*CX14 -> 0 | DE82: =DE14*DF14 -> 0 | DM82: =DM14*DN14 -> 0 | DU82: =DU14*DV14 -> 0 | EC82: =EC14*ED14 -> 0 | EK82: =EK14*EL14 -> 0 | ES82: =ES14*ET14 -> 0 | FA82: =FA14*FB14 -> 0 | FI82: =FI14*FJ14 -> 0 | FQ82: =FQ14*FR14 -> 0 | FY82: =FY14*FZ14 -> 0 | GG82: =GG14*GH14 -> 0 | GO82: =GO14*GP14 -> 0 | GW82: =GW14*GX14 -> 0 | HE82: =HE14*HF14 -> 0 | HM82: =HM14*HN14 -> 0 | HU82: =HU14*HV14 -> 0 | IC82: =IC14*ID14 -> 0 | IK82: =IK14*IL14 -> 0 | IS82: =IS14*IT14 -> 0 | JA82: =JA14*JB14 -> 0 | JI82: =JI14*JJ14 -> 0 | JQ82: =JQ14*JR14 -> 0 | JY82: =JY14*JZ14 -> 0 | KG82: =KG14*KH14 -> 0 | KO82: =KO14*KP14 -> 0 | KW82: =KW14*KX14 -> 0 | LE82: =LE14*LF14 -> 0 | LM82: =LM14*LN14 -> 0 | LU82: =LU14*LV14 -> 0 | MC82: =MC14*MD14 -> 0 | MK82: =MK14*ML14 -> 0 | MS82: =MS14*MT14 -> 0 | NA82: =NA14*NB14 -> 0 | NI82: =NI14*NJ14 -> 0 | NQ82: =NQ14*NR14 -> 0 | NY82: =NY14*NZ14 -> 0 | OG82: =OG14*OH14 -> 0 | OO82: =OO14*OP14 -> 0
A83: 0 | B83: 2014 | E83: =E15*F15 -> 0 | M83: =M15*N15 -> 0 | U83: =U15*V15 -> 0 | AC83: =AC15*AD15 -> 0 | AK83: =AK15*AL15 -> 0 | AS83: =AS15*AT15 -> 0 | BA83: =BA15*BB15 -> 0 | BI83: =BI15*BJ15 -> 0 | BQ83: =BQ15*BR15 -> 0 | BY83: =BY15*BZ15 -> 0 | CG83: =CG15*CH15 -> 0 | CO83: =CO15*CP15 -> 0 | CW83: =CW15*CX15 -> 0 | DE83: =DE15*DF15 -> 0 | DM83: =DM15*DN15 -> 0 | DU83: =DU15*DV15 -> 0 | EC83: =EC15*ED15 -> 0 | EK83: =EK15*EL15 -> 0 | ES83: =ES15*ET15 -> 0 | FA83: =FA15*FB15 -> 0 | FI83: =FI15*FJ15 -> 0 | FQ83: =FQ15*FR15 -> 0 | FY83: =FY15*FZ15 -> 0 | GG83: =GG15*GH15 -> 0 | GO83: =GO15*GP15 -> 0 | GW83: =GW15*GX15 -> 0 | HE83: =HE15*HF15 -> 0 | HM83: =HM15*HN15 -> 0 | HU83: =HU15*HV15 -> 0 | IC83: =IC15*ID15 -> 0 | IK83: =IK15*IL15 -> 0 | IS83: =IS15*IT15 -> 0 | JA83: =JA15*JB15 -> 0 | JI83: =JI15*JJ15 -> 0 | JQ83: =JQ15*JR15 -> 0 | JY83: =JY15*JZ15 -> 0 | KG83: =KG15*KH15 -> 0 | KO83: =KO15*KP15 -> 0 | KW83: =KW15*KX15 -> 0 | LE83: =LE15*LF15 -> 0 | LM83: =LM15*LN15 -> 0 | LU83: =LU15*LV15 -> 0 | MC83: =MC15*MD15 -> 0 | MK83: =MK15*ML15 -> 0 | MS83: =MS15*MT15 -> 0 | NA83: =NA15*NB15 -> 0 | NI83: =NI15*NJ15 -> 0 | NQ83: =NQ15*NR15 -> 0 | NY83: =NY15*NZ15 -> 0 | OG83: =OG15*OH15 -> 0 | OO83: =OO15*OP15 -> 0
A84: 0 | B84: 2015 | E84: 0 | M84: 0 | U84: 0 | AC84: 0 | AK84: 0 | AS84: 0 | BA84: 0 | BI84: 0 | BQ84: 0 | BY84: 0 | CG84: 0 | CO84: 0 | CW84: 0 | DE84: 0 | DM84: 0 | DU84: 0 | EC84: 0 | EK84: 0 | ES84: 0 | FA84: 0 | FI84: 0 | FQ84: 0 | FY84: 0 | GG84: 0 | GO84: 0 | GW84: 0 | HE84: 0 | HM84: 0 | HU84: 0 | IC84: 0 | IK84: 0 | IS84: 0 | JA84: 0 | JI84: 0 | JQ84: 0 | JY84: 0 | KG84: 0 | KO84: 0 | KW84: 0 | LE84: 0 | LM84: 0 | LU84: 0 | MC84: 0 | MK84: 0 | MS84: 0 | NA84: 0 | NI84: 0 | NQ84: 0 | NY84: 0 | OG84: 0 | OO84: 0
A85: 0 | B85: 2016 | E85: 0 | M85: 0 | U85: 0 | AC85: 0 | AK85: 0 | AS85: 0 | BA85: 0 | BI85: 0 | BQ85: 0 | BY85: 0 | CG85: 0 | CO85: 0 | CW85: 0 | DE85: 0 | DM85: 0 | DU85: 0 | EC85: 0 | EK85: 0 | ES85: 0 | FA85: 0 | FI85: 0 | FQ85: 0 | FY85: 0 | GG85: 0 | GO85: 0 | GW85: 0 | HE85: 0 | HM85: 0 | HU85: 0 | IC85: 0 | IK85: 0 | IS85: 0 | JA85: 0 | JI85: 0 | JQ85: 0 | JY85: 0 | KG85: 0 | KO85: 0 | KW85: 0 | LE85: 0 | LM85: 0 | LU85: 0 | MC85: 0 | MK85: 0 | MS85: 0 | NA85: 0 | NI85: 0 | NQ85: 0 | NY85: 0 | OG85: 0 | OO85: 0
A86: 0 | B86: 2017 | E86: 0 | M86: 0 | U86: 0 | AC86: 0 | AK86: 0 | AS86: 0 | BA86: 0 | BI86: 0 | BQ86: 0 | BY86: 0 | CG86: 0 | CO86: 0 | CW86: 0 | DE86: 0 | DM86: 0 | DU86: 0 | EC86: 0 | EK86: 0 | ES86: 0 | FA86: 0 | FI86: 0 | FQ86: 0 | FY86: 0 | GG86: 0 | GO86: 0 | GW86: 0 | HE86: 0 | HM86: 0 | HU86: 0 | IC86: 0 | IK86: 0 | IS86: 0 | JA86: 0 | JI86: 0 | JQ86: 0 | JY86: 0 | KG86: 0 | KO86: 0 | KW86: 0 | LE86: 0 | LM86: 0 | LU86: 0 | MC86: 0 | MK86: 0 | MS86: 0 | NA86: 0 | NI86: 0 | NQ86: 0 | NY86: 0 | OG86: 0 | OO86: 0
A87: 0 | B87: 2018 | E87: 0 | M87: 0 | U87: 0 | AC87: 0 | AK87: 0 | AS87: 0 | BA87: 0 | BI87: 0 | BQ87: 0 | BY87: 0 | CG87: 0 | CO87: 0 | CW87: 0 | DE87: 0 | DM87: 0 | DU87: 0 | EC87: 0 | EK87: 0 | ES87: 0 | FA87: 0 | FI87: 0 | FQ87: 0 | FY87: 0 | GG87: 0 | GO87: 0 | GW87: 0 | HE87: 0 | HM87: 0 | HU87: 0 | IC87: 0 | IK87: 0 | IS87: 0 | JA87: 0 | JI87: 0 | JQ87: 0 | JY87: 0 | KG87: 0 | KO87: 0 | KW87: 0 | LE87: 0 | LM87: 0 | LU87: 0 | MC87: 0 | MK87: 0 | MS87: 0 | NA87: 0 | NI87: 0 | NQ87: 0 | NY87: 0 | OG87: 0 | OO87: 0
A88: 0 | B88: 2019 or Considered | E88: 0 | M88: 0 | U88: 0 | AC88: 0 | AK88: 0 | AS88: 0 | BA88: 0 | BI88: 0 | BQ88: 0 | BY88: 0 | CG88: 0 | CO88: 0 | CW88: 0 | DE88: 0 | DM88: 0 | DU88: 0 | EC88: 0 | EK88: 0 | ES88: 0 | FA88: 0 | FI88: 0 | FQ88: 0 | FY88: 0 | GG88: 0 | GO88: 0 | GW88: 0 | HE88: 0 | HM88: 0 | HU88: 0 | IC88: 0 | IK88: 0 | IS88: 0 | JA88: 0 | JI88: 0 | JQ88: 0 | JY88: 0 | KG88: 0 | KO88: 0 | KW88: 0 | LE88: 0 | LM88: 0 | LU88: 0 | MC88: 0 | MK88: 0 | MS88: 0 | NA88: 0 | NI88: 0 | NQ88: 0 | NY88: 0 | OG88: 0 | OO88: 0
A89: 0 | B89: 2020 | E89: 0 | M89: 0 | U89: 0 | AC89: 0 | AK89: 0 | AS89: 0 | BA89: 0 | BI89: 0 | BQ89: 0 | BY89: 0 | CG89: 0 | CO89: 0 | CW89: 0 | DE89: 0 | DM89: 0 | DU89: 0 | EC89: 0 | EK89: 0 | ES89: 0 | FA89: 0 | FI89: 0 | FQ89: 0 | FY89: 0 | GG89: 0 | GO89: 0 | GW89: 0 | HE89: 0 | HM89: 0 | HU89: 0 | IC89: 0 | IK89: 0 | IS89: 0 | JA89: 0 | JI89: 0 | JQ89: 0 | JY89: 0 | KG89: 0 | KO89: 0 | KW89: 0 | LE89: 0 | LM89: 0 | LU89: 0 | MC89: 0 | MK89: 0 | MS89: 0 | NA89: 0 | NI89: 0 | NQ89: 0 | NY89: 0 | OG89: 0 | OO89: 0
A90: 0
A91: 0 | B91: Wheat
A92: 0 | B92: 2013 | G92: =G14*H14 -> 0 | O92: =O14*P14 -> 0 | W92: =W14*X14 -> 0 | AE92: =AE14*AF14 -> 0 | AM92: =AM14*AN14 -> 0 | AU92: =AU14*AV14 -> 0 | BC92: =BC14*BD14 -> 0 | BK92: =BK14*BL14 -> 0 | BS92: =BS14*BT14 -> 0 | CA92: =CA14*CB14 -> 0 | CI92: =CI14*CJ14 -> 0 | CQ92: =CQ14*CR14 -> 0 | CY92: =CY14*CZ14 -> 0 | DG92: =DG14*DH14 -> 0 | DO92: =DO14*DP14 -> 0 | DW92: =DW14*DX14 -> 0 | EE92: =EE14*EF14 -> 0 | EM92: =EM14*EN14 -> 0 | EU92: =EU14*EV14 -> 0 | FC92: =FC14*FD14 -> 0 | FK92: =FK14*FL14 -> 0 | FS92: =FS14*FT14 -> 0 | GA92: =GA14*GB14 -> 0 | GI92: =GI14*GJ14 -> 0 | GQ92: =GQ14*GR14 -> 0 | GY92: =GY14*GZ14 -> 0 | HG92: =HG14*HH14 -> 0 | HO92: =HO14*HP14 -> 0 | HW92: =HW14*HX14 -> 0 | IE92: =IE14*IF14 -> 0 | IM92: =IM14*IN14 -> 0 | IU92: =IU14*IV14 -> 0 | JC92: =JC14*JD14 -> 0 | JK92: =JK14*JL14 -> 0 | JS92: =JS14*JT14 -> 0 | KA92: =KA14*KB14 -> 0 | KI92: =KI14*KJ14 -> 0 | KQ92: =KQ14*KR14 -> 0 | KY92: =KY14*KZ14 -> 0 | LG92: =LG14*LH14 -> 0 | LO92: =LO14*LP14 -> 0 | LW92: =LW14*LX14 -> 0 | ME92: =ME14*MF14 -> 0 | MM92: =MM14*MN14 -> 0 | MU92: =MU14*MV14 -> 0 | NC92: =NC14*ND14 -> 0 | NK92: =NK14*NL14 -> 0 | NS92: =NS14*NT14 -> 0 | OA92: =OA14*OB14 -> 0 | OI92: =OI14*OJ14 -> 0 | OQ92: =OQ14*OR14 -> 0
A93: 0 | B93: 2014 | G93: =G15*H15 -> 0 | O93: =O15*P15 -> 0 | W93: =W15*X15 -> 0 | AE93: =AE15*AF15 -> 0 | AM93: =AM15*AN15 -> 0 | AU93: =AU15*AV15 -> 0 | BC93: =BC15*BD15 -> 0 | BK93: =BK15*BL15 -> 0 | BS93: =BS15*BT15 -> 0 | CA93: =CA15*CB15 -> 0 | CI93: =CI15*CJ15 -> 0 | CQ93: =CQ15*CR15 -> 0 | CY93: =CY15*CZ15 -> 0 | DG93: =DG15*DH15 -> 0 | DO93: =DO15*DP15 -> 0 | DW93: =DW15*DX15 -> 0 | EE93: =EE15*EF15 -> 0 | EM93: =EM15*EN15 -> 0 | EU93: =EU15*EV15 -> 0 | FC93: =FC15*FD15 -> 0 | FK93: =FK15*FL15 -> 0 | FS93: =FS15*FT15 -> 0 | GA93: =GA15*GB15 -> 0 | GI93: =GI15*GJ15 -> 0 | GQ93: =GQ15*GR15 -> 0 | GY93: =GY15*GZ15 -> 0 | HG93: =HG15*HH15 -> 0 | HO93: =HO15*HP15 -> 0 | HW93: =HW15*HX15 -> 0 | IE93: =IE15*IF15 -> 0 | IM93: =IM15*IN15 -> 0 | IU93: =IU15*IV15 -> 0 | JC93: =JC15*JD15 -> 0 | JK93: =JK15*JL15 -> 0 | JS93: =JS15*JT15 -> 0 | KA93: =KA15*KB15 -> 0 | KI93: =KI15*KJ15 -> 0 | KQ93: =KQ15*KR15 -> 0 | KY93: =KY15*KZ15 -> 0 | LG93: =LG15*LH15 -> 0 | LO93: =LO15*LP15 -> 0 | LW93: =LW15*LX15 -> 0 | ME93: =ME15*MF15 -> 0 | MM93: =MM15*MN15 -> 0 | MU93: =MU15*MV15 -> 0 | NC93: =NC15*ND15 -> 0 | NK93: =NK15*NL15 -> 0 | NS93: =NS15*NT15 -> 0 | OA93: =OA15*OB15 -> 0 | OI93: =OI15*OJ15 -> 0 | OQ93: =OQ15*OR15 -> 0
A94: 0 | B94: 2015 | G94: 0 | O94: 0 | W94: 0 | AE94: 0 | AM94: 0 | AU94: 0 | BC94: 0 | BK94: 0 | BS94: 0 | CA94: 0 | CI94: 0 | CQ94: 0 | CY94: 0 | DG94: 0 | DO94: 0 | DW94: 0 | EE94: 0 | EM94: 0 | EU94: 0 | FC94: 0 | FK94: 0 | FS94: 0 | GA94: 0 | GI94: 0 | GQ94: 0 | GY94: 0 | HG94: 0 | HO94: 0 | HW94: 0 | IE94: 0 | IM94: 0 | IU94: 0 | JC94: 0 | JK94: 0 | JS94: 0 | KA94: 0 | KI94: 0 | KQ94: 0 | KY94: 0 | LG94: 0 | LO94: 0 | LW94: 0 | ME94: 0 | MM94: 0 | MU94: 0 | NC94: 0 | NK94: 0 | NS94: 0 | OA94: 0 | OI94: 0 | OQ94: 0
A95: 0 | B95: 2016 | G95: 0 | O95: 0 | W95: 0 | AE95: 0 | AM95: 0 | AU95: 0 | BC95: 0 | BK95: 0 | BS95: 0 | CA95: 0 | CI95: 0 | CQ95: 0 | CY95: 0 | DG95: 0 | DO95: 0 | DW95: 0 | EE95: 0 | EM95: 0 | EU95: 0 | FC95: 0 | FK95: 0 | FS95: 0 | GA95: 0 | GI95: 0 | GQ95: 0 | GY95: 0 | HG95: 0 | HO95: 0 | HW95: 0 | IE95: 0 | IM95: 0 | IU95: 0 | JC95: 0 | JK95: 0 | JS95: 0 | KA95: 0 | KI95: 0 | KQ95: 0 | KY95: 0 | LG95: 0 | LO95: 0 | LW95: 0 | ME95: 0 | MM95: 0 | MU95: 0 | NC95: 0 | NK95: 0 | NS95: 0 | OA95: 0 | OI95: 0 | OQ95: 0
